Workbook

Sheet 학생명렬
A1: 10101 | B1: 오소리 | D1: 각 학급 최대 50명
A2: 10102 | B2: 노우리
A3: 10103 | B3: 표의효
A4: 10104 | B4: 나아선
A5: 10105 | B5: 박양송
A6: 10106 | B6: 조지언
A7: 10107 | B7: 문유늘
A8: 10108 | B8: 지초늘
A9: 10109 | B9: 유재기
A10: 10110 | B10: 남진한
A11: 10111 | B11: 남소연
A12: 10112 | B12: 강소윤
A13: 10113 | B13: 손희란
A14: 10114 | B14: 양가율
A15: 10115 | B15: 은유안
A16: 10116 | B16: 손여승
A17: 10117 | B17: 공미빈
A18: 10118 | B18: 류보늘
A19: 10119 | B19: 양률임
A20: 10120 | B20: 권정세
A21: 10121 | B21: 원하정
A22: 10122 | B22: 하동윤
A23: 10123 | B23: 남수재
A24: 10124 | B24: 도현아
A25: 10125 | B25: 나상원
A26: 10126 | B26: 강재경
A27: 10127 | B27: 주다정
A28: 10128 | B28: 백양리
A29: 10129 | B29: 임희언
A30: 10130 | B30: 박윤비
A31: 10131 | B31: 지슬임
A32: 10132 | B32: 권병운
A33: 10133 | B33: 배혜령
A34: 10134 | B34: 유윤이
A35: 10135 | B35: 석여옥
A36: 10136 | B36: 유다채
A37: 10201 | B37: 곽성원
A38: 10202 | B38: 송승효
A39: 10203 | B39: 추병진
A40: 10204 | B40: 편상름
A41: 10205 | B41: 서비림
A42: 10206 | B42: 염서정
A43: 10207 | B43: 백가리
A44: 10208 | B44: 강서율
A45: 10209 | B45: 탁도희
A46: 10210 | B46: 윤다인
A47: 10211 | B47: 구나영
A48: 10212 | B48: 나미한
A49: 10213 | B49: 배진준
A50: 10214 | B50: 안경은
A51: 10215 | B51: 표률신
A52: 10216 | B52: 양현송
A53: 10217 | B53: 허해소
A54: 10218 | B54: 서유호
A55: 10219 | B55: 유주세
A56: 10220 | B56: 석상인
A57: 10221 | B57: 류영빈
A58: 10222 | B58: 신채현
A59: 10223 | B59: 백동교
A60: 10224 | B60: 조근린
A61: 10225 | B61: 류송미
A62: 10226 | B62: 송주한
A63: 10227 | B63: 구솔효
A64: 10228 | B64: 엄초재
A65: 10229 | B65: 석지름
A66: 10230 | B66: 은병완
A67: 10231 | B67: 엄슬하
A68: 10232 | B68: 최희선
A69: 10233 | B69: 우보기
A70: 10234 | B70: 김김수
A71: 10235 | B71: 한고빈
A72: 10236 | B72: 류지휘
A73: 10237 | B73: 변희민
A74: 10238 | B74: 여규안
A75: 10301 | B75: 우재당
A76: 10302 | B76: 신규유
A77: 10303 | B77: 오세리
A78: 10304 | B78: 주윤주
A79: 10305 | B79: 엄상선
A80: 10306 | B80: 구솔임
A81: 10307 | B81: 여조성
A82: 10308 | B82: 염의예
A83: 10309 | B83: 양재소
A84: 10310 | B84: 민여언
A85: 10311 | B85: 박태교
A86: 10312 | B86: 하소림
A87: 10313 | B87: 정동늘
A88: 10314 | B88: 오근송
A89: 10315 | B89: 허은당
A90: 10316 | B90: 추경리
A91: 10317 | B91: 도우미
A92: 10318 | B92: 손동운
A93: 10319 | B93: 석민늘
A94: 10320 | B94: 안미원
A95: 10321 | B95: 공상언
A96: 10322 | B96: 곽우진
A97: 10323 | B97: 신채래
A98: 10324 | B98: 탁원유
A99: 10325 | B99: 강우희
A100: 10326 | B100: 은상안
A101: 10327 | B101: 황주민
A102: 10328 | B102: 엄민신
A103: 10329 | B103: 노교솔
A104: 10330 | B104: 원원은
A105: 10331 | B105: 조재정
A106: 10332 | B106: 곽미란
A107: 10333 | B107: 방동지
A108: 10334 | B108: 최교수
A109: 10335 | B109: 전시린
A110: 10401 | B110: 원률솔
A111: 10402 | B111: 한영주
A112: 10403 | B112: 한윤이
A113: 10404 | B113: 송해솔
A114: 10405 | B114: 최진혜
A115: 10406 | B115: 전태래
A116: 10407 | B116: 이아린
A117: 10408 | B117: 최재호
A118: 10409 | B118: 변영재
A119: 10410 | B119: 박정이
A120: 10411 | B120: 하영림
A121: 10412 | B121: 도준신
A122: 10413 | B122: 정도준
A123: 10414 | B123: 고정수
A124: 10415 | B124: 이진유
A125: 10416 | B125: 탁상당
A126: 10417 | B126: 문영빈
A127: 10418 | B127: 엄지선
A128: 10419 | B128: 민한연
A129: 10420 | B129: 한동완
A130: 10421 | B130: 윤보채
A131: 10422 | B131: 방혜란
A132: 10423 | B132: 방유성
A133: 10424 | B133: 나채래
A134: 10425 | B134: 한순나
A135: 10426 | B135: 신조송
A136: 10427 | B136: 여해유
A137: 10428 | B137: 김슬빈
A138: 10429 | B138: 신송름
A139: 10430 | B139: 송경림
A140: 10431 | B140: 표솔안
A141: 10432 | B141: 김미혜
A142: 10433 | B142: 강교솔
A143: 10434 | B143: 민나성
A144: 10435 | B144: 안미미
A145: 10436 | B145: 안순비
A146: 10501 | B146: 박성승
A147: 10502 | B147: 추가솔
A148: 10503 | B148: 원민혜
A149: 10504 | B149: 류근경
A150: 10505 | B150: 황지당
A151: 10506 | B151: 강병주
A152: 10507 | B152: 고예래
A153: 10508 | B153: 강태빈
A154: 10509 | B154: 박해빈
A155: 10510 | B155: 오지영
A156: 10511 | B156: 지이온
A157: 10512 | B157: 송순하
A158: 10513 | B158: 임재희
A159: 10514 | B159: 주진송
A160: 10515 | B160: 황영향
A161: 10516 | B161: 전승진
A162: 10517 | B162: 황비영
A163: 10518 | B163: 신은린
A164: 10519 | B164: 안여연
A165: 10520 | B165: 추은영
A166: 10521 | B166: 윤솔름
A167: 10522 | B167: 곽경비
A168: 10523 | B168: 방준원
A169: 10524 | B169: 진송지
A170: 10525 | B170: 남상린
A171: 10526 | B171: 표한혜
A172: 10527 | B172: 석비성
A173: 10528 | B173: 엄영선
A174: 10529 | B174: 정우옥
A175: 10530 | B175: 박우신
A176: 10531 | B176: 표의안
A177: 10532 | B177: 류명향
A178: 10533 | B178: 진준경
A179: 10534 | B179: 안성언
A180: 10535 | B180: 임수연
A181: 10536 | B181: 신우리
A182: 10601 | B182: 염여인
A183: 10602 | B183: 은우나
A184: 10603 | B184: 편상미
A185: 10604 | B185: 도예연
A186: 10605 | B186: 고시윤
A187: 10606 | B187: 변다지
A188: 10607 | B188: 우의송
A189: 10608 | B189: 석나빈
A190: 10609 | B190: 구휘기
A191: 10610 | B191: 한순희
A192: 10611 | B192: 방세란
A193: 10612 | B193: 추정욱
A194: 10613 | B194: 문비재
A195: 10614 | B195: 김재채
A196: 10615 | B196: 염이정
A197: 10616 | B197: 원예선
A198: 10617 | B198: 박고연
A199: 10618 | B199: 곽지유
A200: 10619 | B200: 진양리
... 162 more rows

Sheet 수업명렬
A1: 1 | C1: 제목 : | D1: 2015년 겨울방학 보충수업 | J1: 4 | BS1: =INDEX(BN:BN,MATCH(BS2,BU:BU,0),) -> 3301 | BV1: =INT(LEFT(BS1,2)) -> 33 | BW1: =MAX($BW$5:$BW$204) -> 2 | BX1: =INDEX($BN$5:$BN$204,MATCH(BW1,$BW$5:$BW$204,0),) -> 3301 | BY1: =INDEX(BT:BT,MATCH(BX1,BN:BN,0)) -> -4 | BZ1: 과
BG2: =AE4 -> 2015년 겨울방학 보충수업 | BR2: =COUNT(BM5:BM204) -> 14 | BS2: =MAX(BU5:BU204) -> 4 | BW2: =MIN($BW$5:$BW$204) -> 1 | BX2: =INDEX($BN$5:$BN$204,MATCH(BW2,$BW$5:$BW$204,0),) -> 3304 | BY2: =INDEX(BT:BT,MATCH(BX2,BN:BN,0)) -> 4 | BZ2: 부족
D3: =COUNTA(D5:D24) -> 3 | I3: 과목별 10명 까지 입력 | S3: 기본코드 | X3: =SUM(Z5:Z104) -> 14 | BE3: 추천 예시 : 1102 - 11번 과목의 2교시 수업 | BK3: 강의실 코드 예시 : 10103 -1학년1반 3교시 | BS3: =SUM(BU5:BU204) -> 24
A4: 위드석 고등학교 | C4: A | D4: 개설 영역 | I4: B | J4: 과목별 교사 | M4: 개설 강좌수 | S4: C | T4: 개설 영역 | W4: 수업명 | X4: 교사 | Z4: 개설 반 개수 | AC4: D | AD4: 시간표 | AE4: =D1 -> 2015년 겨울방학 보충수업 | AY4: 오류 | BE4: 추천 세부 과목 코드 | BG4: E | BI4: 과목코드 결정 | BJ4: 배정 인원 | BK4: 실제 인원 | BL4: 강의실 | BM4: 강의실 코드 | BN4: 최종결정 과목코드 | BP4: 강의실코드 오류 파악 | BR4: 신청 인원 | BS4: 배정 합 | BT4: 차 | CB4: F | CC4: 결과표 | CF4: 연습 & 메모장
A5: 만든이 | C5: 1 | D5: 국어 | E5: =IF(D5="","",COUNTIF(K:K,D5)) -> 2 | F5: =IF(D5="","",1) -> 1 | G5: =IF(MOD(ROW()-4,10)=1,1,"") -> 1 | H5: =((ROW()-5)-MOD(ROW()-5,10))/10+1 -> 1 | I5: =IF(G5=1,IF(INDEX($D$5:$D$24,MATCH(H5,$C$5:$C$24,0),)="","",INDEX($D$5:$D$24,MATCH(H5,$C$5:$C$24,0),)),"") -> 국어 | J5: 국길동 | K5: =IF(J5="","",INDEX($D$5:$D$24,MATCH(H5,$C$5:$C$24,0),)) -> 국어 | L5: =IF(I5="","",ROW()-4) -> 1 | M5: =IF(J5="","",COUNTIF($X$5:$X$104,J5)) -> 1 | N5: =IF(J5="","",SUM((K5=K$5:K5)*1)) -> 1 | O5: =IF(J5="","",H5&N5&0&0) -> 1100 | P5: =IF(K5="","",K5&J5) -> 국어국길동 | R5: 1 | S5: =IF(X5="","",INT(INDEX(O:O,MATCH(Y5,P:P,0),))) -> 1100 | T5: 국어 | U5: =IF(T5="","",INDEX($F$5:$F$24,MATCH(T5,$D$5:$D$24,0),)) -> 1 | V5: =IF(T5="","",INDEX($E$5:$E$24,MATCH(T5,$D$5:$D$24,0),)) -> 2 | W5: 고전산문 | X5: 국길동 | Y5: =IF(X5="","",T5&X5) -> 국어국길동 | Z5: 2 | AA5: =LEFT(S5,2) -> 11 | AC5: 교실 | AD5: 101 | AE5: 102 | AF5: 103 | AG5: 104 | AH5: 105 | AI5: 106 | AJ5: 107 | AK5: 108 | AL5: 109 | AM5: 110 | AN5: 111 | AO5: 112 | AP5: 113 | AQ5: 114 | AR5: 115 | AS5: 116 | AT5: 117 | AU5: 118 | AV5: 119 | AW5: 120 | AY5: =IF(COUNTIF($AD$6:$AW$29,X5)=0,"",COUNTIF($AD$6:$AW$29,X5)) -> 2 | BA5: =IF(BC5="","",BC5&BD5) -> 111 | BB5: 1 | BC5: =IF(BB5>$X$3,"",INDEX($AA$5:$AA$104,MATCH(ROW(AA5)-5,SUMIF(OFFSET($Z$5:$Z$104,,,ROW($Z$5:$Z$104)-4),"<>")-$Z$5:$Z$104))) -> 11 | BD5: 1 | BE5: =IF(BC5="","",IF(LEN(BD5)=2,INT(BC5&BD5),INT(BC5&0&BD5))) -> 1101 | BF5: =IF(BE5="","",INDEX(T:T,MATCH(BC5,AA:AA,),)) -> 국어 | BG5: =IF(BE5="","",INDEX(W:W,MATCH(BC5,AA:AA,),)) -> 고전산문 | BH5: =IF(BE5="","",INDEX(X:X,MATCH(BC5,AA:AA,),)) -> 국길동 | BI5: 1102 | BJ5: 22 | BK5: =IF(반배정!OK7="","",IF(BM5="","",반배정!OK7)) -> 21 | BL5: 108 | BM5: =IF(BL5="","",INT(BL5&RIGHT(BN5,2))) -> 10802 | BN5: =IF(BE5="","",IF(BI5="",INT(BE5),INT(BI5))) -> 1102 | BO5: =IF(BG5="","",BG5&"-"&BH5&"-"&LEFT(BM5,3)) -> 고전산문-국길동-108 | BP5: =IF(BM5="",1,IF(SUM((BM5=$BM$5:$BM$204)*1)>1,2,1)) -> 1 | BQ5: =IF(BC5="","",IF(BC5=BC4,"",INT(BC5&0&0))) -> 1100 | BR5: =INDEX(수강신청!$I$508:$BF$508,,MATCH(BQ5,수강신청!$I$509:$BF$509,0)) -> 45 | BS5: =IF(BR5="","",SUM((BC5=$BC$5:$BC$204)*($BJ$5:$BJ$204)*1)) -> 45 | BT5: =IF(BJ5="","",-(BJ5-BK5)) -> -1 | BU5: =IF(BJ5="","",ABS(BJ5-BK5)) -> 1 | BV5: =IF(BT5="","",IF(INT(BC5)=BV$1,BT5,"")) ->  | BW5: =IF(BV5="","",INT(RANK(BV5,$BV$5:$BV$204))) ->  | CC5: 신청인원 | CD5: 신청강좌수
A6: SJS-Zcrong | C6: 2 | D6: 수학 | E6: 3 | F6: =IF(D6="","",F5+10) -> 11 | G6: =IF(MOD(ROW()-4,10)=1,1,"") ->  | H6: =((ROW()-5)-MOD(ROW()-5,10))/10+1 -> 1 | I6: =IF(G6=1,IF(INDEX($D$5:$D$24,MATCH(H6,$C$5:$C$24,0),)="","",INDEX($D$5:$D$24,MATCH(H6,$C$5:$C$24,0),)),"") ->  | J6: 국순신 | K6: =IF(J6="","",INDEX($D$5:$D$24,MATCH(H6,$C$5:$C$24,0),)) -> 국어 | L6: =IF(I6="","",ROW()-4) ->  | M6: =IF(J6="","",COUNTIF($X$5:$X$104,J6)) -> 1 | N6: =IF(J6="","",SUM((K6=K$5:K6)*1)) -> 2 | O6: =IF(J6="","",H6&N6&0&0) -> 1200 | P6: =IF(K6="","",K6&J6) -> 국어국순신 | R6: 2 | S6: 1200 | T6: 국어 | U6: =IF(T6="","",INDEX($F$5:$F$24,MATCH(T6,$D$5:$D$24,0),)) -> 1 | V6: =IF(T6="","",INDEX($E$5:$E$24,MATCH(T6,$D$5:$D$24,0),)) -> 2 | W6: 비문학독해 | X6: 국순신 | Y6: =IF(X6="","",T6&X6) -> 국어국순신 | Z6: 2 | AA6: 12 | AC6: 1 | AD6: =IF(AD8="","",INDEX($W:$W,MATCH(AD8,$S:$S,0),)) -> Basic Reading | AE6: =IF(AE8="","",INDEX($W:$W,MATCH(AE8,$S:$S,0),)) -> Beyond Reading | AF6: 비문학독해 | AL6: 수II기출 | AM6: Upgrade Reading | AY6: =IF(COUNTIF($AD$6:$AW$29,X6)=0,"",COUNTIF($AD$6:$AW$29,X6)) -> 2 | BA6: =IF(BC6="","",BC6&BD6) -> 112 | BB6: 2 | BC6: =IF(BB6>$X$3,"",INDEX($AA$5:$AA$104,MATCH(ROW(AA6)-5,SUMIF(OFFSET($Z$5:$Z$104,,,ROW($Z$5:$Z$104)-4),"<>")-$Z$5:$Z$104))) -> 11 | BD6: =IF(BC6="","",IF(BC5=BC6,BD5+1,1)) -> 2 | BE6: =IF(BC6="","",IF(LEN(BD6)=2,INT(BC6&BD6),INT(BC6&0&BD6))) -> 1102 | BF6: 국어 | BG6: 고전산문 | BH6: 국길동 | BI6: 1104 | BJ6: 23 | BK6: =IF(반배정!OK8="","",IF(BM6="","",반배정!OK8)) -> 24 | BL6: 108 | BM6: 10804 | BN6: =IF(BE6="","",IF(BI6="",INT(BE6),INT(BI6))) -> 1104 | BO6: =IF(BG6="","",BG6&"-"&BH6&"-"&LEFT(BM6,3)) -> 고전산문-국길동-108 | BP6: =IF(BM6="",1,IF(SUM((BM6=$BM$5:$BM$204)*1)>1,2,1)) -> 1 | BQ6: =IF(BC6="","",IF(BC6=BC5,"",INT(BC6&0&0))) ->  | BR6: =INDEX(수강신청!$I$508:$BF$508,,MATCH(BQ6,수강신청!$I$509:$BF$509,0)) ->  | BS6: =IF(BR6="","",SUM((BC6=$BC$5:$BC$204)*($BJ$5:$BJ$204)*1)) ->  | BT6: =IF(BJ6="","",-(BJ6-BK6)) -> 1 | BU6: =IF(BJ6="","",ABS(BJ6-BK6)) -> 1 | BV6: =IF(BT6="","",IF(INT(BC6)=BV$1,BT6,"")) ->  | BW6: =IF(BV6="","",INT(RANK(BV6,$BV$5:$BV$204))) ->  | CB6: 1 | CC6: =수강신청!BI7 -> 10 | CD6: =수강신청!BI8 -> 21
A7: 멘토 | C7: 3 | D7: 영어 | E7: 3 | F7: =IF(D7="","",F6+10) -> 21 | H7: 1 | N7: =IF(J7="","",SUM((K7=K$5:K7)*1)) ->  | R7: 3 | S7: 2100 | T7: 수학 | U7: 11 | V7: 3 | W7: 수II기출 | X7: 수영희 | Y7: 수학수영희 | Z7: 2 | AA7: 21 | AD7: =IF(AD8="","",INDEX($X:$X,MATCH(AD8,$S:$S,0),)) -> 영우연 | AE7: =IF(AE8="","",INDEX($X:$X,MATCH(AE8,$S:$S,0),)) -> 영홍홍 | AF7: 국순신 | AL7: 수영희 | AM7: 영어랑 | AY7: 2 | BA7: 121 | BB7: 3 | BC7: =IF(BB7>$X$3,"",INDEX($AA$5:$AA$104,MATCH(ROW(AA7)-5,SUMIF(OFFSET($Z$5:$Z$104,,,ROW($Z$5:$Z$104)-4),"<>")-$Z$5:$Z$104))) -> 12 | BD7: =IF(BC7="","",IF(BC6=BC7,BD6+1,1)) -> 1 | BE7: 1201 | BF7: 국어 | BG7: 비문학독해 | BH7: 국순신 | BI7: 1201 | BJ7: 15 | BK7: =IF(반배정!OK9="","",IF(BM7="","",반배정!OK9)) -> 17 | BL7: 103 | BM7: 10301 | BN7: 1201 | BO7: 비문학독해-국순신-103 | BP7: =IF(BM7="",1,IF(SUM((BM7=$BM$5:$BM$204)*1)>1,2,1)) -> 1 | BQ7: 1200 | BR7: =INDEX(수강신청!$I$508:$BF$508,,MATCH(BQ7,수강신청!$I$509:$BF$509,0)) -> 32 | BS7: =IF(BR7="","",SUM((BC7=$BC$5:$BC$204)*($BJ$5:$BJ$204)*1)) -> 32 | BT7: 2 | BU7: 2 | CB7: 2 | CC7: =수강신청!BI57 -> 15 | CD7: =수강신청!BI58 -> 34
A8: PWH | C8: 4 | H8: 1 | N8: =IF(J8="","",SUM((K8=K$5:K8)*1)) ->  | R8: 4 | S8: 2200 | T8: 수학 | U8: 11 | V8: 3 | W8: 수열/지수(심) | X8: 위드석심 | Y8: 수학위드석심 | Z8: 1 | AA8: 22 | AD8: 3100 | AE8: 3300 | AF8: 1200 | AL8: 2100 | AM8: 3200 | AY8: 1 | BA8: 122 | BB8: 4 | BC8: =IF(BB8>$X$3,"",INDEX($AA$5:$AA$104,MATCH(ROW(AA8)-5,SUMIF(OFFSET($Z$5:$Z$104,,,ROW($Z$5:$Z$104)-4),"<>")-$Z$5:$Z$104))) -> 12 | BD8: 2 | BE8: 1202 | BF8: 국어 | BG8: 비문학독해 | BH8: 국순신 | BI8: 1202 | BJ8: 17 | BK8: =IF(반배정!OK10="","",IF(BM8="","",반배정!OK10)) -> 15 | BL8: 103 | BM8: 10302 | BN8: 1202 | BO8: 비문학독해-국순신-103 | BP8: =IF(BM8="",1,IF(SUM((BM8=$BM$5:$BM$204)*1)>1,2,1)) -> 1 | BR8: =INDEX(수강신청!$I$508:$BF$508,,MATCH(BQ8,수강신청!$I$509:$BF$509,0)) ->  | BS8: =IF(BR8="","",SUM((BC8=$BC$5:$BC$204)*($BJ$5:$BJ$204)*1)) ->  | BT8: -2 | BU8: 2 | CB8: 3 | CC8: =수강신청!BI107 -> 8 | CD8: =수강신청!BI108 -> 16
C9: 5 | H9: 1 | N9: =IF(J9="","",SUM((K9=K$5:K9)*1)) ->  | R9: 5 | S9: 2300 | T9: 수학 | U9: 11 | V9: 3 | W9: 수열/지수(기) | X9: 위드석기 | Y9: 수학위드석기 | Z9: 1 | AA9: 23 | AC9: 2 | AD9: =IF(AD11="","",INDEX($W:$W,MATCH(AD11,$S:$S,0),)) -> Basic Reading | AE9: =IF(AE11="","",INDEX($W:$W,MATCH(AE11,$S:$S,0),)) ->  | AF9: 비문학독해 | AK9: 고전산문 | AY9: 1 | BA9: 211 | BB9: 5 | BC9: =IF(BB9>$X$3,"",INDEX($AA$5:$AA$104,MATCH(ROW(AA9)-5,SUMIF(OFFSET($Z$5:$Z$104,,,ROW($Z$5:$Z$104)-4),"<>")-$Z$5:$Z$104))) -> 21 | BD9: 1 | BE9: 2101 | BF9: 수학 | BG9: 수II기출 | BH9: 수영희 | BI9: 2101 | BJ9: 23 | BK9: =IF(반배정!OK11="","",IF(BM9="","",반배정!OK11)) -> 22 | BL9: 109 | BM9: 10901 | BN9: 2101 | BO9: 수II기출-수영희-109 | BP9: =IF(BM9="",1,IF(SUM((BM9=$BM$5:$BM$204)*1)>1,2,1)) -> 1 | BQ9: 2100 | BR9: =INDEX(수강신청!$I$508:$BF$508,,MATCH(BQ9,수강신청!$I$509:$BF$509,0)) -> 45 | BS9: =IF(BR9="","",SUM((BC9=$BC$5:$BC$204)*($BJ$5:$BJ$204)*1)) -> 45 | BT9: -1 | BU9: 1 | CB9: 4 | CC9: =수강신청!BI157 -> 9 | CD9: =수강신청!BI158 -> 19
C10: 6 | H10: 1 | N10: =IF(J10="","",SUM((K10=K$5:K10)*1)) ->  | R10: 6 | S10: 3100 | T10: 영어 | U10: 21 | V10: 3 | W10: Basic Reading | X10: 영우연 | Y10: 영어영우연 | Z10: 2 | AA10: 31 | AD10: =IF(AD11="","",INDEX($X:$X,MATCH(AD11,$S:$S,0),)) -> 영우연 | AE10: =IF(AE11="","",INDEX($X:$X,MATCH(AE11,$S:$S,0),)) ->  | AF10: =IF(AF11="","",INDEX($X:$X,MATCH(AF11,$S:$S,0),)) -> 국순신 | AG10: =IF(AG11="","",INDEX($X:$X,MATCH(AG11,$S:$S,0),)) ->  | AH10: =IF(AH11="","",INDEX($X:$X,MATCH(AH11,$S:$S,0),)) ->  | AI10: =IF(AI11="","",INDEX($X:$X,MATCH(AI11,$S:$S,0),)) ->  | AJ10: =IF(AJ11="","",INDEX($X:$X,MATCH(AJ11,$S:$S,0),)) ->  | AK10: =IF(AK11="","",INDEX($X:$X,MATCH(AK11,$S:$S,0),)) -> 국길동 | AL10: =IF(AL11="","",INDEX($X:$X,MATCH(AL11,$S:$S,0),)) ->  | AM10: =IF(AM11="","",INDEX($X:$X,MATCH(AM11,$S:$S,0),)) ->  | AN10: =IF(AN11="","",INDEX($X:$X,MATCH(AN11,$S:$S,0),)) ->  | AO10: =IF(AO11="","",INDEX($X:$X,MATCH(AO11,$S:$S,0),)) ->  | AP10: =IF(AP11="","",INDEX($X:$X,MATCH(AP11,$S:$S,0),)) ->  | AQ10: =IF(AQ11="","",INDEX($X:$X,MATCH(AQ11,$S:$S,0),)) ->  | AR10: =IF(AR11="","",INDEX($X:$X,MATCH(AR11,$S:$S,0),)) ->  | AS10: =IF(AS11="","",INDEX($X:$X,MATCH(AS11,$S:$S,0),)) ->  | AT10: =IF(AT11="","",INDEX($X:$X,MATCH(AT11,$S:$S,0),)) ->  | AU10: =IF(AU11="","",INDEX($X:$X,MATCH(AU11,$S:$S,0),)) ->  | AV10: =IF(AV11="","",INDEX($X:$X,MATCH(AV11,$S:$S,0),)) ->  | AW10: =IF(AW11="","",INDEX($X:$X,MATCH(AW11,$S:$S,0),)) ->  | AY10: 2 | BA10: 212 | BB10: 6 | BC10: =IF(BB10>$X$3,"",INDEX($AA$5:$AA$104,MATCH(ROW(AA10)-5,SUMIF(OFFSET($Z$5:$Z$104,,,ROW($Z$5:$Z$104)-4),"<>")-$Z$5:$Z$104))) -> 21 | BD10: 2 | BE10: 2102 | BF10: 수학 | BG10: 수II기출 | BH10: 수영희 | BI10: 2103 | BJ10: 22 | BK10: =IF(반배정!OK12="","",IF(BM10="","",반배정!OK12)) -> 23 | BL10: 109 | BM10: 10903 | BN10: 2103 | BO10: 수II기출-수영희-109 | BP10: =IF(BM10="",1,IF(SUM((BM10=$BM$5:$BM$204)*1)>1,2,1)) -> 1 | BR10: =INDEX(수강신청!$I$508:$BF$508,,MATCH(BQ10,수강신청!$I$509:$BF$509,0)) ->  | BS10: =IF(BR10="","",SUM((BC10=$BC$5:$BC$204)*($BJ$5:$BJ$204)*1)) ->  | BT10: 1 | BU10: 1 | CB10: 5 | CC10: =수강신청!BI207 -> 15 | CD10: =수강신청!BI208 -> 38
C11: 7 | H11: 1 | N11: =IF(J11="","",SUM((K11=K$5:K11)*1)) ->  | R11: 7 | S11: 3200 | T11: 영어 | U11: 21 | V11: 3 | W11: Upgrade Reading | X11: 영어랑 | Y11: 영어영어랑 | Z11: 2 | AA11: 32 | AD11: 3100 | AF11: 1200 | AK11: 1100 | AY11: 2 | BA11: 221 | BB11: 7 | BC11: =IF(BB11>$X$3,"",INDEX($AA$5:$AA$104,MATCH(ROW(AA11)-5,SUMIF(OFFSET($Z$5:$Z$104,,,ROW($Z$5:$Z$104)-4),"<>")-$Z$5:$Z$104))) -> 22 | BD11: 1 | BE11: 2201 | BF11: 수학 | BG11: 수열/지수(심) | BH11: 위드석심 | BI11: 2204 | BJ11: 16 | BK11: =IF(반배정!OK13="","",IF(BM11="","",반배정!OK13)) -> 16 | BL11: 101 | BM11: 10104 | BN11: 2204 | BO11: 수열/지수(심)-위드석심-101 | BP11: =IF(BM11="",1,IF(SUM((BM11=$BM$5:$BM$204)*1)>1,2,1)) -> 1 | BQ11: 2200 | BR11: =INDEX(수강신청!$I$508:$BF$508,,MATCH(BQ11,수강신청!$I$509:$BF$509,0)) -> 16 | BS11: =IF(BR11="","",SUM((BC11=$BC$5:$BC$204)*($BJ$5:$BJ$204)*1)) -> 16 | BT11: 0 | BU11: 0 | CB11: 6 | CC11: =수강신청!BI257 -> 8 | CD11: =수강신청!BI258 -> 15
C12: 8 | H12: 1 | N12: =IF(J12="","",SUM((K12=K$5:K12)*1)) ->  | R12: 8 | S12: 3300 | T12: 영어 | U12: 21 | V12: 3 | W12: Beyond Reading | X12: 영홍홍 | Y12: 영어영홍홍 | Z12: 2 | AA12: 33 | AC12: 3 | AD12: =IF(AD14="","",INDEX($W:$W,MATCH(AD14,$S:$S,0),)) -> 수열/지수(기) | AE12: =IF(AE14="","",INDEX($W:$W,MATCH(AE14,$S:$S,0),)) ->  | AL12: 수II기출 | AM12: Upgrade Reading | AY12: 2 | BA12: 231 | BB12: 8 | BC12: =IF(BB12>$X$3,"",INDEX($AA$5:$AA$104,MATCH(ROW(AA12)-5,SUMIF(OFFSET($Z$5:$Z$104,,,ROW($Z$5:$Z$104)-4),"<>")-$Z$5:$Z$104))) -> 23 | BD12: 1 | BE12: 2301 | BF12: 수학 | BG12: 수열/지수(기) | BH12: 위드석기 | BI12: 2303 | BJ12: 20 | BK12: =IF(반배정!OK14="","",IF(BM12="","",반배정!OK14)) -> 20 | BL12: 101 | BM12: 10103 | BN12: 2303 | BO12: 수열/지수(기)-위드석기-101 | BP12: =IF(BM12="",1,IF(SUM((BM12=$BM$5:$BM$204)*1)>1,2,1)) -> 1 | BQ12: 2300 | BR12: =INDEX(수강신청!$I$508:$BF$508,,MATCH(BQ12,수강신청!$I$509:$BF$509,0)) -> 20 | BS12: =IF(BR12="","",SUM((BC12=$BC$5:$BC$204)*($BJ$5:$BJ$204)*1)) -> 20 | BT12: 0 | BU12: 0 | CB12: 7 | CC12: =수강신청!BI307 -> 15 | CD12: =수강신청!BI308 -> 37
C13: 9 | H13: 1 | N13: =IF(J13="","",SUM((K13=K$5:K13)*1)) ->  | R13: 9 | Y13: =IF(X13="","",T13&X13) ->  | AD13: =IF(AD14="","",INDEX($X:$X,MATCH(AD14,$S:$S,0),)) -> 위드석기 | AE13: =IF(AE14="","",INDEX($X:$X,MATCH(AE14,$S:$S,0),)) ->  | AF13: =IF(AF14="","",INDEX($X:$X,MATCH(AF14,$S:$S,0),)) ->  | AG13: =IF(AG14="","",INDEX($X:$X,MATCH(AG14,$S:$S,0),)) ->  | AH13: =IF(AH14="","",INDEX($X:$X,MATCH(AH14,$S:$S,0),)) ->  | AI13: =IF(AI14="","",INDEX($X:$X,MATCH(AI14,$S:$S,0),)) ->  | AJ13: =IF(AJ14="","",INDEX($X:$X,MATCH(AJ14,$S:$S,0),)) ->  | AK13: =IF(AK14="","",INDEX($X:$X,MATCH(AK14,$S:$S,0),)) ->  | AL13: =IF(AL14="","",INDEX($X:$X,MATCH(AL14,$S:$S,0),)) -> 수영희 | AM13: =IF(AM14="","",INDEX($X:$X,MATCH(AM14,$S:$S,0),)) -> 영어랑 | AN13: =IF(AN14="","",INDEX($X:$X,MATCH(AN14,$S:$S,0),)) ->  | AO13: =IF(AO14="","",INDEX($X:$X,MATCH(AO14,$S:$S,0),)) ->  | AP13: =IF(AP14="","",INDEX($X:$X,MATCH(AP14,$S:$S,0),)) ->  | AQ13: =IF(AQ14="","",INDEX($X:$X,MATCH(AQ14,$S:$S,0),)) ->  | AR13: =IF(AR14="","",INDEX($X:$X,MATCH(AR14,$S:$S,0),)) ->  | AS13: =IF(AS14="","",INDEX($X:$X,MATCH(AS14,$S:$S,0),)) ->  | AT13: =IF(AT14="","",INDEX($X:$X,MATCH(AT14,$S:$S,0),)) ->  | AU13: =IF(AU14="","",INDEX($X:$X,MATCH(AU14,$S:$S,0),)) ->  | AV13: =IF(AV14="","",INDEX($X:$X,MATCH(AV14,$S:$S,0),)) ->  | AW13: =IF(AW14="","",INDEX($X:$X,MATCH(AW14,$S:$S,0),)) ->  | BA13: 311 | BB13: 9 | BC13: =IF(BB13>$X$3,"",INDEX($AA$5:$AA$104,MATCH(ROW(AA13)-5,SUMIF(OFFSET($Z$5:$Z$104,,,ROW($Z$5:$Z$104)-4),"<>")-$Z$5:$Z$104))) -> 31 | BD13: 1 | BE13: 3101 | BF13: 영어 | BG13: Basic Reading | BH13: 영우연 | BI13: 3101 | BJ13: 15 | BK13: =IF(반배정!OK15="","",IF(BM13="","",반배정!OK15)) -> 14 | BL13: 101 | BM13: 10101 | BN13: 3101 | BO13: Basic Reading-영우연-101 | BP13: =IF(BM13="",1,IF(SUM((BM13=$BM$5:$BM$204)*1)>1,2,1)) -> 1 | BQ13: 3100 | BR13: =INDEX(수강신청!$I$508:$BF$508,,MATCH(BQ13,수강신청!$I$509:$BF$509,0)) -> 30 | BS13: =IF(BR13="","",SUM((BC13=$BC$5:$BC$204)*($BJ$5:$BJ$204)*1)) -> 30 | BT13: -1 | BU13: 1 | CB13: 8 | CC13: =수강신청!BI357 -> 12 | CD13: =수강신청!BI358 -> 31
C14: 10 | H14: 1 | N14: =IF(J14="","",SUM((K14=K$5:K14)*1)) ->  | R14: 10 | AD14: 2300 | AL14: 2100 | AM14: 3200 | BA14: 312 | BB14: 10 | BC14: =IF(BB14>$X$3,"",INDEX($AA$5:$AA$104,MATCH(ROW(AA14)-5,SUMIF(OFFSET($Z$5:$Z$104,,,ROW($Z$5:$Z$104)-4),"<>")-$Z$5:$Z$104))) -> 31 | BD14: 2 | BE14: 3102 | BF14: 영어 | BG14: Basic Reading | BH14: 영우연 | BI14: 3102 | BJ14: 15 | BK14: =IF(반배정!OK16="","",IF(BM14="","",반배정!OK16)) -> 16 | BL14: 101 | BM14: 10102 | BN14: 3102 | BO14: Basic Reading-영우연-101 | BP14: =IF(BM14="",1,IF(SUM((BM14=$BM$5:$BM$204)*1)>1,2,1)) -> 1 | BR14: =INDEX(수강신청!$I$508:$BF$508,,MATCH(BQ14,수강신청!$I$509:$BF$509,0)) ->  | BS14: =IF(BR14="","",SUM((BC14=$BC$5:$BC$204)*($BJ$5:$BJ$204)*1)) ->  | BT14: 1 | BU14: 1 | CB14: 9 | CC14: =수강신청!BI407 -> 12 | CD14: =수강신청!BI408 -> 27
C15: 11 | G15: 1 | H15: 2 | I15: 수학 | J15: 수영희 | K15: 수학 | L15: 11 | M15: 1 | N15: =IF(J15="","",SUM((K15=K$5:K15)*1)) -> 1 | O15: 2100 | P15: 수학수영희 | R15: 11 | AC15: 4 | AD15: =IF(AD17="","",INDEX($W:$W,MATCH(AD17,$S:$S,0),)) -> 수열/지수(심) | AE15: =IF(AE17="","",INDEX($W:$W,MATCH(AE17,$S:$S,0),)) -> Beyond Reading | AK15: 고전산문 | BA15: 321 | BB15: 11 | BC15: =IF(BB15>$X$3,"",INDEX($AA$5:$AA$104,MATCH(ROW(AA15)-5,SUMIF(OFFSET($Z$5:$Z$104,,,ROW($Z$5:$Z$104)-4),"<>")-$Z$5:$Z$104))) -> 32 | BD15: 1 | BE15: 3201 | BF15: 영어 | BG15: Upgrade Reading | BH15: 영어랑 | BI15: 3201 | BJ15: 24 | BK15: =IF(반배정!OK17="","",IF(BM15="","",반배정!OK17)) -> 27 | BL15: 110 | BM15: 11001 | BN15: 3201 | BO15: Upgrade Reading-영어랑-110 | BP15: =IF(BM15="",1,IF(SUM((BM15=$BM$5:$BM$204)*1)>1,2,1)) -> 1 | BQ15: 3200 | BR15: =INDEX(수강신청!$I$508:$BF$508,,MATCH(BQ15,수강신청!$I$509:$BF$509,0)) -> 48 | BS15: =IF(BR15="","",SUM((BC15=$BC$5:$BC$204)*($BJ$5:$BJ$204)*1)) -> 48 | BT15: 3 | BU15: 3 | CB15: 10 | CC15: =수강신청!BI457 -> 11 | CD15: =수강신청!BI458 -> 26
C16: 12 | H16: 2 | J16: 위드석심 | K16: 수학 | M16: 1 | N16: =IF(J16="","",SUM((K16=K$5:K16)*1)) -> 2 | O16: 2200 | P16: 수학위드석심 | R16: 12 | AD16: =IF(AD17="","",INDEX($X:$X,MATCH(AD17,$S:$S,0),)) -> 위드석심 | AE16: =IF(AE17="","",INDEX($X:$X,MATCH(AE17,$S:$S,0),)) -> 영홍홍 | AF16: =IF(AF17="","",INDEX($X:$X,MATCH(AF17,$S:$S,0),)) ->  | AG16: =IF(AG17="","",INDEX($X:$X,MATCH(AG17,$S:$S,0),)) ->  | AH16: =IF(AH17="","",INDEX($X:$X,MATCH(AH17,$S:$S,0),)) ->  | AI16: =IF(AI17="","",INDEX($X:$X,MATCH(AI17,$S:$S,0),)) ->  | AJ16: =IF(AJ17="","",INDEX($X:$X,MATCH(AJ17,$S:$S,0),)) ->  | AK16: =IF(AK17="","",INDEX($X:$X,MATCH(AK17,$S:$S,0),)) -> 국길동 | AL16: =IF(AL17="","",INDEX($X:$X,MATCH(AL17,$S:$S,0),)) ->  | AM16: =IF(AM17="","",INDEX($X:$X,MATCH(AM17,$S:$S,0),)) ->  | AN16: =IF(AN17="","",INDEX($X:$X,MATCH(AN17,$S:$S,0),)) ->  | AO16: =IF(AO17="","",INDEX($X:$X,MATCH(AO17,$S:$S,0),)) ->  | AP16: =IF(AP17="","",INDEX($X:$X,MATCH(AP17,$S:$S,0),)) ->  | AQ16: =IF(AQ17="","",INDEX($X:$X,MATCH(AQ17,$S:$S,0),)) ->  | AR16: =IF(AR17="","",INDEX($X:$X,MATCH(AR17,$S:$S,0),)) ->  | AS16: =IF(AS17="","",INDEX($X:$X,MATCH(AS17,$S:$S,0),)) ->  | AT16: =IF(AT17="","",INDEX($X:$X,MATCH(AT17,$S:$S,0),)) ->  | AU16: =IF(AU17="","",INDEX($X:$X,MATCH(AU17,$S:$S,0),)) ->  | AV16: =IF(AV17="","",INDEX($X:$X,MATCH(AV17,$S:$S,0),)) ->  | AW16: =IF(AW17="","",INDEX($X:$X,MATCH(AW17,$S:$S,0),)) ->  | BA16: 322 | BB16: 12 | BC16: =IF(BB16>$X$3,"",INDEX($AA$5:$AA$104,MATCH(ROW(AA16)-5,SUMIF(OFFSET($Z$5:$Z$104,,,ROW($Z$5:$Z$104)-4),"<>")-$Z$5:$Z$104))) -> 32 | BD16: 2 | BE16: 3202 | BF16: 영어 | BG16: Upgrade Reading | BH16: 영어랑 | BI16: 3203 | BJ16: 24 | BK16: =IF(반배정!OK18="","",IF(BM16="","",반배정!OK18)) -> 21 | BL16: 110 | BM16: 11003 | BN16: 3203 | BO16: Upgrade Reading-영어랑-110 | BP16: =IF(BM16="",1,IF(SUM((BM16=$BM$5:$BM$204)*1)>1,2,1)) -> 1 | BR16: =INDEX(수강신청!$I$508:$BF$508,,MATCH(BQ16,수강신청!$I$509:$BF$509,0)) ->  | BS16: =IF(BR16="","",SUM((BC16=$BC$5:$BC$204)*($BJ$5:$BJ$204)*1)) ->  | BT16: -3 | BU16: 3
C17: 13 | H17: 2 | J17: 위드석기 | K17: 수학 | M17: 1 | N17: =IF(J17="","",SUM((K17=K$5:K17)*1)) -> 3 | O17: 2300 | P17: 수학위드석기 | R17: 13 | AD17: 2200 | AE17: 3300 | AK17: 1100 | BA17: 331 | BB17: 13 | BC17: =IF(BB17>$X$3,"",INDEX($AA$5:$AA$104,MATCH(ROW(AA17)-5,SUMIF(OFFSET($Z$5:$Z$104,,,ROW($Z$5:$Z$104)-4),"<>")-$Z$5:$Z$104))) -> 33 | BD17: 1 | BE17: 3301 | BF17: 영어 | BG17: Beyond Reading | BH17: 영홍홍 | BI17: 3301 | BJ17: 15 | BK17: =IF(반배정!OK19="","",IF(BM17="","",반배정!OK19)) -> 11 | BL17: 102 | BM17: 10201 | BN17: 3301 | BO17: Beyond Reading-영홍홍-102 | BP17: =IF(BM17="",1,IF(SUM((BM17=$BM$5:$BM$204)*1)>1,2,1)) -> 1 | BQ17: 3300 | BR17: =INDEX(수강신청!$I$508:$BF$508,,MATCH(BQ17,수강신청!$I$509:$BF$509,0)) -> 28 | BS17: =IF(BR17="","",SUM((BC17=$BC$5:$BC$204)*($BJ$5:$BJ$204)*1)) -> 28 | BT17: -4 | BU17: 4 | BV17: -4 | BW17: 2 | CB17: 총 | CC17: =SUM(CC6:CC15) -> 115 | CD17: =SUM(CD6:CD15) -> 264
C18: 14 | H18: 2 | N18: =IF(J18="","",SUM((K18=K$5:K18)*1)) ->  | R18: 14 | AC18: 5 | AD18: =IF(AD20="","",INDEX($W:$W,MATCH(AD20,$S:$S,0),)) ->  | AE18: =IF(AE20="","",INDEX($W:$W,MATCH(AE20,$S:$S,0),)) ->  | BA18: 332 | BB18: 14 | BC18: =IF(BB18>$X$3,"",INDEX($AA$5:$AA$104,MATCH(ROW(AA18)-5,SUMIF(OFFSET($Z$5:$Z$104,,,ROW($Z$5:$Z$104)-4),"<>")-$Z$5:$Z$104))) -> 33 | BD18: 2 | BE18: 3302 | BF18: 영어 | BG18: Beyond Reading | BH18: 영홍홍 | BI18: 3304 | BJ18: 13 | BK18: =IF(반배정!OK20="","",IF(BM18="","",반배정!OK20)) -> 17 | BL18: 102 | BM18: 10204 | BN18: 3304 | BO18: Beyond Reading-영홍홍-102 | BP18: =IF(BM18="",1,IF(SUM((BM18=$BM$5:$BM$204)*1)>1,2,1)) -> 1 | BR18: =INDEX(수강신청!$I$508:$BF$508,,MATCH(BQ18,수강신청!$I$509:$BF$509,0)) ->  | BS18: =IF(BR18="","",SUM((BC18=$BC$5:$BC$204)*($BJ$5:$BJ$204)*1)) ->  | BT18: 4 | BU18: 4 | BV18: 4 | BW18: 1 | CC18: 총 수업갯수 | CD18: =COUNT(BM5:BM204) -> 14 | CE18: 전체에서
C19: 15 | H19: 2 | N19: =IF(J19="","",SUM((K19=K$5:K19)*1)) ->  | R19: 15 | AD19: =IF(AD20="","",INDEX($X:$X,MATCH(AD20,$S:$S,0),)) ->  | AE19: =IF(AE20="","",INDEX($X:$X,MATCH(AE20,$S:$S,0),)) ->  | AF19: =IF(AF20="","",INDEX($X:$X,MATCH(AF20,$S:$S,0),)) ->  | AG19: =IF(AG20="","",INDEX($X:$X,MATCH(AG20,$S:$S,0),)) ->  | AH19: =IF(AH20="","",INDEX($X:$X,MATCH(AH20,$S:$S,0),)) ->  | AI19: =IF(AI20="","",INDEX($X:$X,MATCH(AI20,$S:$S,0),)) ->  | AJ19: =IF(AJ20="","",INDEX($X:$X,MATCH(AJ20,$S:$S,0),)) ->  | AK19: =IF(AK20="","",INDEX($X:$X,MATCH(AK20,$S:$S,0),)) ->  | AL19: =IF(AL20="","",INDEX($X:$X,MATCH(AL20,$S:$S,0),)) ->  | AM19: =IF(AM20="","",INDEX($X:$X,MATCH(AM20,$S:$S,0),)) ->  | AN19: =IF(AN20="","",INDEX($X:$X,MATCH(AN20,$S:$S,0),)) ->  | AO19: =IF(AO20="","",INDEX($X:$X,MATCH(AO20,$S:$S,0),)) ->  | AP19: =IF(AP20="","",INDEX($X:$X,MATCH(AP20,$S:$S,0),)) ->  | AQ19: =IF(AQ20="","",INDEX($X:$X,MATCH(AQ20,$S:$S,0),)) ->  | AR19: =IF(AR20="","",INDEX($X:$X,MATCH(AR20,$S:$S,0),)) ->  | AS19: =IF(AS20="","",INDEX($X:$X,MATCH(AS20,$S:$S,0),)) ->  | AT19: =IF(AT20="","",INDEX($X:$X,MATCH(AT20,$S:$S,0),)) ->  | AU19: =IF(AU20="","",INDEX($X:$X,MATCH(AU20,$S:$S,0),)) ->  | AV19: =IF(AV20="","",INDEX($X:$X,MATCH(AV20,$S:$S,0),)) ->  | AW19: =IF(AW20="","",INDEX($X:$X,MATCH(AW20,$S:$S,0),)) ->  | BB19: 15 | BC19: =IF(BB19>$X$3,"",INDEX($AA$5:$AA$104,MATCH(ROW(AA19)-5,SUMIF(OFFSET($Z$5:$Z$104,,,ROW($Z$5:$Z$104)-4),"<>")-$Z$5:$Z$104))) ->  | BK19: =IF(반배정!OK21="","",IF(BM19="","",반배정!OK21)) ->  | BP19: =IF(BM19="",1,IF(SUM((BM19=$BM$5:$BM$204)*1)>1,2,1)) -> 1 | BR19: =INDEX(수강신청!$I$508:$BF$508,,MATCH(BQ19,수강신청!$I$509:$BF$509,0)) ->  | BS19: =IF(BR19="","",SUM((BC19=$BC$5:$BC$204)*($BJ$5:$BJ$204)*1)) ->  | CC19: 강의일수 | CD19: 15 | CE19: 취소갯수
C20: 16 | H20: 2 | N20: =IF(J20="","",SUM((K20=K$5:K20)*1)) ->  | O20: =IF(J20="","",H20&N20&0&0) ->  | R20: 16 | BB20: 16 | BC20: =IF(BB20>$X$3,"",INDEX($AA$5:$AA$104,MATCH(ROW(AA20)-5,SUMIF(OFFSET($Z$5:$Z$104,,,ROW($Z$5:$Z$104)-4),"<>")-$Z$5:$Z$104))) ->  | BK20: =IF(반배정!OK22="","",IF(BM20="","",반배정!OK22)) ->  | BP20: =IF(BM20="",1,IF(SUM((BM20=$BM$5:$BM$204)*1)>1,2,1)) -> 1 | BR20: =INDEX(수강신청!$I$508:$BF$508,,MATCH(BQ20,수강신청!$I$509:$BF$509,0)) ->  | BS20: =IF(BR20="","",SUM((BC20=$BC$5:$BC$204)*($BJ$5:$BJ$204)*1)) ->  | CC20: 강사비 | CD20: 30000
C21: 17 | H21: 2 | N21: =IF(J21="","",SUM((K21=K$5:K21)*1)) ->  | R21: 17 | AC21: 6 | AD21: =IF(AD23="","",INDEX($W:$W,MATCH(AD23,$S:$S,0),)) ->  | AE21: =IF(AE23="","",INDEX($W:$W,MATCH(AE23,$S:$S,0),)) ->  | BB21: 17 | BC21: =IF(BB21>$X$3,"",INDEX($AA$5:$AA$104,MATCH(ROW(AA21)-5,SUMIF(OFFSET($Z$5:$Z$104,,,ROW($Z$5:$Z$104)-4),"<>")-$Z$5:$Z$104))) ->  | BK21: =IF(반배정!OK23="","",IF(BM21="","",반배정!OK23)) ->  | BP21: =IF(BM21="",1,IF(SUM((BM21=$BM$5:$BM$204)*1)>1,2,1)) -> 1 | BR21: =INDEX(수강신청!$I$508:$BF$508,,MATCH(BQ21,수강신청!$I$509:$BF$509,0)) ->  | BS21: =IF(BR21="","",SUM((BC21=$BC$5:$BC$204)*($BJ$5:$BJ$204)*1)) ->  | CB21: =CC27&" 반영전" -> 분담비율 반영전 | CC21: 총강좌료 | CD21: =IF(CE20="",CD18*CD19*$CD$20,((CD18*CD19)-CE20)*$CD$20) -> 6300000
C22: 18 | H22: 2 | N22: =IF(J22="","",SUM((K22=K$5:K22)*1)) ->  | R22: 18 | AD22: =IF(AD23="","",INDEX($X:$X,MATCH(AD23,$S:$S,0),)) ->  | AE22: =IF(AE23="","",INDEX($X:$X,MATCH(AE23,$S:$S,0),)) ->  | AF22: =IF(AF23="","",INDEX($X:$X,MATCH(AF23,$S:$S,0),)) ->  | AG22: =IF(AG23="","",INDEX($X:$X,MATCH(AG23,$S:$S,0),)) ->  | AH22: =IF(AH23="","",INDEX($X:$X,MATCH(AH23,$S:$S,0),)) ->  | AI22: =IF(AI23="","",INDEX($X:$X,MATCH(AI23,$S:$S,0),)) ->  | AJ22: =IF(AJ23="","",INDEX($X:$X,MATCH(AJ23,$S:$S,0),)) ->  | AK22: =IF(AK23="","",INDEX($X:$X,MATCH(AK23,$S:$S,0),)) ->  | AL22: =IF(AL23="","",INDEX($X:$X,MATCH(AL23,$S:$S,0),)) ->  | AM22: =IF(AM23="","",INDEX($X:$X,MATCH(AM23,$S:$S,0),)) ->  | AN22: =IF(AN23="","",INDEX($X:$X,MATCH(AN23,$S:$S,0),)) ->  | AO22: =IF(AO23="","",INDEX($X:$X,MATCH(AO23,$S:$S,0),)) ->  | AP22: =IF(AP23="","",INDEX($X:$X,MATCH(AP23,$S:$S,0),)) ->  | AQ22: =IF(AQ23="","",INDEX($X:$X,MATCH(AQ23,$S:$S,0),)) ->  | AR22: =IF(AR23="","",INDEX($X:$X,MATCH(AR23,$S:$S,0),)) ->  | AS22: =IF(AS23="","",INDEX($X:$X,MATCH(AS23,$S:$S,0),)) ->  | AT22: =IF(AT23="","",INDEX($X:$X,MATCH(AT23,$S:$S,0),)) ->  | AU22: =IF(AU23="","",INDEX($X:$X,MATCH(AU23,$S:$S,0),)) ->  | AV22: =IF(AV23="","",INDEX($X:$X,MATCH(AV23,$S:$S,0),)) ->  | AW22: =IF(AW23="","",INDEX($X:$X,MATCH(AW23,$S:$S,0),)) ->  | BB22: 18 | BC22: =IF(BB22>$X$3,"",INDEX($AA$5:$AA$104,MATCH(ROW(AA22)-5,SUMIF(OFFSET($Z$5:$Z$104,,,ROW($Z$5:$Z$104)-4),"<>")-$Z$5:$Z$104))) ->  | BK22: =IF(반배정!OK24="","",IF(BM22="","",반배정!OK24)) ->  | BP22: =IF(BM22="",1,IF(SUM((BM22=$BM$5:$BM$204)*1)>1,2,1)) -> 1 | BR22: =INDEX(수강신청!$I$508:$BF$508,,MATCH(BQ22,수강신청!$I$509:$BF$509,0)) ->  | BS22: =IF(BR22="","",SUM((BC22=$BC$5:$BC$204)*($BJ$5:$BJ$204)*1)) ->  | CC22: 1 | CD22: =CD21/CD17 -> 23863.63636
C23: 19 | H23: 2 | N23: =IF(J23="","",SUM((K23=K$5:K23)*1)) ->  | R23: 19 | BB23: 19 | BC23: =IF(BB23>$X$3,"",INDEX($AA$5:$AA$104,MATCH(ROW(AA23)-5,SUMIF(OFFSET($Z$5:$Z$104,,,ROW($Z$5:$Z$104)-4),"<>")-$Z$5:$Z$104))) ->  | BK23: =IF(반배정!OK25="","",IF(BM23="","",반배정!OK25)) ->  | BP23: =IF(BM23="",1,IF(SUM((BM23=$BM$5:$BM$204)*1)>1,2,1)) -> 1 | BR23: =INDEX(수강신청!$I$508:$BF$508,,MATCH(BQ23,수강신청!$I$509:$BF$509,0)) ->  | BS23: =IF(BR23="","",SUM((BC23=$BC$5:$BC$204)*($BJ$5:$BJ$204)*1)) ->  | CC23: 2 | CD23: =$CD$22*CC23 -> 47727.27273
C24: 20 | H24: 2 | N24: =IF(J24="","",SUM((K24=K$5:K24)*1)) ->  | R24: 20 | AC24: 7 | AD24: =IF(AD26="","",INDEX($W:$W,MATCH(AD26,$S:$S,0),)) ->  | AE24: =IF(AE26="","",INDEX($W:$W,MATCH(AE26,$S:$S,0),)) ->  | BB24: 20 | BC24: =IF(BB24>$X$3,"",INDEX($AA$5:$AA$104,MATCH(ROW(AA24)-5,SUMIF(OFFSET($Z$5:$Z$104,,,ROW($Z$5:$Z$104)-4),"<>")-$Z$5:$Z$104))) ->  | BK24: =IF(반배정!OK26="","",IF(BM24="","",반배정!OK26)) ->  | BP24: =IF(BM24="",1,IF(SUM((BM24=$BM$5:$BM$204)*1)>1,2,1)) -> 1 | BR24: =INDEX(수강신청!$I$508:$BF$508,,MATCH(BQ24,수강신청!$I$509:$BF$509,0)) ->  | BS24: =IF(BR24="","",SUM((BC24=$BC$5:$BC$204)*($BJ$5:$BJ$204)*1)) ->  | CC24: 3 | CD24: =$CD$22*CC24 -> 71590.90909
G25: 1 | H25: 3 | I25: 영어 | J25: 영우연 | K25: 영어 | L25: 21 | M25: 1 | N25: =IF(J25="","",SUM((K25=K$5:K25)*1)) -> 1 | O25: 3100 | P25: 영어영우연 | R25: 21 | AD25: =IF(AD26="","",INDEX($X:$X,MATCH(AD26,$S:$S,0),)) ->  | AE25: =IF(AE26="","",INDEX($X:$X,MATCH(AE26,$S:$S,0),)) ->  | AF25: =IF(AF26="","",INDEX($X:$X,MATCH(AF26,$S:$S,0),)) ->  | AG25: =IF(AG26="","",INDEX($X:$X,MATCH(AG26,$S:$S,0),)) ->  | AH25: =IF(AH26="","",INDEX($X:$X,MATCH(AH26,$S:$S,0),)) ->  | AI25: =IF(AI26="","",INDEX($X:$X,MATCH(AI26,$S:$S,0),)) ->  | AJ25: =IF(AJ26="","",INDEX($X:$X,MATCH(AJ26,$S:$S,0),)) ->  | AK25: =IF(AK26="","",INDEX($X:$X,MATCH(AK26,$S:$S,0),)) ->  | AL25: =IF(AL26="","",INDEX($X:$X,MATCH(AL26,$S:$S,0),)) ->  | AM25: =IF(AM26="","",INDEX($X:$X,MATCH(AM26,$S:$S,0),)) ->  | AN25: =IF(AN26="","",INDEX($X:$X,MATCH(AN26,$S:$S,0),)) ->  | AO25: =IF(AO26="","",INDEX($X:$X,MATCH(AO26,$S:$S,0),)) ->  | AP25: =IF(AP26="","",INDEX($X:$X,MATCH(AP26,$S:$S,0),)) ->  | AQ25: =IF(AQ26="","",INDEX($X:$X,MATCH(AQ26,$S:$S,0),)) ->  | AR25: =IF(AR26="","",INDEX($X:$X,MATCH(AR26,$S:$S,0),)) ->  | AS25: =IF(AS26="","",INDEX($X:$X,MATCH(AS26,$S:$S,0),)) ->  | AT25: =IF(AT26="","",INDEX($X:$X,MATCH(AT26,$S:$S,0),)) ->  | AU25: =IF(AU26="","",INDEX($X:$X,MATCH(AU26,$S:$S,0),)) ->  | AV25: =IF(AV26="","",INDEX($X:$X,MATCH(AV26,$S:$S,0),)) ->  | AW25: =IF(AW26="","",INDEX($X:$X,MATCH(AW26,$S:$S,0),)) ->  | BB25: 21 | BC25: =IF(BB25>$X$3,"",INDEX($AA$5:$AA$104,MATCH(ROW(AA25)-5,SUMIF(OFFSET($Z$5:$Z$104,,,ROW($Z$5:$Z$104)-4),"<>")-$Z$5:$Z$104))) ->  | BK25: =IF(반배정!OK27="","",IF(BM25="","",반배정!OK27)) ->  | BP25: =IF(BM25="",1,IF(SUM((BM25=$BM$5:$BM$204)*1)>1,2,1)) -> 1 | BR25: =INDEX(수강신청!$I$508:$BF$508,,MATCH(BQ25,수강신청!$I$509:$BF$509,0)) ->  | BS25: =IF(BR25="","",SUM((BC25=$BC$5:$BC$204)*($BJ$5:$BJ$204)*1)) ->  | CC25: 4 | CD25: 95454.54545
H26: 3 | J26: 영어랑 | K26: 영어 | M26: 1 | N26: =IF(J26="","",SUM((K26=K$5:K26)*1)) -> 2 | O26: 3200 | P26: 영어영어랑 | R26: 22 | BB26: 22 | BC26: =IF(BB26>$X$3,"",INDEX($AA$5:$AA$104,MATCH(ROW(AA26)-5,SUMIF(OFFSET($Z$5:$Z$104,,,ROW($Z$5:$Z$104)-4),"<>")-$Z$5:$Z$104))) ->  | BK26: =IF(반배정!OK28="","",IF(BM26="","",반배정!OK28)) ->  | BP26: =IF(BM26="",1,IF(SUM((BM26=$BM$5:$BM$204)*1)>1,2,1)) -> 1 | BR26: =INDEX(수강신청!$I$508:$BF$508,,MATCH(BQ26,수강신청!$I$509:$BF$509,0)) ->  | BS26: =IF(BR26="","",SUM((BC26=$BC$5:$BC$204)*($BJ$5:$BJ$204)*1)) -> 
H27: 3 | J27: 영홍홍 | K27: 영어 | M27: 1 | N27: =IF(J27="","",SUM((K27=K$5:K27)*1)) -> 3 | O27: 3300 | P27: 영어영홍홍 | R27: 23 | AC27: 8 | AD27: =IF(AD29="","",INDEX($W:$W,MATCH(AD29,$S:$S,0),)) ->  | AE27: =IF(AE29="","",INDEX($W:$W,MATCH(AE29,$S:$S,0),)) ->  | BB27: 23 | BC27: =IF(BB27>$X$3,"",INDEX($AA$5:$AA$104,MATCH(ROW(AA27)-5,SUMIF(OFFSET($Z$5:$Z$104,,,ROW($Z$5:$Z$104)-4),"<>")-$Z$5:$Z$104))) ->  | BK27: =IF(반배정!OK29="","",IF(BM27="","",반배정!OK29)) ->  | BP27: =IF(BM27="",1,IF(SUM((BM27=$BM$5:$BM$204)*1)>1,2,1)) -> 1 | BR27: =INDEX(수강신청!$I$508:$BF$508,,MATCH(BQ27,수강신청!$I$509:$BF$509,0)) ->  | BS27: =IF(BR27="","",SUM((BC27=$BC$5:$BC$204)*($BJ$5:$BJ$204)*1)) ->  | CC27: 분담비율 | CD27: 1.09 | CF27: 조정 | CH27: 차액
H28: 3 | N28: =IF(J28="","",SUM((K28=K$5:K28)*1)) ->  | R28: 24 | AD28: =IF(AD29="","",INDEX($X:$X,MATCH(AD29,$S:$S,0),)) ->  | AE28: =IF(AE29="","",INDEX($X:$X,MATCH(AE29,$S:$S,0),)) ->  | AF28: =IF(AF29="","",INDEX($X:$X,MATCH(AF29,$S:$S,0),)) ->  | AG28: =IF(AG29="","",INDEX($X:$X,MATCH(AG29,$S:$S,0),)) ->  | AH28: =IF(AH29="","",INDEX($X:$X,MATCH(AH29,$S:$S,0),)) ->  | AI28: =IF(AI29="","",INDEX($X:$X,MATCH(AI29,$S:$S,0),)) ->  | AJ28: =IF(AJ29="","",INDEX($X:$X,MATCH(AJ29,$S:$S,0),)) ->  | AK28: =IF(AK29="","",INDEX($X:$X,MATCH(AK29,$S:$S,0),)) ->  | AL28: =IF(AL29="","",INDEX($X:$X,MATCH(AL29,$S:$S,0),)) ->  | AM28: =IF(AM29="","",INDEX($X:$X,MATCH(AM29,$S:$S,0),)) ->  | AN28: =IF(AN29="","",INDEX($X:$X,MATCH(AN29,$S:$S,0),)) ->  | AO28: =IF(AO29="","",INDEX($X:$X,MATCH(AO29,$S:$S,0),)) ->  | AP28: =IF(AP29="","",INDEX($X:$X,MATCH(AP29,$S:$S,0),)) ->  | AQ28: =IF(AQ29="","",INDEX($X:$X,MATCH(AQ29,$S:$S,0),)) ->  | AR28: =IF(AR29="","",INDEX($X:$X,MATCH(AR29,$S:$S,0),)) ->  | AS28: =IF(AS29="","",INDEX($X:$X,MATCH(AS29,$S:$S,0),)) ->  | AT28: =IF(AT29="","",INDEX($X:$X,MATCH(AT29,$S:$S,0),)) ->  | AU28: =IF(AU29="","",INDEX($X:$X,MATCH(AU29,$S:$S,0),)) ->  | AV28: =IF(AV29="","",INDEX($X:$X,MATCH(AV29,$S:$S,0),)) ->  | AW28: =IF(AW29="","",INDEX($X:$X,MATCH(AW29,$S:$S,0),)) ->  | BB28: 24 | BC28: =IF(BB28>$X$3,"",INDEX($AA$5:$AA$104,MATCH(ROW(AA28)-5,SUMIF(OFFSET($Z$5:$Z$104,,,ROW($Z$5:$Z$104)-4),"<>")-$Z$5:$Z$104))) ->  | BK28: =IF(반배정!OK30="","",IF(BM28="","",반배정!OK30)) ->  | BP28: =IF(BM28="",1,IF(SUM((BM28=$BM$5:$BM$204)*1)>1,2,1)) -> 1 | BR28: =INDEX(수강신청!$I$508:$BF$508,,MATCH(BQ28,수강신청!$I$509:$BF$509,0)) ->  | BS28: =IF(BR28="","",SUM((BC28=$BC$5:$BC$204)*($BJ$5:$BJ$204)*1)) ->  | CB28: =CC27&" 반영후" -> 분담비율 반영후 | CC28: 총강좌료 | CD28: =CD21*CD27 -> 6867000 | CF28: =CF29*CD17 -> 6890400 | CH28: =CF28-CD28 -> 23400
H29: 3 | N29: =IF(J29="","",SUM((K29=K$5:K29)*1)) ->  | R29: 25 | BB29: 25 | BC29: =IF(BB29>$X$3,"",INDEX($AA$5:$AA$104,MATCH(ROW(AA29)-5,SUMIF(OFFSET($Z$5:$Z$104,,,ROW($Z$5:$Z$104)-4),"<>")-$Z$5:$Z$104))) ->  | BK29: =IF(반배정!OK31="","",IF(BM29="","",반배정!OK31)) ->  | BP29: =IF(BM29="",1,IF(SUM((BM29=$BM$5:$BM$204)*1)>1,2,1)) -> 1 | BR29: =INDEX(수강신청!$I$508:$BF$508,,MATCH(BQ29,수강신청!$I$509:$BF$509,0)) ->  | BS29: =IF(BR29="","",SUM((BC29=$BC$5:$BC$204)*($BJ$5:$BJ$204)*1)) ->  | CC29: 1 | CD29: =CD28/CD17 -> 26011.36364 | CE29: 1 | CF29: 26100 | CH29: =CF29-CD29 -> 88.63636364
H30: 3 | N30: =IF(J30="","",SUM((K30=K$5:K30)*1)) ->  | O30: =IF(J30="","",H30&N30&0&0) ->  | R30: 26 | BB30: 26 | BC30: =IF(BB30>$X$3,"",INDEX($AA$5:$AA$104,MATCH(ROW(AA30)-5,SUMIF(OFFSET($Z$5:$Z$104,,,ROW($Z$5:$Z$104)-4),"<>")-$Z$5:$Z$104))) ->  | BK30: =IF(반배정!OK32="","",IF(BM30="","",반배정!OK32)) ->  | BP30: =IF(BM30="",1,IF(SUM((BM30=$BM$5:$BM$204)*1)>1,2,1)) -> 1 | BR30: =INDEX(수강신청!$I$508:$BF$508,,MATCH(BQ30,수강신청!$I$509:$BF$509,0)) ->  | BS30: =IF(BR30="","",SUM((BC30=$BC$5:$BC$204)*($BJ$5:$BJ$204)*1)) ->  | CC30: 2 | CD30: =CD$29*CC30 -> 52022.72727 | CE30: 2 | CF30: =CF$29*CE30 -> 52200 | CH30: 177.2727273
H31: 3 | N31: =IF(J31="","",SUM((K31=K$5:K31)*1)) ->  | R31: 27 | BA31: =IF(BC31="","",BC31&BD31) ->  | BB31: 27 | BC31: =IF(BB31>$X$3,"",INDEX($AA$5:$AA$104,MATCH(ROW(AA31)-5,SUMIF(OFFSET($Z$5:$Z$104,,,ROW($Z$5:$Z$104)-4),"<>")-$Z$5:$Z$104))) ->  | BK31: =IF(반배정!OK33="","",IF(BM31="","",반배정!OK33)) ->  | BP31: =IF(BM31="",1,IF(SUM((BM31=$BM$5:$BM$204)*1)>1,2,1)) -> 1 | BR31: =INDEX(수강신청!$I$508:$BF$508,,MATCH(BQ31,수강신청!$I$509:$BF$509,0)) ->  | BS31: =IF(BR31="","",SUM((BC31=$BC$5:$BC$204)*($BJ$5:$BJ$204)*1)) ->  | CC31: 3 | CD31: =CD$29*CC31 -> 78034.09091 | CE31: 3 | CF31: =CF$29*CE31 -> 78300 | CH31: 265.9090909
H32: 3 | N32: =IF(J32="","",SUM((K32=K$5:K32)*1)) ->  | R32: 28 | BB32: 28 | BC32: =IF(BB32>$X$3,"",INDEX($AA$5:$AA$104,MATCH(ROW(AA32)-5,SUMIF(OFFSET($Z$5:$Z$104,,,ROW($Z$5:$Z$104)-4),"<>")-$Z$5:$Z$104))) ->  | BK32: =IF(반배정!OK34="","",IF(BM32="","",반배정!OK34)) ->  | BP32: =IF(BM32="",1,IF(SUM((BM32=$BM$5:$BM$204)*1)>1,2,1)) -> 1 | BR32: =INDEX(수강신청!$I$508:$BF$508,,MATCH(BQ32,수강신청!$I$509:$BF$509,0)) ->  | BS32: =IF(BR32="","",SUM((BC32=$BC$5:$BC$204)*($BJ$5:$BJ$204)*1)) ->  | CC32: 4 | CD32: 104045.4545 | CE32: 4 | CF32: 104400 | CH32: 354.5454545
H33: 3 | N33: =IF(J33="","",SUM((K33=K$5:K33)*1)) ->  | R33: 29 | BB33: 29 | BC33: =IF(BB33>$X$3,"",INDEX($AA$5:$AA$104,MATCH(ROW(AA33)-5,SUMIF(OFFSET($Z$5:$Z$104,,,ROW($Z$5:$Z$104)-4),"<>")-$Z$5:$Z$104))) ->  | BK33: =IF(반배정!OK35="","",IF(BM33="","",반배정!OK35)) ->  | BP33: =IF(BM33="",1,IF(SUM((BM33=$BM$5:$BM$204)*1)>1,2,1)) -> 1 | BR33: =INDEX(수강신청!$I$508:$BF$508,,MATCH(BQ33,수강신청!$I$509:$BF$509,0)) ->  | BS33: =IF(BR33="","",SUM((BC33=$BC$5:$BC$204)*($BJ$5:$BJ$204)*1)) -> 
H34: 3 | N34: =IF(J34="","",SUM((K34=K$5:K34)*1)) ->  | R34: 30 | BB34: 30 | BC34: =IF(BB34>$X$3,"",INDEX($AA$5:$AA$104,MATCH(ROW(AA34)-5,SUMIF(OFFSET($Z$5:$Z$104,,,ROW($Z$5:$Z$104)-4),"<>")-$Z$5:$Z$104))) ->  | BK34: =IF(반배정!OK36="","",IF(BM34="","",반배정!OK36)) ->  | BP34: =IF(BM34="",1,IF(SUM((BM34=$BM$5:$BM$204)*1)>1,2,1)) -> 1 | BR34: =INDEX(수강신청!$I$508:$BF$508,,MATCH(BQ34,수강신청!$I$509:$BF$509,0)) ->  | BS34: =IF(BR34="","",SUM((BC34=$BC$5:$BC$204)*($BJ$5:$BJ$204)*1)) -> 
G35: 1 | H35: 4 | N35: =IF(J35="","",SUM((K35=K$5:K35)*1)) ->  | R35: 31 | BB35: 31 | BC35: =IF(BB35>$X$3,"",INDEX($AA$5:$AA$104,MATCH(ROW(AA35)-5,SUMIF(OFFSET($Z$5:$Z$104,,,ROW($Z$5:$Z$104)-4),"<>")-$Z$5:$Z$104))) ->  | BK35: =IF(반배정!OK37="","",IF(BM35="","",반배정!OK37)) ->  | BP35: =IF(BM35="",1,IF(SUM((BM35=$BM$5:$BM$204)*1)>1,2,1)) -> 1 | BR35: =INDEX(수강신청!$I$508:$BF$508,,MATCH(BQ35,수강신청!$I$509:$BF$509,0)) ->  | BS35: =IF(BR35="","",SUM((BC35=$BC$5:$BC$204)*($BJ$5:$BJ$204)*1)) -> 
H36: 4 | N36: =IF(J36="","",SUM((K36=K$5:K36)*1)) ->  | R36: 32 | BB36: 32 | BC36: =IF(BB36>$X$3,"",INDEX($AA$5:$AA$104,MATCH(ROW(AA36)-5,SUMIF(OFFSET($Z$5:$Z$104,,,ROW($Z$5:$Z$104)-4),"<>")-$Z$5:$Z$104))) ->  | BK36: =IF(반배정!OK38="","",IF(BM36="","",반배정!OK38)) ->  | BP36: =IF(BM36="",1,IF(SUM((BM36=$BM$5:$BM$204)*1)>1,2,1)) -> 1 | BR36: =INDEX(수강신청!$I$508:$BF$508,,MATCH(BQ36,수강신청!$I$509:$BF$509,0)) ->  | BS36: =IF(BR36="","",SUM((BC36=$BC$5:$BC$204)*($BJ$5:$BJ$204)*1)) -> 
H37: 4 | N37: =IF(J37="","",SUM((K37=K$5:K37)*1)) ->  | R37: 33 | S37: =IF(X37="","",INT(INDEX(O:O,MATCH(Y37,P:P,0),))) ->  | AA37: =LEFT(S37,2) ->  | BA37: =IF(BC37="","",BC37&BD37) ->  | BB37: 33 | BC37: =IF(BB37>$X$3,"",INDEX($AA$5:$AA$104,MATCH(ROW(AA37)-5,SUMIF(OFFSET($Z$5:$Z$104,,,ROW($Z$5:$Z$104)-4),"<>")-$Z$5:$Z$104))) ->  | BF37: =IF(BE37="","",INDEX(T:T,MATCH(BC37,AA:AA,),)) ->  | BG37: =IF(BE37="","",INDEX(W:W,MATCH(BC37,AA:AA,),)) ->  | BH37: =IF(BE37="","",INDEX(X:X,MATCH(BC37,AA:AA,),)) ->  | BK37: =IF(반배정!OK39="","",IF(BM37="","",반배정!OK39)) ->  | BP37: =IF(BM37="",1,IF(SUM((BM37=$BM$5:$BM$204)*1)>1,2,1)) -> 1 | BR37: =INDEX(수강신청!$I$508:$BF$508,,MATCH(BQ37,수강신청!$I$509:$BF$509,0)) ->  | BS37: =IF(BR37="","",SUM((BC37=$BC$5:$BC$204)*($BJ$5:$BJ$204)*1)) -> 
H38: 4 | N38: =IF(J38="","",SUM((K38=K$5:K38)*1)) ->  | R38: 34 | BB38: 34 | BC38: =IF(BB38>$X$3,"",INDEX($AA$5:$AA$104,MATCH(ROW(AA38)-5,SUMIF(OFFSET($Z$5:$Z$104,,,ROW($Z$5:$Z$104)-4),"<>")-$Z$5:$Z$104))) ->  | BK38: =IF(반배정!OK40="","",IF(BM38="","",반배정!OK40)) ->  | BP38: =IF(BM38="",1,IF(SUM((BM38=$BM$5:$BM$204)*1)>1,2,1)) -> 1 | BR38: =INDEX(수강신청!$I$508:$BF$508,,MATCH(BQ38,수강신청!$I$509:$BF$509,0)) ->  | BS38: =IF(BR38="","",SUM((BC38=$BC$5:$BC$204)*($BJ$5:$BJ$204)*1)) -> 
H39: 4 | N39: =IF(J39="","",SUM((K39=K$5:K39)*1)) ->  | R39: 35 | BB39: 35 | BC39: =IF(BB39>$X$3,"",INDEX($AA$5:$AA$104,MATCH(ROW(AA39)-5,SUMIF(OFFSET($Z$5:$Z$104,,,ROW($Z$5:$Z$104)-4),"<>")-$Z$5:$Z$104))) ->  | BK39: =IF(반배정!OK41="","",IF(BM39="","",반배정!OK41)) ->  | BP39: =IF(BM39="",1,IF(SUM((BM39=$BM$5:$BM$204)*1)>1,2,1)) -> 1 | BR39: =INDEX(수강신청!$I$508:$BF$508,,MATCH(BQ39,수강신청!$I$509:$BF$509,0)) ->  | BS39: =IF(BR39="","",SUM((BC39=$BC$5:$BC$204)*($BJ$5:$BJ$204)*1)) -> 
H40: 4 | N40: =IF(J40="","",SUM((K40=K$5:K40)*1)) ->  | R40: 36 | BB40: 36 | BC40: =IF(BB40>$X$3,"",INDEX($AA$5:$AA$104,MATCH(ROW(AA40)-5,SUMIF(OFFSET($Z$5:$Z$104,,,ROW($Z$5:$Z$104)-4),"<>")-$Z$5:$Z$104))) ->  | BK40: =IF(반배정!OK42="","",IF(BM40="","",반배정!OK42)) ->  | BP40: =IF(BM40="",1,IF(SUM((BM40=$BM$5:$BM$204)*1)>1,2,1)) -> 1 | BR40: =INDEX(수강신청!$I$508:$BF$508,,MATCH(BQ40,수강신청!$I$509:$BF$509,0)) ->  | BS40: =IF(BR40="","",SUM((BC40=$BC$5:$BC$204)*($BJ$5:$BJ$204)*1)) -> 
H41: 4 | N41: =IF(J41="","",SUM((K41=K$5:K41)*1)) ->  | R41: 37 | BB41: 37 | BC41: =IF(BB41>$X$3,"",INDEX($AA$5:$AA$104,MATCH(ROW(AA41)-5,SUMIF(OFFSET($Z$5:$Z$104,,,ROW($Z$5:$Z$104)-4),"<>")-$Z$5:$Z$104))) ->  | BK41: =IF(반배정!OK43="","",IF(BM41="","",반배정!OK43)) ->  | BP41: =IF(BM41="",1,IF(SUM((BM41=$BM$5:$BM$204)*1)>1,2,1)) -> 1 | BR41: =INDEX(수강신청!$I$508:$BF$508,,MATCH(BQ41,수강신청!$I$509:$BF$509,0)) ->  | BS41: =IF(BR41="","",SUM((BC41=$BC$5:$BC$204)*($BJ$5:$BJ$204)*1)) -> 
H42: 4 | N42: =IF(J42="","",SUM((K42=K$5:K42)*1)) ->  | R42: 38 | BB42: 38 | BC42: =IF(BB42>$X$3,"",INDEX($AA$5:$AA$104,MATCH(ROW(AA42)-5,SUMIF(OFFSET($Z$5:$Z$104,,,ROW($Z$5:$Z$104)-4),"<>")-$Z$5:$Z$104))) ->  | BK42: =IF(반배정!OK44="","",IF(BM42="","",반배정!OK44)) ->  | BP42: =IF(BM42="",1,IF(SUM((BM42=$BM$5:$BM$204)*1)>1,2,1)) -> 1 | BR42: =INDEX(수강신청!$I$508:$BF$508,,MATCH(BQ42,수강신청!$I$509:$BF$509,0)) ->  | BS42: =IF(BR42="","",SUM((BC42=$BC$5:$BC$204)*($BJ$5:$BJ$204)*1)) -> 
H43: 4 | N43: =IF(J43="","",SUM((K43=K$5:K43)*1)) ->  | R43: 39 | BB43: 39 | BC43: =IF(BB43>$X$3,"",INDEX($AA$5:$AA$104,MATCH(ROW(AA43)-5,SUMIF(OFFSET($Z$5:$Z$104,,,ROW($Z$5:$Z$104)-4),"<>")-$Z$5:$Z$104))) ->  | BK43: =IF(반배정!OK45="","",IF(BM43="","",반배정!OK45)) ->  | BP43: =IF(BM43="",1,IF(SUM((BM43=$BM$5:$BM$204)*1)>1,2,1)) -> 1 | BR43: =INDEX(수강신청!$I$508:$BF$508,,MATCH(BQ43,수강신청!$I$509:$BF$509,0)) ->  | BS43: =IF(BR43="","",SUM((BC43=$BC$5:$BC$204)*($BJ$5:$BJ$204)*1)) -> 
H44: 4 | N44: =IF(J44="","",SUM((K44=K$5:K44)*1)) ->  | R44: 40 | BB44: 40 | BC44: =IF(BB44>$X$3,"",INDEX($AA$5:$AA$104,MATCH(ROW(AA44)-5,SUMIF(OFFSET($Z$5:$Z$104,,,ROW($Z$5:$Z$104)-4),"<>")-$Z$5:$Z$104))) ->  | BK44: =IF(반배정!OK46="","",IF(BM44="","",반배정!OK46)) ->  | BP44: =IF(BM44="",1,IF(SUM((BM44=$BM$5:$BM$204)*1)>1,2,1)) -> 1 | BR44: =INDEX(수강신청!$I$508:$BF$508,,MATCH(BQ44,수강신청!$I$509:$BF$509,0)) ->  | BS44: =IF(BR44="","",SUM((BC44=$BC$5:$BC$204)*($BJ$5:$BJ$204)*1)) -> 
G45: 1 | H45: 5 | N45: =IF(J45="","",SUM((K45=K$5:K45)*1)) ->  | R45: 41 | BB45: 41 | BC45: =IF(BB45>$X$3,"",INDEX($AA$5:$AA$104,MATCH(ROW(AA45)-5,SUMIF(OFFSET($Z$5:$Z$104,,,ROW($Z$5:$Z$104)-4),"<>")-$Z$5:$Z$104))) ->  | BK45: =IF(반배정!OK47="","",IF(BM45="","",반배정!OK47)) ->  | BP45: =IF(BM45="",1,IF(SUM((BM45=$BM$5:$BM$204)*1)>1,2,1)) -> 1 | BR45: =INDEX(수강신청!$I$508:$BF$508,,MATCH(BQ45,수강신청!$I$509:$BF$509,0)) ->  | BS45: =IF(BR45="","",SUM((BC45=$BC$5:$BC$204)*($BJ$5:$BJ$204)*1)) -> 
H46: 5 | N46: =IF(J46="","",SUM((K46=K$5:K46)*1)) ->  | R46: 42 | BB46: 42 | BC46: =IF(BB46>$X$3,"",INDEX($AA$5:$AA$104,MATCH(ROW(AA46)-5,SUMIF(OFFSET($Z$5:$Z$104,,,ROW($Z$5:$Z$104)-4),"<>")-$Z$5:$Z$104))) ->  | BK46: =IF(반배정!OK48="","",IF(BM46="","",반배정!OK48)) ->  | BP46: =IF(BM46="",1,IF(SUM((BM46=$BM$5:$BM$204)*1)>1,2,1)) -> 1 | BR46: =INDEX(수강신청!$I$508:$BF$508,,MATCH(BQ46,수강신청!$I$509:$BF$509,0)) ->  | BS46: =IF(BR46="","",SUM((BC46=$BC$5:$BC$204)*($BJ$5:$BJ$204)*1)) -> 
H47: 5 | N47: =IF(J47="","",SUM((K47=K$5:K47)*1)) ->  | R47: 43 | BB47: 43 | BC47: =IF(BB47>$X$3,"",INDEX($AA$5:$AA$104,MATCH(ROW(AA47)-5,SUMIF(OFFSET($Z$5:$Z$104,,,ROW($Z$5:$Z$104)-4),"<>")-$Z$5:$Z$104))) ->  | BK47: =IF(반배정!OK49="","",IF(BM47="","",반배정!OK49)) ->  | BP47: =IF(BM47="",1,IF(SUM((BM47=$BM$5:$BM$204)*1)>1,2,1)) -> 1 | BR47: =INDEX(수강신청!$I$508:$BF$508,,MATCH(BQ47,수강신청!$I$509:$BF$509,0)) ->  | BS47: =IF(BR47="","",SUM((BC47=$BC$5:$BC$204)*($BJ$5:$BJ$204)*1)) -> 
H48: 5 | N48: =IF(J48="","",SUM((K48=K$5:K48)*1)) ->  | R48: 44 | BB48: 44 | BC48: =IF(BB48>$X$3,"",INDEX($AA$5:$AA$104,MATCH(ROW(AA48)-5,SUMIF(OFFSET($Z$5:$Z$104,,,ROW($Z$5:$Z$104)-4),"<>")-$Z$5:$Z$104))) ->  | BK48: =IF(반배정!OK50="","",IF(BM48="","",반배정!OK50)) ->  | BP48: =IF(BM48="",1,IF(SUM((BM48=$BM$5:$BM$204)*1)>1,2,1)) -> 1 | BR48: =INDEX(수강신청!$I$508:$BF$508,,MATCH(BQ48,수강신청!$I$509:$BF$509,0)) ->  | BS48: =IF(BR48="","",SUM((BC48=$BC$5:$BC$204)*($BJ$5:$BJ$204)*1)) -> 
H49: 5 | N49: =IF(J49="","",SUM((K49=K$5:K49)*1)) ->  | R49: 45 | BB49: 45 | BC49: =IF(BB49>$X$3,"",INDEX($AA$5:$AA$104,MATCH(ROW(AA49)-5,SUMIF(OFFSET($Z$5:$Z$104,,,ROW($Z$5:$Z$104)-4),"<>")-$Z$5:$Z$104))) ->  | BK49: =IF(반배정!OK51="","",IF(BM49="","",반배정!OK51)) ->  | BP49: =IF(BM49="",1,IF(SUM((BM49=$BM$5:$BM$204)*1)>1,2,1)) -> 1 | BR49: =INDEX(수강신청!$I$508:$BF$508,,MATCH(BQ49,수강신청!$I$509:$BF$509,0)) ->  | BS49: =IF(BR49="","",SUM((BC49=$BC$5:$BC$204)*($BJ$5:$BJ$204)*1)) -> 
H50: 5 | N50: =IF(J50="","",SUM((K50=K$5:K50)*1)) ->  | R50: 46 | BB50: 46 | BC50: =IF(BB50>$X$3,"",INDEX($AA$5:$AA$104,MATCH(ROW(AA50)-5,SUMIF(OFFSET($Z$5:$Z$104,,,ROW($Z$5:$Z$104)-4),"<>")-$Z$5:$Z$104))) ->  | BK50: =IF(반배정!OK52="","",IF(BM50="","",반배정!OK52)) ->  | BP50: =IF(BM50="",1,IF(SUM((BM50=$BM$5:$BM$204)*1)>1,2,1)) -> 1 | BR50: =INDEX(수강신청!$I$508:$BF$508,,MATCH(BQ50,수강신청!$I$509:$BF$509,0)) ->  | BS50: =IF(BR50="","",SUM((BC50=$BC$5:$BC$204)*($BJ$5:$BJ$204)*1)) -> 
H51: 5 | N51: =IF(J51="","",SUM((K51=K$5:K51)*1)) ->  | R51: 47 | BB51: 47 | BC51: =IF(BB51>$X$3,"",INDEX($AA$5:$AA$104,MATCH(ROW(AA51)-5,SUMIF(OFFSET($Z$5:$Z$104,,,ROW($Z$5:$Z$104)-4),"<>")-$Z$5:$Z$104))) ->  | BK51: =IF(반배정!OK53="","",IF(BM51="","",반배정!OK53)) ->  | BP51: =IF(BM51="",1,IF(SUM((BM51=$BM$5:$BM$204)*1)>1,2,1)) -> 1 | BR51: =INDEX(수강신청!$I$508:$BF$508,,MATCH(BQ51,수강신청!$I$509:$BF$509,0)) ->  | BS51: =IF(BR51="","",SUM((BC51=$BC$5:$BC$204)*($BJ$5:$BJ$204)*1)) -> 
H52: 5 | N52: =IF(J52="","",SUM((K52=K$5:K52)*1)) ->  | R52: 48 | BB52: 48 | BC52: =IF(BB52>$X$3,"",INDEX($AA$5:$AA$104,MATCH(ROW(AA52)-5,SUMIF(OFFSET($Z$5:$Z$104,,,ROW($Z$5:$Z$104)-4),"<>")-$Z$5:$Z$104))) ->  | BK52: =IF(반배정!OK54="","",IF(BM52="","",반배정!OK54)) ->  | BP52: =IF(BM52="",1,IF(SUM((BM52=$BM$5:$BM$204)*1)>1,2,1)) -> 1 | BR52: =INDEX(수강신청!$I$508:$BF$508,,MATCH(BQ52,수강신청!$I$509:$BF$509,0)) ->  | BS52: =IF(BR52="","",SUM((BC52=$BC$5:$BC$204)*($BJ$5:$BJ$204)*1)) -> 
H53: 5 | N53: =IF(J53="","",SUM((K53=K$5:K53)*1)) ->  | R53: 49 | BB53: 49 | BC53: =IF(BB53>$X$3,"",INDEX($AA$5:$AA$104,MATCH(ROW(AA53)-5,SUMIF(OFFSET($Z$5:$Z$104,,,ROW($Z$5:$Z$104)-4),"<>")-$Z$5:$Z$104))) ->  | BK53: =IF(반배정!OK55="","",IF(BM53="","",반배정!OK55)) ->  | BP53: =IF(BM53="",1,IF(SUM((BM53=$BM$5:$BM$204)*1)>1,2,1)) -> 1 | BR53: =INDEX(수강신청!$I$508:$BF$508,,MATCH(BQ53,수강신청!$I$509:$BF$509,0)) ->  | BS53: =IF(BR53="","",SUM((BC53=$BC$5:$BC$204)*($BJ$5:$BJ$204)*1)) -> 
H54: 5 | N54: =IF(J54="","",SUM((K54=K$5:K54)*1)) ->  | R54: 50 | BB54: 50 | BC54: =IF(BB54>$X$3,"",INDEX($AA$5:$AA$104,MATCH(ROW(AA54)-5,SUMIF(OFFSET($Z$5:$Z$104,,,ROW($Z$5:$Z$104)-4),"<>")-$Z$5:$Z$104))) ->  | BK54: =IF(반배정!OK56="","",IF(BM54="","",반배정!OK56)) ->  | BP54: =IF(BM54="",1,IF(SUM((BM54=$BM$5:$BM$204)*1)>1,2,1)) -> 1 | BR54: =INDEX(수강신청!$I$508:$BF$508,,MATCH(BQ54,수강신청!$I$509:$BF$509,0)) ->  | BS54: =IF(BR54="","",SUM((BC54=$BC$5:$BC$204)*($BJ$5:$BJ$204)*1)) -> 
G55: 1 | H55: 6 | N55: =IF(J55="","",SUM((K55=K$5:K55)*1)) ->  | BB55: 51 | BC55: =IF(BB55>$X$3,"",INDEX($AA$5:$AA$104,MATCH(ROW(AA55)-5,SUMIF(OFFSET($Z$5:$Z$104,,,ROW($Z$5:$Z$104)-4),"<>")-$Z$5:$Z$104))) ->  | BK55: =IF(반배정!OK57="","",IF(BM55="","",반배정!OK57)) ->  | BP55: =IF(BM55="",1,IF(SUM((BM55=$BM$5:$BM$204)*1)>1,2,1)) -> 1 | BR55: =INDEX(수강신청!$I$508:$BF$508,,MATCH(BQ55,수강신청!$I$509:$BF$509,0)) ->  | BS55: =IF(BR55="","",SUM((BC55=$BC$5:$BC$204)*($BJ$5:$BJ$204)*1)) -> 
H56: 6 | N56: =IF(J56="","",SUM((K56=K$5:K56)*1)) ->  | BB56: 52 | BC56: =IF(BB56>$X$3,"",INDEX($AA$5:$AA$104,MATCH(ROW(AA56)-5,SUMIF(OFFSET($Z$5:$Z$104,,,ROW($Z$5:$Z$104)-4),"<>")-$Z$5:$Z$104))) ->  | BK56: =IF(반배정!OK58="","",IF(BM56="","",반배정!OK58)) ->  | BP56: =IF(BM56="",1,IF(SUM((BM56=$BM$5:$BM$204)*1)>1,2,1)) -> 1 | BR56: =INDEX(수강신청!$I$508:$BF$508,,MATCH(BQ56,수강신청!$I$509:$BF$509,0)) ->  | BS56: =IF(BR56="","",SUM((BC56=$BC$5:$BC$204)*($BJ$5:$BJ$204)*1)) -> 
H57: 6 | N57: =IF(J57="","",SUM((K57=K$5:K57)*1)) ->  | BB57: 53 | BC57: =IF(BB57>$X$3,"",INDEX($AA$5:$AA$104,MATCH(ROW(AA57)-5,SUMIF(OFFSET($Z$5:$Z$104,,,ROW($Z$5:$Z$104)-4),"<>")-$Z$5:$Z$104))) ->  | BK57: =IF(반배정!OK59="","",IF(BM57="","",반배정!OK59)) ->  | BP57: =IF(BM57="",1,IF(SUM((BM57=$BM$5:$BM$204)*1)>1,2,1)) -> 1 | BR57: =INDEX(수강신청!$I$508:$BF$508,,MATCH(BQ57,수강신청!$I$509:$BF$509,0)) ->  | BS57: =IF(BR57="","",SUM((BC57=$BC$5:$BC$204)*($BJ$5:$BJ$204)*1)) -> 
H58: 6 | N58: =IF(J58="","",SUM((K58=K$5:K58)*1)) ->  | BB58: 54 | BC58: =IF(BB58>$X$3,"",INDEX($AA$5:$AA$104,MATCH(ROW(AA58)-5,SUMIF(OFFSET($Z$5:$Z$104,,,ROW($Z$5:$Z$104)-4),"<>")-$Z$5:$Z$104))) ->  | BK58: =IF(반배정!OK60="","",IF(BM58="","",반배정!OK60)) ->  | BP58: =IF(BM58="",1,IF(SUM((BM58=$BM$5:$BM$204)*1)>1,2,1)) -> 1 | BR58: =INDEX(수강신청!$I$508:$BF$508,,MATCH(BQ58,수강신청!$I$509:$BF$509,0)) ->  | BS58: =IF(BR58="","",SUM((BC58=$BC$5:$BC$204)*($BJ$5:$BJ$204)*1)) -> 
H59: 6 | N59: =IF(J59="","",SUM((K59=K$5:K59)*1)) ->  | BB59: 55 | BC59: =IF(BB59>$X$3,"",INDEX($AA$5:$AA$104,MATCH(ROW(AA59)-5,SUMIF(OFFSET($Z$5:$Z$104,,,ROW($Z$5:$Z$104)-4),"<>")-$Z$5:$Z$104))) ->  | BK59: =IF(반배정!OK61="","",IF(BM59="","",반배정!OK61)) ->  | BP59: =IF(BM59="",1,IF(SUM((BM59=$BM$5:$BM$204)*1)>1,2,1)) -> 1 | BR59: =INDEX(수강신청!$I$508:$BF$508,,MATCH(BQ59,수강신청!$I$509:$BF$509,0)) ->  | BS59: =IF(BR59="","",SUM((BC59=$BC$5:$BC$204)*($BJ$5:$BJ$204)*1)) -> 
H60: 6 | N60: =IF(J60="","",SUM((K60=K$5:K60)*1)) ->  | BB60: 56 | BC60: =IF(BB60>$X$3,"",INDEX($AA$5:$AA$104,MATCH(ROW(AA60)-5,SUMIF(OFFSET($Z$5:$Z$104,,,ROW($Z$5:$Z$104)-4),"<>")-$Z$5:$Z$104))) ->  | BK60: =IF(반배정!OK62="","",IF(BM60="","",반배정!OK62)) ->  | BP60: =IF(BM60="",1,IF(SUM((BM60=$BM$5:$BM$204)*1)>1,2,1)) -> 1 | BR60: =INDEX(수강신청!$I$508:$BF$508,,MATCH(BQ60,수강신청!$I$509:$BF$509,0)) ->  | BS60: =IF(BR60="","",SUM((BC60=$BC$5:$BC$204)*($BJ$5:$BJ$204)*1)) -> 
H61: 6 | N61: =IF(J61="","",SUM((K61=K$5:K61)*1)) ->  | BB61: 57 | BC61: =IF(BB61>$X$3,"",INDEX($AA$5:$AA$104,MATCH(ROW(AA61)-5,SUMIF(OFFSET($Z$5:$Z$104,,,ROW($Z$5:$Z$104)-4),"<>")-$Z$5:$Z$104))) ->  | BK61: =IF(반배정!OK63="","",IF(BM61="","",반배정!OK63)) ->  | BP61: =IF(BM61="",1,IF(SUM((BM61=$BM$5:$BM$204)*1)>1,2,1)) -> 1 | BR61: =INDEX(수강신청!$I$508:$BF$508,,MATCH(BQ61,수강신청!$I$509:$BF$509,0)) ->  | BS61: =IF(BR61="","",SUM((BC61=$BC$5:$BC$204)*($BJ$5:$BJ$204)*1)) -> 
H62: 6 | N62: =IF(J62="","",SUM((K62=K$5:K62)*1)) ->  | BB62: 58 | BC62: =IF(BB62>$X$3,"",INDEX($AA$5:$AA$104,MATCH(ROW(AA62)-5,SUMIF(OFFSET($Z$5:$Z$104,,,ROW($Z$5:$Z$104)-4),"<>")-$Z$5:$Z$104))) ->  | BK62: =IF(반배정!OK64="","",IF(BM62="","",반배정!OK64)) ->  | BP62: =IF(BM62="",1,IF(SUM((BM62=$BM$5:$BM$204)*1)>1,2,1)) -> 1 | BR62: =INDEX(수강신청!$I$508:$BF$508,,MATCH(BQ62,수강신청!$I$509:$BF$509,0)) ->  | BS62: =IF(BR62="","",SUM((BC62=$BC$5:$BC$204)*($BJ$5:$BJ$204)*1)) -> 
H63: 6 | N63: =IF(J63="","",SUM((K63=K$5:K63)*1)) ->  | BB63: 59 | BC63: =IF(BB63>$X$3,"",INDEX($AA$5:$AA$104,MATCH(ROW(AA63)-5,SUMIF(OFFSET($Z$5:$Z$104,,,ROW($Z$5:$Z$104)-4),"<>")-$Z$5:$Z$104))) ->  | BK63: =IF(반배정!OK65="","",IF(BM63="","",반배정!OK65)) ->  | BP63: =IF(BM63="",1,IF(SUM((BM63=$BM$5:$BM$204)*1)>1,2,1)) -> 1 | BR63: =INDEX(수강신청!$I$508:$BF$508,,MATCH(BQ63,수강신청!$I$509:$BF$509,0)) ->  | BS63: =IF(BR63="","",SUM((BC63=$BC$5:$BC$204)*($BJ$5:$BJ$204)*1)) -> 
H64: 6 | N64: =IF(J64="","",SUM((K64=K$5:K64)*1)) ->  | BB64: 60 | BC64: =IF(BB64>$X$3,"",INDEX($AA$5:$AA$104,MATCH(ROW(AA64)-5,SUMIF(OFFSET($Z$5:$Z$104,,,ROW($Z$5:$Z$104)-4),"<>")-$Z$5:$Z$104))) ->  | BK64: =IF(반배정!OK66="","",IF(BM64="","",반배정!OK66)) ->  | BP64: =IF(BM64="",1,IF(SUM((BM64=$BM$5:$BM$204)*1)>1,2,1)) -> 1 | BR64: =INDEX(수강신청!$I$508:$BF$508,,MATCH(BQ64,수강신청!$I$509:$BF$509,0)) ->  | BS64: =IF(BR64="","",SUM((BC64=$BC$5:$BC$204)*($BJ$5:$BJ$204)*1)) -> 
G65: 1 | H65: 7 | N65: =IF(J65="","",SUM((K65=K$5:K65)*1)) ->  | BB65: 61 | BC65: =IF(BB65>$X$3,"",INDEX($AA$5:$AA$104,MATCH(ROW(AA65)-5,SUMIF(OFFSET($Z$5:$Z$104,,,ROW($Z$5:$Z$104)-4),"<>")-$Z$5:$Z$104))) ->  | BK65: =IF(반배정!OK67="","",IF(BM65="","",반배정!OK67)) ->  | BP65: =IF(BM65="",1,IF(SUM((BM65=$BM$5:$BM$204)*1)>1,2,1)) -> 1 | BR65: =INDEX(수강신청!$I$508:$BF$508,,MATCH(BQ65,수강신청!$I$509:$BF$509,0)) ->  | BS65: =IF(BR65="","",SUM((BC65=$BC$5:$BC$204)*($BJ$5:$BJ$204)*1)) -> 
H66: 7 | N66: =IF(J66="","",SUM((K66=K$5:K66)*1)) ->  | BB66: 62 | BC66: =IF(BB66>$X$3,"",INDEX($AA$5:$AA$104,MATCH(ROW(AA66)-5,SUMIF(OFFSET($Z$5:$Z$104,,,ROW($Z$5:$Z$104)-4),"<>")-$Z$5:$Z$104))) ->  | BK66: =IF(반배정!OK68="","",IF(BM66="","",반배정!OK68)) ->  | BP66: =IF(BM66="",1,IF(SUM((BM66=$BM$5:$BM$204)*1)>1,2,1)) -> 1 | BR66: =INDEX(수강신청!$I$508:$BF$508,,MATCH(BQ66,수강신청!$I$509:$BF$509,0)) ->  | BS66: =IF(BR66="","",SUM((BC66=$BC$5:$BC$204)*($BJ$5:$BJ$204)*1)) -> 
H67: 7 | N67: =IF(J67="","",SUM((K67=K$5:K67)*1)) ->  | BB67: 63 | BC67: =IF(BB67>$X$3,"",INDEX($AA$5:$AA$104,MATCH(ROW(AA67)-5,SUMIF(OFFSET($Z$5:$Z$104,,,ROW($Z$5:$Z$104)-4),"<>")-$Z$5:$Z$104))) ->  | BK67: =IF(반배정!OK69="","",IF(BM67="","",반배정!OK69)) ->  | BP67: =IF(BM67="",1,IF(SUM((BM67=$BM$5:$BM$204)*1)>1,2,1)) -> 1 | BR67: =INDEX(수강신청!$I$508:$BF$508,,MATCH(BQ67,수강신청!$I$509:$BF$509,0)) ->  | BS67: =IF(BR67="","",SUM((BC67=$BC$5:$BC$204)*($BJ$5:$BJ$204)*1)) -> 
H68: 7 | N68: =IF(J68="","",SUM((K68=K$5:K68)*1)) ->  | BB68: 64 | BC68: =IF(BB68>$X$3,"",INDEX($AA$5:$AA$104,MATCH(ROW(AA68)-5,SUMIF(OFFSET($Z$5:$Z$104,,,ROW($Z$5:$Z$104)-4),"<>")-$Z$5:$Z$104))) ->  | BK68: =IF(반배정!OK70="","",IF(BM68="","",반배정!OK70)) ->  | BP68: =IF(BM68="",1,IF(SUM((BM68=$BM$5:$BM$204)*1)>1,2,1)) -> 1 | BR68: =INDEX(수강신청!$I$508:$BF$508,,MATCH(BQ68,수강신청!$I$509:$BF$509,0)) ->  | BS68: =IF(BR68="","",SUM((BC68=$BC$5:$BC$204)*($BJ$5:$BJ$204)*1)) -> 
H69: 7 | N69: =IF(J69="","",SUM((K69=K$5:K69)*1)) ->  | AA69: =LEFT(S69,2) ->  | BB69: 65 | BC69: =IF(BB69>$X$3,"",INDEX($AA$5:$AA$104,MATCH(ROW(AA69)-5,SUMIF(OFFSET($Z$5:$Z$104,,,ROW($Z$5:$Z$104)-4),"<>")-$Z$5:$Z$104))) ->  | BF69: =IF(BE69="","",INDEX(T:T,MATCH(BC69,AA:AA,),)) ->  | BG69: =IF(BE69="","",INDEX(W:W,MATCH(BC69,AA:AA,),)) ->  | BH69: =IF(BE69="","",INDEX(X:X,MATCH(BC69,AA:AA,),)) ->  | BK69: =IF(반배정!OK71="","",IF(BM69="","",반배정!OK71)) ->  | BP69: =IF(BM69="",1,IF(SUM((BM69=$BM$5:$BM$204)*1)>1,2,1)) -> 1 | BR69: =INDEX(수강신청!$I$508:$BF$508,,MATCH(BQ69,수강신청!$I$509:$BF$509,0)) ->  | BS69: =IF(BR69="","",SUM((BC69=$BC$5:$BC$204)*($BJ$5:$BJ$204)*1)) -> 
G70: =IF(MOD(ROW()-4,10)=1,1,"") ->  | H70: =((ROW()-5)-MOD(ROW()-5,10))/10+1 -> 7 | I70: =IF(G70=1,IF(INDEX($D$5:$D$24,MATCH(H70,$C$5:$C$24,0),)="","",INDEX($D$5:$D$24,MATCH(H70,$C$5:$C$24,0),)),"") ->  | K70: =IF(J70="","",INDEX($D$5:$D$24,MATCH(H70,$C$5:$C$24,0),)) ->  | L70: =IF(I70="","",ROW()-4) ->  | M70: =IF(J70="","",COUNTIF($X$5:$X$104,J70)) ->  | N70: =IF(J70="","",SUM((K70=K$5:K70)*1)) ->  | O70: =IF(J70="","",H70&N70&0&0) ->  | P70: =IF(K70="","",K70&J70) ->  | BA70: =IF(BC70="","",BC70&BD70) ->  | BB70: 66 | BC70: =IF(BB70>$X$3,"",INDEX($AA$5:$AA$104,MATCH(ROW(AA70)-5,SUMIF(OFFSET($Z$5:$Z$104,,,ROW($Z$5:$Z$104)-4),"<>")-$Z$5:$Z$104))) ->  | BE70: =IF(BC70="","",IF(LEN(BD70)=2,INT(BC70&BD70),INT(BC70&0&BD70))) ->  | BK70: =IF(반배정!OK72="","",IF(BM70="","",반배정!OK72)) ->  | BM70: =IF(BL70="","",INT(BL70&RIGHT(BN70,2))) ->  | BN70: =IF(BE70="","",IF(BI70="",INT(BE70),INT(BI70))) ->  | BO70: =IF(BG70="","",BG70&"-"&BH70&"-"&LEFT(BM70,3)) ->  | BP70: =IF(BM70="",1,IF(SUM((BM70=$BM$5:$BM$204)*1)>1,2,1)) -> 1 | BQ70: =IF(BC70="","",IF(BC70=BC69,"",INT(BC70&0&0))) ->  | BR70: =INDEX(수강신청!$I$508:$BF$508,,MATCH(BQ70,수강신청!$I$509:$BF$509,0)) ->  | BS70: =IF(BR70="","",SUM((BC70=$BC$5:$BC$204)*($BJ$5:$BJ$204)*1)) ->  | BT70: =IF(BJ70="","",-(BJ70-BK70)) ->  | BU70: =IF(BJ70="","",ABS(BJ70-BK70)) ->  | BV70: =IF(BT70="","",IF(INT(BC70)=BV$1,BT70,"")) ->  | BW70: =IF(BV70="","",INT(RANK(BV70,$BV$5:$BV$204))) -> 
H71: 7 | N71: =IF(J71="","",SUM((K71=K$5:K71)*1)) ->  | BB71: 67 | BC71: =IF(BB71>$X$3,"",INDEX($AA$5:$AA$104,MATCH(ROW(AA71)-5,SUMIF(OFFSET($Z$5:$Z$104,,,ROW($Z$5:$Z$104)-4),"<>")-$Z$5:$Z$104))) ->  | BD71: =IF(BC71="","",IF(BC70=BC71,BD70+1,1)) ->  | BK71: =IF(반배정!OK73="","",IF(BM71="","",반배정!OK73)) ->  | BP71: =IF(BM71="",1,IF(SUM((BM71=$BM$5:$BM$204)*1)>1,2,1)) -> 1 | BR71: =INDEX(수강신청!$I$508:$BF$508,,MATCH(BQ71,수강신청!$I$509:$BF$509,0)) ->  | BS71: =IF(BR71="","",SUM((BC71=$BC$5:$BC$204)*($BJ$5:$BJ$204)*1)) -> 
H72: 7 | N72: =IF(J72="","",SUM((K72=K$5:K72)*1)) ->  | BB72: 68 | BC72: =IF(BB72>$X$3,"",INDEX($AA$5:$AA$104,MATCH(ROW(AA72)-5,SUMIF(OFFSET($Z$5:$Z$104,,,ROW($Z$5:$Z$104)-4),"<>")-$Z$5:$Z$104))) ->  | BK72: =IF(반배정!OK74="","",IF(BM72="","",반배정!OK74)) ->  | BP72: =IF(BM72="",1,IF(SUM((BM72=$BM$5:$BM$204)*1)>1,2,1)) -> 1 | BR72: =INDEX(수강신청!$I$508:$BF$508,,MATCH(BQ72,수강신청!$I$509:$BF$509,0)) ->  | BS72: =IF(BR72="","",SUM((BC72=$BC$5:$BC$204)*($BJ$5:$BJ$204)*1)) -> 
H73: 7 | N73: =IF(J73="","",SUM((K73=K$5:K73)*1)) ->  | BB73: 69 | BC73: =IF(BB73>$X$3,"",INDEX($AA$5:$AA$104,MATCH(ROW(AA73)-5,SUMIF(OFFSET($Z$5:$Z$104,,,ROW($Z$5:$Z$104)-4),"<>")-$Z$5:$Z$104))) ->  | BK73: =IF(반배정!OK75="","",IF(BM73="","",반배정!OK75)) ->  | BP73: =IF(BM73="",1,IF(SUM((BM73=$BM$5:$BM$204)*1)>1,2,1)) -> 1 | BR73: =INDEX(수강신청!$I$508:$BF$508,,MATCH(BQ73,수강신청!$I$509:$BF$509,0)) ->  | BS73: =IF(BR73="","",SUM((BC73=$BC$5:$BC$204)*($BJ$5:$BJ$204)*1)) -> 
H74: 7 | N74: =IF(J74="","",SUM((K74=K$5:K74)*1)) ->  | BB74: 70 | BC74: =IF(BB74>$X$3,"",INDEX($AA$5:$AA$104,MATCH(ROW(AA74)-5,SUMIF(OFFSET($Z$5:$Z$104,,,ROW($Z$5:$Z$104)-4),"<>")-$Z$5:$Z$104))) ->  | BK74: =IF(반배정!OK76="","",IF(BM74="","",반배정!OK76)) ->  | BP74: =IF(BM74="",1,IF(SUM((BM74=$BM$5:$BM$204)*1)>1,2,1)) -> 1 | BR74: =INDEX(수강신청!$I$508:$BF$508,,MATCH(BQ74,수강신청!$I$509:$BF$509,0)) ->  | BS74: =IF(BR74="","",SUM((BC74=$BC$5:$BC$204)*($BJ$5:$BJ$204)*1)) -> 
G75: 1 | H75: 8 | N75: =IF(J75="","",SUM((K75=K$5:K75)*1)) ->  | BB75: 71 | BC75: =IF(BB75>$X$3,"",INDEX($AA$5:$AA$104,MATCH(ROW(AA75)-5,SUMIF(OFFSET($Z$5:$Z$104,,,ROW($Z$5:$Z$104)-4),"<>")-$Z$5:$Z$104))) ->  | BK75: =IF(반배정!OK77="","",IF(BM75="","",반배정!OK77)) ->  | BP75: =IF(BM75="",1,IF(SUM((BM75=$BM$5:$BM$204)*1)>1,2,1)) -> 1 | BR75: =INDEX(수강신청!$I$508:$BF$508,,MATCH(BQ75,수강신청!$I$509:$BF$509,0)) ->  | BS75: =IF(BR75="","",SUM((BC75=$BC$5:$BC$204)*($BJ$5:$BJ$204)*1)) -> 
H76: 8 | N76: =IF(J76="","",SUM((K76=K$5:K76)*1)) ->  | BB76: 72 | BC76: =IF(BB76>$X$3,"",INDEX($AA$5:$AA$104,MATCH(ROW(AA76)-5,SUMIF(OFFSET($Z$5:$Z$104,,,ROW($Z$5:$Z$104)-4),"<>")-$Z$5:$Z$104))) ->  | BK76: =IF(반배정!OK78="","",IF(BM76="","",반배정!OK78)) ->  | BP76: =IF(BM76="",1,IF(SUM((BM76=$BM$5:$BM$204)*1)>1,2,1)) -> 1 | BR76: =INDEX(수강신청!$I$508:$BF$508,,MATCH(BQ76,수강신청!$I$509:$BF$509,0)) ->  | BS76: =IF(BR76="","",SUM((BC76=$BC$5:$BC$204)*($BJ$5:$BJ$204)*1)) -> 
H77: 8 | N77: =IF(J77="","",SUM((K77=K$5:K77)*1)) ->  | BB77: 73 | BC77: =IF(BB77>$X$3,"",INDEX($AA$5:$AA$104,MATCH(ROW(AA77)-5,SUMIF(OFFSET($Z$5:$Z$104,,,ROW($Z$5:$Z$104)-4),"<>")-$Z$5:$Z$104))) ->  | BK77: =IF(반배정!OK79="","",IF(BM77="","",반배정!OK79)) ->  | BP77: =IF(BM77="",1,IF(SUM((BM77=$BM$5:$BM$204)*1)>1,2,1)) -> 1 | BR77: =INDEX(수강신청!$I$508:$BF$508,,MATCH(BQ77,수강신청!$I$509:$BF$509,0)) ->  | BS77: =IF(BR77="","",SUM((BC77=$BC$5:$BC$204)*($BJ$5:$BJ$204)*1)) -> 
H78: 8 | N78: =IF(J78="","",SUM((K78=K$5:K78)*1)) ->  | BB78: 74 | BC78: =IF(BB78>$X$3,"",INDEX($AA$5:$AA$104,MATCH(ROW(AA78)-5,SUMIF(OFFSET($Z$5:$Z$104,,,ROW($Z$5:$Z$104)-4),"<>")-$Z$5:$Z$104))) ->  | BK78: =IF(반배정!OK80="","",IF(BM78="","",반배정!OK80)) ->  | BP78: =IF(BM78="",1,IF(SUM((BM78=$BM$5:$BM$204)*1)>1,2,1)) -> 1 | BR78: =INDEX(수강신청!$I$508:$BF$508,,MATCH(BQ78,수강신청!$I$509:$BF$509,0)) ->  | BS78: =IF(BR78="","",SUM((BC78=$BC$5:$BC$204)*($BJ$5:$BJ$204)*1)) -> 
H79: 8 | N79: =IF(J79="","",SUM((K79=K$5:K79)*1)) ->  | BB79: 75 | BC79: =IF(BB79>$X$3,"",INDEX($AA$5:$AA$104,MATCH(ROW(AA79)-5,SUMIF(OFFSET($Z$5:$Z$104,,,ROW($Z$5:$Z$104)-4),"<>")-$Z$5:$Z$104))) ->  | BK79: =IF(반배정!OK81="","",IF(BM79="","",반배정!OK81)) ->  | BP79: =IF(BM79="",1,IF(SUM((BM79=$BM$5:$BM$204)*1)>1,2,1)) -> 1 | BR79: =INDEX(수강신청!$I$508:$BF$508,,MATCH(BQ79,수강신청!$I$509:$BF$509,0)) ->  | BS79: =IF(BR79="","",SUM((BC79=$BC$5:$BC$204)*($BJ$5:$BJ$204)*1)) -> 
H80: 8 | N80: =IF(J80="","",SUM((K80=K$5:K80)*1)) ->  | BB80: 76 | BC80: =IF(BB80>$X$3,"",INDEX($AA$5:$AA$104,MATCH(ROW(AA80)-5,SUMIF(OFFSET($Z$5:$Z$104,,,ROW($Z$5:$Z$104)-4),"<>")-$Z$5:$Z$104))) ->  | BK80: =IF(반배정!OK82="","",IF(BM80="","",반배정!OK82)) ->  | BP80: =IF(BM80="",1,IF(SUM((BM80=$BM$5:$BM$204)*1)>1,2,1)) -> 1 | BR80: =INDEX(수강신청!$I$508:$BF$508,,MATCH(BQ80,수강신청!$I$509:$BF$509,0)) ->  | BS80: =IF(BR80="","",SUM((BC80=$BC$5:$BC$204)*($BJ$5:$BJ$204)*1)) -> 
H81: 8 | N81: =IF(J81="","",SUM((K81=K$5:K81)*1)) ->  | BB81: 77 | BC81: =IF(BB81>$X$3,"",INDEX($AA$5:$AA$104,MATCH(ROW(AA81)-5,SUMIF(OFFSET($Z$5:$Z$104,,,ROW($Z$5:$Z$104)-4),"<>")-$Z$5:$Z$104))) ->  | BK81: =IF(반배정!OK83="","",IF(BM81="","",반배정!OK83)) ->  | BP81: =IF(BM81="",1,IF(SUM((BM81=$BM$5:$BM$204)*1)>1,2,1)) -> 1 | BR81: =INDEX(수강신청!$I$508:$BF$508,,MATCH(BQ81,수강신청!$I$509:$BF$509,0)) ->  | BS81: =IF(BR81="","",SUM((BC81=$BC$5:$BC$204)*($BJ$5:$BJ$204)*1)) -> 
H82: 8 | N82: =IF(J82="","",SUM((K82=K$5:K82)*1)) ->  | BB82: 78 | BC82: =IF(BB82>$X$3,"",INDEX($AA$5:$AA$104,MATCH(ROW(AA82)-5,SUMIF(OFFSET($Z$5:$Z$104,,,ROW($Z$5:$Z$104)-4),"<>")-$Z$5:$Z$104))) ->  | BK82: =IF(반배정!OK84="","",IF(BM82="","",반배정!OK84)) ->  | BP82: =IF(BM82="",1,IF(SUM((BM82=$BM$5:$BM$204)*1)>1,2,1)) -> 1 | BR82: =INDEX(수강신청!$I$508:$BF$508,,MATCH(BQ82,수강신청!$I$509:$BF$509,0)) ->  | BS82: =IF(BR82="","",SUM((BC82=$BC$5:$BC$204)*($BJ$5:$BJ$204)*1)) -> 
H83: 8 | N83: =IF(J83="","",SUM((K83=K$5:K83)*1)) ->  | BB83: 79 | BC83: =IF(BB83>$X$3,"",INDEX($AA$5:$AA$104,MATCH(ROW(AA83)-5,SUMIF(OFFSET($Z$5:$Z$104,,,ROW($Z$5:$Z$104)-4),"<>")-$Z$5:$Z$104))) ->  | BK83: =IF(반배정!OK85="","",IF(BM83="","",반배정!OK85)) ->  | BP83: =IF(BM83="",1,IF(SUM((BM83=$BM$5:$BM$204)*1)>1,2,1)) -> 1 | BR83: =INDEX(수강신청!$I$508:$BF$508,,MATCH(BQ83,수강신청!$I$509:$BF$509,0)) ->  | BS83: =IF(BR83="","",SUM((BC83=$BC$5:$BC$204)*($BJ$5:$BJ$204)*1)) -> 
H84: 8 | N84: =IF(J84="","",SUM((K84=K$5:K84)*1)) ->  | BB84: 80 | BC84: =IF(BB84>$X$3,"",INDEX($AA$5:$AA$104,MATCH(ROW(AA84)-5,SUMIF(OFFSET($Z$5:$Z$104,,,ROW($Z$5:$Z$104)-4),"<>")-$Z$5:$Z$104))) ->  | BK84: =IF(반배정!OK86="","",IF(BM84="","",반배정!OK86)) ->  | BP84: =IF(BM84="",1,IF(SUM((BM84=$BM$5:$BM$204)*1)>1,2,1)) -> 1 | BR84: =INDEX(수강신청!$I$508:$BF$508,,MATCH(BQ84,수강신청!$I$509:$BF$509,0)) ->  | BS84: =IF(BR84="","",SUM((BC84=$BC$5:$BC$204)*($BJ$5:$BJ$204)*1)) -> 
G85: 1 | H85: 9 | N85: =IF(J85="","",SUM((K85=K$5:K85)*1)) ->  | BB85: 81 | BC85: =IF(BB85>$X$3,"",INDEX($AA$5:$AA$104,MATCH(ROW(AA85)-5,SUMIF(OFFSET($Z$5:$Z$104,,,ROW($Z$5:$Z$104)-4),"<>")-$Z$5:$Z$104))) ->  | BK85: =IF(반배정!OK87="","",IF(BM85="","",반배정!OK87)) ->  | BP85: =IF(BM85="",1,IF(SUM((BM85=$BM$5:$BM$204)*1)>1,2,1)) -> 1 | BR85: =INDEX(수강신청!$I$508:$BF$508,,MATCH(BQ85,수강신청!$I$509:$BF$509,0)) ->  | BS85: =IF(BR85="","",SUM((BC85=$BC$5:$BC$204)*($BJ$5:$BJ$204)*1)) -> 
H86: 9 | N86: =IF(J86="","",SUM((K86=K$5:K86)*1)) ->  | BB86: 82 | BC86: =IF(BB86>$X$3,"",INDEX($AA$5:$AA$104,MATCH(ROW(AA86)-5,SUMIF(OFFSET($Z$5:$Z$104,,,ROW($Z$5:$Z$104)-4),"<>")-$Z$5:$Z$104))) ->  | BK86: =IF(반배정!OK88="","",IF(BM86="","",반배정!OK88)) ->  | BP86: =IF(BM86="",1,IF(SUM((BM86=$BM$5:$BM$204)*1)>1,2,1)) -> 1 | BR86: =INDEX(수강신청!$I$508:$BF$508,,MATCH(BQ86,수강신청!$I$509:$BF$509,0)) ->  | BS86: =IF(BR86="","",SUM((BC86=$BC$5:$BC$204)*($BJ$5:$BJ$204)*1)) -> 
H87: 9 | N87: =IF(J87="","",SUM((K87=K$5:K87)*1)) ->  | BB87: 83 | BC87: =IF(BB87>$X$3,"",INDEX($AA$5:$AA$104,MATCH(ROW(AA87)-5,SUMIF(OFFSET($Z$5:$Z$104,,,ROW($Z$5:$Z$104)-4),"<>")-$Z$5:$Z$104))) ->  | BK87: =IF(반배정!OK89="","",IF(BM87="","",반배정!OK89)) ->  | BP87: =IF(BM87="",1,IF(SUM((BM87=$BM$5:$BM$204)*1)>1,2,1)) -> 1 | BR87: =INDEX(수강신청!$I$508:$BF$508,,MATCH(BQ87,수강신청!$I$509:$BF$509,0)) ->  | BS87: =IF(BR87="","",SUM((BC87=$BC$5:$BC$204)*($BJ$5:$BJ$204)*1)) -> 
H88: 9 | N88: =IF(J88="","",SUM((K88=K$5:K88)*1)) ->  | BB88: 84 | BC88: =IF(BB88>$X$3,"",INDEX($AA$5:$AA$104,MATCH(ROW(AA88)-5,SUMIF(OFFSET($Z$5:$Z$104,,,ROW($Z$5:$Z$104)-4),"<>")-$Z$5:$Z$104))) ->  | BK88: =IF(반배정!OK90="","",IF(BM88="","",반배정!OK90)) ->  | BP88: =IF(BM88="",1,IF(SUM((BM88=$BM$5:$BM$204)*1)>1,2,1)) -> 1 | BR88: =INDEX(수강신청!$I$508:$BF$508,,MATCH(BQ88,수강신청!$I$509:$BF$509,0)) ->  | BS88: =IF(BR88="","",SUM((BC88=$BC$5:$BC$204)*($BJ$5:$BJ$204)*1)) -> 
H89: 9 | N89: =IF(J89="","",SUM((K89=K$5:K89)*1)) ->  | BB89: 85 | BC89: =IF(BB89>$X$3,"",INDEX($AA$5:$AA$104,MATCH(ROW(AA89)-5,SUMIF(OFFSET($Z$5:$Z$104,,,ROW($Z$5:$Z$104)-4),"<>")-$Z$5:$Z$104))) ->  | BK89: =IF(반배정!OK91="","",IF(BM89="","",반배정!OK91)) ->  | BP89: =IF(BM89="",1,IF(SUM((BM89=$BM$5:$BM$204)*1)>1,2,1)) -> 1 | BR89: =INDEX(수강신청!$I$508:$BF$508,,MATCH(BQ89,수강신청!$I$509:$BF$509,0)) ->  | BS89: =IF(BR89="","",SUM((BC89=$BC$5:$BC$204)*($BJ$5:$BJ$204)*1)) -> 
H90: 9 | N90: =IF(J90="","",SUM((K90=K$5:K90)*1)) ->  | BB90: 86 | BC90: =IF(BB90>$X$3,"",INDEX($AA$5:$AA$104,MATCH(ROW(AA90)-5,SUMIF(OFFSET($Z$5:$Z$104,,,ROW($Z$5:$Z$104)-4),"<>")-$Z$5:$Z$104))) ->  | BK90: =IF(반배정!OK92="","",IF(BM90="","",반배정!OK92)) ->  | BP90: =IF(BM90="",1,IF(SUM((BM90=$BM$5:$BM$204)*1)>1,2,1)) -> 1 | BR90: =INDEX(수강신청!$I$508:$BF$508,,MATCH(BQ90,수강신청!$I$509:$BF$509,0)) ->  | BS90: =IF(BR90="","",SUM((BC90=$BC$5:$BC$204)*($BJ$5:$BJ$204)*1)) -> 
H91: 9 | N91: =IF(J91="","",SUM((K91=K$5:K91)*1)) ->  | BB91: 87 | BC91: =IF(BB91>$X$3,"",INDEX($AA$5:$AA$104,MATCH(ROW(AA91)-5,SUMIF(OFFSET($Z$5:$Z$104,,,ROW($Z$5:$Z$104)-4),"<>")-$Z$5:$Z$104))) ->  | BK91: =IF(반배정!OK93="","",IF(BM91="","",반배정!OK93)) ->  | BP91: =IF(BM91="",1,IF(SUM((BM91=$BM$5:$BM$204)*1)>1,2,1)) -> 1 | BR91: =INDEX(수강신청!$I$508:$BF$508,,MATCH(BQ91,수강신청!$I$509:$BF$509,0)) ->  | BS91: =IF(BR91="","",SUM((BC91=$BC$5:$BC$204)*($BJ$5:$BJ$204)*1)) -> 
H92: 9 | N92: =IF(J92="","",SUM((K92=K$5:K92)*1)) ->  | BB92: 88 | BC92: =IF(BB92>$X$3,"",INDEX($AA$5:$AA$104,MATCH(ROW(AA92)-5,SUMIF(OFFSET($Z$5:$Z$104,,,ROW($Z$5:$Z$104)-4),"<>")-$Z$5:$Z$104))) ->  | BK92: =IF(반배정!OK94="","",IF(BM92="","",반배정!OK94)) ->  | BP92: =IF(BM92="",1,IF(SUM((BM92=$BM$5:$BM$204)*1)>1,2,1)) -> 1 | BR92: =INDEX(수강신청!$I$508:$BF$508,,MATCH(BQ92,수강신청!$I$509:$BF$509,0)) ->  | BS92: =IF(BR92="","",SUM((BC92=$BC$5:$BC$204)*($BJ$5:$BJ$204)*1)) -> 
H93: 9 | N93: =IF(J93="","",SUM((K93=K$5:K93)*1)) ->  | BB93: 89 | BC93: =IF(BB93>$X$3,"",INDEX($AA$5:$AA$104,MATCH(ROW(AA93)-5,SUMIF(OFFSET($Z$5:$Z$104,,,ROW($Z$5:$Z$104)-4),"<>")-$Z$5:$Z$104))) ->  | BK93: =IF(반배정!OK95="","",IF(BM93="","",반배정!OK95)) ->  | BP93: =IF(BM93="",1,IF(SUM((BM93=$BM$5:$BM$204)*1)>1,2,1)) -> 1 | BR93: =INDEX(수강신청!$I$508:$BF$508,,MATCH(BQ93,수강신청!$I$509:$BF$509,0)) ->  | BS93: =IF(BR93="","",SUM((BC93=$BC$5:$BC$204)*($BJ$5:$BJ$204)*1)) -> 
H94: 9 | N94: =IF(J94="","",SUM((K94=K$5:K94)*1)) ->  | BB94: 90 | BC94: =IF(BB94>$X$3,"",INDEX($AA$5:$AA$104,MATCH(ROW(AA94)-5,SUMIF(OFFSET($Z$5:$Z$104,,,ROW($Z$5:$Z$104)-4),"<>")-$Z$5:$Z$104))) ->  | BK94: =IF(반배정!OK96="","",IF(BM94="","",반배정!OK96)) ->  | BP94: =IF(BM94="",1,IF(SUM((BM94=$BM$5:$BM$204)*1)>1,2,1)) -> 1 | BR94: =INDEX(수강신청!$I$508:$BF$508,,MATCH(BQ94,수강신청!$I$509:$BF$509,0)) ->  | BS94: =IF(BR94="","",SUM((BC94=$BC$5:$BC$204)*($BJ$5:$BJ$204)*1)) -> 
G95: 1 | H95: 10 | N95: =IF(J95="","",SUM((K95=K$5:K95)*1)) ->  | BB95: 91 | BC95: =IF(BB95>$X$3,"",INDEX($AA$5:$AA$104,MATCH(ROW(AA95)-5,SUMIF(OFFSET($Z$5:$Z$104,,,ROW($Z$5:$Z$104)-4),"<>")-$Z$5:$Z$104))) ->  | BK95: =IF(반배정!OK97="","",IF(BM95="","",반배정!OK97)) ->  | BP95: =IF(BM95="",1,IF(SUM((BM95=$BM$5:$BM$204)*1)>1,2,1)) -> 1 | BR95: =INDEX(수강신청!$I$508:$BF$508,,MATCH(BQ95,수강신청!$I$509:$BF$509,0)) ->  | BS95: =IF(BR95="","",SUM((BC95=$BC$5:$BC$204)*($BJ$5:$BJ$204)*1)) -> 
H96: 10 | N96: =IF(J96="","",SUM((K96=K$5:K96)*1)) ->  | BB96: 92 | BC96: =IF(BB96>$X$3,"",INDEX($AA$5:$AA$104,MATCH(ROW(AA96)-5,SUMIF(OFFSET($Z$5:$Z$104,,,ROW($Z$5:$Z$104)-4),"<>")-$Z$5:$Z$104))) ->  | BK96: =IF(반배정!OK98="","",IF(BM96="","",반배정!OK98)) ->  | BP96: =IF(BM96="",1,IF(SUM((BM96=$BM$5:$BM$204)*1)>1,2,1)) -> 1 | BR96: =INDEX(수강신청!$I$508:$BF$508,,MATCH(BQ96,수강신청!$I$509:$BF$509,0)) ->  | BS96: =IF(BR96="","",SUM((BC96=$BC$5:$BC$204)*($BJ$5:$BJ$204)*1)) -> 
H97: 10 | N97: =IF(J97="","",SUM((K97=K$5:K97)*1)) ->  | BB97: 93 | BC97: =IF(BB97>$X$3,"",INDEX($AA$5:$AA$104,MATCH(ROW(AA97)-5,SUMIF(OFFSET($Z$5:$Z$104,,,ROW($Z$5:$Z$104)-4),"<>")-$Z$5:$Z$104))) ->  | BK97: =IF(반배정!OK99="","",IF(BM97="","",반배정!OK99)) ->  | BP97: =IF(BM97="",1,IF(SUM((BM97=$BM$5:$BM$204)*1)>1,2,1)) -> 1 | BR97: =INDEX(수강신청!$I$508:$BF$508,,MATCH(BQ97,수강신청!$I$509:$BF$509,0)) ->  | BS97: =IF(BR97="","",SUM((BC97=$BC$5:$BC$204)*($BJ$5:$BJ$204)*1)) -> 
H98: 10 | N98: =IF(J98="","",SUM((K98=K$5:K98)*1)) ->  | BB98: 94 | BC98: =IF(BB98>$X$3,"",INDEX($AA$5:$AA$104,MATCH(ROW(AA98)-5,SUMIF(OFFSET($Z$5:$Z$104,,,ROW($Z$5:$Z$104)-4),"<>")-$Z$5:$Z$104))) ->  | BK98: =IF(반배정!OK100="","",IF(BM98="","",반배정!OK100)) ->  | BP98: =IF(BM98="",1,IF(SUM((BM98=$BM$5:$BM$204)*1)>1,2,1)) -> 1 | BR98: =INDEX(수강신청!$I$508:$BF$508,,MATCH(BQ98,수강신청!$I$509:$BF$509,0)) ->  | BS98: =IF(BR98="","",SUM((BC98=$BC$5:$BC$204)*($BJ$5:$BJ$204)*1)) -> 
H99: 10 | N99: =IF(J99="","",SUM((K99=K$5:K99)*1)) ->  | BB99: 95 | BC99: =IF(BB99>$X$3,"",INDEX($AA$5:$AA$104,MATCH(ROW(AA99)-5,SUMIF(OFFSET($Z$5:$Z$104,,,ROW($Z$5:$Z$104)-4),"<>")-$Z$5:$Z$104))) ->  | BK99: =IF(반배정!OK101="","",IF(BM99="","",반배정!OK101)) ->  | BP99: =IF(BM99="",1,IF(SUM((BM99=$BM$5:$BM$204)*1)>1,2,1)) -> 1 | BR99: =INDEX(수강신청!$I$508:$BF$508,,MATCH(BQ99,수강신청!$I$509:$BF$509,0)) ->  | BS99: =IF(BR99="","",SUM((BC99=$BC$5:$BC$204)*($BJ$5:$BJ$204)*1)) -> 
H100: 10 | N100: =IF(J100="","",SUM((K100=K$5:K100)*1)) ->  | BB100: 96 | BC100: =IF(BB100>$X$3,"",INDEX($AA$5:$AA$104,MATCH(ROW(AA100)-5,SUMIF(OFFSET($Z$5:$Z$104,,,ROW($Z$5:$Z$104)-4),"<>")-$Z$5:$Z$104))) ->  | BK100: =IF(반배정!OK102="","",IF(BM100="","",반배정!OK102)) ->  | BP100: =IF(BM100="",1,IF(SUM((BM100=$BM$5:$BM$204)*1)>1,2,1)) -> 1 | BR100: =INDEX(수강신청!$I$508:$BF$508,,MATCH(BQ100,수강신청!$I$509:$BF$509,0)) ->  | BS100: =IF(BR100="","",SUM((BC100=$BC$5:$BC$204)*($BJ$5:$BJ$204)*1)) -> 
H101: 10 | N101: =IF(J101="","",SUM((K101=K$5:K101)*1)) ->  | BB101: 97 | BC101: =IF(BB101>$X$3,"",INDEX($AA$5:$AA$104,MATCH(ROW(AA101)-5,SUMIF(OFFSET($Z$5:$Z$104,,,ROW($Z$5:$Z$104)-4),"<>")-$Z$5:$Z$104))) ->  | BF101: =IF(BE101="","",INDEX(T:T,MATCH(BC101,AA:AA,),)) ->  | BG101: =IF(BE101="","",INDEX(W:W,MATCH(BC101,AA:AA,),)) ->  | BH101: =IF(BE101="","",INDEX(X:X,MATCH(BC101,AA:AA,),)) ->  | BK101: =IF(반배정!OK103="","",IF(BM101="","",반배정!OK103)) ->  | BP101: =IF(BM101="",1,IF(SUM((BM101=$BM$5:$BM$204)*1)>1,2,1)) -> 1 | BR101: =INDEX(수강신청!$I$508:$BF$508,,MATCH(BQ101,수강신청!$I$509:$BF$509,0)) ->  | BS101: =IF(BR101="","",SUM((BC101=$BC$5:$BC$204)*($BJ$5:$BJ$204)*1)) -> 
H102: 10 | N102: =IF(J102="","",SUM((K102=K$5:K102)*1)) ->  | BB102: 98 | BC102: =IF(BB102>$X$3,"",INDEX($AA$5:$AA$104,MATCH(ROW(AA102)-5,SUMIF(OFFSET($Z$5:$Z$104,,,ROW($Z$5:$Z$104)-4),"<>")-$Z$5:$Z$104))) ->  | BK102: =IF(반배정!OK104="","",IF(BM102="","",반배정!OK104)) ->  | BP102: =IF(BM102="",1,IF(SUM((BM102=$BM$5:$BM$204)*1)>1,2,1)) -> 1 | BR102: =INDEX(수강신청!$I$508:$BF$508,,MATCH(BQ102,수강신청!$I$509:$BF$509,0)) ->  | BS102: =IF(BR102="","",SUM((BC102=$BC$5:$BC$204)*($BJ$5:$BJ$204)*1)) -> 
H103: 10 | N103: =IF(J103="","",SUM((K103=K$5:K103)*1)) ->  | BB103: 99 | BC103: =IF(BB103>$X$3,"",INDEX($AA$5:$AA$104,MATCH(ROW(AA103)-5,SUMIF(OFFSET($Z$5:$Z$104,,,ROW($Z$5:$Z$104)-4),"<>")-$Z$5:$Z$104))) ->  | BK103: =IF(반배정!OK105="","",IF(BM103="","",반배정!OK105)) ->  | BP103: =IF(BM103="",1,IF(SUM((BM103=$BM$5:$BM$204)*1)>1,2,1)) -> 1 | BR103: =INDEX(수강신청!$I$508:$BF$508,,MATCH(BQ103,수강신청!$I$509:$BF$509,0)) ->  | BS103: =IF(BR103="","",SUM((BC103=$BC$5:$BC$204)*($BJ$5:$BJ$204)*1)) -> 
H104: 10 | N104: =IF(J104="","",SUM((K104=K$5:K104)*1)) ->  | BB104: 100 | BC104: =IF(BB104>$X$3,"",INDEX($AA$5:$AA$104,MATCH(ROW(AA104)-5,SUMIF(OFFSET($Z$5:$Z$104,,,ROW($Z$5:$Z$104)-4),"<>")-$Z$5:$Z$104))) ->  | BK104: =IF(반배정!OK106="","",IF(BM104="","",반배정!OK106)) ->  | BP104: =IF(BM104="",1,IF(SUM((BM104=$BM$5:$BM$204)*1)>1,2,1)) -> 1 | BR104: =INDEX(수강신청!$I$508:$BF$508,,MATCH(BQ104,수강신청!$I$509:$BF$509,0)) ->  | BS104: =IF(BR104="","",SUM((BC104=$BC$5:$BC$204)*($BJ$5:$BJ$204)*1)) -> 
G105: 1 | H105: 11 | N105: =IF(J105="","",SUM((K105=K$5:K105)*1)) ->  | BA105: =IF(BC105="","",BC105&BD105) ->  | BB105: 101 | BC105: =IF(BB105>$X$3,"",INDEX($AA$5:$AA$104,MATCH(ROW(AA105)-5,SUMIF(OFFSET($Z$5:$Z$104,,,ROW($Z$5:$Z$104)-4),"<>")-$Z$5:$Z$104))) ->  | BK105: =IF(반배정!OK107="","",IF(BM105="","",반배정!OK107)) ->  | BP105: =IF(BM105="",1,IF(SUM((BM105=$BM$5:$BM$204)*1)>1,2,1)) -> 1 | BR105: =INDEX(수강신청!$I$508:$BF$508,,MATCH(BQ105,수강신청!$I$509:$BF$509,0)) ->  | BS105: =IF(BR105="","",SUM((BC105=$BC$5:$BC$204)*($BJ$5:$BJ$204)*1)) -> 
H106: 11 | N106: =IF(J106="","",SUM((K106=K$5:K106)*1)) ->  | BA106: =IF(BC106="","",BC106&BD106) ->  | BB106: 102 | BC106: =IF(BB106>$X$3,"",INDEX($AA$5:$AA$104,MATCH(ROW(AA106)-5,SUMIF(OFFSET($Z$5:$Z$104,,,ROW($Z$5:$Z$104)-4),"<>")-$Z$5:$Z$104))) ->  | BK106: =IF(반배정!OK108="","",IF(BM106="","",반배정!OK108)) ->  | BP106: =IF(BM106="",1,IF(SUM((BM106=$BM$5:$BM$204)*1)>1,2,1)) -> 1 | BR106: =INDEX(수강신청!$I$508:$BF$508,,MATCH(BQ106,수강신청!$I$509:$BF$509,0)) ->  | BS106: =IF(BR106="","",SUM((BC106=$BC$5:$BC$204)*($BJ$5:$BJ$204)*1)) -> 
H107: 11 | N107: =IF(J107="","",SUM((K107=K$5:K107)*1)) ->  | BB107: 103 | BC107: =IF(BB107>$X$3,"",INDEX($AA$5:$AA$104,MATCH(ROW(AA107)-5,SUMIF(OFFSET($Z$5:$Z$104,,,ROW($Z$5:$Z$104)-4),"<>")-$Z$5:$Z$104))) ->  | BK107: =IF(반배정!OK109="","",IF(BM107="","",반배정!OK109)) ->  | BP107: =IF(BM107="",1,IF(SUM((BM107=$BM$5:$BM$204)*1)>1,2,1)) -> 1 | BR107: =INDEX(수강신청!$I$508:$BF$508,,MATCH(BQ107,수강신청!$I$509:$BF$509,0)) ->  | BS107: =IF(BR107="","",SUM((BC107=$BC$5:$BC$204)*($BJ$5:$BJ$204)*1)) -> 
H108: 11 | N108: =IF(J108="","",SUM((K108=K$5:K108)*1)) ->  | BB108: 104 | BC108: =IF(BB108>$X$3,"",INDEX($AA$5:$AA$104,MATCH(ROW(AA108)-5,SUMIF(OFFSET($Z$5:$Z$104,,,ROW($Z$5:$Z$104)-4),"<>")-$Z$5:$Z$104))) ->  | BK108: =IF(반배정!OK110="","",IF(BM108="","",반배정!OK110)) ->  | BP108: =IF(BM108="",1,IF(SUM((BM108=$BM$5:$BM$204)*1)>1,2,1)) -> 1 | BR108: =INDEX(수강신청!$I$508:$BF$508,,MATCH(BQ108,수강신청!$I$509:$BF$509,0)) ->  | BS108: =IF(BR108="","",SUM((BC108=$BC$5:$BC$204)*($BJ$5:$BJ$204)*1)) -> 
H109: 11 | N109: =IF(J109="","",SUM((K109=K$5:K109)*1)) ->  | BB109: 105 | BC109: =IF(BB109>$X$3,"",INDEX($AA$5:$AA$104,MATCH(ROW(AA109)-5,SUMIF(OFFSET($Z$5:$Z$104,,,ROW($Z$5:$Z$104)-4),"<>")-$Z$5:$Z$104))) ->  | BK109: =IF(반배정!OK111="","",IF(BM109="","",반배정!OK111)) ->  | BP109: =IF(BM109="",1,IF(SUM((BM109=$BM$5:$BM$204)*1)>1,2,1)) -> 1 | BR109: =INDEX(수강신청!$I$508:$BF$508,,MATCH(BQ109,수강신청!$I$509:$BF$509,0)) ->  | BS109: =IF(BR109="","",SUM((BC109=$BC$5:$BC$204)*($BJ$5:$BJ$204)*1)) -> 
H110: 11 | N110: =IF(J110="","",SUM((K110=K$5:K110)*1)) ->  | BB110: 106 | BC110: =IF(BB110>$X$3,"",INDEX($AA$5:$AA$104,MATCH(ROW(AA110)-5,SUMIF(OFFSET($Z$5:$Z$104,,,ROW($Z$5:$Z$104)-4),"<>")-$Z$5:$Z$104))) ->  | BK110: =IF(반배정!OK112="","",IF(BM110="","",반배정!OK112)) ->  | BP110: =IF(BM110="",1,IF(SUM((BM110=$BM$5:$BM$204)*1)>1,2,1)) -> 1 | BR110: =INDEX(수강신청!$I$508:$BF$508,,MATCH(BQ110,수강신청!$I$509:$BF$509,0)) ->  | BS110: =IF(BR110="","",SUM((BC110=$BC$5:$BC$204)*($BJ$5:$BJ$204)*1)) -> 
H111: 11 | N111: =IF(J111="","",SUM((K111=K$5:K111)*1)) ->  | BB111: 107 | BC111: =IF(BB111>$X$3,"",INDEX($AA$5:$AA$104,MATCH(ROW(AA111)-5,SUMIF(OFFSET($Z$5:$Z$104,,,ROW($Z$5:$Z$104)-4),"<>")-$Z$5:$Z$104))) ->  | BK111: =IF(반배정!OK113="","",IF(BM111="","",반배정!OK113)) ->  | BP111: =IF(BM111="",1,IF(SUM((BM111=$BM$5:$BM$204)*1)>1,2,1)) -> 1 | BR111: =INDEX(수강신청!$I$508:$BF$508,,MATCH(BQ111,수강신청!$I$509:$BF$509,0)) ->  | BS111: =IF(BR111="","",SUM((BC111=$BC$5:$BC$204)*($BJ$5:$BJ$204)*1)) -> 
H112: 11 | N112: =IF(J112="","",SUM((K112=K$5:K112)*1)) ->  | BB112: 108 | BC112: =IF(BB112>$X$3,"",INDEX($AA$5:$AA$104,MATCH(ROW(AA112)-5,SUMIF(OFFSET($Z$5:$Z$104,,,ROW($Z$5:$Z$104)-4),"<>")-$Z$5:$Z$104))) ->  | BK112: =IF(반배정!OK114="","",IF(BM112="","",반배정!OK114)) ->  | BP112: =IF(BM112="",1,IF(SUM((BM112=$BM$5:$BM$204)*1)>1,2,1)) -> 1 | BR112: =INDEX(수강신청!$I$508:$BF$508,,MATCH(BQ112,수강신청!$I$509:$BF$509,0)) ->  | BS112: =IF(BR112="","",SUM((BC112=$BC$5:$BC$204)*($BJ$5:$BJ$204)*1)) -> 
H113: 11 | N113: =IF(J113="","",SUM((K113=K$5:K113)*1)) ->  | BB113: 109 | BC113: =IF(BB113>$X$3,"",INDEX($AA$5:$AA$104,MATCH(ROW(AA113)-5,SUMIF(OFFSET($Z$5:$Z$104,,,ROW($Z$5:$Z$104)-4),"<>")-$Z$5:$Z$104))) ->  | BK113: =IF(반배정!OK115="","",IF(BM113="","",반배정!OK115)) ->  | BP113: =IF(BM113="",1,IF(SUM((BM113=$BM$5:$BM$204)*1)>1,2,1)) -> 1 | BR113: =INDEX(수강신청!$I$508:$BF$508,,MATCH(BQ113,수강신청!$I$509:$BF$509,0)) ->  | BS113: =IF(BR113="","",SUM((BC113=$BC$5:$BC$204)*($BJ$5:$BJ$204)*1)) -> 
H114: 11 | N114: =IF(J114="","",SUM((K114=K$5:K114)*1)) ->  | BB114: 110 | BC114: =IF(BB114>$X$3,"",INDEX($AA$5:$AA$104,MATCH(ROW(AA114)-5,SUMIF(OFFSET($Z$5:$Z$104,,,ROW($Z$5:$Z$104)-4),"<>")-$Z$5:$Z$104))) ->  | BK114: =IF(반배정!OK116="","",IF(BM114="","",반배정!OK116)) ->  | BP114: =IF(BM114="",1,IF(SUM((BM114=$BM$5:$BM$204)*1)>1,2,1)) -> 1 | BR114: =INDEX(수강신청!$I$508:$BF$508,,MATCH(BQ114,수강신청!$I$509:$BF$509,0)) ->  | BS114: =IF(BR114="","",SUM((BC114=$BC$5:$BC$204)*($BJ$5:$BJ$204)*1)) -> 
G115: 1 | H115: 12 | N115: =IF(J115="","",SUM((K115=K$5:K115)*1)) ->  | BB115: 111 | BC115: =IF(BB115>$X$3,"",INDEX($AA$5:$AA$104,MATCH(ROW(AA115)-5,SUMIF(OFFSET($Z$5:$Z$104,,,ROW($Z$5:$Z$104)-4),"<>")-$Z$5:$Z$104))) ->  | BK115: =IF(반배정!OK117="","",IF(BM115="","",반배정!OK117)) ->  | BP115: =IF(BM115="",1,IF(SUM((BM115=$BM$5:$BM$204)*1)>1,2,1)) -> 1 | BR115: =INDEX(수강신청!$I$508:$BF$508,,MATCH(BQ115,수강신청!$I$509:$BF$509,0)) ->  | BS115: =IF(BR115="","",SUM((BC115=$BC$5:$BC$204)*($BJ$5:$BJ$204)*1)) -> 
H116: 12 | N116: =IF(J116="","",SUM((K116=K$5:K116)*1)) ->  | BB116: 112 | BC116: =IF(BB116>$X$3,"",INDEX($AA$5:$AA$104,MATCH(ROW(AA116)-5,SUMIF(OFFSET($Z$5:$Z$104,,,ROW($Z$5:$Z$104)-4),"<>")-$Z$5:$Z$104))) ->  | BK116: =IF(반배정!OK118="","",IF(BM116="","",반배정!OK118)) ->  | BP116: =IF(BM116="",1,IF(SUM((BM116=$BM$5:$BM$204)*1)>1,2,1)) -> 1 | BR116: =INDEX(수강신청!$I$508:$BF$508,,MATCH(BQ116,수강신청!$I$509:$BF$509,0)) ->  | BS116: =IF(BR116="","",SUM((BC116=$BC$5:$BC$204)*($BJ$5:$BJ$204)*1)) -> 
H117: 12 | N117: =IF(J117="","",SUM((K117=K$5:K117)*1)) ->  | BB117: 113 | BC117: =IF(BB117>$X$3,"",INDEX($AA$5:$AA$104,MATCH(ROW(AA117)-5,SUMIF(OFFSET($Z$5:$Z$104,,,ROW($Z$5:$Z$104)-4),"<>")-$Z$5:$Z$104))) ->  | BK117: =IF(반배정!OK119="","",IF(BM117="","",반배정!OK119)) ->  | BP117: =IF(BM117="",1,IF(SUM((BM117=$BM$5:$BM$204)*1)>1,2,1)) -> 1 | BR117: =INDEX(수강신청!$I$508:$BF$508,,MATCH(BQ117,수강신청!$I$509:$BF$509,0)) ->  | BS117: =IF(BR117="","",SUM((BC117=$BC$5:$BC$204)*($BJ$5:$BJ$204)*1)) -> 
H118: 12 | N118: =IF(J118="","",SUM((K118=K$5:K118)*1)) ->  | BB118: 114 | BC118: =IF(BB118>$X$3,"",INDEX($AA$5:$AA$104,MATCH(ROW(AA118)-5,SUMIF(OFFSET($Z$5:$Z$104,,,ROW($Z$5:$Z$104)-4),"<>")-$Z$5:$Z$104))) ->  | BK118: =IF(반배정!OK120="","",IF(BM118="","",반배정!OK120)) ->  | BP118: =IF(BM118="",1,IF(SUM((BM118=$BM$5:$BM$204)*1)>1,2,1)) -> 1 | BR118: =INDEX(수강신청!$I$508:$BF$508,,MATCH(BQ118,수강신청!$I$509:$BF$509,0)) ->  | BS118: =IF(BR118="","",SUM((BC118=$BC$5:$BC$204)*($BJ$5:$BJ$204)*1)) -> 
H119: 12 | N119: =IF(J119="","",SUM((K119=K$5:K119)*1)) ->  | BB119: 115 | BC119: =IF(BB119>$X$3,"",INDEX($AA$5:$AA$104,MATCH(ROW(AA119)-5,SUMIF(OFFSET($Z$5:$Z$104,,,ROW($Z$5:$Z$104)-4),"<>")-$Z$5:$Z$104))) ->  | BK119: =IF(반배정!OK121="","",IF(BM119="","",반배정!OK121)) ->  | BP119: =IF(BM119="",1,IF(SUM((BM119=$BM$5:$BM$204)*1)>1,2,1)) -> 1 | BR119: =INDEX(수강신청!$I$508:$BF$508,,MATCH(BQ119,수강신청!$I$509:$BF$509,0)) ->  | BS119: =IF(BR119="","",SUM((BC119=$BC$5:$BC$204)*($BJ$5:$BJ$204)*1)) -> 
H120: 12 | N120: =IF(J120="","",SUM((K120=K$5:K120)*1)) ->  | BB120: 116 | BC120: =IF(BB120>$X$3,"",INDEX($AA$5:$AA$104,MATCH(ROW(AA120)-5,SUMIF(OFFSET($Z$5:$Z$104,,,ROW($Z$5:$Z$104)-4),"<>")-$Z$5:$Z$104))) ->  | BK120: =IF(반배정!OK122="","",IF(BM120="","",반배정!OK122)) ->  | BP120: =IF(BM120="",1,IF(SUM((BM120=$BM$5:$BM$204)*1)>1,2,1)) -> 1 | BR120: =INDEX(수강신청!$I$508:$BF$508,,MATCH(BQ120,수강신청!$I$509:$BF$509,0)) ->  | BS120: =IF(BR120="","",SUM((BC120=$BC$5:$BC$204)*($BJ$5:$BJ$204)*1)) -> 
H121: 12 | N121: =IF(J121="","",SUM((K121=K$5:K121)*1)) ->  | BB121: 117 | BC121: =IF(BB121>$X$3,"",INDEX($AA$5:$AA$104,MATCH(ROW(AA121)-5,SUMIF(OFFSET($Z$5:$Z$104,,,ROW($Z$5:$Z$104)-4),"<>")-$Z$5:$Z$104))) ->  | BK121: =IF(반배정!OK123="","",IF(BM121="","",반배정!OK123)) ->  | BP121: =IF(BM121="",1,IF(SUM((BM121=$BM$5:$BM$204)*1)>1,2,1)) -> 1 | BR121: =INDEX(수강신청!$I$508:$BF$508,,MATCH(BQ121,수강신청!$I$509:$BF$509,0)) ->  | BS121: =IF(BR121="","",SUM((BC121=$BC$5:$BC$204)*($BJ$5:$BJ$204)*1)) -> 
H122: 12 | N122: =IF(J122="","",SUM((K122=K$5:K122)*1)) ->  | BB122: 118 | BC122: =IF(BB122>$X$3,"",INDEX($AA$5:$AA$104,MATCH(ROW(AA122)-5,SUMIF(OFFSET($Z$5:$Z$104,,,ROW($Z$5:$Z$104)-4),"<>")-$Z$5:$Z$104))) ->  | BK122: =IF(반배정!OK124="","",IF(BM122="","",반배정!OK124)) ->  | BP122: =IF(BM122="",1,IF(SUM((BM122=$BM$5:$BM$204)*1)>1,2,1)) -> 1 | BR122: =INDEX(수강신청!$I$508:$BF$508,,MATCH(BQ122,수강신청!$I$509:$BF$509,0)) ->  | BS122: =IF(BR122="","",SUM((BC122=$BC$5:$BC$204)*($BJ$5:$BJ$204)*1)) -> 
H123: 12 | N123: =IF(J123="","",SUM((K123=K$5:K123)*1)) ->  | BB123: 119 | BC123: =IF(BB123>$X$3,"",INDEX($AA$5:$AA$104,MATCH(ROW(AA123)-5,SUMIF(OFFSET($Z$5:$Z$104,,,ROW($Z$5:$Z$104)-4),"<>")-$Z$5:$Z$104))) ->  | BK123: =IF(반배정!OK125="","",IF(BM123="","",반배정!OK125)) ->  | BP123: =IF(BM123="",1,IF(SUM((BM123=$BM$5:$BM$204)*1)>1,2,1)) -> 1 | BR123: =INDEX(수강신청!$I$508:$BF$508,,MATCH(BQ123,수강신청!$I$509:$BF$509,0)) ->  | BS123: =IF(BR123="","",SUM((BC123=$BC$5:$BC$204)*($BJ$5:$BJ$204)*1)) -> 
H124: 12 | N124: =IF(J124="","",SUM((K124=K$5:K124)*1)) ->  | BB124: 120 | BC124: =IF(BB124>$X$3,"",INDEX($AA$5:$AA$104,MATCH(ROW(AA124)-5,SUMIF(OFFSET($Z$5:$Z$104,,,ROW($Z$5:$Z$104)-4),"<>")-$Z$5:$Z$104))) ->  | BK124: =IF(반배정!OK126="","",IF(BM124="","",반배정!OK126)) ->  | BP124: =IF(BM124="",1,IF(SUM((BM124=$BM$5:$BM$204)*1)>1,2,1)) -> 1 | BR124: =INDEX(수강신청!$I$508:$BF$508,,MATCH(BQ124,수강신청!$I$509:$BF$509,0)) ->  | BS124: =IF(BR124="","",SUM((BC124=$BC$5:$BC$204)*($BJ$5:$BJ$204)*1)) -> 
G125: 1 | H125: 13 | N125: =IF(J125="","",SUM((K125=K$5:K125)*1)) ->  | BB125: 121 | BC125: =IF(BB125>$X$3,"",INDEX($AA$5:$AA$104,MATCH(ROW(AA125)-5,SUMIF(OFFSET($Z$5:$Z$104,,,ROW($Z$5:$Z$104)-4),"<>")-$Z$5:$Z$104))) ->  | BK125: =IF(반배정!OK127="","",IF(BM125="","",반배정!OK127)) ->  | BP125: =IF(BM125="",1,IF(SUM((BM125=$BM$5:$BM$204)*1)>1,2,1)) -> 1 | BR125: =INDEX(수강신청!$I$508:$BF$508,,MATCH(BQ125,수강신청!$I$509:$BF$509,0)) ->  | BS125: =IF(BR125="","",SUM((BC125=$BC$5:$BC$204)*($BJ$5:$BJ$204)*1)) -> 
H126: 13 | N126: =IF(J126="","",SUM((K126=K$5:K126)*1)) ->  | BB126: 122 | BC126: =IF(BB126>$X$3,"",INDEX($AA$5:$AA$104,MATCH(ROW(AA126)-5,SUMIF(OFFSET($Z$5:$Z$104,,,ROW($Z$5:$Z$104)-4),"<>")-$Z$5:$Z$104))) ->  | BK126: =IF(반배정!OK128="","",IF(BM126="","",반배정!OK128)) ->  | BP126: =IF(BM126="",1,IF(SUM((BM126=$BM$5:$BM$204)*1)>1,2,1)) -> 1 | BR126: =INDEX(수강신청!$I$508:$BF$508,,MATCH(BQ126,수강신청!$I$509:$BF$509,0)) ->  | BS126: =IF(BR126="","",SUM((BC126=$BC$5:$BC$204)*($BJ$5:$BJ$204)*1)) -> 
H127: 13 | N127: =IF(J127="","",SUM((K127=K$5:K127)*1)) ->  | BB127: 123 | BC127: =IF(BB127>$X$3,"",INDEX($AA$5:$AA$104,MATCH(ROW(AA127)-5,SUMIF(OFFSET($Z$5:$Z$104,,,ROW($Z$5:$Z$104)-4),"<>")-$Z$5:$Z$104))) ->  | BK127: =IF(반배정!OK129="","",IF(BM127="","",반배정!OK129)) ->  | BP127: =IF(BM127="",1,IF(SUM((BM127=$BM$5:$BM$204)*1)>1,2,1)) -> 1 | BR127: =INDEX(수강신청!$I$508:$BF$508,,MATCH(BQ127,수강신청!$I$509:$BF$509,0)) ->  | BS127: =IF(BR127="","",SUM((BC127=$BC$5:$BC$204)*($BJ$5:$BJ$204)*1)) -> 
H128: 13 | N128: =IF(J128="","",SUM((K128=K$5:K128)*1)) ->  | BB128: 124 | BC128: =IF(BB128>$X$3,"",INDEX($AA$5:$AA$104,MATCH(ROW(AA128)-5,SUMIF(OFFSET($Z$5:$Z$104,,,ROW($Z$5:$Z$104)-4),"<>")-$Z$5:$Z$104))) ->  | BK128: =IF(반배정!OK130="","",IF(BM128="","",반배정!OK130)) ->  | BP128: =IF(BM128="",1,IF(SUM((BM128=$BM$5:$BM$204)*1)>1,2,1)) -> 1 | BR128: =INDEX(수강신청!$I$508:$BF$508,,MATCH(BQ128,수강신청!$I$509:$BF$509,0)) ->  | BS128: =IF(BR128="","",SUM((BC128=$BC$5:$BC$204)*($BJ$5:$BJ$204)*1)) -> 
H129: 13 | N129: =IF(J129="","",SUM((K129=K$5:K129)*1)) ->  | BB129: 125 | BC129: =IF(BB129>$X$3,"",INDEX($AA$5:$AA$104,MATCH(ROW(AA129)-5,SUMIF(OFFSET($Z$5:$Z$104,,,ROW($Z$5:$Z$104)-4),"<>")-$Z$5:$Z$104))) ->  | BK129: =IF(반배정!OK131="","",IF(BM129="","",반배정!OK131)) ->  | BP129: =IF(BM129="",1,IF(SUM((BM129=$BM$5:$BM$204)*1)>1,2,1)) -> 1 | BR129: =INDEX(수강신청!$I$508:$BF$508,,MATCH(BQ129,수강신청!$I$509:$BF$509,0)) ->  | BS129: =IF(BR129="","",SUM((BC129=$BC$5:$BC$204)*($BJ$5:$BJ$204)*1)) -> 
H130: 13 | N130: =IF(J130="","",SUM((K130=K$5:K130)*1)) ->  | BB130: 126 | BC130: =IF(BB130>$X$3,"",INDEX($AA$5:$AA$104,MATCH(ROW(AA130)-5,SUMIF(OFFSET($Z$5:$Z$104,,,ROW($Z$5:$Z$104)-4),"<>")-$Z$5:$Z$104))) ->  | BK130: =IF(반배정!OK132="","",IF(BM130="","",반배정!OK132)) ->  | BP130: =IF(BM130="",1,IF(SUM((BM130=$BM$5:$BM$204)*1)>1,2,1)) -> 1 | BR130: =INDEX(수강신청!$I$508:$BF$508,,MATCH(BQ130,수강신청!$I$509:$BF$509,0)) ->  | BS130: =IF(BR130="","",SUM((BC130=$BC$5:$BC$204)*($BJ$5:$BJ$204)*1)) -> 
H131: 13 | N131: =IF(J131="","",SUM((K131=K$5:K131)*1)) ->  | BA131: =IF(BC131="","",BC131&BD131) ->  | BB131: 127 | BC131: =IF(BB131>$X$3,"",INDEX($AA$5:$AA$104,MATCH(ROW(AA131)-5,SUMIF(OFFSET($Z$5:$Z$104,,,ROW($Z$5:$Z$104)-4),"<>")-$Z$5:$Z$104))) ->  | BK131: =IF(반배정!OK133="","",IF(BM131="","",반배정!OK133)) ->  | BP131: =IF(BM131="",1,IF(SUM((BM131=$BM$5:$BM$204)*1)>1,2,1)) -> 1 | BR131: =INDEX(수강신청!$I$508:$BF$508,,MATCH(BQ131,수강신청!$I$509:$BF$509,0)) ->  | BS131: =IF(BR131="","",SUM((BC131=$BC$5:$BC$204)*($BJ$5:$BJ$204)*1)) -> 
H132: 13 | N132: =IF(J132="","",SUM((K132=K$5:K132)*1)) ->  | BB132: 128 | BC132: =IF(BB132>$X$3,"",INDEX($AA$5:$AA$104,MATCH(ROW(AA132)-5,SUMIF(OFFSET($Z$5:$Z$104,,,ROW($Z$5:$Z$104)-4),"<>")-$Z$5:$Z$104))) ->  | BK132: =IF(반배정!OK134="","",IF(BM132="","",반배정!OK134)) ->  | BP132: =IF(BM132="",1,IF(SUM((BM132=$BM$5:$BM$204)*1)>1,2,1)) -> 1 | BR132: =INDEX(수강신청!$I$508:$BF$508,,MATCH(BQ132,수강신청!$I$509:$BF$509,0)) ->  | BS132: =IF(BR132="","",SUM((BC132=$BC$5:$BC$204)*($BJ$5:$BJ$204)*1)) -> 
H133: 13 | N133: =IF(J133="","",SUM((K133=K$5:K133)*1)) ->  | BB133: 129 | BC133: =IF(BB133>$X$3,"",INDEX($AA$5:$AA$104,MATCH(ROW(AA133)-5,SUMIF(OFFSET($Z$5:$Z$104,,,ROW($Z$5:$Z$104)-4),"<>")-$Z$5:$Z$104))) ->  | BF133: =IF(BE133="","",INDEX(T:T,MATCH(BC133,AA:AA,),)) ->  | BG133: =IF(BE133="","",INDEX(W:W,MATCH(BC133,AA:AA,),)) ->  | BH133: =IF(BE133="","",INDEX(X:X,MATCH(BC133,AA:AA,),)) ->  | BK133: =IF(반배정!OK135="","",IF(BM133="","",반배정!OK135)) ->  | BP133: =IF(BM133="",1,IF(SUM((BM133=$BM$5:$BM$204)*1)>1,2,1)) -> 1 | BR133: =INDEX(수강신청!$I$508:$BF$508,,MATCH(BQ133,수강신청!$I$509:$BF$509,0)) ->  | BS133: =IF(BR133="","",SUM((BC133=$BC$5:$BC$204)*($BJ$5:$BJ$204)*1)) -> 
G134: =IF(MOD(ROW()-4,10)=1,1,"") ->  | H134: =((ROW()-5)-MOD(ROW()-5,10))/10+1 -> 13 | I134: =IF(G134=1,IF(INDEX($D$5:$D$24,MATCH(H134,$C$5:$C$24,0),)="","",INDEX($D$5:$D$24,MATCH(H134,$C$5:$C$24,0),)),"") ->  | K134: =IF(J134="","",INDEX($D$5:$D$24,MATCH(H134,$C$5:$C$24,0),)) ->  | L134: =IF(I134="","",ROW()-4) ->  | M134: =IF(J134="","",COUNTIF($X$5:$X$104,J134)) ->  | N134: =IF(J134="","",SUM((K134=K$5:K134)*1)) ->  | O134: =IF(J134="","",H134&N134&0&0) ->  | P134: =IF(K134="","",K134&J134) ->  | BB134: 130 | BC134: =IF(BB134>$X$3,"",INDEX($AA$5:$AA$104,MATCH(ROW(AA134)-5,SUMIF(OFFSET($Z$5:$Z$104,,,ROW($Z$5:$Z$104)-4),"<>")-$Z$5:$Z$104))) ->  | BE134: =IF(BC134="","",IF(LEN(BD134)=2,INT(BC134&BD134),INT(BC134&0&BD134))) ->  | BK134: =IF(반배정!OK136="","",IF(BM134="","",반배정!OK136)) ->  | BM134: =IF(BL134="","",INT(BL134&RIGHT(BN134,2))) ->  | BN134: =IF(BE134="","",IF(BI134="",INT(BE134),INT(BI134))) ->  | BO134: =IF(BG134="","",BG134&"-"&BH134&"-"&LEFT(BM134,3)) ->  | BP134: =IF(BM134="",1,IF(SUM((BM134=$BM$5:$BM$204)*1)>1,2,1)) -> 1 | BQ134: =IF(BC134="","",IF(BC134=BC133,"",INT(BC134&0&0))) ->  | BR134: =INDEX(수강신청!$I$508:$BF$508,,MATCH(BQ134,수강신청!$I$509:$BF$509,0)) ->  | BS134: =IF(BR134="","",SUM((BC134=$BC$5:$BC$204)*($BJ$5:$BJ$204)*1)) ->  | BT134: =IF(BJ134="","",-(BJ134-BK134)) ->  | BU134: =IF(BJ134="","",ABS(BJ134-BK134)) ->  | BV134: =IF(BT134="","",IF(INT(BC134)=BV$1,BT134,"")) ->  | BW134: =IF(BV134="","",INT(RANK(BV134,$BV$5:$BV$204))) -> 
G135: 1 | H135: 14 | N135: =IF(J135="","",SUM((K135=K$5:K135)*1)) ->  | BB135: 131 | BC135: =IF(BB135>$X$3,"",INDEX($AA$5:$AA$104,MATCH(ROW(AA135)-5,SUMIF(OFFSET($Z$5:$Z$104,,,ROW($Z$5:$Z$104)-4),"<>")-$Z$5:$Z$104))) ->  | BD135: =IF(BC135="","",IF(BC134=BC135,BD134+1,1)) ->  | BK135: =IF(반배정!OK137="","",IF(BM135="","",반배정!OK137)) ->  | BP135: =IF(BM135="",1,IF(SUM((BM135=$BM$5:$BM$204)*1)>1,2,1)) -> 1 | BR135: =INDEX(수강신청!$I$508:$BF$508,,MATCH(BQ135,수강신청!$I$509:$BF$509,0)) ->  | BS135: =IF(BR135="","",SUM((BC135=$BC$5:$BC$204)*($BJ$5:$BJ$204)*1)) -> 
H136: 14 | N136: =IF(J136="","",SUM((K136=K$5:K136)*1)) ->  | BB136: 132 | BC136: =IF(BB136>$X$3,"",INDEX($AA$5:$AA$104,MATCH(ROW(AA136)-5,SUMIF(OFFSET($Z$5:$Z$104,,,ROW($Z$5:$Z$104)-4),"<>")-$Z$5:$Z$104))) ->  | BK136: =IF(반배정!OK138="","",IF(BM136="","",반배정!OK138)) ->  | BP136: =IF(BM136="",1,IF(SUM((BM136=$BM$5:$BM$204)*1)>1,2,1)) -> 1 | BR136: =INDEX(수강신청!$I$508:$BF$508,,MATCH(BQ136,수강신청!$I$509:$BF$509,0)) ->  | BS136: =IF(BR136="","",SUM((BC136=$BC$5:$BC$204)*($BJ$5:$BJ$204)*1)) -> 
H137: 14 | N137: =IF(J137="","",SUM((K137=K$5:K137)*1)) ->  | BA137: =IF(BC137="","",BC137&BD137) ->  | BB137: 133 | BC137: =IF(BB137>$X$3,"",INDEX($AA$5:$AA$104,MATCH(ROW(AA137)-5,SUMIF(OFFSET($Z$5:$Z$104,,,ROW($Z$5:$Z$104)-4),"<>")-$Z$5:$Z$104))) ->  | BK137: =IF(반배정!OK139="","",IF(BM137="","",반배정!OK139)) ->  | BP137: =IF(BM137="",1,IF(SUM((BM137=$BM$5:$BM$204)*1)>1,2,1)) -> 1 | BR137: =INDEX(수강신청!$I$508:$BF$508,,MATCH(BQ137,수강신청!$I$509:$BF$509,0)) ->  | BS137: =IF(BR137="","",SUM((BC137=$BC$5:$BC$204)*($BJ$5:$BJ$204)*1)) -> 
H138: 14 | N138: =IF(J138="","",SUM((K138=K$5:K138)*1)) ->  | BB138: 134 | BC138: =IF(BB138>$X$3,"",INDEX($AA$5:$AA$104,MATCH(ROW(AA138)-5,SUMIF(OFFSET($Z$5:$Z$104,,,ROW($Z$5:$Z$104)-4),"<>")-$Z$5:$Z$104))) ->  | BK138: =IF(반배정!OK140="","",IF(BM138="","",반배정!OK140)) ->  | BP138: =IF(BM138="",1,IF(SUM((BM138=$BM$5:$BM$204)*1)>1,2,1)) -> 1 | BR138: =INDEX(수강신청!$I$508:$BF$508,,MATCH(BQ138,수강신청!$I$509:$BF$509,0)) ->  | BS138: =IF(BR138="","",SUM((BC138=$BC$5:$BC$204)*($BJ$5:$BJ$204)*1)) -> 
H139: 14 | N139: =IF(J139="","",SUM((K139=K$5:K139)*1)) ->  | BB139: 135 | BC139: =IF(BB139>$X$3,"",INDEX($AA$5:$AA$104,MATCH(ROW(AA139)-5,SUMIF(OFFSET($Z$5:$Z$104,,,ROW($Z$5:$Z$104)-4),"<>")-$Z$5:$Z$104))) ->  | BK139: =IF(반배정!OK141="","",IF(BM139="","",반배정!OK141)) ->  | BP139: =IF(BM139="",1,IF(SUM((BM139=$BM$5:$BM$204)*1)>1,2,1)) -> 1 | BR139: =INDEX(수강신청!$I$508:$BF$508,,MATCH(BQ139,수강신청!$I$509:$BF$509,0)) ->  | BS139: =IF(BR139="","",SUM((BC139=$BC$5:$BC$204)*($BJ$5:$BJ$204)*1)) -> 
H140: 14 | N140: =IF(J140="","",SUM((K140=K$5:K140)*1)) ->  | BB140: 136 | BC140: =IF(BB140>$X$3,"",INDEX($AA$5:$AA$104,MATCH(ROW(AA140)-5,SUMIF(OFFSET($Z$5:$Z$104,,,ROW($Z$5:$Z$104)-4),"<>")-$Z$5:$Z$104))) ->  | BK140: =IF(반배정!OK142="","",IF(BM140="","",반배정!OK142)) ->  | BP140: =IF(BM140="",1,IF(SUM((BM140=$BM$5:$BM$204)*1)>1,2,1)) -> 1 | BR140: =INDEX(수강신청!$I$508:$BF$508,,MATCH(BQ140,수강신청!$I$509:$BF$509,0)) ->  | BS140: =IF(BR140="","",SUM((BC140=$BC$5:$BC$204)*($BJ$5:$BJ$204)*1)) -> 
H141: 14 | N141: =IF(J141="","",SUM((K141=K$5:K141)*1)) ->  | BB141: 137 | BC141: =IF(BB141>$X$3,"",INDEX($AA$5:$AA$104,MATCH(ROW(AA141)-5,SUMIF(OFFSET($Z$5:$Z$104,,,ROW($Z$5:$Z$104)-4),"<>")-$Z$5:$Z$104))) ->  | BK141: =IF(반배정!OK143="","",IF(BM141="","",반배정!OK143)) ->  | BP141: =IF(BM141="",1,IF(SUM((BM141=$BM$5:$BM$204)*1)>1,2,1)) -> 1 | BR141: =INDEX(수강신청!$I$508:$BF$508,,MATCH(BQ141,수강신청!$I$509:$BF$509,0)) ->  | BS141: =IF(BR141="","",SUM((BC141=$BC$5:$BC$204)*($BJ$5:$BJ$204)*1)) -> 
H142: 14 | N142: =IF(J142="","",SUM((K142=K$5:K142)*1)) ->  | BB142: 138 | BC142: =IF(BB142>$X$3,"",INDEX($AA$5:$AA$104,MATCH(ROW(AA142)-5,SUMIF(OFFSET($Z$5:$Z$104,,,ROW($Z$5:$Z$104)-4),"<>")-$Z$5:$Z$104))) ->  | BK142: =IF(반배정!OK144="","",IF(BM142="","",반배정!OK144)) ->  | BP142: =IF(BM142="",1,IF(SUM((BM142=$BM$5:$BM$204)*1)>1,2,1)) -> 1 | BR142: =INDEX(수강신청!$I$508:$BF$508,,MATCH(BQ142,수강신청!$I$509:$BF$509,0)) ->  | BS142: =IF(BR142="","",SUM((BC142=$BC$5:$BC$204)*($BJ$5:$BJ$204)*1)) -> 
H143: 14 | N143: =IF(J143="","",SUM((K143=K$5:K143)*1)) ->  | BB143: 139 | BC143: =IF(BB143>$X$3,"",INDEX($AA$5:$AA$104,MATCH(ROW(AA143)-5,SUMIF(OFFSET($Z$5:$Z$104,,,ROW($Z$5:$Z$104)-4),"<>")-$Z$5:$Z$104))) ->  | BK143: =IF(반배정!OK145="","",IF(BM143="","",반배정!OK145)) ->  | BP143: =IF(BM143="",1,IF(SUM((BM143=$BM$5:$BM$204)*1)>1,2,1)) -> 1 | BR143: =INDEX(수강신청!$I$508:$BF$508,,MATCH(BQ143,수강신청!$I$509:$BF$509,0)) ->  | BS143: =IF(BR143="","",SUM((BC143=$BC$5:$BC$204)*($BJ$5:$BJ$204)*1)) -> 
H144: 14 | N144: =IF(J144="","",SUM((K144=K$5:K144)*1)) ->  | BB144: 140 | BC144: =IF(BB144>$X$3,"",INDEX($AA$5:$AA$104,MATCH(ROW(AA144)-5,SUMIF(OFFSET($Z$5:$Z$104,,,ROW($Z$5:$Z$104)-4),"<>")-$Z$5:$Z$104))) ->  | BK144: =IF(반배정!OK146="","",IF(BM144="","",반배정!OK146)) ->  | BP144: =IF(BM144="",1,IF(SUM((BM144=$BM$5:$BM$204)*1)>1,2,1)) -> 1 | BR144: =INDEX(수강신청!$I$508:$BF$508,,MATCH(BQ144,수강신청!$I$509:$BF$509,0)) ->  | BS144: =IF(BR144="","",SUM((BC144=$BC$5:$BC$204)*($BJ$5:$BJ$204)*1)) -> 
G145: 1 | H145: 15 | N145: =IF(J145="","",SUM((K145=K$5:K145)*1)) ->  | BB145: 141 | BC145: =IF(BB145>$X$3,"",INDEX($AA$5:$AA$104,MATCH(ROW(AA145)-5,SUMIF(OFFSET($Z$5:$Z$104,,,ROW($Z$5:$Z$104)-4),"<>")-$Z$5:$Z$104))) ->  | BK145: =IF(반배정!OK147="","",IF(BM145="","",반배정!OK147)) ->  | BP145: =IF(BM145="",1,IF(SUM((BM145=$BM$5:$BM$204)*1)>1,2,1)) -> 1 | BR145: =INDEX(수강신청!$I$508:$BF$508,,MATCH(BQ145,수강신청!$I$509:$BF$509,0)) ->  | BS145: =IF(BR145="","",SUM((BC145=$BC$5:$BC$204)*($BJ$5:$BJ$204)*1)) -> 
H146: 15 | N146: =IF(J146="","",SUM((K146=K$5:K146)*1)) ->  | BB146: 142 | BC146: =IF(BB146>$X$3,"",INDEX($AA$5:$AA$104,MATCH(ROW(AA146)-5,SUMIF(OFFSET($Z$5:$Z$104,,,ROW($Z$5:$Z$104)-4),"<>")-$Z$5:$Z$104))) ->  | BK146: =IF(반배정!OK148="","",IF(BM146="","",반배정!OK148)) ->  | BP146: =IF(BM146="",1,IF(SUM((BM146=$BM$5:$BM$204)*1)>1,2,1)) -> 1 | BR146: =INDEX(수강신청!$I$508:$BF$508,,MATCH(BQ146,수강신청!$I$509:$BF$509,0)) ->  | BS146: =IF(BR146="","",SUM((BC146=$BC$5:$BC$204)*($BJ$5:$BJ$204)*1)) -> 
H147: 15 | N147: =IF(J147="","",SUM((K147=K$5:K147)*1)) ->  | BB147: 143 | BC147: =IF(BB147>$X$3,"",INDEX($AA$5:$AA$104,MATCH(ROW(AA147)-5,SUMIF(OFFSET($Z$5:$Z$104,,,ROW($Z$5:$Z$104)-4),"<>")-$Z$5:$Z$104))) ->  | BK147: =IF(반배정!OK149="","",IF(BM147="","",반배정!OK149)) ->  | BP147: =IF(BM147="",1,IF(SUM((BM147=$BM$5:$BM$204)*1)>1,2,1)) -> 1 | BR147: =INDEX(수강신청!$I$508:$BF$508,,MATCH(BQ147,수강신청!$I$509:$BF$509,0)) ->  | BS147: =IF(BR147="","",SUM((BC147=$BC$5:$BC$204)*($BJ$5:$BJ$204)*1)) -> 
H148: 15 | N148: =IF(J148="","",SUM((K148=K$5:K148)*1)) ->  | BB148: 144 | BC148: =IF(BB148>$X$3,"",INDEX($AA$5:$AA$104,MATCH(ROW(AA148)-5,SUMIF(OFFSET($Z$5:$Z$104,,,ROW($Z$5:$Z$104)-4),"<>")-$Z$5:$Z$104))) ->  | BK148: =IF(반배정!OK150="","",IF(BM148="","",반배정!OK150)) ->  | BP148: =IF(BM148="",1,IF(SUM((BM148=$BM$5:$BM$204)*1)>1,2,1)) -> 1 | BR148: =INDEX(수강신청!$I$508:$BF$508,,MATCH(BQ148,수강신청!$I$509:$BF$509,0)) ->  | BS148: =IF(BR148="","",SUM((BC148=$BC$5:$BC$204)*($BJ$5:$BJ$204)*1)) -> 
H149: 15 | N149: =IF(J149="","",SUM((K149=K$5:K149)*1)) ->  | BB149: 145 | BC149: =IF(BB149>$X$3,"",INDEX($AA$5:$AA$104,MATCH(ROW(AA149)-5,SUMIF(OFFSET($Z$5:$Z$104,,,ROW($Z$5:$Z$104)-4),"<>")-$Z$5:$Z$104))) ->  | BK149: =IF(반배정!OK151="","",IF(BM149="","",반배정!OK151)) ->  | BP149: =IF(BM149="",1,IF(SUM((BM149=$BM$5:$BM$204)*1)>1,2,1)) -> 1 | BR149: =INDEX(수강신청!$I$508:$BF$508,,MATCH(BQ149,수강신청!$I$509:$BF$509,0)) ->  | BS149: =IF(BR149="","",SUM((BC149=$BC$5:$BC$204)*($BJ$5:$BJ$204)*1)) -> 
H150: 15 | N150: =IF(J150="","",SUM((K150=K$5:K150)*1)) ->  | BB150: 146 | BC150: =IF(BB150>$X$3,"",INDEX($AA$5:$AA$104,MATCH(ROW(AA150)-5,SUMIF(OFFSET($Z$5:$Z$104,,,ROW($Z$5:$Z$104)-4),"<>")-$Z$5:$Z$104))) ->  | BK150: =IF(반배정!OK152="","",IF(BM150="","",반배정!OK152)) ->  | BP150: =IF(BM150="",1,IF(SUM((BM150=$BM$5:$BM$204)*1)>1,2,1)) -> 1 | BR150: =INDEX(수강신청!$I$508:$BF$508,,MATCH(BQ150,수강신청!$I$509:$BF$509,0)) ->  | BS150: =IF(BR150="","",SUM((BC150=$BC$5:$BC$204)*($BJ$5:$BJ$204)*1)) -> 
H151: 15 | N151: =IF(J151="","",SUM((K151=K$5:K151)*1)) ->  | BB151: 147 | BC151: =IF(BB151>$X$3,"",INDEX($AA$5:$AA$104,MATCH(ROW(AA151)-5,SUMIF(OFFSET($Z$5:$Z$104,,,ROW($Z$5:$Z$104)-4),"<>")-$Z$5:$Z$104))) ->  | BK151: =IF(반배정!OK153="","",IF(BM151="","",반배정!OK153)) ->  | BP151: =IF(BM151="",1,IF(SUM((BM151=$BM$5:$BM$204)*1)>1,2,1)) -> 1 | BR151: =INDEX(수강신청!$I$508:$BF$508,,MATCH(BQ151,수강신청!$I$509:$BF$509,0)) ->  | BS151: =IF(BR151="","",SUM((BC151=$BC$5:$BC$204)*($BJ$5:$BJ$204)*1)) -> 
H152: 15 | N152: =IF(J152="","",SUM((K152=K$5:K152)*1)) ->  | BB152: 148 | BC152: =IF(BB152>$X$3,"",INDEX($AA$5:$AA$104,MATCH(ROW(AA152)-5,SUMIF(OFFSET($Z$5:$Z$104,,,ROW($Z$5:$Z$104)-4),"<>")-$Z$5:$Z$104))) ->  | BK152: =IF(반배정!OK154="","",IF(BM152="","",반배정!OK154)) ->  | BP152: =IF(BM152="",1,IF(SUM((BM152=$BM$5:$BM$204)*1)>1,2,1)) -> 1 | BR152: =INDEX(수강신청!$I$508:$BF$508,,MATCH(BQ152,수강신청!$I$509:$BF$509,0)) ->  | BS152: =IF(BR152="","",SUM((BC152=$BC$5:$BC$204)*($BJ$5:$BJ$204)*1)) -> 
H153: 15 | N153: =IF(J153="","",SUM((K153=K$5:K153)*1)) ->  | BB153: 149 | BC153: =IF(BB153>$X$3,"",INDEX($AA$5:$AA$104,MATCH(ROW(AA153)-5,SUMIF(OFFSET($Z$5:$Z$104,,,ROW($Z$5:$Z$104)-4),"<>")-$Z$5:$Z$104))) ->  | BK153: =IF(반배정!OK155="","",IF(BM153="","",반배정!OK155)) ->  | BP153: =IF(BM153="",1,IF(SUM((BM153=$BM$5:$BM$204)*1)>1,2,1)) -> 1 | BR153: =INDEX(수강신청!$I$508:$BF$508,,MATCH(BQ153,수강신청!$I$509:$BF$509,0)) ->  | BS153: =IF(BR153="","",SUM((BC153=$BC$5:$BC$204)*($BJ$5:$BJ$204)*1)) -> 
H154: 15 | N154: =IF(J154="","",SUM((K154=K$5:K154)*1)) ->  | BB154: 150 | BC154: =IF(BB154>$X$3,"",INDEX($AA$5:$AA$104,MATCH(ROW(AA154)-5,SUMIF(OFFSET($Z$5:$Z$104,,,ROW($Z$5:$Z$104)-4),"<>")-$Z$5:$Z$104))) ->  | BK154: =IF(반배정!OK156="","",IF(BM154="","",반배정!OK156)) ->  | BP154: =IF(BM154="",1,IF(SUM((BM154=$BM$5:$BM$204)*1)>1,2,1)) -> 1 | BR154: =INDEX(수강신청!$I$508:$BF$508,,MATCH(BQ154,수강신청!$I$509:$BF$509,0)) ->  | BS154: =IF(BR154="","",SUM((BC154=$BC$5:$BC$204)*($BJ$5:$BJ$204)*1)) -> 
G155: 1 | H155: 16 | N155: =IF(J155="","",SUM((K155=K$5:K155)*1)) ->  | BB155: 151 | BC155: =IF(BB155>$X$3,"",INDEX($AA$5:$AA$104,MATCH(ROW(AA155)-5,SUMIF(OFFSET($Z$5:$Z$104,,,ROW($Z$5:$Z$104)-4),"<>")-$Z$5:$Z$104))) ->  | BK155: =IF(반배정!OK157="","",IF(BM155="","",반배정!OK157)) ->  | BP155: =IF(BM155="",1,IF(SUM((BM155=$BM$5:$BM$204)*1)>1,2,1)) -> 1 | BR155: =INDEX(수강신청!$I$508:$BF$508,,MATCH(BQ155,수강신청!$I$509:$BF$509,0)) ->  | BS155: =IF(BR155="","",SUM((BC155=$BC$5:$BC$204)*($BJ$5:$BJ$204)*1)) -> 
H156: 16 | N156: =IF(J156="","",SUM((K156=K$5:K156)*1)) ->  | BB156: 152 | BC156: =IF(BB156>$X$3,"",INDEX($AA$5:$AA$104,MATCH(ROW(AA156)-5,SUMIF(OFFSET($Z$5:$Z$104,,,ROW($Z$5:$Z$104)-4),"<>")-$Z$5:$Z$104))) ->  | BK156: =IF(반배정!OK158="","",IF(BM156="","",반배정!OK158)) ->  | BP156: =IF(BM156="",1,IF(SUM((BM156=$BM$5:$BM$204)*1)>1,2,1)) -> 1 | BR156: =INDEX(수강신청!$I$508:$BF$508,,MATCH(BQ156,수강신청!$I$509:$BF$509,0)) ->  | BS156: =IF(BR156="","",SUM((BC156=$BC$5:$BC$204)*($BJ$5:$BJ$204)*1)) -> 
H157: 16 | N157: =IF(J157="","",SUM((K157=K$5:K157)*1)) ->  | BB157: 153 | BC157: =IF(BB157>$X$3,"",INDEX($AA$5:$AA$104,MATCH(ROW(AA157)-5,SUMIF(OFFSET($Z$5:$Z$104,,,ROW($Z$5:$Z$104)-4),"<>")-$Z$5:$Z$104))) ->  | BK157: =IF(반배정!OK159="","",IF(BM157="","",반배정!OK159)) ->  | BP157: =IF(BM157="",1,IF(SUM((BM157=$BM$5:$BM$204)*1)>1,2,1)) -> 1 | BR157: =INDEX(수강신청!$I$508:$BF$508,,MATCH(BQ157,수강신청!$I$509:$BF$509,0)) ->  | BS157: =IF(BR157="","",SUM((BC157=$BC$5:$BC$204)*($BJ$5:$BJ$204)*1)) -> 
H158: 16 | N158: =IF(J158="","",SUM((K158=K$5:K158)*1)) ->  | BB158: 154 | BC158: =IF(BB158>$X$3,"",INDEX($AA$5:$AA$104,MATCH(ROW(AA158)-5,SUMIF(OFFSET($Z$5:$Z$104,,,ROW($Z$5:$Z$104)-4),"<>")-$Z$5:$Z$104))) ->  | BK158: =IF(반배정!OK160="","",IF(BM158="","",반배정!OK160)) ->  | BP158: =IF(BM158="",1,IF(SUM((BM158=$BM$5:$BM$204)*1)>1,2,1)) -> 1 | BR158: =INDEX(수강신청!$I$508:$BF$508,,MATCH(BQ158,수강신청!$I$509:$BF$509,0)) ->  | BS158: =IF(BR158="","",SUM((BC158=$BC$5:$BC$204)*($BJ$5:$BJ$204)*1)) -> 
H159: 16 | N159: =IF(J159="","",SUM((K159=K$5:K159)*1)) ->  | BB159: 155 | BC159: =IF(BB159>$X$3,"",INDEX($AA$5:$AA$104,MATCH(ROW(AA159)-5,SUMIF(OFFSET($Z$5:$Z$104,,,ROW($Z$5:$Z$104)-4),"<>")-$Z$5:$Z$104))) ->  | BK159: =IF(반배정!OK161="","",IF(BM159="","",반배정!OK161)) ->  | BP159: =IF(BM159="",1,IF(SUM((BM159=$BM$5:$BM$204)*1)>1,2,1)) -> 1 | BR159: =INDEX(수강신청!$I$508:$BF$508,,MATCH(BQ159,수강신청!$I$509:$BF$509,0)) ->  | BS159: =IF(BR159="","",SUM((BC159=$BC$5:$BC$204)*($BJ$5:$BJ$204)*1)) -> 
H160: 16 | N160: =IF(J160="","",SUM((K160=K$5:K160)*1)) ->  | BB160: 156 | BC160: =IF(BB160>$X$3,"",INDEX($AA$5:$AA$104,MATCH(ROW(AA160)-5,SUMIF(OFFSET($Z$5:$Z$104,,,ROW($Z$5:$Z$104)-4),"<>")-$Z$5:$Z$104))) ->  | BK160: =IF(반배정!OK162="","",IF(BM160="","",반배정!OK162)) ->  | BP160: =IF(BM160="",1,IF(SUM((BM160=$BM$5:$BM$204)*1)>1,2,1)) -> 1 | BR160: =INDEX(수강신청!$I$508:$BF$508,,MATCH(BQ160,수강신청!$I$509:$BF$509,0)) ->  | BS160: =IF(BR160="","",SUM((BC160=$BC$5:$BC$204)*($BJ$5:$BJ$204)*1)) -> 
H161: 16 | N161: =IF(J161="","",SUM((K161=K$5:K161)*1)) ->  | BB161: 157 | BC161: =IF(BB161>$X$3,"",INDEX($AA$5:$AA$104,MATCH(ROW(AA161)-5,SUMIF(OFFSET($Z$5:$Z$104,,,ROW($Z$5:$Z$104)-4),"<>")-$Z$5:$Z$104))) ->  | BK161: =IF(반배정!OK163="","",IF(BM161="","",반배정!OK163)) ->  | BP161: =IF(BM161="",1,IF(SUM((BM161=$BM$5:$BM$204)*1)>1,2,1)) -> 1 | BR161: =INDEX(수강신청!$I$508:$BF$508,,MATCH(BQ161,수강신청!$I$509:$BF$509,0)) ->  | BS161: =IF(BR161="","",SUM((BC161=$BC$5:$BC$204)*($BJ$5:$BJ$204)*1)) -> 
H162: 16 | N162: =IF(J162="","",SUM((K162=K$5:K162)*1)) ->  | BB162: 158 | BC162: =IF(BB162>$X$3,"",INDEX($AA$5:$AA$104,MATCH(ROW(AA162)-5,SUMIF(OFFSET($Z$5:$Z$104,,,ROW($Z$5:$Z$104)-4),"<>")-$Z$5:$Z$104))) ->  | BK162: =IF(반배정!OK164="","",IF(BM162="","",반배정!OK164)) ->  | BP162: =IF(BM162="",1,IF(SUM((BM162=$BM$5:$BM$204)*1)>1,2,1)) -> 1 | BR162: =INDEX(수강신청!$I$508:$BF$508,,MATCH(BQ162,수강신청!$I$509:$BF$509,0)) ->  | BS162: =IF(BR162="","",SUM((BC162=$BC$5:$BC$204)*($BJ$5:$BJ$204)*1)) -> 
H163: 16 | N163: =IF(J163="","",SUM((K163=K$5:K163)*1)) ->  | BB163: 159 | BC163: =IF(BB163>$X$3,"",INDEX($AA$5:$AA$104,MATCH(ROW(AA163)-5,SUMIF(OFFSET($Z$5:$Z$104,,,ROW($Z$5:$Z$104)-4),"<>")-$Z$5:$Z$104))) ->  | BK163: =IF(반배정!OK165="","",IF(BM163="","",반배정!OK165)) ->  | BP163: =IF(BM163="",1,IF(SUM((BM163=$BM$5:$BM$204)*1)>1,2,1)) -> 1 | BR163: =INDEX(수강신청!$I$508:$BF$508,,MATCH(BQ163,수강신청!$I$509:$BF$509,0)) ->  | BS163: =IF(BR163="","",SUM((BC163=$BC$5:$BC$204)*($BJ$5:$BJ$204)*1)) -> 
H164: 16 | N164: =IF(J164="","",SUM((K164=K$5:K164)*1)) ->  | BB164: 160 | BC164: =IF(BB164>$X$3,"",INDEX($AA$5:$AA$104,MATCH(ROW(AA164)-5,SUMIF(OFFSET($Z$5:$Z$104,,,ROW($Z$5:$Z$104)-4),"<>")-$Z$5:$Z$104))) ->  | BK164: =IF(반배정!OK166="","",IF(BM164="","",반배정!OK166)) ->  | BP164: =IF(BM164="",1,IF(SUM((BM164=$BM$5:$BM$204)*1)>1,2,1)) -> 1 | BR164: =INDEX(수강신청!$I$508:$BF$508,,MATCH(BQ164,수강신청!$I$509:$BF$509,0)) ->  | BS164: =IF(BR164="","",SUM((BC164=$BC$5:$BC$204)*($BJ$5:$BJ$204)*1)) -> 
G165: 1 | H165: 17 | N165: =IF(J165="","",SUM((K165=K$5:K165)*1)) ->  | BB165: 161 | BC165: =IF(BB165>$X$3,"",INDEX($AA$5:$AA$104,MATCH(ROW(AA165)-5,SUMIF(OFFSET($Z$5:$Z$104,,,ROW($Z$5:$Z$104)-4),"<>")-$Z$5:$Z$104))) ->  | BF165: =IF(BE165="","",INDEX(T:T,MATCH(BC165,AA:AA,),)) ->  | BG165: =IF(BE165="","",INDEX(W:W,MATCH(BC165,AA:AA,),)) ->  | BH165: =IF(BE165="","",INDEX(X:X,MATCH(BC165,AA:AA,),)) ->  | BK165: =IF(반배정!OK167="","",IF(BM165="","",반배정!OK167)) ->  | BP165: =IF(BM165="",1,IF(SUM((BM165=$BM$5:$BM$204)*1)>1,2,1)) -> 1 | BR165: =INDEX(수강신청!$I$508:$BF$508,,MATCH(BQ165,수강신청!$I$509:$BF$509,0)) ->  | BS165: =IF(BR165="","",SUM((BC165=$BC$5:$BC$204)*($BJ$5:$BJ$204)*1)) -> 
H166: 17 | N166: =IF(J166="","",SUM((K166=K$5:K166)*1)) ->  | BB166: 162 | BC166: =IF(BB166>$X$3,"",INDEX($AA$5:$AA$104,MATCH(ROW(AA166)-5,SUMIF(OFFSET($Z$5:$Z$104,,,ROW($Z$5:$Z$104)-4),"<>")-$Z$5:$Z$104))) ->  | BK166: =IF(반배정!OK168="","",IF(BM166="","",반배정!OK168)) ->  | BP166: =IF(BM166="",1,IF(SUM((BM166=$BM$5:$BM$204)*1)>1,2,1)) -> 1 | BR166: =INDEX(수강신청!$I$508:$BF$508,,MATCH(BQ166,수강신청!$I$509:$BF$509,0)) ->  | BS166: =IF(BR166="","",SUM((BC166=$BC$5:$BC$204)*($BJ$5:$BJ$204)*1)) -> 
H167: 17 | N167: =IF(J167="","",SUM((K167=K$5:K167)*1)) ->  | BB167: 163 | BC167: =IF(BB167>$X$3,"",INDEX($AA$5:$AA$104,MATCH(ROW(AA167)-5,SUMIF(OFFSET($Z$5:$Z$104,,,ROW($Z$5:$Z$104)-4),"<>")-$Z$5:$Z$104))) ->  | BK167: =IF(반배정!OK169="","",IF(BM167="","",반배정!OK169)) ->  | BP167: =IF(BM167="",1,IF(SUM((BM167=$BM$5:$BM$204)*1)>1,2,1)) -> 1 | BR167: =INDEX(수강신청!$I$508:$BF$508,,MATCH(BQ167,수강신청!$I$509:$BF$509,0)) ->  | BS167: =IF(BR167="","",SUM((BC167=$BC$5:$BC$204)*($BJ$5:$BJ$204)*1)) -> 
H168: 17 | N168: =IF(J168="","",SUM((K168=K$5:K168)*1)) ->  | BB168: 164 | BC168: =IF(BB168>$X$3,"",INDEX($AA$5:$AA$104,MATCH(ROW(AA168)-5,SUMIF(OFFSET($Z$5:$Z$104,,,ROW($Z$5:$Z$104)-4),"<>")-$Z$5:$Z$104))) ->  | BK168: =IF(반배정!OK170="","",IF(BM168="","",반배정!OK170)) ->  | BP168: =IF(BM168="",1,IF(SUM((BM168=$BM$5:$BM$204)*1)>1,2,1)) -> 1 | BR168: =INDEX(수강신청!$I$508:$BF$508,,MATCH(BQ168,수강신청!$I$509:$BF$509,0)) ->  | BS168: =IF(BR168="","",SUM((BC168=$BC$5:$BC$204)*($BJ$5:$BJ$204)*1)) -> 
H169: 17 | N169: =IF(J169="","",SUM((K169=K$5:K169)*1)) ->  | BB169: 165 | BC169: =IF(BB169>$X$3,"",INDEX($AA$5:$AA$104,MATCH(ROW(AA169)-5,SUMIF(OFFSET($Z$5:$Z$104,,,ROW($Z$5:$Z$104)-4),"<>")-$Z$5:$Z$104))) ->  | BK169: =IF(반배정!OK171="","",IF(BM169="","",반배정!OK171)) ->  | BP169: =IF(BM169="",1,IF(SUM((BM169=$BM$5:$BM$204)*1)>1,2,1)) -> 1 | BR169: =INDEX(수강신청!$I$508:$BF$508,,MATCH(BQ169,수강신청!$I$509:$BF$509,0)) ->  | BS169: =IF(BR169="","",SUM((BC169=$BC$5:$BC$204)*($BJ$5:$BJ$204)*1)) -> 
H170: 17 | N170: =IF(J170="","",SUM((K170=K$5:K170)*1)) ->  | BA170: =IF(BC170="","",BC170&BD170) ->  | BB170: 166 | BC170: =IF(BB170>$X$3,"",INDEX($AA$5:$AA$104,MATCH(ROW(AA170)-5,SUMIF(OFFSET($Z$5:$Z$104,,,ROW($Z$5:$Z$104)-4),"<>")-$Z$5:$Z$104))) ->  | BK170: =IF(반배정!OK172="","",IF(BM170="","",반배정!OK172)) ->  | BP170: =IF(BM170="",1,IF(SUM((BM170=$BM$5:$BM$204)*1)>1,2,1)) -> 1 | BR170: =INDEX(수강신청!$I$508:$BF$508,,MATCH(BQ170,수강신청!$I$509:$BF$509,0)) ->  | BS170: =IF(BR170="","",SUM((BC170=$BC$5:$BC$204)*($BJ$5:$BJ$204)*1)) -> 
H171: 17 | N171: =IF(J171="","",SUM((K171=K$5:K171)*1)) ->  | BB171: 167 | BC171: =IF(BB171>$X$3,"",INDEX($AA$5:$AA$104,MATCH(ROW(AA171)-5,SUMIF(OFFSET($Z$5:$Z$104,,,ROW($Z$5:$Z$104)-4),"<>")-$Z$5:$Z$104))) ->  | BK171: =IF(반배정!OK173="","",IF(BM171="","",반배정!OK173)) ->  | BP171: =IF(BM171="",1,IF(SUM((BM171=$BM$5:$BM$204)*1)>1,2,1)) -> 1 | BR171: =INDEX(수강신청!$I$508:$BF$508,,MATCH(BQ171,수강신청!$I$509:$BF$509,0)) ->  | BS171: =IF(BR171="","",SUM((BC171=$BC$5:$BC$204)*($BJ$5:$BJ$204)*1)) -> 
H172: 17 | N172: =IF(J172="","",SUM((K172=K$5:K172)*1)) ->  | BB172: 168 | BC172: =IF(BB172>$X$3,"",INDEX($AA$5:$AA$104,MATCH(ROW(AA172)-5,SUMIF(OFFSET($Z$5:$Z$104,,,ROW($Z$5:$Z$104)-4),"<>")-$Z$5:$Z$104))) ->  | BK172: =IF(반배정!OK174="","",IF(BM172="","",반배정!OK174)) ->  | BP172: =IF(BM172="",1,IF(SUM((BM172=$BM$5:$BM$204)*1)>1,2,1)) -> 1 | BR172: =INDEX(수강신청!$I$508:$BF$508,,MATCH(BQ172,수강신청!$I$509:$BF$509,0)) ->  | BS172: =IF(BR172="","",SUM((BC172=$BC$5:$BC$204)*($BJ$5:$BJ$204)*1)) -> 
H173: 17 | N173: =IF(J173="","",SUM((K173=K$5:K173)*1)) ->  | BB173: 169 | BC173: =IF(BB173>$X$3,"",INDEX($AA$5:$AA$104,MATCH(ROW(AA173)-5,SUMIF(OFFSET($Z$5:$Z$104,,,ROW($Z$5:$Z$104)-4),"<>")-$Z$5:$Z$104))) ->  | BK173: =IF(반배정!OK175="","",IF(BM173="","",반배정!OK175)) ->  | BP173: =IF(BM173="",1,IF(SUM((BM173=$BM$5:$BM$204)*1)>1,2,1)) -> 1 | BR173: =INDEX(수강신청!$I$508:$BF$508,,MATCH(BQ173,수강신청!$I$509:$BF$509,0)) ->  | BS173: =IF(BR173="","",SUM((BC173=$BC$5:$BC$204)*($BJ$5:$BJ$204)*1)) -> 
H174: 17 | N174: =IF(J174="","",SUM((K174=K$5:K174)*1)) ->  | BB174: 170 | BC174: =IF(BB174>$X$3,"",INDEX($AA$5:$AA$104,MATCH(ROW(AA174)-5,SUMIF(OFFSET($Z$5:$Z$104,,,ROW($Z$5:$Z$104)-4),"<>")-$Z$5:$Z$104))) ->  | BK174: =IF(반배정!OK176="","",IF(BM174="","",반배정!OK176)) ->  | BP174: =IF(BM174="",1,IF(SUM((BM174=$BM$5:$BM$204)*1)>1,2,1)) -> 1 | BR174: =INDEX(수강신청!$I$508:$BF$508,,MATCH(BQ174,수강신청!$I$509:$BF$509,0)) ->  | BS174: =IF(BR174="","",SUM((BC174=$BC$5:$BC$204)*($BJ$5:$BJ$204)*1)) -> 
G175: 1 | H175: 18 | N175: =IF(J175="","",SUM((K175=K$5:K175)*1)) ->  | BB175: 171 | BC175: =IF(BB175>$X$3,"",INDEX($AA$5:$AA$104,MATCH(ROW(AA175)-5,SUMIF(OFFSET($Z$5:$Z$104,,,ROW($Z$5:$Z$104)-4),"<>")-$Z$5:$Z$104))) ->  | BK175: =IF(반배정!OK177="","",IF(BM175="","",반배정!OK177)) ->  | BP175: =IF(BM175="",1,IF(SUM((BM175=$BM$5:$BM$204)*1)>1,2,1)) -> 1 | BR175: =INDEX(수강신청!$I$508:$BF$508,,MATCH(BQ175,수강신청!$I$509:$BF$509,0)) ->  | BS175: =IF(BR175="","",SUM((BC175=$BC$5:$BC$204)*($BJ$5:$BJ$204)*1)) -> 
H176: 18 | N176: =IF(J176="","",SUM((K176=K$5:K176)*1)) ->  | BB176: 172 | BC176: =IF(BB176>$X$3,"",INDEX($AA$5:$AA$104,MATCH(ROW(AA176)-5,SUMIF(OFFSET($Z$5:$Z$104,,,ROW($Z$5:$Z$104)-4),"<>")-$Z$5:$Z$104))) ->  | BK176: =IF(반배정!OK178="","",IF(BM176="","",반배정!OK178)) ->  | BP176: =IF(BM176="",1,IF(SUM((BM176=$BM$5:$BM$204)*1)>1,2,1)) -> 1 | BR176: =INDEX(수강신청!$I$508:$BF$508,,MATCH(BQ176,수강신청!$I$509:$BF$509,0)) ->  | BS176: =IF(BR176="","",SUM((BC176=$BC$5:$BC$204)*($BJ$5:$BJ$204)*1)) -> 
H177: 18 | N177: =IF(J177="","",SUM((K177=K$5:K177)*1)) ->  | BB177: 173 | BC177: =IF(BB177>$X$3,"",INDEX($AA$5:$AA$104,MATCH(ROW(AA177)-5,SUMIF(OFFSET($Z$5:$Z$104,,,ROW($Z$5:$Z$104)-4),"<>")-$Z$5:$Z$104))) ->  | BK177: =IF(반배정!OK179="","",IF(BM177="","",반배정!OK179)) ->  | BP177: =IF(BM177="",1,IF(SUM((BM177=$BM$5:$BM$204)*1)>1,2,1)) -> 1 | BR177: =INDEX(수강신청!$I$508:$BF$508,,MATCH(BQ177,수강신청!$I$509:$BF$509,0)) ->  | BS177: =IF(BR177="","",SUM((BC177=$BC$5:$BC$204)*($BJ$5:$BJ$204)*1)) -> 
H178: 18 | N178: =IF(J178="","",SUM((K178=K$5:K178)*1)) ->  | BB178: 174 | BC178: =IF(BB178>$X$3,"",INDEX($AA$5:$AA$104,MATCH(ROW(AA178)-5,SUMIF(OFFSET($Z$5:$Z$104,,,ROW($Z$5:$Z$104)-4),"<>")-$Z$5:$Z$104))) ->  | BK178: =IF(반배정!OK180="","",IF(BM178="","",반배정!OK180)) ->  | BP178: =IF(BM178="",1,IF(SUM((BM178=$BM$5:$BM$204)*1)>1,2,1)) -> 1 | BR178: =INDEX(수강신청!$I$508:$BF$508,,MATCH(BQ178,수강신청!$I$509:$BF$509,0)) ->  | BS178: =IF(BR178="","",SUM((BC178=$BC$5:$BC$204)*($BJ$5:$BJ$204)*1)) -> 
H179: 18 | N179: =IF(J179="","",SUM((K179=K$5:K179)*1)) ->  | BB179: 175 | BC179: =IF(BB179>$X$3,"",INDEX($AA$5:$AA$104,MATCH(ROW(AA179)-5,SUMIF(OFFSET($Z$5:$Z$104,,,ROW($Z$5:$Z$104)-4),"<>")-$Z$5:$Z$104))) ->  | BK179: =IF(반배정!OK181="","",IF(BM179="","",반배정!OK181)) ->  | BP179: =IF(BM179="",1,IF(SUM((BM179=$BM$5:$BM$204)*1)>1,2,1)) -> 1 | BR179: =INDEX(수강신청!$I$508:$BF$508,,MATCH(BQ179,수강신청!$I$509:$BF$509,0)) ->  | BS179: =IF(BR179="","",SUM((BC179=$BC$5:$BC$204)*($BJ$5:$BJ$204)*1)) -> 
H180: 18 | N180: =IF(J180="","",SUM((K180=K$5:K180)*1)) ->  | BB180: 176 | BC180: =IF(BB180>$X$3,"",INDEX($AA$5:$AA$104,MATCH(ROW(AA180)-5,SUMIF(OFFSET($Z$5:$Z$104,,,ROW($Z$5:$Z$104)-4),"<>")-$Z$5:$Z$104))) ->  | BK180: =IF(반배정!OK182="","",IF(BM180="","",반배정!OK182)) ->  | BP180: =IF(BM180="",1,IF(SUM((BM180=$BM$5:$BM$204)*1)>1,2,1)) -> 1 | BR180: =INDEX(수강신청!$I$508:$BF$508,,MATCH(BQ180,수강신청!$I$509:$BF$509,0)) ->  | BS180: =IF(BR180="","",SUM((BC180=$BC$5:$BC$204)*($BJ$5:$BJ$204)*1)) -> 
H181: 18 | N181: =IF(J181="","",SUM((K181=K$5:K181)*1)) ->  | BB181: 177 | BC181: =IF(BB181>$X$3,"",INDEX($AA$5:$AA$104,MATCH(ROW(AA181)-5,SUMIF(OFFSET($Z$5:$Z$104,,,ROW($Z$5:$Z$104)-4),"<>")-$Z$5:$Z$104))) ->  | BK181: =IF(반배정!OK183="","",IF(BM181="","",반배정!OK183)) ->  | BP181: =IF(BM181="",1,IF(SUM((BM181=$BM$5:$BM$204)*1)>1,2,1)) -> 1 | BR181: =INDEX(수강신청!$I$508:$BF$508,,MATCH(BQ181,수강신청!$I$509:$BF$509,0)) ->  | BS181: =IF(BR181="","",SUM((BC181=$BC$5:$BC$204)*($BJ$5:$BJ$204)*1)) -> 
H182: 18 | N182: =IF(J182="","",SUM((K182=K$5:K182)*1)) ->  | BB182: 178 | BC182: =IF(BB182>$X$3,"",INDEX($AA$5:$AA$104,MATCH(ROW(AA182)-5,SUMIF(OFFSET($Z$5:$Z$104,,,ROW($Z$5:$Z$104)-4),"<>")-$Z$5:$Z$104))) ->  | BK182: =IF(반배정!OK184="","",IF(BM182="","",반배정!OK184)) ->  | BP182: =IF(BM182="",1,IF(SUM((BM182=$BM$5:$BM$204)*1)>1,2,1)) -> 1 | BR182: =INDEX(수강신청!$I$508:$BF$508,,MATCH(BQ182,수강신청!$I$509:$BF$509,0)) ->  | BS182: =IF(BR182="","",SUM((BC182=$BC$5:$BC$204)*($BJ$5:$BJ$204)*1)) -> 
H183: 18 | N183: =IF(J183="","",SUM((K183=K$5:K183)*1)) ->  | BB183: 179 | BC183: =IF(BB183>$X$3,"",INDEX($AA$5:$AA$104,MATCH(ROW(AA183)-5,SUMIF(OFFSET($Z$5:$Z$104,,,ROW($Z$5:$Z$104)-4),"<>")-$Z$5:$Z$104))) ->  | BK183: =IF(반배정!OK185="","",IF(BM183="","",반배정!OK185)) ->  | BP183: =IF(BM183="",1,IF(SUM((BM183=$BM$5:$BM$204)*1)>1,2,1)) -> 1 | BR183: =INDEX(수강신청!$I$508:$BF$508,,MATCH(BQ183,수강신청!$I$509:$BF$509,0)) ->  | BS183: =IF(BR183="","",SUM((BC183=$BC$5:$BC$204)*($BJ$5:$BJ$204)*1)) -> 
H184: 18 | N184: =IF(J184="","",SUM((K184=K$5:K184)*1)) ->  | BB184: 180 | BC184: =IF(BB184>$X$3,"",INDEX($AA$5:$AA$104,MATCH(ROW(AA184)-5,SUMIF(OFFSET($Z$5:$Z$104,,,ROW($Z$5:$Z$104)-4),"<>")-$Z$5:$Z$104))) ->  | BK184: =IF(반배정!OK186="","",IF(BM184="","",반배정!OK186)) ->  | BP184: =IF(BM184="",1,IF(SUM((BM184=$BM$5:$BM$204)*1)>1,2,1)) -> 1 | BR184: =INDEX(수강신청!$I$508:$BF$508,,MATCH(BQ184,수강신청!$I$509:$BF$509,0)) ->  | BS184: =IF(BR184="","",SUM((BC184=$BC$5:$BC$204)*($BJ$5:$BJ$204)*1)) -> 
G185: 1 | H185: 19 | N185: =IF(J185="","",SUM((K185=K$5:K185)*1)) ->  | BB185: 181 | BC185: =IF(BB185>$X$3,"",INDEX($AA$5:$AA$104,MATCH(ROW(AA185)-5,SUMIF(OFFSET($Z$5:$Z$104,,,ROW($Z$5:$Z$104)-4),"<>")-$Z$5:$Z$104))) ->  | BK185: =IF(반배정!OK187="","",IF(BM185="","",반배정!OK187)) ->  | BP185: =IF(BM185="",1,IF(SUM((BM185=$BM$5:$BM$204)*1)>1,2,1)) -> 1 | BR185: =INDEX(수강신청!$I$508:$BF$508,,MATCH(BQ185,수강신청!$I$509:$BF$509,0)) ->  | BS185: =IF(BR185="","",SUM((BC185=$BC$5:$BC$204)*($BJ$5:$BJ$204)*1)) -> 
H186: 19 | N186: =IF(J186="","",SUM((K186=K$5:K186)*1)) ->  | BB186: 182 | BC186: =IF(BB186>$X$3,"",INDEX($AA$5:$AA$104,MATCH(ROW(AA186)-5,SUMIF(OFFSET($Z$5:$Z$104,,,ROW($Z$5:$Z$104)-4),"<>")-$Z$5:$Z$104))) ->  | BK186: =IF(반배정!OK188="","",IF(BM186="","",반배정!OK188)) ->  | BP186: =IF(BM186="",1,IF(SUM((BM186=$BM$5:$BM$204)*1)>1,2,1)) -> 1 | BR186: =INDEX(수강신청!$I$508:$BF$508,,MATCH(BQ186,수강신청!$I$509:$BF$509,0)) ->  | BS186: =IF(BR186="","",SUM((BC186=$BC$5:$BC$204)*($BJ$5:$BJ$204)*1)) -> 
H187: 19 | N187: =IF(J187="","",SUM((K187=K$5:K187)*1)) ->  | BB187: 183 | BC187: =IF(BB187>$X$3,"",INDEX($AA$5:$AA$104,MATCH(ROW(AA187)-5,SUMIF(OFFSET($Z$5:$Z$104,,,ROW($Z$5:$Z$104)-4),"<>")-$Z$5:$Z$104))) ->  | BK187: =IF(반배정!OK189="","",IF(BM187="","",반배정!OK189)) ->  | BP187: =IF(BM187="",1,IF(SUM((BM187=$BM$5:$BM$204)*1)>1,2,1)) -> 1 | BR187: =INDEX(수강신청!$I$508:$BF$508,,MATCH(BQ187,수강신청!$I$509:$BF$509,0)) ->  | BS187: =IF(BR187="","",SUM((BC187=$BC$5:$BC$204)*($BJ$5:$BJ$204)*1)) -> 
H188: 19 | N188: =IF(J188="","",SUM((K188=K$5:K188)*1)) ->  | BB188: 184 | BC188: =IF(BB188>$X$3,"",INDEX($AA$5:$AA$104,MATCH(ROW(AA188)-5,SUMIF(OFFSET($Z$5:$Z$104,,,ROW($Z$5:$Z$104)-4),"<>")-$Z$5:$Z$104))) ->  | BK188: =IF(반배정!OK190="","",IF(BM188="","",반배정!OK190)) ->  | BP188: =IF(BM188="",1,IF(SUM((BM188=$BM$5:$BM$204)*1)>1,2,1)) -> 1 | BR188: =INDEX(수강신청!$I$508:$BF$508,,MATCH(BQ188,수강신청!$I$509:$BF$509,0)) ->  | BS188: =IF(BR188="","",SUM((BC188=$BC$5:$BC$204)*($BJ$5:$BJ$204)*1)) -> 
H189: 19 | N189: =IF(J189="","",SUM((K189=K$5:K189)*1)) ->  | BB189: 185 | BC189: =IF(BB189>$X$3,"",INDEX($AA$5:$AA$104,MATCH(ROW(AA189)-5,SUMIF(OFFSET($Z$5:$Z$104,,,ROW($Z$5:$Z$104)-4),"<>")-$Z$5:$Z$104))) ->  | BK189: =IF(반배정!OK191="","",IF(BM189="","",반배정!OK191)) ->  | BP189: =IF(BM189="",1,IF(SUM((BM189=$BM$5:$BM$204)*1)>1,2,1)) -> 1 | BR189: =INDEX(수강신청!$I$508:$BF$508,,MATCH(BQ189,수강신청!$I$509:$BF$509,0)) ->  | BS189: =IF(BR189="","",SUM((BC189=$BC$5:$BC$204)*($BJ$5:$BJ$204)*1)) -> 
H190: 19 | N190: =IF(J190="","",SUM((K190=K$5:K190)*1)) ->  | BB190: 186 | BC190: =IF(BB190>$X$3,"",INDEX($AA$5:$AA$104,MATCH(ROW(AA190)-5,SUMIF(OFFSET($Z$5:$Z$104,,,ROW($Z$5:$Z$104)-4),"<>")-$Z$5:$Z$104))) ->  | BK190: =IF(반배정!OK192="","",IF(BM190="","",반배정!OK192)) ->  | BP190: =IF(BM190="",1,IF(SUM((BM190=$BM$5:$BM$204)*1)>1,2,1)) -> 1 | BR190: =INDEX(수강신청!$I$508:$BF$508,,MATCH(BQ190,수강신청!$I$509:$BF$509,0)) ->  | BS190: =IF(BR190="","",SUM((BC190=$BC$5:$BC$204)*($BJ$5:$BJ$204)*1)) -> 
H191: 19 | N191: =IF(J191="","",SUM((K191=K$5:K191)*1)) ->  | BB191: 187 | BC191: =IF(BB191>$X$3,"",INDEX($AA$5:$AA$104,MATCH(ROW(AA191)-5,SUMIF(OFFSET($Z$5:$Z$104,,,ROW($Z$5:$Z$104)-4),"<>")-$Z$5:$Z$104))) ->  | BK191: =IF(반배정!OK193="","",IF(BM191="","",반배정!OK193)) ->  | BP191: =IF(BM191="",1,IF(SUM((BM191=$BM$5:$BM$204)*1)>1,2,1)) -> 1 | BR191: =INDEX(수강신청!$I$508:$BF$508,,MATCH(BQ191,수강신청!$I$509:$BF$509,0)) ->  | BS191: =IF(BR191="","",SUM((BC191=$BC$5:$BC$204)*($BJ$5:$BJ$204)*1)) -> 
H192: 19 | N192: =IF(J192="","",SUM((K192=K$5:K192)*1)) ->  | BB192: 188 | BC192: =IF(BB192>$X$3,"",INDEX($AA$5:$AA$104,MATCH(ROW(AA192)-5,SUMIF(OFFSET($Z$5:$Z$104,,,ROW($Z$5:$Z$104)-4),"<>")-$Z$5:$Z$104))) ->  | BK192: =IF(반배정!OK194="","",IF(BM192="","",반배정!OK194)) ->  | BP192: =IF(BM192="",1,IF(SUM((BM192=$BM$5:$BM$204)*1)>1,2,1)) -> 1 | BR192: =INDEX(수강신청!$I$508:$BF$508,,MATCH(BQ192,수강신청!$I$509:$BF$509,0)) ->  | BS192: =IF(BR192="","",SUM((BC192=$BC$5:$BC$204)*($BJ$5:$BJ$204)*1)) -> 
H193: 19 | N193: =IF(J193="","",SUM((K193=K$5:K193)*1)) ->  | BB193: 189 | BC193: =IF(BB193>$X$3,"",INDEX($AA$5:$AA$104,MATCH(ROW(AA193)-5,SUMIF(OFFSET($Z$5:$Z$104,,,ROW($Z$5:$Z$104)-4),"<>")-$Z$5:$Z$104))) ->  | BK193: =IF(반배정!OK195="","",IF(BM193="","",반배정!OK195)) ->  | BP193: =IF(BM193="",1,IF(SUM((BM193=$BM$5:$BM$204)*1)>1,2,1)) -> 1 | BR193: =INDEX(수강신청!$I$508:$BF$508,,MATCH(BQ193,수강신청!$I$509:$BF$509,0)) ->  | BS193: =IF(BR193="","",SUM((BC193=$BC$5:$BC$204)*($BJ$5:$BJ$204)*1)) -> 
H194: 19 | N194: =IF(J194="","",SUM((K194=K$5:K194)*1)) ->  | BB194: 190 | BC194: =IF(BB194>$X$3,"",INDEX($AA$5:$AA$104,MATCH(ROW(AA194)-5,SUMIF(OFFSET($Z$5:$Z$104,,,ROW($Z$5:$Z$104)-4),"<>")-$Z$5:$Z$104))) ->  | BK194: =IF(반배정!OK196="","",IF(BM194="","",반배정!OK196)) ->  | BP194: =IF(BM194="",1,IF(SUM((BM194=$BM$5:$BM$204)*1)>1,2,1)) -> 1 | BR194: =INDEX(수강신청!$I$508:$BF$508,,MATCH(BQ194,수강신청!$I$509:$BF$509,0)) ->  | BS194: =IF(BR194="","",SUM((BC194=$BC$5:$BC$204)*($BJ$5:$BJ$204)*1)) -> 
G195: 1 | H195: 20 | N195: =IF(J195="","",SUM((K195=K$5:K195)*1)) ->  | BB195: 191 | BC195: =IF(BB195>$X$3,"",INDEX($AA$5:$AA$104,MATCH(ROW(AA195)-5,SUMIF(OFFSET($Z$5:$Z$104,,,ROW($Z$5:$Z$104)-4),"<>")-$Z$5:$Z$104))) ->  | BK195: =IF(반배정!OK197="","",IF(BM195="","",반배정!OK197)) ->  | BP195: =IF(BM195="",1,IF(SUM((BM195=$BM$5:$BM$204)*1)>1,2,1)) -> 1 | BR195: =INDEX(수강신청!$I$508:$BF$508,,MATCH(BQ195,수강신청!$I$509:$BF$509,0)) ->  | BS195: =IF(BR195="","",SUM((BC195=$BC$5:$BC$204)*($BJ$5:$BJ$204)*1)) -> 
H196: 20 | N196: =IF(J196="","",SUM((K196=K$5:K196)*1)) ->  | BB196: 192 | BC196: =IF(BB196>$X$3,"",INDEX($AA$5:$AA$104,MATCH(ROW(AA196)-5,SUMIF(OFFSET($Z$5:$Z$104,,,ROW($Z$5:$Z$104)-4),"<>")-$Z$5:$Z$104))) ->  | BK196: =IF(반배정!OK198="","",IF(BM196="","",반배정!OK198)) ->  | BP196: =IF(BM196="",1,IF(SUM((BM196=$BM$5:$BM$204)*1)>1,2,1)) -> 1 | BR196: =INDEX(수강신청!$I$508:$BF$508,,MATCH(BQ196,수강신청!$I$509:$BF$509,0)) ->  | BS196: =IF(BR196="","",SUM((BC196=$BC$5:$BC$204)*($BJ$5:$BJ$204)*1)) -> 
H197: 20 | N197: =IF(J197="","",SUM((K197=K$5:K197)*1)) ->  | BB197: 193 | BC197: =IF(BB197>$X$3,"",INDEX($AA$5:$AA$104,MATCH(ROW(AA197)-5,SUMIF(OFFSET($Z$5:$Z$104,,,ROW($Z$5:$Z$104)-4),"<>")-$Z$5:$Z$104))) ->  | BF197: =IF(BE197="","",INDEX(T:T,MATCH(BC197,AA:AA,),)) ->  | BG197: =IF(BE197="","",INDEX(W:W,MATCH(BC197,AA:AA,),)) ->  | BH197: =IF(BE197="","",INDEX(X:X,MATCH(BC197,AA:AA,),)) ->  | BK197: =IF(반배정!OK199="","",IF(BM197="","",반배정!OK199)) ->  | BP197: =IF(BM197="",1,IF(SUM((BM197=$BM$5:$BM$204)*1)>1,2,1)) -> 1 | BR197: =INDEX(수강신청!$I$508:$BF$508,,MATCH(BQ197,수강신청!$I$509:$BF$509,0)) ->  | BS197: =IF(BR197="","",SUM((BC197=$BC$5:$BC$204)*($BJ$5:$BJ$204)*1)) -> 
G198: =IF(MOD(ROW()-4,10)=1,1,"") ->  | H198: =((ROW()-5)-MOD(ROW()-5,10))/10+1 -> 20 | I198: =IF(G198=1,IF(INDEX($D$5:$D$24,MATCH(H198,$C$5:$C$24,0),)="","",INDEX($D$5:$D$24,MATCH(H198,$C$5:$C$24,0),)),"") ->  | K198: =IF(J198="","",INDEX($D$5:$D$24,MATCH(H198,$C$5:$C$24,0),)) ->  | L198: =IF(I198="","",ROW()-4) ->  | M198: =IF(J198="","",COUNTIF($X$5:$X$104,J198)) ->  | N198: =IF(J198="","",SUM((K198=K$5:K198)*1)) ->  | O198: =IF(J198="","",H198&N198&0&0) ->  | P198: =IF(K198="","",K198&J198) ->  | BB198: 194 | BC198: =IF(BB198>$X$3,"",INDEX($AA$5:$AA$104,MATCH(ROW(AA198)-5,SUMIF(OFFSET($Z$5:$Z$104,,,ROW($Z$5:$Z$104)-4),"<>")-$Z$5:$Z$104))) ->  | BE198: =IF(BC198="","",IF(LEN(BD198)=2,INT(BC198&BD198),INT(BC198&0&BD198))) ->  | BK198: =IF(반배정!OK200="","",IF(BM198="","",반배정!OK200)) ->  | BM198: =IF(BL198="","",INT(BL198&RIGHT(BN198,2))) ->  | BN198: =IF(BE198="","",IF(BI198="",INT(BE198),INT(BI198))) ->  | BO198: =IF(BG198="","",BG198&"-"&BH198&"-"&LEFT(BM198,3)) ->  | BP198: =IF(BM198="",1,IF(SUM((BM198=$BM$5:$BM$204)*1)>1,2,1)) -> 1 | BQ198: =IF(BC198="","",IF(BC198=BC197,"",INT(BC198&0&0))) ->  | BR198: =INDEX(수강신청!$I$508:$BF$508,,MATCH(BQ198,수강신청!$I$509:$BF$509,0)) ->  | BS198: =IF(BR198="","",SUM((BC198=$BC$5:$BC$204)*($BJ$5:$BJ$204)*1)) ->  | BT198: =IF(BJ198="","",-(BJ198-BK198)) ->  | BU198: =IF(BJ198="","",ABS(BJ198-BK198)) ->  | BV198: =IF(BT198="","",IF(INT(BC198)=BV$1,BT198,"")) ->  | BW198: =IF(BV198="","",INT(RANK(BV198,$BV$5:$BV$204))) -> 
H199: 20 | N199: =IF(J199="","",SUM((K199=K$5:K199)*1)) ->  | BB199: 195 | BC199: =IF(BB199>$X$3,"",INDEX($AA$5:$AA$104,MATCH(ROW(AA199)-5,SUMIF(OFFSET($Z$5:$Z$104,,,ROW($Z$5:$Z$104)-4),"<>")-$Z$5:$Z$104))) ->  | BD199: =IF(BC199="","",IF(BC198=BC199,BD198+1,1)) ->  | BK199: =IF(반배정!OK201="","",IF(BM199="","",반배정!OK201)) ->  | BP199: =IF(BM199="",1,IF(SUM((BM199=$BM$5:$BM$204)*1)>1,2,1)) -> 1 | BR199: =INDEX(수강신청!$I$508:$BF$508,,MATCH(BQ199,수강신청!$I$509:$BF$509,0)) ->  | BS199: =IF(BR199="","",SUM((BC199=$BC$5:$BC$204)*($BJ$5:$BJ$204)*1)) -> 
H200: 20 | N200: =IF(J200="","",SUM((K200=K$5:K200)*1)) ->  | BB200: 196 | BC200: =IF(BB200>$X$3,"",INDEX($AA$5:$AA$104,MATCH(ROW(AA200)-5,SUMIF(OFFSET($Z$5:$Z$104,,,ROW($Z$5:$Z$104)-4),"<>")-$Z$5:$Z$104))) ->  | BK200: =IF(반배정!OK202="","",IF(BM200="","",반배정!OK202)) ->  | BP200: =IF(BM200="",1,IF(SUM((BM200=$BM$5:$BM$204)*1)>1,2,1)) -> 1 | BR200: =INDEX(수강신청!$I$508:$BF$508,,MATCH(BQ200,수강신청!$I$509:$BF$509,0)) ->  | BS200: =IF(BR200="","",SUM((BC200=$BC$5:$BC$204)*($BJ$5:$BJ$204)*1)) -> 
... 4 more rows

Sheet 수강신청
I1: 1 | J1: 2 | K1: 3 | L1: 4 | M1: 5 | N1: 6 | O1: 7 | P1: 8 | Q1: 9 | R1: 10 | S1: 11 | T1: 12 | U1: 13 | V1: 14 | W1: 15 | X1: 16 | Y1: 17 | Z1: 18 | AA1: 19 | AB1: 20 | AC1: 21 | AD1: 22 | AE1: 23 | AF1: 24 | AG1: 25 | AH1: 26 | AI1: 27 | AJ1: 28 | AK1: 29 | AL1: 30 | AM1: 31 | AN1: 32 | AO1: 33 | AP1: 34 | AQ1: 35 | AR1: 36 | AS1: 37 | AT1: 38 | AU1: 39 | AV1: 40 | AW1: 41 | AX1: 42 | AY1: 43 | AZ1: 44 | BA1: 45 | BB1: 46 | BC1: 47 | BD1: 48 | BE1: 49 | BF1: 50
I2: =IF(INDEX(수업명렬!$S:$S,MATCH(I1,수업명렬!$BB:$BB,0),)="","",INDEX(수업명렬!$S:$S,MATCH(I1,수업명렬!$BB:$BB,0),)) -> 1100 | J2: =IF(INDEX(수업명렬!$S:$S,MATCH(J1,수업명렬!$BB:$BB,0),)="","",INDEX(수업명렬!$S:$S,MATCH(J1,수업명렬!$BB:$BB,0),)) -> 1200 | K2: =IF(INDEX(수업명렬!$S:$S,MATCH(K1,수업명렬!$BB:$BB,0),)="","",INDEX(수업명렬!$S:$S,MATCH(K1,수업명렬!$BB:$BB,0),)) -> 2100 | L2: =IF(INDEX(수업명렬!$S:$S,MATCH(L1,수업명렬!$BB:$BB,0),)="","",INDEX(수업명렬!$S:$S,MATCH(L1,수업명렬!$BB:$BB,0),)) -> 2200 | M2: =IF(INDEX(수업명렬!$S:$S,MATCH(M1,수업명렬!$BB:$BB,0),)="","",INDEX(수업명렬!$S:$S,MATCH(M1,수업명렬!$BB:$BB,0),)) -> 2300 | N2: =IF(INDEX(수업명렬!$S:$S,MATCH(N1,수업명렬!$BB:$BB,0),)="","",INDEX(수업명렬!$S:$S,MATCH(N1,수업명렬!$BB:$BB,0),)) -> 3100 | O2: =IF(INDEX(수업명렬!$S:$S,MATCH(O1,수업명렬!$BB:$BB,0),)="","",INDEX(수업명렬!$S:$S,MATCH(O1,수업명렬!$BB:$BB,0),)) -> 3200 | P2: =IF(INDEX(수업명렬!$S:$S,MATCH(P1,수업명렬!$BB:$BB,0),)="","",INDEX(수업명렬!$S:$S,MATCH(P1,수업명렬!$BB:$BB,0),)) -> 3300 | Q2: =IF(INDEX(수업명렬!$S:$S,MATCH(Q1,수업명렬!$BB:$BB,0),)="","",INDEX(수업명렬!$S:$S,MATCH(Q1,수업명렬!$BB:$BB,0),)) ->  | R2: =IF(INDEX(수업명렬!$S:$S,MATCH(R1,수업명렬!$BB:$BB,0),)="","",INDEX(수업명렬!$S:$S,MATCH(R1,수업명렬!$BB:$BB,0),)) ->  | S2: =IF(INDEX(수업명렬!$S:$S,MATCH(S1,수업명렬!$BB:$BB,0),)="","",INDEX(수업명렬!$S:$S,MATCH(S1,수업명렬!$BB:$BB,0),)) ->  | T2: =IF(INDEX(수업명렬!$S:$S,MATCH(T1,수업명렬!$BB:$BB,0),)="","",INDEX(수업명렬!$S:$S,MATCH(T1,수업명렬!$BB:$BB,0),)) ->  | U2: =IF(INDEX(수업명렬!$S:$S,MATCH(U1,수업명렬!$BB:$BB,0),)="","",INDEX(수업명렬!$S:$S,MATCH(U1,수업명렬!$BB:$BB,0),)) ->  | V2: =IF(INDEX(수업명렬!$S:$S,MATCH(V1,수업명렬!$BB:$BB,0),)="","",INDEX(수업명렬!$S:$S,MATCH(V1,수업명렬!$BB:$BB,0),)) ->  | W2: =IF(INDEX(수업명렬!$S:$S,MATCH(W1,수업명렬!$BB:$BB,0),)="","",INDEX(수업명렬!$S:$S,MATCH(W1,수업명렬!$BB:$BB,0),)) ->  | X2: =IF(INDEX(수업명렬!$S:$S,MATCH(X1,수업명렬!$BB:$BB,0),)="","",INDEX(수업명렬!$S:$S,MATCH(X1,수업명렬!$BB:$BB,0),)) ->  | Y2: =IF(INDEX(수업명렬!$S:$S,MATCH(Y1,수업명렬!$BB:$BB,0),)="","",INDEX(수업명렬!$S:$S,MATCH(Y1,수업명렬!$BB:$BB,0),)) ->  | Z2: =IF(INDEX(수업명렬!$S:$S,MATCH(Z1,수업명렬!$BB:$BB,0),)="","",INDEX(수업명렬!$S:$S,MATCH(Z1,수업명렬!$BB:$BB,0),)) ->  | AA2: =IF(INDEX(수업명렬!$S:$S,MATCH(AA1,수업명렬!$BB:$BB,0),)="","",INDEX(수업명렬!$S:$S,MATCH(AA1,수업명렬!$BB:$BB,0),)) ->  | AB2: =IF(INDEX(수업명렬!$S:$S,MATCH(AB1,수업명렬!$BB:$BB,0),)="","",INDEX(수업명렬!$S:$S,MATCH(AB1,수업명렬!$BB:$BB,0),)) ->  | AC2: =IF(INDEX(수업명렬!$S:$S,MATCH(AC1,수업명렬!$BB:$BB,0),)="","",INDEX(수업명렬!$S:$S,MATCH(AC1,수업명렬!$BB:$BB,0),)) ->  | AD2: =IF(INDEX(수업명렬!$S:$S,MATCH(AD1,수업명렬!$BB:$BB,0),)="","",INDEX(수업명렬!$S:$S,MATCH(AD1,수업명렬!$BB:$BB,0),)) ->  | AE2: =IF(INDEX(수업명렬!$S:$S,MATCH(AE1,수업명렬!$BB:$BB,0),)="","",INDEX(수업명렬!$S:$S,MATCH(AE1,수업명렬!$BB:$BB,0),)) ->  | AF2: =IF(INDEX(수업명렬!$S:$S,MATCH(AF1,수업명렬!$BB:$BB,0),)="","",INDEX(수업명렬!$S:$S,MATCH(AF1,수업명렬!$BB:$BB,0),)) ->  | AG2: =IF(INDEX(수업명렬!$S:$S,MATCH(AG1,수업명렬!$BB:$BB,0),)="","",INDEX(수업명렬!$S:$S,MATCH(AG1,수업명렬!$BB:$BB,0),)) ->  | AH2: =IF(INDEX(수업명렬!$S:$S,MATCH(AH1,수업명렬!$BB:$BB,0),)="","",INDEX(수업명렬!$S:$S,MATCH(AH1,수업명렬!$BB:$BB,0),)) ->  | AI2: =IF(INDEX(수업명렬!$S:$S,MATCH(AI1,수업명렬!$BB:$BB,0),)="","",INDEX(수업명렬!$S:$S,MATCH(AI1,수업명렬!$BB:$BB,0),)) ->  | AJ2: =IF(INDEX(수업명렬!$S:$S,MATCH(AJ1,수업명렬!$BB:$BB,0),)="","",INDEX(수업명렬!$S:$S,MATCH(AJ1,수업명렬!$BB:$BB,0),)) ->  | AK2: =IF(INDEX(수업명렬!$S:$S,MATCH(AK1,수업명렬!$BB:$BB,0),)="","",INDEX(수업명렬!$S:$S,MATCH(AK1,수업명렬!$BB:$BB,0),)) ->  | AL2: =IF(INDEX(수업명렬!$S:$S,MATCH(AL1,수업명렬!$BB:$BB,0),)="","",INDEX(수업명렬!$S:$S,MATCH(AL1,수업명렬!$BB:$BB,0),)) ->  | AM2: =IF(INDEX(수업명렬!$S:$S,MATCH(AM1,수업명렬!$BB:$BB,0),)="","",INDEX(수업명렬!$S:$S,MATCH(AM1,수업명렬!$BB:$BB,0),)) ->  | AN2: =IF(INDEX(수업명렬!$S:$S,MATCH(AN1,수업명렬!$BB:$BB,0),)="","",INDEX(수업명렬!$S:$S,MATCH(AN1,수업명렬!$BB:$BB,0),)) ->  | AO2: =IF(INDEX(수업명렬!$S:$S,MATCH(AO1,수업명렬!$BB:$BB,0),)="","",INDEX(수업명렬!$S:$S,MATCH(AO1,수업명렬!$BB:$BB,0),)) ->  | AP2: =IF(INDEX(수업명렬!$S:$S,MATCH(AP1,수업명렬!$BB:$BB,0),)="","",INDEX(수업명렬!$S:$S,MATCH(AP1,수업명렬!$BB:$BB,0),)) ->  | AQ2: =IF(INDEX(수업명렬!$S:$S,MATCH(AQ1,수업명렬!$BB:$BB,0),)="","",INDEX(수업명렬!$S:$S,MATCH(AQ1,수업명렬!$BB:$BB,0),)) ->  | AR2: =IF(INDEX(수업명렬!$S:$S,MATCH(AR1,수업명렬!$BB:$BB,0),)="","",INDEX(수업명렬!$S:$S,MATCH(AR1,수업명렬!$BB:$BB,0),)) ->  | AS2: =IF(INDEX(수업명렬!$S:$S,MATCH(AS1,수업명렬!$BB:$BB,0),)="","",INDEX(수업명렬!$S:$S,MATCH(AS1,수업명렬!$BB:$BB,0),)) ->  | AT2: =IF(INDEX(수업명렬!$S:$S,MATCH(AT1,수업명렬!$BB:$BB,0),)="","",INDEX(수업명렬!$S:$S,MATCH(AT1,수업명렬!$BB:$BB,0),)) ->  | AU2: =IF(INDEX(수업명렬!$S:$S,MATCH(AU1,수업명렬!$BB:$BB,0),)="","",INDEX(수업명렬!$S:$S,MATCH(AU1,수업명렬!$BB:$BB,0),)) ->  | AV2: =IF(INDEX(수업명렬!$S:$S,MATCH(AV1,수업명렬!$BB:$BB,0),)="","",INDEX(수업명렬!$S:$S,MATCH(AV1,수업명렬!$BB:$BB,0),)) ->  | AW2: =IF(INDEX(수업명렬!$S:$S,MATCH(AW1,수업명렬!$BB:$BB,0),)="","",INDEX(수업명렬!$S:$S,MATCH(AW1,수업명렬!$BB:$BB,0),)) ->  | AX2: =IF(INDEX(수업명렬!$S:$S,MATCH(AX1,수업명렬!$BB:$BB,0),)="","",INDEX(수업명렬!$S:$S,MATCH(AX1,수업명렬!$BB:$BB,0),)) ->  | AY2: =IF(INDEX(수업명렬!$S:$S,MATCH(AY1,수업명렬!$BB:$BB,0),)="","",INDEX(수업명렬!$S:$S,MATCH(AY1,수업명렬!$BB:$BB,0),)) ->  | AZ2: =IF(INDEX(수업명렬!$S:$S,MATCH(AZ1,수업명렬!$BB:$BB,0),)="","",INDEX(수업명렬!$S:$S,MATCH(AZ1,수업명렬!$BB:$BB,0),)) ->  | BA2: =IF(INDEX(수업명렬!$S:$S,MATCH(BA1,수업명렬!$BB:$BB,0),)="","",INDEX(수업명렬!$S:$S,MATCH(BA1,수업명렬!$BB:$BB,0),)) ->  | BB2: =IF(INDEX(수업명렬!$S:$S,MATCH(BB1,수업명렬!$BB:$BB,0),)="","",INDEX(수업명렬!$S:$S,MATCH(BB1,수업명렬!$BB:$BB,0),)) ->  | BC2: =IF(INDEX(수업명렬!$S:$S,MATCH(BC1,수업명렬!$BB:$BB,0),)="","",INDEX(수업명렬!$S:$S,MATCH(BC1,수업명렬!$BB:$BB,0),)) ->  | BD2: =IF(INDEX(수업명렬!$S:$S,MATCH(BD1,수업명렬!$BB:$BB,0),)="","",INDEX(수업명렬!$S:$S,MATCH(BD1,수업명렬!$BB:$BB,0),)) ->  | BE2: =IF(INDEX(수업명렬!$S:$S,MATCH(BE1,수업명렬!$BB:$BB,0),)="","",INDEX(수업명렬!$S:$S,MATCH(BE1,수업명렬!$BB:$BB,0),)) ->  | BF2: =IF(INDEX(수업명렬!$S:$S,MATCH(BF1,수업명렬!$BB:$BB,0),)="","",INDEX(수업명렬!$S:$S,MATCH(BF1,수업명렬!$BB:$BB,0),)) -> 
I3: =IF(INDEX(수업명렬!$T:$T,MATCH(I1,수업명렬!$BB:$BB,0),)="","",INDEX(수업명렬!$T:$T,MATCH(I1,수업명렬!$BB:$BB,0),)) -> 국어 | J3: =IF(INDEX(수업명렬!$T:$T,MATCH(J1,수업명렬!$BB:$BB,0),)="","",INDEX(수업명렬!$T:$T,MATCH(J1,수업명렬!$BB:$BB,0),)) -> 국어 | K3: =IF(INDEX(수업명렬!$T:$T,MATCH(K1,수업명렬!$BB:$BB,0),)="","",INDEX(수업명렬!$T:$T,MATCH(K1,수업명렬!$BB:$BB,0),)) -> 수학 | L3: =IF(INDEX(수업명렬!$T:$T,MATCH(L1,수업명렬!$BB:$BB,0),)="","",INDEX(수업명렬!$T:$T,MATCH(L1,수업명렬!$BB:$BB,0),)) -> 수학 | M3: =IF(INDEX(수업명렬!$T:$T,MATCH(M1,수업명렬!$BB:$BB,0),)="","",INDEX(수업명렬!$T:$T,MATCH(M1,수업명렬!$BB:$BB,0),)) -> 수학 | N3: =IF(INDEX(수업명렬!$T:$T,MATCH(N1,수업명렬!$BB:$BB,0),)="","",INDEX(수업명렬!$T:$T,MATCH(N1,수업명렬!$BB:$BB,0),)) -> 영어 | O3: =IF(INDEX(수업명렬!$T:$T,MATCH(O1,수업명렬!$BB:$BB,0),)="","",INDEX(수업명렬!$T:$T,MATCH(O1,수업명렬!$BB:$BB,0),)) -> 영어 | P3: =IF(INDEX(수업명렬!$T:$T,MATCH(P1,수업명렬!$BB:$BB,0),)="","",INDEX(수업명렬!$T:$T,MATCH(P1,수업명렬!$BB:$BB,0),)) -> 영어 | Q3: =IF(INDEX(수업명렬!$T:$T,MATCH(Q1,수업명렬!$BB:$BB,0),)="","",INDEX(수업명렬!$T:$T,MATCH(Q1,수업명렬!$BB:$BB,0),)) ->  | R3: =IF(INDEX(수업명렬!$T:$T,MATCH(R1,수업명렬!$BB:$BB,0),)="","",INDEX(수업명렬!$T:$T,MATCH(R1,수업명렬!$BB:$BB,0),)) ->  | S3: =IF(INDEX(수업명렬!$T:$T,MATCH(S1,수업명렬!$BB:$BB,0),)="","",INDEX(수업명렬!$T:$T,MATCH(S1,수업명렬!$BB:$BB,0),)) ->  | T3: =IF(INDEX(수업명렬!$T:$T,MATCH(T1,수업명렬!$BB:$BB,0),)="","",INDEX(수업명렬!$T:$T,MATCH(T1,수업명렬!$BB:$BB,0),)) ->  | U3: =IF(INDEX(수업명렬!$T:$T,MATCH(U1,수업명렬!$BB:$BB,0),)="","",INDEX(수업명렬!$T:$T,MATCH(U1,수업명렬!$BB:$BB,0),)) ->  | V3: =IF(INDEX(수업명렬!$T:$T,MATCH(V1,수업명렬!$BB:$BB,0),)="","",INDEX(수업명렬!$T:$T,MATCH(V1,수업명렬!$BB:$BB,0),)) ->  | W3: =IF(INDEX(수업명렬!$T:$T,MATCH(W1,수업명렬!$BB:$BB,0),)="","",INDEX(수업명렬!$T:$T,MATCH(W1,수업명렬!$BB:$BB,0),)) ->  | X3: =IF(INDEX(수업명렬!$T:$T,MATCH(X1,수업명렬!$BB:$BB,0),)="","",INDEX(수업명렬!$T:$T,MATCH(X1,수업명렬!$BB:$BB,0),)) ->  | Y3: =IF(INDEX(수업명렬!$T:$T,MATCH(Y1,수업명렬!$BB:$BB,0),)="","",INDEX(수업명렬!$T:$T,MATCH(Y1,수업명렬!$BB:$BB,0),)) ->  | Z3: =IF(INDEX(수업명렬!$T:$T,MATCH(Z1,수업명렬!$BB:$BB,0),)="","",INDEX(수업명렬!$T:$T,MATCH(Z1,수업명렬!$BB:$BB,0),)) ->  | AA3: =IF(INDEX(수업명렬!$T:$T,MATCH(AA1,수업명렬!$BB:$BB,0),)="","",INDEX(수업명렬!$T:$T,MATCH(AA1,수업명렬!$BB:$BB,0),)) ->  | AB3: =IF(INDEX(수업명렬!$T:$T,MATCH(AB1,수업명렬!$BB:$BB,0),)="","",INDEX(수업명렬!$T:$T,MATCH(AB1,수업명렬!$BB:$BB,0),)) ->  | AC3: =IF(INDEX(수업명렬!$T:$T,MATCH(AC1,수업명렬!$BB:$BB,0),)="","",INDEX(수업명렬!$T:$T,MATCH(AC1,수업명렬!$BB:$BB,0),)) ->  | AD3: =IF(INDEX(수업명렬!$T:$T,MATCH(AD1,수업명렬!$BB:$BB,0),)="","",INDEX(수업명렬!$T:$T,MATCH(AD1,수업명렬!$BB:$BB,0),)) ->  | AE3: =IF(INDEX(수업명렬!$T:$T,MATCH(AE1,수업명렬!$BB:$BB,0),)="","",INDEX(수업명렬!$T:$T,MATCH(AE1,수업명렬!$BB:$BB,0),)) ->  | AF3: =IF(INDEX(수업명렬!$T:$T,MATCH(AF1,수업명렬!$BB:$BB,0),)="","",INDEX(수업명렬!$T:$T,MATCH(AF1,수업명렬!$BB:$BB,0),)) ->  | AG3: =IF(INDEX(수업명렬!$T:$T,MATCH(AG1,수업명렬!$BB:$BB,0),)="","",INDEX(수업명렬!$T:$T,MATCH(AG1,수업명렬!$BB:$BB,0),)) ->  | AH3: =IF(INDEX(수업명렬!$T:$T,MATCH(AH1,수업명렬!$BB:$BB,0),)="","",INDEX(수업명렬!$T:$T,MATCH(AH1,수업명렬!$BB:$BB,0),)) ->  | AI3: =IF(INDEX(수업명렬!$T:$T,MATCH(AI1,수업명렬!$BB:$BB,0),)="","",INDEX(수업명렬!$T:$T,MATCH(AI1,수업명렬!$BB:$BB,0),)) ->  | AJ3: =IF(INDEX(수업명렬!$T:$T,MATCH(AJ1,수업명렬!$BB:$BB,0),)="","",INDEX(수업명렬!$T:$T,MATCH(AJ1,수업명렬!$BB:$BB,0),)) ->  | AK3: =IF(INDEX(수업명렬!$T:$T,MATCH(AK1,수업명렬!$BB:$BB,0),)="","",INDEX(수업명렬!$T:$T,MATCH(AK1,수업명렬!$BB:$BB,0),)) ->  | AL3: =IF(INDEX(수업명렬!$T:$T,MATCH(AL1,수업명렬!$BB:$BB,0),)="","",INDEX(수업명렬!$T:$T,MATCH(AL1,수업명렬!$BB:$BB,0),)) ->  | AM3: =IF(INDEX(수업명렬!$T:$T,MATCH(AM1,수업명렬!$BB:$BB,0),)="","",INDEX(수업명렬!$T:$T,MATCH(AM1,수업명렬!$BB:$BB,0),)) ->  | AN3: =IF(INDEX(수업명렬!$T:$T,MATCH(AN1,수업명렬!$BB:$BB,0),)="","",INDEX(수업명렬!$T:$T,MATCH(AN1,수업명렬!$BB:$BB,0),)) ->  | AO3: =IF(INDEX(수업명렬!$T:$T,MATCH(AO1,수업명렬!$BB:$BB,0),)="","",INDEX(수업명렬!$T:$T,MATCH(AO1,수업명렬!$BB:$BB,0),)) ->  | AP3: =IF(INDEX(수업명렬!$T:$T,MATCH(AP1,수업명렬!$BB:$BB,0),)="","",INDEX(수업명렬!$T:$T,MATCH(AP1,수업명렬!$BB:$BB,0),)) ->  | AQ3: =IF(INDEX(수업명렬!$T:$T,MATCH(AQ1,수업명렬!$BB:$BB,0),)="","",INDEX(수업명렬!$T:$T,MATCH(AQ1,수업명렬!$BB:$BB,0),)) ->  | AR3: =IF(INDEX(수업명렬!$T:$T,MATCH(AR1,수업명렬!$BB:$BB,0),)="","",INDEX(수업명렬!$T:$T,MATCH(AR1,수업명렬!$BB:$BB,0),)) ->  | AS3: =IF(INDEX(수업명렬!$T:$T,MATCH(AS1,수업명렬!$BB:$BB,0),)="","",INDEX(수업명렬!$T:$T,MATCH(AS1,수업명렬!$BB:$BB,0),)) ->  | AT3: =IF(INDEX(수업명렬!$T:$T,MATCH(AT1,수업명렬!$BB:$BB,0),)="","",INDEX(수업명렬!$T:$T,MATCH(AT1,수업명렬!$BB:$BB,0),)) ->  | AU3: =IF(INDEX(수업명렬!$T:$T,MATCH(AU1,수업명렬!$BB:$BB,0),)="","",INDEX(수업명렬!$T:$T,MATCH(AU1,수업명렬!$BB:$BB,0),)) ->  | AV3: =IF(INDEX(수업명렬!$T:$T,MATCH(AV1,수업명렬!$BB:$BB,0),)="","",INDEX(수업명렬!$T:$T,MATCH(AV1,수업명렬!$BB:$BB,0),)) ->  | AW3: =IF(INDEX(수업명렬!$T:$T,MATCH(AW1,수업명렬!$BB:$BB,0),)="","",INDEX(수업명렬!$T:$T,MATCH(AW1,수업명렬!$BB:$BB,0),)) ->  | AX3: =IF(INDEX(수업명렬!$T:$T,MATCH(AX1,수업명렬!$BB:$BB,0),)="","",INDEX(수업명렬!$T:$T,MATCH(AX1,수업명렬!$BB:$BB,0),)) ->  | AY3: =IF(INDEX(수업명렬!$T:$T,MATCH(AY1,수업명렬!$BB:$BB,0),)="","",INDEX(수업명렬!$T:$T,MATCH(AY1,수업명렬!$BB:$BB,0),)) ->  | AZ3: =IF(INDEX(수업명렬!$T:$T,MATCH(AZ1,수업명렬!$BB:$BB,0),)="","",INDEX(수업명렬!$T:$T,MATCH(AZ1,수업명렬!$BB:$BB,0),)) ->  | BA3: =IF(INDEX(수업명렬!$T:$T,MATCH(BA1,수업명렬!$BB:$BB,0),)="","",INDEX(수업명렬!$T:$T,MATCH(BA1,수업명렬!$BB:$BB,0),)) ->  | BB3: =IF(INDEX(수업명렬!$T:$T,MATCH(BB1,수업명렬!$BB:$BB,0),)="","",INDEX(수업명렬!$T:$T,MATCH(BB1,수업명렬!$BB:$BB,0),)) ->  | BC3: =IF(INDEX(수업명렬!$T:$T,MATCH(BC1,수업명렬!$BB:$BB,0),)="","",INDEX(수업명렬!$T:$T,MATCH(BC1,수업명렬!$BB:$BB,0),)) ->  | BD3: =IF(INDEX(수업명렬!$T:$T,MATCH(BD1,수업명렬!$BB:$BB,0),)="","",INDEX(수업명렬!$T:$T,MATCH(BD1,수업명렬!$BB:$BB,0),)) ->  | BE3: =IF(INDEX(수업명렬!$T:$T,MATCH(BE1,수업명렬!$BB:$BB,0),)="","",INDEX(수업명렬!$T:$T,MATCH(BE1,수업명렬!$BB:$BB,0),)) ->  | BF3: =IF(INDEX(수업명렬!$T:$T,MATCH(BF1,수업명렬!$BB:$BB,0),)="","",INDEX(수업명렬!$T:$T,MATCH(BF1,수업명렬!$BB:$BB,0),)) -> 
I4: =IF(INDEX(수업명렬!$W:$W,MATCH(I1,수업명렬!$BB:$BB,0),)="","",INDEX(수업명렬!$W:$W,MATCH(I1,수업명렬!$BB:$BB,0),)) -> 고전산문 | J4: =IF(INDEX(수업명렬!$W:$W,MATCH(J1,수업명렬!$BB:$BB,0),)="","",INDEX(수업명렬!$W:$W,MATCH(J1,수업명렬!$BB:$BB,0),)) -> 비문학독해 | K4: =IF(INDEX(수업명렬!$W:$W,MATCH(K1,수업명렬!$BB:$BB,0),)="","",INDEX(수업명렬!$W:$W,MATCH(K1,수업명렬!$BB:$BB,0),)) -> 수II기출 | L4: =IF(INDEX(수업명렬!$W:$W,MATCH(L1,수업명렬!$BB:$BB,0),)="","",INDEX(수업명렬!$W:$W,MATCH(L1,수업명렬!$BB:$BB,0),)) -> 수열/지수(심) | M4: =IF(INDEX(수업명렬!$W:$W,MATCH(M1,수업명렬!$BB:$BB,0),)="","",INDEX(수업명렬!$W:$W,MATCH(M1,수업명렬!$BB:$BB,0),)) -> 수열/지수(기) | N4: =IF(INDEX(수업명렬!$W:$W,MATCH(N1,수업명렬!$BB:$BB,0),)="","",INDEX(수업명렬!$W:$W,MATCH(N1,수업명렬!$BB:$BB,0),)) -> Basic Reading | O4: =IF(INDEX(수업명렬!$W:$W,MATCH(O1,수업명렬!$BB:$BB,0),)="","",INDEX(수업명렬!$W:$W,MATCH(O1,수업명렬!$BB:$BB,0),)) -> Upgrade Reading | P4: =IF(INDEX(수업명렬!$W:$W,MATCH(P1,수업명렬!$BB:$BB,0),)="","",INDEX(수업명렬!$W:$W,MATCH(P1,수업명렬!$BB:$BB,0),)) -> Beyond Reading | Q4: =IF(INDEX(수업명렬!$W:$W,MATCH(Q1,수업명렬!$BB:$BB,0),)="","",INDEX(수업명렬!$W:$W,MATCH(Q1,수업명렬!$BB:$BB,0),)) ->  | R4: =IF(INDEX(수업명렬!$W:$W,MATCH(R1,수업명렬!$BB:$BB,0),)="","",INDEX(수업명렬!$W:$W,MATCH(R1,수업명렬!$BB:$BB,0),)) ->  | S4: =IF(INDEX(수업명렬!$W:$W,MATCH(S1,수업명렬!$BB:$BB,0),)="","",INDEX(수업명렬!$W:$W,MATCH(S1,수업명렬!$BB:$BB,0),)) ->  | T4: =IF(INDEX(수업명렬!$W:$W,MATCH(T1,수업명렬!$BB:$BB,0),)="","",INDEX(수업명렬!$W:$W,MATCH(T1,수업명렬!$BB:$BB,0),)) ->  | U4: =IF(INDEX(수업명렬!$W:$W,MATCH(U1,수업명렬!$BB:$BB,0),)="","",INDEX(수업명렬!$W:$W,MATCH(U1,수업명렬!$BB:$BB,0),)) ->  | V4: =IF(INDEX(수업명렬!$W:$W,MATCH(V1,수업명렬!$BB:$BB,0),)="","",INDEX(수업명렬!$W:$W,MATCH(V1,수업명렬!$BB:$BB,0),)) ->  | W4: =IF(INDEX(수업명렬!$W:$W,MATCH(W1,수업명렬!$BB:$BB,0),)="","",INDEX(수업명렬!$W:$W,MATCH(W1,수업명렬!$BB:$BB,0),)) ->  | X4: =IF(INDEX(수업명렬!$W:$W,MATCH(X1,수업명렬!$BB:$BB,0),)="","",INDEX(수업명렬!$W:$W,MATCH(X1,수업명렬!$BB:$BB,0),)) ->  | Y4: =IF(INDEX(수업명렬!$W:$W,MATCH(Y1,수업명렬!$BB:$BB,0),)="","",INDEX(수업명렬!$W:$W,MATCH(Y1,수업명렬!$BB:$BB,0),)) ->  | Z4: =IF(INDEX(수업명렬!$W:$W,MATCH(Z1,수업명렬!$BB:$BB,0),)="","",INDEX(수업명렬!$W:$W,MATCH(Z1,수업명렬!$BB:$BB,0),)) ->  | AA4: =IF(INDEX(수업명렬!$W:$W,MATCH(AA1,수업명렬!$BB:$BB,0),)="","",INDEX(수업명렬!$W:$W,MATCH(AA1,수업명렬!$BB:$BB,0),)) ->  | AB4: =IF(INDEX(수업명렬!$W:$W,MATCH(AB1,수업명렬!$BB:$BB,0),)="","",INDEX(수업명렬!$W:$W,MATCH(AB1,수업명렬!$BB:$BB,0),)) ->  | AC4: =IF(INDEX(수업명렬!$W:$W,MATCH(AC1,수업명렬!$BB:$BB,0),)="","",INDEX(수업명렬!$W:$W,MATCH(AC1,수업명렬!$BB:$BB,0),)) ->  | AD4: =IF(INDEX(수업명렬!$W:$W,MATCH(AD1,수업명렬!$BB:$BB,0),)="","",INDEX(수업명렬!$W:$W,MATCH(AD1,수업명렬!$BB:$BB,0),)) ->  | AE4: =IF(INDEX(수업명렬!$W:$W,MATCH(AE1,수업명렬!$BB:$BB,0),)="","",INDEX(수업명렬!$W:$W,MATCH(AE1,수업명렬!$BB:$BB,0),)) ->  | AF4: =IF(INDEX(수업명렬!$W:$W,MATCH(AF1,수업명렬!$BB:$BB,0),)="","",INDEX(수업명렬!$W:$W,MATCH(AF1,수업명렬!$BB:$BB,0),)) ->  | AG4: =IF(INDEX(수업명렬!$W:$W,MATCH(AG1,수업명렬!$BB:$BB,0),)="","",INDEX(수업명렬!$W:$W,MATCH(AG1,수업명렬!$BB:$BB,0),)) ->  | AH4: =IF(INDEX(수업명렬!$W:$W,MATCH(AH1,수업명렬!$BB:$BB,0),)="","",INDEX(수업명렬!$W:$W,MATCH(AH1,수업명렬!$BB:$BB,0),)) ->  | AI4: =IF(INDEX(수업명렬!$W:$W,MATCH(AI1,수업명렬!$BB:$BB,0),)="","",INDEX(수업명렬!$W:$W,MATCH(AI1,수업명렬!$BB:$BB,0),)) ->  | AJ4: =IF(INDEX(수업명렬!$W:$W,MATCH(AJ1,수업명렬!$BB:$BB,0),)="","",INDEX(수업명렬!$W:$W,MATCH(AJ1,수업명렬!$BB:$BB,0),)) ->  | AK4: =IF(INDEX(수업명렬!$W:$W,MATCH(AK1,수업명렬!$BB:$BB,0),)="","",INDEX(수업명렬!$W:$W,MATCH(AK1,수업명렬!$BB:$BB,0),)) ->  | AL4: =IF(INDEX(수업명렬!$W:$W,MATCH(AL1,수업명렬!$BB:$BB,0),)="","",INDEX(수업명렬!$W:$W,MATCH(AL1,수업명렬!$BB:$BB,0),)) ->  | AM4: =IF(INDEX(수업명렬!$W:$W,MATCH(AM1,수업명렬!$BB:$BB,0),)="","",INDEX(수업명렬!$W:$W,MATCH(AM1,수업명렬!$BB:$BB,0),)) ->  | AN4: =IF(INDEX(수업명렬!$W:$W,MATCH(AN1,수업명렬!$BB:$BB,0),)="","",INDEX(수업명렬!$W:$W,MATCH(AN1,수업명렬!$BB:$BB,0),)) ->  | AO4: =IF(INDEX(수업명렬!$W:$W,MATCH(AO1,수업명렬!$BB:$BB,0),)="","",INDEX(수업명렬!$W:$W,MATCH(AO1,수업명렬!$BB:$BB,0),)) ->  | AP4: =IF(INDEX(수업명렬!$W:$W,MATCH(AP1,수업명렬!$BB:$BB,0),)="","",INDEX(수업명렬!$W:$W,MATCH(AP1,수업명렬!$BB:$BB,0),)) ->  | AQ4: =IF(INDEX(수업명렬!$W:$W,MATCH(AQ1,수업명렬!$BB:$BB,0),)="","",INDEX(수업명렬!$W:$W,MATCH(AQ1,수업명렬!$BB:$BB,0),)) ->  | AR4: =IF(INDEX(수업명렬!$W:$W,MATCH(AR1,수업명렬!$BB:$BB,0),)="","",INDEX(수업명렬!$W:$W,MATCH(AR1,수업명렬!$BB:$BB,0),)) ->  | AS4: =IF(INDEX(수업명렬!$W:$W,MATCH(AS1,수업명렬!$BB:$BB,0),)="","",INDEX(수업명렬!$W:$W,MATCH(AS1,수업명렬!$BB:$BB,0),)) ->  | AT4: =IF(INDEX(수업명렬!$W:$W,MATCH(AT1,수업명렬!$BB:$BB,0),)="","",INDEX(수업명렬!$W:$W,MATCH(AT1,수업명렬!$BB:$BB,0),)) ->  | AU4: =IF(INDEX(수업명렬!$W:$W,MATCH(AU1,수업명렬!$BB:$BB,0),)="","",INDEX(수업명렬!$W:$W,MATCH(AU1,수업명렬!$BB:$BB,0),)) ->  | AV4: =IF(INDEX(수업명렬!$W:$W,MATCH(AV1,수업명렬!$BB:$BB,0),)="","",INDEX(수업명렬!$W:$W,MATCH(AV1,수업명렬!$BB:$BB,0),)) ->  | AW4: =IF(INDEX(수업명렬!$W:$W,MATCH(AW1,수업명렬!$BB:$BB,0),)="","",INDEX(수업명렬!$W:$W,MATCH(AW1,수업명렬!$BB:$BB,0),)) ->  | AX4: =IF(INDEX(수업명렬!$W:$W,MATCH(AX1,수업명렬!$BB:$BB,0),)="","",INDEX(수업명렬!$W:$W,MATCH(AX1,수업명렬!$BB:$BB,0),)) ->  | AY4: =IF(INDEX(수업명렬!$W:$W,MATCH(AY1,수업명렬!$BB:$BB,0),)="","",INDEX(수업명렬!$W:$W,MATCH(AY1,수업명렬!$BB:$BB,0),)) ->  | AZ4: =IF(INDEX(수업명렬!$W:$W,MATCH(AZ1,수업명렬!$BB:$BB,0),)="","",INDEX(수업명렬!$W:$W,MATCH(AZ1,수업명렬!$BB:$BB,0),)) ->  | BA4: =IF(INDEX(수업명렬!$W:$W,MATCH(BA1,수업명렬!$BB:$BB,0),)="","",INDEX(수업명렬!$W:$W,MATCH(BA1,수업명렬!$BB:$BB,0),)) ->  | BB4: =IF(INDEX(수업명렬!$W:$W,MATCH(BB1,수업명렬!$BB:$BB,0),)="","",INDEX(수업명렬!$W:$W,MATCH(BB1,수업명렬!$BB:$BB,0),)) ->  | BC4: =IF(INDEX(수업명렬!$W:$W,MATCH(BC1,수업명렬!$BB:$BB,0),)="","",INDEX(수업명렬!$W:$W,MATCH(BC1,수업명렬!$BB:$BB,0),)) ->  | BD4: =IF(INDEX(수업명렬!$W:$W,MATCH(BD1,수업명렬!$BB:$BB,0),)="","",INDEX(수업명렬!$W:$W,MATCH(BD1,수업명렬!$BB:$BB,0),)) ->  | BE4: =IF(INDEX(수업명렬!$W:$W,MATCH(BE1,수업명렬!$BB:$BB,0),)="","",INDEX(수업명렬!$W:$W,MATCH(BE1,수업명렬!$BB:$BB,0),)) ->  | BF4: =IF(INDEX(수업명렬!$W:$W,MATCH(BF1,수업명렬!$BB:$BB,0),)="","",INDEX(수업명렬!$W:$W,MATCH(BF1,수업명렬!$BB:$BB,0),)) -> 
A5: 학년 | C5: 반 | I5: =IF(INDEX(수업명렬!$X:$X,MATCH(I1,수업명렬!$BB:$BB,0),)="","",INDEX(수업명렬!$X:$X,MATCH(I1,수업명렬!$BB:$BB,0),)) -> 국길동 | J5: =IF(INDEX(수업명렬!$X:$X,MATCH(J1,수업명렬!$BB:$BB,0),)="","",INDEX(수업명렬!$X:$X,MATCH(J1,수업명렬!$BB:$BB,0),)) -> 국순신 | K5: =IF(INDEX(수업명렬!$X:$X,MATCH(K1,수업명렬!$BB:$BB,0),)="","",INDEX(수업명렬!$X:$X,MATCH(K1,수업명렬!$BB:$BB,0),)) -> 수영희 | L5: =IF(INDEX(수업명렬!$X:$X,MATCH(L1,수업명렬!$BB:$BB,0),)="","",INDEX(수업명렬!$X:$X,MATCH(L1,수업명렬!$BB:$BB,0),)) -> 위드석심 | M5: =IF(INDEX(수업명렬!$X:$X,MATCH(M1,수업명렬!$BB:$BB,0),)="","",INDEX(수업명렬!$X:$X,MATCH(M1,수업명렬!$BB:$BB,0),)) -> 위드석기 | N5: =IF(INDEX(수업명렬!$X:$X,MATCH(N1,수업명렬!$BB:$BB,0),)="","",INDEX(수업명렬!$X:$X,MATCH(N1,수업명렬!$BB:$BB,0),)) -> 영우연 | O5: =IF(INDEX(수업명렬!$X:$X,MATCH(O1,수업명렬!$BB:$BB,0),)="","",INDEX(수업명렬!$X:$X,MATCH(O1,수업명렬!$BB:$BB,0),)) -> 영어랑 | P5: =IF(INDEX(수업명렬!$X:$X,MATCH(P1,수업명렬!$BB:$BB,0),)="","",INDEX(수업명렬!$X:$X,MATCH(P1,수업명렬!$BB:$BB,0),)) -> 영홍홍 | Q5: =IF(INDEX(수업명렬!$X:$X,MATCH(Q1,수업명렬!$BB:$BB,0),)="","",INDEX(수업명렬!$X:$X,MATCH(Q1,수업명렬!$BB:$BB,0),)) ->  | R5: =IF(INDEX(수업명렬!$X:$X,MATCH(R1,수업명렬!$BB:$BB,0),)="","",INDEX(수업명렬!$X:$X,MATCH(R1,수업명렬!$BB:$BB,0),)) ->  | S5: =IF(INDEX(수업명렬!$X:$X,MATCH(S1,수업명렬!$BB:$BB,0),)="","",INDEX(수업명렬!$X:$X,MATCH(S1,수업명렬!$BB:$BB,0),)) ->  | T5: =IF(INDEX(수업명렬!$X:$X,MATCH(T1,수업명렬!$BB:$BB,0),)="","",INDEX(수업명렬!$X:$X,MATCH(T1,수업명렬!$BB:$BB,0),)) ->  | U5: =IF(INDEX(수업명렬!$X:$X,MATCH(U1,수업명렬!$BB:$BB,0),)="","",INDEX(수업명렬!$X:$X,MATCH(U1,수업명렬!$BB:$BB,0),)) ->  | V5: =IF(INDEX(수업명렬!$X:$X,MATCH(V1,수업명렬!$BB:$BB,0),)="","",INDEX(수업명렬!$X:$X,MATCH(V1,수업명렬!$BB:$BB,0),)) ->  | W5: =IF(INDEX(수업명렬!$X:$X,MATCH(W1,수업명렬!$BB:$BB,0),)="","",INDEX(수업명렬!$X:$X,MATCH(W1,수업명렬!$BB:$BB,0),)) ->  | X5: =IF(INDEX(수업명렬!$X:$X,MATCH(X1,수업명렬!$BB:$BB,0),)="","",INDEX(수업명렬!$X:$X,MATCH(X1,수업명렬!$BB:$BB,0),)) ->  | Y5: =IF(INDEX(수업명렬!$X:$X,MATCH(Y1,수업명렬!$BB:$BB,0),)="","",INDEX(수업명렬!$X:$X,MATCH(Y1,수업명렬!$BB:$BB,0),)) ->  | Z5: =IF(INDEX(수업명렬!$X:$X,MATCH(Z1,수업명렬!$BB:$BB,0),)="","",INDEX(수업명렬!$X:$X,MATCH(Z1,수업명렬!$BB:$BB,0),)) ->  | AA5: =IF(INDEX(수업명렬!$X:$X,MATCH(AA1,수업명렬!$BB:$BB,0),)="","",INDEX(수업명렬!$X:$X,MATCH(AA1,수업명렬!$BB:$BB,0),)) ->  | AB5: =IF(INDEX(수업명렬!$X:$X,MATCH(AB1,수업명렬!$BB:$BB,0),)="","",INDEX(수업명렬!$X:$X,MATCH(AB1,수업명렬!$BB:$BB,0),)) ->  | AC5: =IF(INDEX(수업명렬!$X:$X,MATCH(AC1,수업명렬!$BB:$BB,0),)="","",INDEX(수업명렬!$X:$X,MATCH(AC1,수업명렬!$BB:$BB,0),)) ->  | AD5: =IF(INDEX(수업명렬!$X:$X,MATCH(AD1,수업명렬!$BB:$BB,0),)="","",INDEX(수업명렬!$X:$X,MATCH(AD1,수업명렬!$BB:$BB,0),)) ->  | AE5: =IF(INDEX(수업명렬!$X:$X,MATCH(AE1,수업명렬!$BB:$BB,0),)="","",INDEX(수업명렬!$X:$X,MATCH(AE1,수업명렬!$BB:$BB,0),)) ->  | AF5: =IF(INDEX(수업명렬!$X:$X,MATCH(AF1,수업명렬!$BB:$BB,0),)="","",INDEX(수업명렬!$X:$X,MATCH(AF1,수업명렬!$BB:$BB,0),)) ->  | AG5: =IF(INDEX(수업명렬!$X:$X,MATCH(AG1,수업명렬!$BB:$BB,0),)="","",INDEX(수업명렬!$X:$X,MATCH(AG1,수업명렬!$BB:$BB,0),)) ->  | AH5: =IF(INDEX(수업명렬!$X:$X,MATCH(AH1,수업명렬!$BB:$BB,0),)="","",INDEX(수업명렬!$X:$X,MATCH(AH1,수업명렬!$BB:$BB,0),)) ->  | AI5: =IF(INDEX(수업명렬!$X:$X,MATCH(AI1,수업명렬!$BB:$BB,0),)="","",INDEX(수업명렬!$X:$X,MATCH(AI1,수업명렬!$BB:$BB,0),)) ->  | AJ5: =IF(INDEX(수업명렬!$X:$X,MATCH(AJ1,수업명렬!$BB:$BB,0),)="","",INDEX(수업명렬!$X:$X,MATCH(AJ1,수업명렬!$BB:$BB,0),)) ->  | AK5: =IF(INDEX(수업명렬!$X:$X,MATCH(AK1,수업명렬!$BB:$BB,0),)="","",INDEX(수업명렬!$X:$X,MATCH(AK1,수업명렬!$BB:$BB,0),)) ->  | AL5: =IF(INDEX(수업명렬!$X:$X,MATCH(AL1,수업명렬!$BB:$BB,0),)="","",INDEX(수업명렬!$X:$X,MATCH(AL1,수업명렬!$BB:$BB,0),)) ->  | AM5: =IF(INDEX(수업명렬!$X:$X,MATCH(AM1,수업명렬!$BB:$BB,0),)="","",INDEX(수업명렬!$X:$X,MATCH(AM1,수업명렬!$BB:$BB,0),)) ->  | AN5: =IF(INDEX(수업명렬!$X:$X,MATCH(AN1,수업명렬!$BB:$BB,0),)="","",INDEX(수업명렬!$X:$X,MATCH(AN1,수업명렬!$BB:$BB,0),)) ->  | AO5: =IF(INDEX(수업명렬!$X:$X,MATCH(AO1,수업명렬!$BB:$BB,0),)="","",INDEX(수업명렬!$X:$X,MATCH(AO1,수업명렬!$BB:$BB,0),)) ->  | AP5: =IF(INDEX(수업명렬!$X:$X,MATCH(AP1,수업명렬!$BB:$BB,0),)="","",INDEX(수업명렬!$X:$X,MATCH(AP1,수업명렬!$BB:$BB,0),)) ->  | AQ5: =IF(INDEX(수업명렬!$X:$X,MATCH(AQ1,수업명렬!$BB:$BB,0),)="","",INDEX(수업명렬!$X:$X,MATCH(AQ1,수업명렬!$BB:$BB,0),)) ->  | AR5: =IF(INDEX(수업명렬!$X:$X,MATCH(AR1,수업명렬!$BB:$BB,0),)="","",INDEX(수업명렬!$X:$X,MATCH(AR1,수업명렬!$BB:$BB,0),)) ->  | AS5: =IF(INDEX(수업명렬!$X:$X,MATCH(AS1,수업명렬!$BB:$BB,0),)="","",INDEX(수업명렬!$X:$X,MATCH(AS1,수업명렬!$BB:$BB,0),)) ->  | AT5: =IF(INDEX(수업명렬!$X:$X,MATCH(AT1,수업명렬!$BB:$BB,0),)="","",INDEX(수업명렬!$X:$X,MATCH(AT1,수업명렬!$BB:$BB,0),)) ->  | AU5: =IF(INDEX(수업명렬!$X:$X,MATCH(AU1,수업명렬!$BB:$BB,0),)="","",INDEX(수업명렬!$X:$X,MATCH(AU1,수업명렬!$BB:$BB,0),)) ->  | AV5: =IF(INDEX(수업명렬!$X:$X,MATCH(AV1,수업명렬!$BB:$BB,0),)="","",INDEX(수업명렬!$X:$X,MATCH(AV1,수업명렬!$BB:$BB,0),)) ->  | AW5: =IF(INDEX(수업명렬!$X:$X,MATCH(AW1,수업명렬!$BB:$BB,0),)="","",INDEX(수업명렬!$X:$X,MATCH(AW1,수업명렬!$BB:$BB,0),)) ->  | AX5: =IF(INDEX(수업명렬!$X:$X,MATCH(AX1,수업명렬!$BB:$BB,0),)="","",INDEX(수업명렬!$X:$X,MATCH(AX1,수업명렬!$BB:$BB,0),)) ->  | AY5: =IF(INDEX(수업명렬!$X:$X,MATCH(AY1,수업명렬!$BB:$BB,0),)="","",INDEX(수업명렬!$X:$X,MATCH(AY1,수업명렬!$BB:$BB,0),)) ->  | AZ5: =IF(INDEX(수업명렬!$X:$X,MATCH(AZ1,수업명렬!$BB:$BB,0),)="","",INDEX(수업명렬!$X:$X,MATCH(AZ1,수업명렬!$BB:$BB,0),)) ->  | BA5: =IF(INDEX(수업명렬!$X:$X,MATCH(BA1,수업명렬!$BB:$BB,0),)="","",INDEX(수업명렬!$X:$X,MATCH(BA1,수업명렬!$BB:$BB,0),)) ->  | BB5: =IF(INDEX(수업명렬!$X:$X,MATCH(BB1,수업명렬!$BB:$BB,0),)="","",INDEX(수업명렬!$X:$X,MATCH(BB1,수업명렬!$BB:$BB,0),)) ->  | BC5: =IF(INDEX(수업명렬!$X:$X,MATCH(BC1,수업명렬!$BB:$BB,0),)="","",INDEX(수업명렬!$X:$X,MATCH(BC1,수업명렬!$BB:$BB,0),)) ->  | BD5: =IF(INDEX(수업명렬!$X:$X,MATCH(BD1,수업명렬!$BB:$BB,0),)="","",INDEX(수업명렬!$X:$X,MATCH(BD1,수업명렬!$BB:$BB,0),)) ->  | BE5: =IF(INDEX(수업명렬!$X:$X,MATCH(BE1,수업명렬!$BB:$BB,0),)="","",INDEX(수업명렬!$X:$X,MATCH(BE1,수업명렬!$BB:$BB,0),)) ->  | BF5: =IF(INDEX(수업명렬!$X:$X,MATCH(BF1,수업명렬!$BB:$BB,0),)="","",INDEX(수업명렬!$X:$X,MATCH(BF1,수업명렬!$BB:$BB,0),)) -> 
A6: =수업명렬!A1 -> 1 | C6: 0 | H6: 총 개수 | I6: =IF(SUBTOTAL(109,I7:I506)=0,"",SUBTOTAL(109,I7:I506)) -> 45 | J6: =IF(SUBTOTAL(109,J7:J506)=0,"",SUBTOTAL(109,J7:J506)) -> 32 | K6: 45 | L6: 16 | M6: 20 | N6: 30 | O6: 48 | P6: 28 | AL6: =IF(SUBTOTAL(109,AL7:AL506)=0,"",SUBTOTAL(109,AL7:AL506)) ->  | AM6: =IF(SUBTOTAL(109,AM7:AM506)=0,"",SUBTOTAL(109,AM7:AM506)) ->  | AN6: =IF(SUBTOTAL(109,AN7:AN506)=0,"",SUBTOTAL(109,AN7:AN506)) ->  | AO6: =IF(SUBTOTAL(109,AO7:AO506)=0,"",SUBTOTAL(109,AO7:AO506)) ->  | AP6: =IF(SUBTOTAL(109,AP7:AP506)=0,"",SUBTOTAL(109,AP7:AP506)) ->  | AQ6: =IF(SUBTOTAL(109,AQ7:AQ506)=0,"",SUBTOTAL(109,AQ7:AQ506)) ->  | AR6: =IF(SUBTOTAL(109,AR7:AR506)=0,"",SUBTOTAL(109,AR7:AR506)) ->  | AS6: =IF(SUBTOTAL(109,AS7:AS506)=0,"",SUBTOTAL(109,AS7:AS506)) ->  | AT6: =IF(SUBTOTAL(109,AT7:AT506)=0,"",SUBTOTAL(109,AT7:AT506)) ->  | AU6: =IF(SUBTOTAL(109,AU7:AU506)=0,"",SUBTOTAL(109,AU7:AU506)) ->  | AV6: =IF(SUBTOTAL(109,AV7:AV506)=0,"",SUBTOTAL(109,AV7:AV506)) ->  | AW6: =IF(SUBTOTAL(109,AW7:AW506)=0,"",SUBTOTAL(109,AW7:AW506)) ->  | AX6: =IF(SUBTOTAL(109,AX7:AX506)=0,"",SUBTOTAL(109,AX7:AX506)) ->  | AY6: =IF(SUBTOTAL(109,AY7:AY506)=0,"",SUBTOTAL(109,AY7:AY506)) ->  | AZ6: =IF(SUBTOTAL(109,AZ7:AZ506)=0,"",SUBTOTAL(109,AZ7:AZ506)) ->  | BA6: =IF(SUBTOTAL(109,BA7:BA506)=0,"",SUBTOTAL(109,BA7:BA506)) ->  | BB6: =IF(SUBTOTAL(109,BB7:BB506)=0,"",SUBTOTAL(109,BB7:BB506)) ->  | BC6: =IF(SUBTOTAL(109,BC7:BC506)=0,"",SUBTOTAL(109,BC7:BC506)) ->  | BD6: =IF(SUBTOTAL(109,BD7:BD506)=0,"",SUBTOTAL(109,BD7:BD506)) ->  | BE6: =IF(SUBTOTAL(109,BE7:BE506)=0,"",SUBTOTAL(109,BE7:BE506)) ->  | BF6: =IF(SUBTOTAL(109,BF7:BF506)=0,"",SUBTOTAL(109,BF7:BF506)) -> 
B7: =IF(MOD(ROW()-6,50)=0,50,MOD(ROW()-6,50)) -> 1 | C7: =IF(LEN(IF(B7=1,C6+1,C6))=1,0&IF(B7=1,C6+1,C6),IF(B7=1,C6+1,C6)) -> 01 | D7: =IF(LEN(B7)=1,0&B7,B7) -> 01 | F7: =INT($A$6&C7&D7) -> 10101 | G7: =IFERROR(INDEX(학생명렬!B:B,MATCH(F7,학생명렬!A:A,0),),"") -> 오소리 | H7: =IF(SUM(I7:BF7)=0,0,SUM(I7:BF7)) -> 0 | BG7: =INT(MID(F7,2,2)) -> 1 | BI7: =COUNTIF(H7:H56,">0") -> 10 | BJ7: 명 신청 | BK7: =BG7 -> 1 | BL7: 1 | BM7: =COUNTIF(H7:H56,BL7) -> 0 | BN7: 5 | BO7: =COUNTIF(H7:H56,BN7) -> 0
B8: =IF(MOD(ROW()-6,50)=0,50,MOD(ROW()-6,50)) -> 2 | C8: =IF(LEN(IF(B8=1,C7+1,C7))=1,0&IF(B8=1,C7+1,C7),IF(B8=1,C7+1,C7)) -> 01 | D8: =IF(LEN(B8)=1,0&B8,B8) -> 02 | F8: =INT($A$6&C8&D8) -> 10102 | G8: =IFERROR(INDEX(학생명렬!B:B,MATCH(F8,학생명렬!A:A,0),),"") -> 노우리 | H8: 0 | BI8: =SUM(H7:H56) -> 21 | BJ8: 개 강좌 | BL8: 2 | BM8: =COUNTIF(H7:H56,BL8) -> 9 | BN8: 6 | BO8: =COUNTIF(H7:H56,BN8) -> 0
B9: 3 | C9: =IF(LEN(IF(B9=1,C8+1,C8))=1,0&IF(B9=1,C8+1,C8),IF(B9=1,C8+1,C8)) -> 01 | D9: =IF(LEN(B9)=1,0&B9,B9) -> 03 | F9: =INT($A$6&C9&D9) -> 10103 | G9: =IFERROR(INDEX(학생명렬!B:B,MATCH(F9,학생명렬!A:A,0),),"") -> 표의효 | H9: 0 | BL9: 3 | BM9: =COUNTIF(H7:H56,BL9) -> 1 | BN9: 7 | BO9: =COUNTIF(H7:H56,BN9) -> 0
B10: 4 | C10: 01 | D10: 04 | F10: 10104 | G10: =IFERROR(INDEX(학생명렬!B:B,MATCH(F10,학생명렬!A:A,0),),"") -> 나아선 | H10: 0 | BL10: 4 | BM10: =COUNTIF(H7:H56,BL10) -> 0 | BN10: 8 | BO10: =COUNTIF(H7:H56,BN10) -> 0
B11: 5 | C11: 01 | D11: 05 | F11: 10105 | G11: =IFERROR(INDEX(학생명렬!B:B,MATCH(F11,학생명렬!A:A,0),),"") -> 박양송 | H11: 0
B12: 6 | C12: 01 | D12: 06 | F12: 10106 | G12: =IFERROR(INDEX(학생명렬!B:B,MATCH(F12,학생명렬!A:A,0),),"") -> 조지언 | H12: 2 | O12: 1 | P12: 1 | BG12: 전체 | BI12: =COUNTIF(H7:H506,">0") -> 115 | BJ12: =BJ7 -> 명 신청 | BK12: =BG12 -> 전체 | BL12: 1 | BM12: =COUNTIF($H$7:$H$506,BL12) -> 3 | BN12: 5 | BO12: =COUNTIF($H$7:$H$506,BN12) -> 0
B13: 7 | C13: 01 | D13: 07 | F13: 10107 | G13: =IFERROR(INDEX(학생명렬!B:B,MATCH(F13,학생명렬!A:A,0),),"") -> 문유늘 | H13: 0 | BI13: =SUM(H7:H506) -> 264 | BJ13: =BJ8 -> 개 강좌 | BL13: 2 | BM13: =COUNTIF($H$7:$H$506,BL13) -> 82 | BN13: 6 | BO13: 0
B14: 8 | C14: 01 | D14: 08 | F14: 10108 | G14: =IFERROR(INDEX(학생명렬!B:B,MATCH(F14,학생명렬!A:A,0),),"") -> 지초늘 | H14: 0 | BL14: 3 | BM14: 23 | BN14: 7 | BO14: 0
B15: 9 | C15: 01 | D15: 09 | F15: 10109 | G15: =IFERROR(INDEX(학생명렬!B:B,MATCH(F15,학생명렬!A:A,0),),"") -> 유재기 | H15: 2 | K15: 1 | O15: 1 | BL15: 4 | BM15: 7 | BN15: 8 | BO15: 0
B16: 10 | C16: 01 | D16: 10 | F16: 10110 | G16: =IFERROR(INDEX(학생명렬!B:B,MATCH(F16,학생명렬!A:A,0),),"") -> 남진한 | H16: 0
B17: 11 | C17: 01 | D17: 11 | F17: 10111 | G17: =IFERROR(INDEX(학생명렬!B:B,MATCH(F17,학생명렬!A:A,0),),"") -> 남소연 | H17: 0
B18: 12 | C18: 01 | D18: 12 | F18: 10112 | G18: =IFERROR(INDEX(학생명렬!B:B,MATCH(F18,학생명렬!A:A,0),),"") -> 강소윤 | H18: 0
B19: 13 | C19: 01 | D19: 13 | F19: 10113 | G19: =IFERROR(INDEX(학생명렬!B:B,MATCH(F19,학생명렬!A:A,0),),"") -> 손희란 | H19: 3 | M19: 1 | O19: 1 | P19: 1
B20: 14 | C20: 01 | D20: 14 | F20: 10114 | G20: =IFERROR(INDEX(학생명렬!B:B,MATCH(F20,학생명렬!A:A,0),),"") -> 양가율 | H20: 0
B21: 15 | C21: =IF(LEN(IF(B21=1,C20+1,C20))=1,0&IF(B21=1,C20+1,C20),IF(B21=1,C20+1,C20)) -> 01 | D21: =IF(LEN(B21)=1,0&B21,B21) -> 15 | F21: =INT($A$6&C21&D21) -> 10115 | G21: =IFERROR(INDEX(학생명렬!B:B,MATCH(F21,학생명렬!A:A,0),),"") -> 은유안 | H21: 0
B22: 16 | C22: 01 | D22: 16 | F22: 10116 | G22: =IFERROR(INDEX(학생명렬!B:B,MATCH(F22,학생명렬!A:A,0),),"") -> 손여승 | H22: 2 | K22: 1 | P22: 1
B23: 17 | C23: 01 | D23: 17 | F23: 10117 | G23: =IFERROR(INDEX(학생명렬!B:B,MATCH(F23,학생명렬!A:A,0),),"") -> 공미빈 | H23: 0
B24: 18 | C24: 01 | D24: 18 | F24: 10118 | G24: =IFERROR(INDEX(학생명렬!B:B,MATCH(F24,학생명렬!A:A,0),),"") -> 류보늘 | H24: 2 | K24: 1 | O24: 1
B25: 19 | C25: 01 | D25: 19 | F25: 10119 | G25: =IFERROR(INDEX(학생명렬!B:B,MATCH(F25,학생명렬!A:A,0),),"") -> 양률임 | H25: 0
B26: 20 | C26: 01 | D26: 20 | F26: 10120 | G26: =IFERROR(INDEX(학생명렬!B:B,MATCH(F26,학생명렬!A:A,0),),"") -> 권정세 | H26: 0
B27: 21 | C27: 01 | D27: 21 | F27: 10121 | G27: =IFERROR(INDEX(학생명렬!B:B,MATCH(F27,학생명렬!A:A,0),),"") -> 원하정 | H27: 2 | M27: 1 | N27: 1
B28: 22 | C28: 01 | D28: 22 | F28: 10122 | G28: =IFERROR(INDEX(학생명렬!B:B,MATCH(F28,학생명렬!A:A,0),),"") -> 하동윤 | H28: 0
B29: 23 | C29: 01 | D29: 23 | F29: 10123 | G29: =IFERROR(INDEX(학생명렬!B:B,MATCH(F29,학생명렬!A:A,0),),"") -> 남수재 | H29: 2 | I29: 1 | K29: 1
B30: 24 | C30: 01 | D30: 24 | F30: 10124 | G30: =IFERROR(INDEX(학생명렬!B:B,MATCH(F30,학생명렬!A:A,0),),"") -> 도현아 | H30: 2 | M30: 1 | N30: 1
B31: 25 | C31: 01 | D31: 25 | F31: 10125 | G31: =IFERROR(INDEX(학생명렬!B:B,MATCH(F31,학생명렬!A:A,0),),"") -> 나상원 | H31: 0
B32: 26 | C32: 01 | D32: 26 | F32: 10126 | G32: =IFERROR(INDEX(학생명렬!B:B,MATCH(F32,학생명렬!A:A,0),),"") -> 강재경 | H32: 0
B33: 27 | C33: 01 | D33: 27 | F33: 10127 | G33: =IFERROR(INDEX(학생명렬!B:B,MATCH(F33,학생명렬!A:A,0),),"") -> 주다정 | H33: 0
B34: 28 | C34: 01 | D34: 28 | F34: 10128 | G34: =IFERROR(INDEX(학생명렬!B:B,MATCH(F34,학생명렬!A:A,0),),"") -> 백양리 | H34: 0
B35: 29 | C35: 01 | D35: 29 | F35: 10129 | G35: =IFERROR(INDEX(학생명렬!B:B,MATCH(F35,학생명렬!A:A,0),),"") -> 임희언 | H35: 0
B36: 30 | C36: 01 | D36: 30 | F36: 10130 | G36: =IFERROR(INDEX(학생명렬!B:B,MATCH(F36,학생명렬!A:A,0),),"") -> 박윤비 | H36: 2 | I36: 1 | N36: 1
B37: 31 | C37: 01 | D37: 31 | F37: 10131 | G37: =IFERROR(INDEX(학생명렬!B:B,MATCH(F37,학생명렬!A:A,0),),"") -> 지슬임 | H37: 2 | N37: 1 | O37: 1
B38: 32 | C38: 01 | D38: 32 | F38: 10132 | G38: =IFERROR(INDEX(학생명렬!B:B,MATCH(F38,학생명렬!A:A,0),),"") -> 권병운 | H38: 0
B39: 33 | C39: 01 | D39: 33 | F39: 10133 | G39: =IFERROR(INDEX(학생명렬!B:B,MATCH(F39,학생명렬!A:A,0),),"") -> 배혜령 | H39: 0
B40: 34 | C40: 01 | D40: 34 | F40: 10134 | G40: =IFERROR(INDEX(학생명렬!B:B,MATCH(F40,학생명렬!A:A,0),),"") -> 유윤이 | H40: 0
B41: 35 | C41: 01 | D41: 35 | F41: 10135 | G41: =IFERROR(INDEX(학생명렬!B:B,MATCH(F41,학생명렬!A:A,0),),"") -> 석여옥 | H41: 0
B42: 36 | C42: 01 | D42: 36 | F42: 10136 | G42: =IFERROR(INDEX(학생명렬!B:B,MATCH(F42,학생명렬!A:A,0),),"") -> 유다채 | H42: 0
B43: 37 | C43: 01 | D43: 37 | F43: 10137 | G43: =IFERROR(INDEX(학생명렬!B:B,MATCH(F43,학생명렬!A:A,0),),"") ->  | H43: 0
B44: 38 | C44: 01 | D44: 38 | F44: 10138 | G44: =IFERROR(INDEX(학생명렬!B:B,MATCH(F44,학생명렬!A:A,0),),"") ->  | H44: 0
B45: 39 | C45: 01 | D45: 39 | F45: 10139 | G45: =IFERROR(INDEX(학생명렬!B:B,MATCH(F45,학생명렬!A:A,0),),"") ->  | H45: 0
B46: 40 | C46: 01 | D46: 40 | F46: 10140 | G46: =IFERROR(INDEX(학생명렬!B:B,MATCH(F46,학생명렬!A:A,0),),"") ->  | H46: 0
B47: 41 | C47: 01 | D47: 41 | F47: 10141 | G47: =IFERROR(INDEX(학생명렬!B:B,MATCH(F47,학생명렬!A:A,0),),"") ->  | H47: 0
B48: 42 | C48: 01 | D48: 42 | F48: 10142 | G48: =IFERROR(INDEX(학생명렬!B:B,MATCH(F48,학생명렬!A:A,0),),"") ->  | H48: 0
B49: 43 | C49: 01 | D49: 43 | F49: 10143 | G49: =IFERROR(INDEX(학생명렬!B:B,MATCH(F49,학생명렬!A:A,0),),"") ->  | H49: 0
B50: 44 | C50: 01 | D50: 44 | F50: 10144 | G50: =IFERROR(INDEX(학생명렬!B:B,MATCH(F50,학생명렬!A:A,0),),"") ->  | H50: 0
B51: 45 | C51: 01 | D51: 45 | F51: 10145 | G51: =IFERROR(INDEX(학생명렬!B:B,MATCH(F51,학생명렬!A:A,0),),"") ->  | H51: 0
B52: 46 | C52: 01 | D52: 46 | F52: 10146 | G52: =IFERROR(INDEX(학생명렬!B:B,MATCH(F52,학생명렬!A:A,0),),"") ->  | H52: 0
B53: 47 | C53: 01 | D53: 47 | F53: 10147 | G53: =IFERROR(INDEX(학생명렬!B:B,MATCH(F53,학생명렬!A:A,0),),"") ->  | H53: 0
B54: 48 | C54: 01 | D54: 48 | F54: 10148 | G54: =IFERROR(INDEX(학생명렬!B:B,MATCH(F54,학생명렬!A:A,0),),"") ->  | H54: 0
B55: 49 | C55: 01 | D55: 49 | F55: 10149 | G55: =IFERROR(INDEX(학생명렬!B:B,MATCH(F55,학생명렬!A:A,0),),"") ->  | H55: 0
B56: 50 | C56: 01 | D56: 50 | F56: 10150 | G56: =IFERROR(INDEX(학생명렬!B:B,MATCH(F56,학생명렬!A:A,0),),"") ->  | H56: 0
B57: 1 | C57: 02 | D57: 01 | F57: 10201 | G57: =IFERROR(INDEX(학생명렬!B:B,MATCH(F57,학생명렬!A:A,0),),"") -> 곽성원 | H57: 0 | BG57: =INT(MID(F57,2,2)) -> 2 | BI57: =COUNTIF(H57:H106,">0") -> 15 | BJ57: =BJ7 -> 명 신청 | BK57: =BG57 -> 2 | BL57: 1 | BM57: =COUNTIF(H57:H106,BL57) -> 0 | BN57: 5 | BO57: =COUNTIF(H57:H106,BN57) -> 0
B58: 2 | C58: 02 | D58: 02 | F58: 10202 | G58: =IFERROR(INDEX(학생명렬!B:B,MATCH(F58,학생명렬!A:A,0),),"") -> 송승효 | H58: 0 | BI58: =SUM(H57:H106) -> 34 | BJ58: =BJ8 -> 개 강좌 | BL58: 2 | BM58: =COUNTIF(H57:H106,BL58) -> 12 | BN58: 6 | BO58: =COUNTIF(H57:H106,BN58) -> 0
B59: 3 | C59: 02 | D59: 03 | F59: 10203 | G59: =IFERROR(INDEX(학생명렬!B:B,MATCH(F59,학생명렬!A:A,0),),"") -> 추병진 | H59: 0 | BL59: 3 | BM59: =COUNTIF(H57:H106,BL59) -> 2 | BN59: 7 | BO59: =COUNTIF(H57:H106,BN59) -> 0
B60: 4 | C60: 02 | D60: 04 | F60: 10204 | G60: =IFERROR(INDEX(학생명렬!B:B,MATCH(F60,학생명렬!A:A,0),),"") -> 편상름 | H60: 0 | BL60: 4 | BM60: =COUNTIF(H57:H106,BL60) -> 1 | BN60: 8 | BO60: =COUNTIF(H57:H106,BN60) -> 0
B61: 5 | C61: 02 | D61: 05 | F61: 10205 | G61: =IFERROR(INDEX(학생명렬!B:B,MATCH(F61,학생명렬!A:A,0),),"") -> 서비림 | H61: 2 | L61: 1 | O61: 1
B62: 6 | C62: 02 | D62: 06 | F62: 10206 | G62: =IFERROR(INDEX(학생명렬!B:B,MATCH(F62,학생명렬!A:A,0),),"") -> 염서정 | H62: 2 | M62: 1 | O62: 1 | BG62: 전체 | BI62: =COUNTIF(H57:H556,">0") -> 105 | BJ62: =BJ57 -> 명 신청 | BK62: =BG62 -> 전체 | BL62: 1 | BM62: =COUNTIF($H$7:$H$506,BL62) -> 3 | BN62: 5 | BO62: =COUNTIF($H$7:$H$506,BN62) -> 0
B63: 7 | C63: 02 | D63: 07 | F63: 10207 | G63: =IFERROR(INDEX(학생명렬!B:B,MATCH(F63,학생명렬!A:A,0),),"") -> 백가리 | H63: 0 | BI63: =SUM(H57:H556) -> 243 | BJ63: =BJ58 -> 개 강좌 | BL63: 2 | BM63: =COUNTIF($H$7:$H$506,BL63) -> 82 | BN63: 6 | BO63: 0
B64: 8 | C64: 02 | D64: 08 | F64: 10208 | G64: =IFERROR(INDEX(학생명렬!B:B,MATCH(F64,학생명렬!A:A,0),),"") -> 강서율 | H64: 0 | BL64: 3 | BM64: 23 | BN64: 7 | BO64: 0
B65: 9 | C65: 02 | D65: 09 | F65: 10209 | G65: =IFERROR(INDEX(학생명렬!B:B,MATCH(F65,학생명렬!A:A,0),),"") -> 탁도희 | H65: 2 | I65: 1 | N65: 1 | BL65: 4 | BM65: 7 | BN65: 8 | BO65: 0
B66: 10 | C66: 02 | D66: 10 | F66: 10210 | G66: =IFERROR(INDEX(학생명렬!B:B,MATCH(F66,학생명렬!A:A,0),),"") -> 윤다인 | H66: 0
B67: 11 | C67: 02 | D67: 11 | F67: 10211 | G67: =IFERROR(INDEX(학생명렬!B:B,MATCH(F67,학생명렬!A:A,0),),"") -> 구나영 | H67: 2 | M67: 1 | N67: 1
B68: 12 | C68: 02 | D68: 12 | F68: 10212 | G68: =IFERROR(INDEX(학생명렬!B:B,MATCH(F68,학생명렬!A:A,0),),"") -> 나미한 | H68: 2 | J68: 1 | N68: 1
B69: 13 | C69: 02 | D69: 13 | F69: 10213 | G69: =IFERROR(INDEX(학생명렬!B:B,MATCH(F69,학생명렬!A:A,0),),"") -> 배진준 | H69: 0
B70: 14 | C70: 02 | D70: 14 | F70: 10214 | G70: =IFERROR(INDEX(학생명렬!B:B,MATCH(F70,학생명렬!A:A,0),),"") -> 안경은 | H70: 3 | J70: 1 | K70: 1 | O70: 1
B71: 15 | C71: 02 | D71: 15 | F71: 10215 | G71: =IFERROR(INDEX(학생명렬!B:B,MATCH(F71,학생명렬!A:A,0),),"") -> 표률신 | H71: =IF(SUM(I71:BF71)=0,0,SUM(I71:BF71)) -> 2 | I71: 1 | J71: 1
B72: =IF(MOD(ROW()-6,50)=0,50,MOD(ROW()-6,50)) -> 16 | C72: =IF(LEN(IF(B72=1,C71+1,C71))=1,0&IF(B72=1,C71+1,C71),IF(B72=1,C71+1,C71)) -> 02 | D72: =IF(LEN(B72)=1,0&B72,B72) -> 16 | F72: =INT($A$6&C72&D72) -> 10216 | G72: =IFERROR(INDEX(학생명렬!B:B,MATCH(F72,학생명렬!A:A,0),),"") -> 양현송 | H72: 2 | J72: 1 | N72: 1
B73: 17 | C73: 02 | D73: 17 | F73: 10217 | G73: =IFERROR(INDEX(학생명렬!B:B,MATCH(F73,학생명렬!A:A,0),),"") -> 허해소 | H73: 2 | I73: 1 | O73: 1
B74: 18 | C74: 02 | D74: 18 | F74: 10218 | G74: =IFERROR(INDEX(학생명렬!B:B,MATCH(F74,학생명렬!A:A,0),),"") -> 서유호 | H74: 0
B75: 19 | C75: 02 | D75: 19 | F75: 10219 | G75: =IFERROR(INDEX(학생명렬!B:B,MATCH(F75,학생명렬!A:A,0),),"") -> 유주세 | H75: 0
B76: 20 | C76: 02 | D76: 20 | F76: 10220 | G76: =IFERROR(INDEX(학생명렬!B:B,MATCH(F76,학생명렬!A:A,0),),"") -> 석상인 | H76: 2 | J76: 1 | M76: 1
B77: 21 | C77: 02 | D77: 21 | F77: 10221 | G77: =IFERROR(INDEX(학생명렬!B:B,MATCH(F77,학생명렬!A:A,0),),"") -> 류영빈 | H77: 0
B78: 22 | C78: 02 | D78: 22 | F78: 10222 | G78: =IFERROR(INDEX(학생명렬!B:B,MATCH(F78,학생명렬!A:A,0),),"") -> 신채현 | H78: 0
B79: 23 | C79: 02 | D79: 23 | F79: 10223 | G79: =IFERROR(INDEX(학생명렬!B:B,MATCH(F79,학생명렬!A:A,0),),"") -> 백동교 | H79: 0
B80: 24 | C80: 02 | D80: 24 | F80: 10224 | G80: =IFERROR(INDEX(학생명렬!B:B,MATCH(F80,학생명렬!A:A,0),),"") -> 조근린 | H80: 2 | J80: 1 | L80: 1
B81: 25 | C81: 02 | D81: 25 | F81: 10225 | G81: =IFERROR(INDEX(학생명렬!B:B,MATCH(F81,학생명렬!A:A,0),),"") -> 류송미 | H81: 0
B82: 26 | C82: 02 | D82: 26 | F82: 10226 | G82: =IFERROR(INDEX(학생명렬!B:B,MATCH(F82,학생명렬!A:A,0),),"") -> 송주한 | H82: 0
B83: 27 | C83: 02 | D83: 27 | F83: 10227 | G83: =IFERROR(INDEX(학생명렬!B:B,MATCH(F83,학생명렬!A:A,0),),"") -> 구솔효 | H83: 0
B84: 28 | C84: 02 | D84: 28 | F84: 10228 | G84: =IFERROR(INDEX(학생명렬!B:B,MATCH(F84,학생명렬!A:A,0),),"") -> 엄초재 | H84: 2 | L84: 1 | O84: 1
B85: 29 | C85: 02 | D85: 29 | F85: 10229 | G85: =IFERROR(INDEX(학생명렬!B:B,MATCH(F85,학생명렬!A:A,0),),"") -> 석지름 | H85: 0
B86: 30 | C86: 02 | D86: 30 | F86: 10230 | G86: =IFERROR(INDEX(학생명렬!B:B,MATCH(F86,학생명렬!A:A,0),),"") -> 은병완 | H86: 0
B87: 31 | C87: 02 | D87: 31 | F87: 10231 | G87: =IFERROR(INDEX(학생명렬!B:B,MATCH(F87,학생명렬!A:A,0),),"") -> 엄슬하 | H87: 3 | J87: 1 | M87: 1 | O87: 1
B88: 32 | C88: 02 | D88: 32 | F88: 10232 | G88: =IFERROR(INDEX(학생명렬!B:B,MATCH(F88,학생명렬!A:A,0),),"") -> 최희선 | H88: 4 | J88: 1 | K88: 1 | L88: 1 | N88: 1
B89: 33 | C89: 02 | D89: 33 | F89: 10233 | G89: =IFERROR(INDEX(학생명렬!B:B,MATCH(F89,학생명렬!A:A,0),),"") -> 우보기 | H89: 0
B90: 34 | C90: 02 | D90: 34 | F90: 10234 | G90: =IFERROR(INDEX(학생명렬!B:B,MATCH(F90,학생명렬!A:A,0),),"") -> 김김수 | H90: 2 | N90: 1 | O90: 1
B91: 35 | C91: 02 | D91: 35 | F91: 10235 | G91: =IFERROR(INDEX(학생명렬!B:B,MATCH(F91,학생명렬!A:A,0),),"") -> 한고빈 | H91: 0
B92: 36 | C92: 02 | D92: 36 | F92: 10236 | G92: =IFERROR(INDEX(학생명렬!B:B,MATCH(F92,학생명렬!A:A,0),),"") -> 류지휘 | H92: 0
B93: 37 | C93: 02 | D93: 37 | F93: 10237 | G93: =IFERROR(INDEX(학생명렬!B:B,MATCH(F93,학생명렬!A:A,0),),"") -> 변희민 | H93: 0
B94: 38 | C94: 02 | D94: 38 | F94: 10238 | G94: =IFERROR(INDEX(학생명렬!B:B,MATCH(F94,학생명렬!A:A,0),),"") -> 여규안 | H94: 0
B95: 39 | C95: 02 | D95: 39 | F95: 10239 | G95: =IFERROR(INDEX(학생명렬!B:B,MATCH(F95,학생명렬!A:A,0),),"") ->  | H95: 0
B96: 40 | C96: 02 | D96: 40 | F96: 10240 | G96: =IFERROR(INDEX(학생명렬!B:B,MATCH(F96,학생명렬!A:A,0),),"") ->  | H96: 0
B97: 41 | C97: 02 | D97: 41 | F97: 10241 | G97: =IFERROR(INDEX(학생명렬!B:B,MATCH(F97,학생명렬!A:A,0),),"") ->  | H97: 0
B98: 42 | C98: 02 | D98: 42 | F98: 10242 | G98: =IFERROR(INDEX(학생명렬!B:B,MATCH(F98,학생명렬!A:A,0),),"") ->  | H98: 0
B99: 43 | C99: 02 | D99: 43 | F99: 10243 | G99: =IFERROR(INDEX(학생명렬!B:B,MATCH(F99,학생명렬!A:A,0),),"") ->  | H99: 0
B100: 44 | C100: 02 | D100: 44 | F100: 10244 | G100: =IFERROR(INDEX(학생명렬!B:B,MATCH(F100,학생명렬!A:A,0),),"") ->  | H100: 0
B101: 45 | C101: 02 | D101: 45 | F101: 10245 | G101: =IFERROR(INDEX(학생명렬!B:B,MATCH(F101,학생명렬!A:A,0),),"") ->  | H101: 0
B102: 46 | C102: 02 | D102: 46 | F102: 10246 | G102: =IFERROR(INDEX(학생명렬!B:B,MATCH(F102,학생명렬!A:A,0),),"") ->  | H102: 0
B103: 47 | C103: 02 | D103: 47 | F103: 10247 | G103: =IFERROR(INDEX(학생명렬!B:B,MATCH(F103,학생명렬!A:A,0),),"") ->  | H103: 0
B104: 48 | C104: 02 | D104: 48 | F104: 10248 | G104: =IFERROR(INDEX(학생명렬!B:B,MATCH(F104,학생명렬!A:A,0),),"") ->  | H104: 0
B105: 49 | C105: 02 | D105: 49 | F105: 10249 | G105: =IFERROR(INDEX(학생명렬!B:B,MATCH(F105,학생명렬!A:A,0),),"") ->  | H105: 0
B106: 50 | C106: 02 | D106: 50 | F106: 10250 | G106: =IFERROR(INDEX(학생명렬!B:B,MATCH(F106,학생명렬!A:A,0),),"") ->  | H106: 0
B107: 1 | C107: 03 | D107: 01 | F107: 10301 | G107: =IFERROR(INDEX(학생명렬!B:B,MATCH(F107,학생명렬!A:A,0),),"") -> 우재당 | H107: 0 | BG107: =INT(MID(F107,2,2)) -> 3 | BI107: =COUNTIF(H107:H156,">0") -> 8 | BJ107: =BJ57 -> 명 신청 | BK107: =BG107 -> 3 | BL107: 1 | BM107: =COUNTIF(H107:H156,BL107) -> 0 | BN107: 5 | BO107: =COUNTIF(H107:H156,BN107) -> 0
B108: 2 | C108: 03 | D108: 02 | F108: 10302 | G108: =IFERROR(INDEX(학생명렬!B:B,MATCH(F108,학생명렬!A:A,0),),"") -> 신규유 | H108: 0 | BI108: =SUM(H107:H156) -> 16 | BJ108: =BJ58 -> 개 강좌 | BL108: 2 | BM108: =COUNTIF(H107:H156,BL108) -> 8 | BN108: 6 | BO108: =COUNTIF(H107:H156,BN108) -> 0
B109: 3 | C109: 03 | D109: 03 | F109: 10303 | G109: =IFERROR(INDEX(학생명렬!B:B,MATCH(F109,학생명렬!A:A,0),),"") -> 오세리 | H109: 0 | BL109: 3 | BM109: =COUNTIF(H107:H156,BL109) -> 0 | BN109: 7 | BO109: =COUNTIF(H107:H156,BN109) -> 0
B110: 4 | C110: 03 | D110: 04 | F110: 10304 | G110: =IFERROR(INDEX(학생명렬!B:B,MATCH(F110,학생명렬!A:A,0),),"") -> 주윤주 | H110: 2 | J110: 1 | O110: 1 | BL110: 4 | BM110: =COUNTIF(H107:H156,BL110) -> 0 | BN110: 8 | BO110: =COUNTIF(H107:H156,BN110) -> 0
B111: 5 | C111: 03 | D111: 05 | F111: 10305 | G111: =IFERROR(INDEX(학생명렬!B:B,MATCH(F111,학생명렬!A:A,0),),"") -> 엄상선 | H111: 0
B112: 6 | C112: 03 | D112: 06 | F112: 10306 | G112: =IFERROR(INDEX(학생명렬!B:B,MATCH(F112,학생명렬!A:A,0),),"") -> 구솔임 | H112: 2 | I112: 1 | P112: 1 | BG112: 전체 | BI112: =COUNTIF(H107:H606,">0") -> 90 | BJ112: =BJ107 -> 명 신청 | BK112: =BG112 -> 전체 | BL112: 1 | BM112: =COUNTIF($H$7:$H$506,BL112) -> 3 | BN112: 5 | BO112: =COUNTIF($H$7:$H$506,BN112) -> 0
B113: 7 | C113: 03 | D113: 07 | F113: 10307 | G113: =IFERROR(INDEX(학생명렬!B:B,MATCH(F113,학생명렬!A:A,0),),"") -> 여조성 | H113: 0 | BI113: =SUM(H107:H606) -> 209 | BJ113: =BJ108 -> 개 강좌 | BL113: 2 | BM113: =COUNTIF($H$7:$H$506,BL113) -> 82 | BN113: 6 | BO113: 0
B114: 8 | C114: 03 | D114: 08 | F114: 10308 | G114: =IFERROR(INDEX(학생명렬!B:B,MATCH(F114,학생명렬!A:A,0),),"") -> 염의예 | H114: 0 | BL114: 3 | BM114: 23 | BN114: 7 | BO114: 0
B115: 9 | C115: 03 | D115: 09 | F115: 10309 | G115: =IFERROR(INDEX(학생명렬!B:B,MATCH(F115,학생명렬!A:A,0),),"") -> 양재소 | H115: 0 | BL115: 4 | BM115: 7 | BN115: 8 | BO115: 0
B116: 10 | C116: 03 | D116: 10 | F116: 10310 | G116: =IFERROR(INDEX(학생명렬!B:B,MATCH(F116,학생명렬!A:A,0),),"") -> 민여언 | H116: 0
B117: 11 | C117: 03 | D117: 11 | F117: 10311 | G117: =IFERROR(INDEX(학생명렬!B:B,MATCH(F117,학생명렬!A:A,0),),"") -> 박태교 | H117: 0
B118: 12 | C118: 03 | D118: 12 | F118: 10312 | G118: =IFERROR(INDEX(학생명렬!B:B,MATCH(F118,학생명렬!A:A,0),),"") -> 하소림 | H118: 0
B119: 13 | C119: 03 | D119: 13 | F119: 10313 | G119: =IFERROR(INDEX(학생명렬!B:B,MATCH(F119,학생명렬!A:A,0),),"") -> 정동늘 | H119: 0
B120: 14 | C120: 03 | D120: 14 | F120: 10314 | G120: =IFERROR(INDEX(학생명렬!B:B,MATCH(F120,학생명렬!A:A,0),),"") -> 오근송 | H120: 0
B121: 15 | C121: 03 | D121: 15 | F121: 10315 | G121: =IFERROR(INDEX(학생명렬!B:B,MATCH(F121,학생명렬!A:A,0),),"") -> 허은당 | H121: 0
B122: 16 | C122: 03 | D122: 16 | F122: 10316 | G122: =IFERROR(INDEX(학생명렬!B:B,MATCH(F122,학생명렬!A:A,0),),"") -> 추경리 | H122: 0
B123: 17 | C123: 03 | D123: 17 | F123: 10317 | G123: =IFERROR(INDEX(학생명렬!B:B,MATCH(F123,학생명렬!A:A,0),),"") -> 도우미 | H123: 0
B124: 18 | C124: 03 | D124: 18 | F124: 10318 | G124: =IFERROR(INDEX(학생명렬!B:B,MATCH(F124,학생명렬!A:A,0),),"") -> 손동운 | H124: 0
B125: 19 | C125: 03 | D125: 19 | F125: 10319 | G125: =IFERROR(INDEX(학생명렬!B:B,MATCH(F125,학생명렬!A:A,0),),"") -> 석민늘 | H125: 2 | I125: 1 | O125: 1
B126: 20 | C126: 03 | D126: 20 | F126: 10320 | G126: =IFERROR(INDEX(학생명렬!B:B,MATCH(F126,학생명렬!A:A,0),),"") -> 안미원 | H126: 0
B127: 21 | C127: 03 | D127: 21 | F127: 10321 | G127: =IFERROR(INDEX(학생명렬!B:B,MATCH(F127,학생명렬!A:A,0),),"") -> 공상언 | H127: 2 | K127: 1 | P127: 1
B128: 22 | C128: 03 | D128: 22 | F128: 10322 | G128: =IFERROR(INDEX(학생명렬!B:B,MATCH(F128,학생명렬!A:A,0),),"") -> 곽우진 | H128: 2 | I128: 1 | P128: 1
B129: 23 | C129: 03 | D129: 23 | F129: 10323 | G129: =IFERROR(INDEX(학생명렬!B:B,MATCH(F129,학생명렬!A:A,0),),"") -> 신채래 | H129: 0
B130: 24 | C130: 03 | D130: 24 | F130: 10324 | G130: =IFERROR(INDEX(학생명렬!B:B,MATCH(F130,학생명렬!A:A,0),),"") -> 탁원유 | H130: 0
B131: 25 | C131: 03 | D131: 25 | F131: 10325 | G131: =IFERROR(INDEX(학생명렬!B:B,MATCH(F131,학생명렬!A:A,0),),"") -> 강우희 | H131: 0
B132: 26 | C132: 03 | D132: 26 | F132: 10326 | G132: =IFERROR(INDEX(학생명렬!B:B,MATCH(F132,학생명렬!A:A,0),),"") -> 은상안 | H132: 2 | M132: 1 | N132: 1
B133: 27 | C133: 03 | D133: 27 | F133: 10327 | G133: =IFERROR(INDEX(학생명렬!B:B,MATCH(F133,학생명렬!A:A,0),),"") -> 황주민 | H133: 2 | I133: 1 | P133: 1
B134: 28 | C134: 03 | D134: 28 | F134: 10328 | G134: =IFERROR(INDEX(학생명렬!B:B,MATCH(F134,학생명렬!A:A,0),),"") -> 엄민신 | H134: 0
B135: 29 | C135: 03 | D135: 29 | F135: 10329 | G135: =IFERROR(INDEX(학생명렬!B:B,MATCH(F135,학생명렬!A:A,0),),"") -> 노교솔 | H135: =IF(SUM(I135:BF135)=0,0,SUM(I135:BF135)) -> 0
B136: =IF(MOD(ROW()-6,50)=0,50,MOD(ROW()-6,50)) -> 30 | C136: =IF(LEN(IF(B136=1,C135+1,C135))=1,0&IF(B136=1,C135+1,C135),IF(B136=1,C135+1,C135)) -> 03 | D136: =IF(LEN(B136)=1,0&B136,B136) -> 30 | F136: =INT($A$6&C136&D136) -> 10330 | G136: =IFERROR(INDEX(학생명렬!B:B,MATCH(F136,학생명렬!A:A,0),),"") -> 원원은 | H136: 2 | J136: 1 | P136: 1
B137: 31 | C137: 03 | D137: 31 | F137: 10331 | G137: =IFERROR(INDEX(학생명렬!B:B,MATCH(F137,학생명렬!A:A,0),),"") -> 조재정 | H137: 0
B138: 32 | C138: 03 | D138: 32 | F138: 10332 | G138: =IFERROR(INDEX(학생명렬!B:B,MATCH(F138,학생명렬!A:A,0),),"") -> 곽미란 | H138: 0
B139: 33 | C139: 03 | D139: 33 | F139: 10333 | G139: =IFERROR(INDEX(학생명렬!B:B,MATCH(F139,학생명렬!A:A,0),),"") -> 방동지 | H139: 0
B140: 34 | C140: 03 | D140: 34 | F140: 10334 | G140: =IFERROR(INDEX(학생명렬!B:B,MATCH(F140,학생명렬!A:A,0),),"") -> 최교수 | H140: 0
B141: 35 | C141: 03 | D141: 35 | F141: 10335 | G141: =IFERROR(INDEX(학생명렬!B:B,MATCH(F141,학생명렬!A:A,0),),"") -> 전시린 | H141: 0
B142: 36 | C142: 03 | D142: 36 | F142: 10336 | G142: =IFERROR(INDEX(학생명렬!B:B,MATCH(F142,학생명렬!A:A,0),),"") ->  | H142: 0
B143: 37 | C143: 03 | D143: 37 | F143: 10337 | G143: =IFERROR(INDEX(학생명렬!B:B,MATCH(F143,학생명렬!A:A,0),),"") ->  | H143: 0
B144: 38 | C144: 03 | D144: 38 | F144: 10338 | G144: =IFERROR(INDEX(학생명렬!B:B,MATCH(F144,학생명렬!A:A,0),),"") ->  | H144: 0
B145: 39 | C145: 03 | D145: 39 | F145: 10339 | G145: =IFERROR(INDEX(학생명렬!B:B,MATCH(F145,학생명렬!A:A,0),),"") ->  | H145: 0
B146: 40 | C146: 03 | D146: 40 | F146: 10340 | G146: =IFERROR(INDEX(학생명렬!B:B,MATCH(F146,학생명렬!A:A,0),),"") ->  | H146: 0
B147: 41 | C147: 03 | D147: 41 | F147: 10341 | G147: =IFERROR(INDEX(학생명렬!B:B,MATCH(F147,학생명렬!A:A,0),),"") ->  | H147: 0
B148: 42 | C148: 03 | D148: 42 | F148: 10342 | G148: =IFERROR(INDEX(학생명렬!B:B,MATCH(F148,학생명렬!A:A,0),),"") ->  | H148: 0
B149: 43 | C149: 03 | D149: 43 | F149: 10343 | G149: =IFERROR(INDEX(학생명렬!B:B,MATCH(F149,학생명렬!A:A,0),),"") ->  | H149: 0
B150: 44 | C150: 03 | D150: 44 | F150: 10344 | G150: =IFERROR(INDEX(학생명렬!B:B,MATCH(F150,학생명렬!A:A,0),),"") ->  | H150: 0
B151: 45 | C151: 03 | D151: 45 | F151: 10345 | G151: =IFERROR(INDEX(학생명렬!B:B,MATCH(F151,학생명렬!A:A,0),),"") ->  | H151: 0
B152: 46 | C152: 03 | D152: 46 | F152: 10346 | G152: =IFERROR(INDEX(학생명렬!B:B,MATCH(F152,학생명렬!A:A,0),),"") ->  | H152: 0
B153: 47 | C153: 03 | D153: 47 | F153: 10347 | G153: =IFERROR(INDEX(학생명렬!B:B,MATCH(F153,학생명렬!A:A,0),),"") ->  | H153: 0
B154: 48 | C154: 03 | D154: 48 | F154: 10348 | G154: =IFERROR(INDEX(학생명렬!B:B,MATCH(F154,학생명렬!A:A,0),),"") ->  | H154: 0
B155: 49 | C155: 03 | D155: 49 | F155: 10349 | G155: =IFERROR(INDEX(학생명렬!B:B,MATCH(F155,학생명렬!A:A,0),),"") ->  | H155: 0
B156: 50 | C156: 03 | D156: 50 | F156: 10350 | G156: =IFERROR(INDEX(학생명렬!B:B,MATCH(F156,학생명렬!A:A,0),),"") ->  | H156: 0
B157: 1 | C157: 04 | D157: 01 | F157: 10401 | G157: =IFERROR(INDEX(학생명렬!B:B,MATCH(F157,학생명렬!A:A,0),),"") -> 원률솔 | H157: 0 | BG157: =INT(MID(F157,2,2)) -> 4 | BI157: =COUNTIF(H157:H206,">0") -> 9 | BJ157: =BJ107 -> 명 신청 | BK157: =BG157 -> 4 | BL157: 1 | BM157: =COUNTIF(H157:H206,BL157) -> 0 | BN157: 5 | BO157: =COUNTIF(H157:H206,BN157) -> 0
B158: 2 | C158: 04 | D158: 02 | F158: 10402 | G158: =IFERROR(INDEX(학생명렬!B:B,MATCH(F158,학생명렬!A:A,0),),"") -> 한영주 | H158: 0 | BI158: =SUM(H157:H206) -> 19 | BJ158: =BJ108 -> 개 강좌 | BL158: 2 | BM158: =COUNTIF(H157:H206,BL158) -> 8 | BN158: 6 | BO158: =COUNTIF(H157:H206,BN158) -> 0
B159: 3 | C159: 04 | D159: 03 | F159: 10403 | G159: =IFERROR(INDEX(학생명렬!B:B,MATCH(F159,학생명렬!A:A,0),),"") -> 한윤이 | H159: 0 | BL159: 3 | BM159: =COUNTIF(H157:H206,BL159) -> 1 | BN159: 7 | BO159: =COUNTIF(H157:H206,BN159) -> 0
B160: 4 | C160: 04 | D160: 04 | F160: 10404 | G160: =IFERROR(INDEX(학생명렬!B:B,MATCH(F160,학생명렬!A:A,0),),"") -> 송해솔 | H160: 0 | BL160: 4 | BM160: =COUNTIF(H157:H206,BL160) -> 0 | BN160: 8 | BO160: =COUNTIF(H157:H206,BN160) -> 0
B161: 5 | C161: 04 | D161: 05 | F161: 10405 | G161: =IFERROR(INDEX(학생명렬!B:B,MATCH(F161,학생명렬!A:A,0),),"") -> 최진혜 | H161: 0
B162: 6 | C162: 04 | D162: 06 | F162: 10406 | G162: =IFERROR(INDEX(학생명렬!B:B,MATCH(F162,학생명렬!A:A,0),),"") -> 전태래 | H162: 0 | BG162: 전체 | BI162: =COUNTIF(H157:H656,">0") -> 82 | BJ162: =BJ157 -> 명 신청 | BK162: =BG162 -> 전체 | BL162: 1 | BM162: =COUNTIF($H$7:$H$506,BL162) -> 3 | BN162: 5 | BO162: =COUNTIF($H$7:$H$506,BN162) -> 0
B163: 7 | C163: 04 | D163: 07 | F163: 10407 | G163: =IFERROR(INDEX(학생명렬!B:B,MATCH(F163,학생명렬!A:A,0),),"") -> 이아린 | H163: 0 | BI163: =SUM(H157:H656) -> 193 | BJ163: =BJ158 -> 개 강좌 | BL163: 2 | BM163: =COUNTIF($H$7:$H$506,BL163) -> 82 | BN163: 6 | BO163: 0
B164: 8 | C164: 04 | D164: 08 | F164: 10408 | G164: =IFERROR(INDEX(학생명렬!B:B,MATCH(F164,학생명렬!A:A,0),),"") -> 최재호 | H164: 0 | BL164: 3 | BM164: 23 | BN164: 7 | BO164: 0
B165: 9 | C165: 04 | D165: 09 | F165: 10409 | G165: =IFERROR(INDEX(학생명렬!B:B,MATCH(F165,학생명렬!A:A,0),),"") -> 변영재 | H165: 0 | BL165: 4 | BM165: 7 | BN165: 8 | BO165: 0
B166: 10 | C166: 04 | D166: 10 | F166: 10410 | G166: =IFERROR(INDEX(학생명렬!B:B,MATCH(F166,학생명렬!A:A,0),),"") -> 박정이 | H166: 0
B167: 11 | C167: 04 | D167: 11 | F167: 10411 | G167: =IFERROR(INDEX(학생명렬!B:B,MATCH(F167,학생명렬!A:A,0),),"") -> 하영림 | H167: 0
B168: 12 | C168: 04 | D168: 12 | F168: 10412 | G168: =IFERROR(INDEX(학생명렬!B:B,MATCH(F168,학생명렬!A:A,0),),"") -> 도준신 | H168: 0
B169: 13 | C169: 04 | D169: 13 | F169: 10413 | G169: =IFERROR(INDEX(학생명렬!B:B,MATCH(F169,학생명렬!A:A,0),),"") -> 정도준 | H169: 3 | I169: 1 | K169: 1 | N169: 1
B170: 14 | C170: 04 | D170: 14 | F170: 10414 | G170: =IFERROR(INDEX(학생명렬!B:B,MATCH(F170,학생명렬!A:A,0),),"") -> 고정수 | H170: 0
B171: 15 | C171: 04 | D171: 15 | F171: 10415 | G171: =IFERROR(INDEX(학생명렬!B:B,MATCH(F171,학생명렬!A:A,0),),"") -> 이진유 | H171: 2 | I171: 1 | N171: 1
B172: 16 | C172: 04 | D172: 16 | F172: 10416 | G172: =IFERROR(INDEX(학생명렬!B:B,MATCH(F172,학생명렬!A:A,0),),"") -> 탁상당 | H172: 0
B173: 17 | C173: 04 | D173: 17 | F173: 10417 | G173: =IFERROR(INDEX(학생명렬!B:B,MATCH(F173,학생명렬!A:A,0),),"") -> 문영빈 | H173: 2 | I173: 1 | O173: 1
B174: 18 | C174: 04 | D174: 18 | F174: 10418 | G174: =IFERROR(INDEX(학생명렬!B:B,MATCH(F174,학생명렬!A:A,0),),"") -> 엄지선 | H174: 0
B175: 19 | C175: 04 | D175: 19 | F175: 10419 | G175: =IFERROR(INDEX(학생명렬!B:B,MATCH(F175,학생명렬!A:A,0),),"") -> 민한연 | H175: 2 | M175: 1 | N175: 1
B176: 20 | C176: 04 | D176: 20 | F176: 10420 | G176: =IFERROR(INDEX(학생명렬!B:B,MATCH(F176,학생명렬!A:A,0),),"") -> 한동완 | H176: 2 | K176: 1 | O176: 1
B177: 21 | C177: 04 | D177: 21 | F177: 10421 | G177: =IFERROR(INDEX(학생명렬!B:B,MATCH(F177,학생명렬!A:A,0),),"") -> 윤보채 | H177: 0
B178: 22 | C178: 04 | D178: 22 | F178: 10422 | G178: =IFERROR(INDEX(학생명렬!B:B,MATCH(F178,학생명렬!A:A,0),),"") -> 방혜란 | H178: 0
B179: 23 | C179: 04 | D179: 23 | F179: 10423 | G179: =IFERROR(INDEX(학생명렬!B:B,MATCH(F179,학생명렬!A:A,0),),"") -> 방유성 | H179: 0
B180: 24 | C180: 04 | D180: 24 | F180: 10424 | G180: =IFERROR(INDEX(학생명렬!B:B,MATCH(F180,학생명렬!A:A,0),),"") -> 나채래 | H180: 0
B181: 25 | C181: 04 | D181: 25 | F181: 10425 | G181: =IFERROR(INDEX(학생명렬!B:B,MATCH(F181,학생명렬!A:A,0),),"") -> 한순나 | H181: 2 | I181: 1 | P181: 1
B182: 26 | C182: 04 | D182: 26 | F182: 10426 | G182: =IFERROR(INDEX(학생명렬!B:B,MATCH(F182,학생명렬!A:A,0),),"") -> 신조송 | H182: 2 | I182: 1 | K182: 1
B183: 27 | C183: 04 | D183: 27 | F183: 10427 | G183: =IFERROR(INDEX(학생명렬!B:B,MATCH(F183,학생명렬!A:A,0),),"") -> 여해유 | H183: 0
B184: 28 | C184: 04 | D184: 28 | F184: 10428 | G184: =IFERROR(INDEX(학생명렬!B:B,MATCH(F184,학생명렬!A:A,0),),"") -> 김슬빈 | H184: 0
B185: 29 | C185: 04 | D185: 29 | F185: 10429 | G185: =IFERROR(INDEX(학생명렬!B:B,MATCH(F185,학생명렬!A:A,0),),"") -> 신송름 | H185: 0
B186: 30 | C186: 04 | D186: 30 | F186: 10430 | G186: =IFERROR(INDEX(학생명렬!B:B,MATCH(F186,학생명렬!A:A,0),),"") -> 송경림 | H186: 2 | I186: 1 | K186: 1
B187: 31 | C187: 04 | D187: 31 | F187: 10431 | G187: =IFERROR(INDEX(학생명렬!B:B,MATCH(F187,학생명렬!A:A,0),),"") -> 표솔안 | H187: 0
B188: 32 | C188: 04 | D188: 32 | F188: 10432 | G188: =IFERROR(INDEX(학생명렬!B:B,MATCH(F188,학생명렬!A:A,0),),"") -> 김미혜 | H188: 2 | J188: 1 | K188: 1
B189: 33 | C189: 04 | D189: 33 | F189: 10433 | G189: =IFERROR(INDEX(학생명렬!B:B,MATCH(F189,학생명렬!A:A,0),),"") -> 강교솔 | H189: 0
B190: 34 | C190: 04 | D190: 34 | F190: 10434 | G190: =IFERROR(INDEX(학생명렬!B:B,MATCH(F190,학생명렬!A:A,0),),"") -> 민나성 | H190: 0
B191: 35 | C191: 04 | D191: 35 | F191: 10435 | G191: =IFERROR(INDEX(학생명렬!B:B,MATCH(F191,학생명렬!A:A,0),),"") -> 안미미 | H191: 0
B192: 36 | C192: 04 | D192: 36 | F192: 10436 | G192: =IFERROR(INDEX(학생명렬!B:B,MATCH(F192,학생명렬!A:A,0),),"") -> 안순비 | H192: 0
B193: 37 | C193: 04 | D193: 37 | F193: 10437 | G193: =IFERROR(INDEX(학생명렬!B:B,MATCH(F193,학생명렬!A:A,0),),"") ->  | H193: 0
B194: 38 | C194: 04 | D194: 38 | F194: 10438 | G194: =IFERROR(INDEX(학생명렬!B:B,MATCH(F194,학생명렬!A:A,0),),"") ->  | H194: 0
B195: 39 | C195: 04 | D195: 39 | F195: 10439 | G195: =IFERROR(INDEX(학생명렬!B:B,MATCH(F195,학생명렬!A:A,0),),"") ->  | H195: 0
B196: 40 | C196: 04 | D196: 40 | F196: 10440 | G196: =IFERROR(INDEX(학생명렬!B:B,MATCH(F196,학생명렬!A:A,0),),"") ->  | H196: 0
B197: 41 | C197: 04 | D197: 41 | F197: 10441 | G197: =IFERROR(INDEX(학생명렬!B:B,MATCH(F197,학생명렬!A:A,0),),"") ->  | H197: 0
B198: 42 | C198: 04 | D198: 42 | F198: 10442 | G198: =IFERROR(INDEX(학생명렬!B:B,MATCH(F198,학생명렬!A:A,0),),"") ->  | H198: 0
B199: 43 | C199: 04 | D199: 43 | F199: 10443 | G199: =IFERROR(INDEX(학생명렬!B:B,MATCH(F199,학생명렬!A:A,0),),"") ->  | H199: =IF(SUM(I199:BF199)=0,0,SUM(I199:BF199)) -> 0
B200: =IF(MOD(ROW()-6,50)=0,50,MOD(ROW()-6,50)) -> 44 | C200: =IF(LEN(IF(B200=1,C199+1,C199))=1,0&IF(B200=1,C199+1,C199),IF(B200=1,C199+1,C199)) -> 04 | D200: =IF(LEN(B200)=1,0&B200,B200) -> 44 | F200: =INT($A$6&C200&D200) -> 10444 | G200: =IFERROR(INDEX(학생명렬!B:B,MATCH(F200,학생명렬!A:A,0),),"") ->  | H200: 0
... 308 more rows

Sheet 반배정
I1: 1 | J1: 2 | K1: 3 | L1: 4 | M1: 5 | N1: 6 | O1: 7 | P1: 8 | Q1: 9 | R1: 10 | S1: 11 | T1: 12 | U1: 13 | V1: 14 | W1: 15 | X1: 16 | Y1: 17 | Z1: 18 | AA1: 19 | AB1: 20 | AC1: 21 | AD1: 22 | AE1: 23 | AF1: 24 | AG1: 25 | AH1: 26 | AI1: 27 | AJ1: 28 | AK1: 29 | AL1: 30 | AM1: 31 | AN1: 32 | AO1: 33 | AP1: 34 | AQ1: 35 | AR1: 36 | AS1: 37 | AT1: 38 | AU1: 39 | AV1: 40 | AW1: 41 | AX1: 42 | AY1: 43 | AZ1: 44 | BA1: 45 | BB1: 46 | BC1: 47 | BD1: 48 | BE1: 49 | BF1: 50 | BI1: 1 | BJ1: 2 | BK1: 3 | BL1: 4 | BM1: 5 | BN1: 6 | BO1: 7 | BP1: 8 | BQ1: 9 | BR1: 10 | BS1: 11 | BT1: 12 | BU1: 13 | BV1: 14 | BW1: 15 | BX1: 16 | BY1: 17 | BZ1: 18 | CA1: 19 | CB1: 20 | CC1: 21 | CD1: 22 | CE1: 23 | CF1: 24 | CG1: 25 | CH1: 26 | CI1: 27 | CJ1: 28 | CK1: 29 | CL1: 30 | CM1: 31 | CN1: 32 | CO1: 33 | CP1: 34 | CQ1: 35 | CR1: 36 | CS1: 37 | CT1: 38 | CU1: 39 | CV1: 40 | CW1: 41 | CX1: 42 | CY1: 43 | CZ1: 44 | DA1: 45 | DB1: 46 | DC1: 47 | DD1: 48 | DE1: 49 | DF1: 50 | DL1: 1 | DM1: 2 | DN1: 3 | DO1: 4 | DP1: 5 | DQ1: 6 | DR1: 7 | DS1: 8 | DT1: 9 | DU1: 10 | DV1: 11 | DW1: 12 | DX1: 13 | DY1: 14 | DZ1: 15 | EA1: 16 | EB1: 17 | EC1: 18 | ED1: 19 | EE1: 20 | EF1: 21 | EG1: 22 | EH1: 23 | EI1: 24 | EJ1: 25 | EK1: 26 | EL1: 27 | EM1: 28 | EN1: 29 | EO1: 30 | EP1: 31 | EQ1: 32 | ER1: 33 | ES1: 34 | ET1: 35 | EU1: 36 | EV1: 37 | EW1: 38 | EX1: 39 | EY1: 40 | EZ1: 41 | FA1: 42 | FB1: 43 | FC1: 44 | FD1: 45 | FE1: 46 | FF1: 47 | FG1: 48 | FH1: 49 | FI1: 50 | FN1: 1 | FO1: 2 | FP1: 3 | FQ1: 4 | FR1: 5 | FS1: 6 | FT1: 7 | FU1: 8 | FV1: 9 | FW1: 10 | FX1: 11 | FY1: 12 | FZ1: 13 | GA1: 14 | GB1: 15 | GC1: 16 | GD1: 17 | GE1: 18 | GF1: 19 | GG1: 20 | GH1: 21 | GI1: 22 | GJ1: 23 | GK1: 24 | GL1: 25 | GM1: 26 | GN1: 27 | GO1: 28 | GP1: 29 | GQ1: 30 | GR1: 31 | GS1: 32 | GT1: 33 | GU1: 34 | GV1: 35 | GW1: 36 | GX1: 37 | GY1: 38 | GZ1: 39 | HA1: 40 | HB1: 41 | HC1: 42 | HD1: 43 | HE1: 44 | HF1: 45 | HG1: 46 | HH1: 47 | HI1: 48 | HJ1: 49 | HK1: 50 | HU1: 반편성 | JU1: 1 | JV1: 2 | JW1: 3 | JX1: 4 | JY1: 5 | JZ1: 6 | KA1: 7 | KB1: 8 | KC1: 9 | KD1: 10 | KE1: 11 | KF1: 12 | KG1: 13 | KH1: 14 | KI1: 15 | KJ1: 16 | KK1: 17 | KL1: 18 | KM1: 19 | KN1: 20 | KO1: 21 | KP1: 22 | KQ1: 23 | KR1: 24 | KS1: 25 | KT1: 26 | KU1: 27 | KV1: 28 | KW1: 29 | KX1: 30 | KY1: 31 | KZ1: 32 | LA1: 33 | LB1: 34 | LC1: 35 | LD1: 36 | LE1: 37 | LF1: 38 | LG1: 39 | LH1: 40 | LI1: 41 | LJ1: 42 | LK1: 43 | LL1: 44 | LM1: 45 | LN1: 46 | LO1: 47 | LP1: 48 | LQ1: 49 | LR1: 50 | LW1: 1 | LX1: 2 | LY1: 3 | LZ1: 4 | MA1: 5 | MB1: 6 | MC1: 7 | MD1: 8 | ME1: 9 | MF1: 10 | MG1: 11 | MH1: 12 | MI1: 13 | MJ1: 14 | MK1: 15 | ML1: 16 | MM1: 17 | MN1: 18 | MO1: 19 | MP1: 20 | MQ1: 21 | MR1: 22 | MS1: 23 | MT1: 24 | MU1: 25 | MV1: 26 | MW1: 27 | MX1: 28 | MY1: 29 | MZ1: 30 | NA1: 31 | NB1: 32 | NC1: 33 | ND1: 34 | NE1: 35 | NF1: 36 | NG1: 37 | NH1: 38 | NI1: 39 | NJ1: 40 | NK1: 41 | NL1: 42 | NM1: 43 | NN1: 44 | NO1: 45 | NP1: 46 | NQ1: 47 | NR1: 48 | NS1: 49 | NT1: 50 | NV1: 중복확인 | OE1: 반편성 | QM1: 1 | QN1: 2 | QO1: 3 | QP1: 4 | QQ1: 5 | QR1: 6 | QS1: 7 | QT1: 8 | QU1: 9 | QV1: 10 | QW1: 11 | QX1: 12 | QY1: 13 | QZ1: 14 | RA1: 15 | RB1: 16 | RC1: 17 | RD1: 18 | RE1: 19 | RF1: 20 | RG1: 21 | RH1: 22 | RI1: 23 | RJ1: 24 | RK1: 25 | RL1: 26 | RM1: 27 | RN1: 28 | RO1: 29 | RP1: 30 | RQ1: 31 | RR1: 32 | RS1: 33 | RT1: 34 | RU1: 35 | RV1: 36 | RW1: 37 | RX1: 38 | RY1: 39 | RZ1: 40 | SA1: 41 | SB1: 42 | SC1: 43 | SD1: 44 | SE1: 45 | SF1: 46 | SG1: 47 | SH1: 48 | SI1: 49 | SJ1: 50 | SL1: 오류검정 | SM1: 1 | SN1: 2 | SO1: 3 | SP1: 4 | SQ1: 5 | SR1: 6 | SS1: 7 | ST1: 8 | SU1: 9 | SV1: 10 | SW1: 11 | SX1: 12 | SY1: 13 | SZ1: 14 | TA1: 15 | TB1: 16 | TC1: 17 | TD1: 18 | TE1: 19 | TF1: 20 | TG1: 21 | TH1: 22 | TI1: 23 | TJ1: 24 | TK1: 25 | TL1: 26 | TM1: 27 | TN1: 28 | TO1: 29 | TP1: 30 | TQ1: 31 | TR1: 32 | TS1: 33 | TT1: 34 | TU1: 35 | TV1: 36 | TW1: 37 | TX1: 38 | TY1: 39 | TZ1: 40 | UA1: 41 | UB1: 42 | UC1: 43 | UD1: 44 | UE1: 45 | UF1: 46 | UG1: 47 | UH1: 48 | UI1: 49 | UJ1: 50 | UM1: 수동 | WQ1: 1 | WR1: 2 | WS1: 3 | WT1: 4 | WU1: 5 | WV1: 6 | WW1: 7 | WX1: 8 | WY1: 9 | WZ1: 10 | XA1: 11 | XB1: 12 | XC1: 13 | XD1: 14 | XE1: 15 | XF1: 16 | XG1: 17 | XH1: 18 | XI1: 19 | XJ1: 20 | XK1: 21 | XL1: 22 | XM1: 23 | XN1: 24 | XO1: 25 | XP1: 26 | XQ1: 27 | XR1: 28 | XS1: 29 | XT1: 30 | XU1: 31 | XV1: 32 | XW1: 33 | XX1: 34 | XY1: 35 | XZ1: 36 | YA1: 37 | YB1: 38 | YC1: 39 | YD1: 40 | YE1: 41 | YF1: 42 | YG1: 43 | YH1: 44 | YI1: 45 | YJ1: 46 | YK1: 47 | YL1: 48 | YM1: 49 | YN1: 50 | YX1: =IF(AND(H5=0,OF3=0),OE9,"") ->  | YY1: =MAX(YY2:YY3) -> 4 | ZI1: 1 | ZJ1: 2 | ZK1: 3 | ZL1: 4 | ZM1: 5 | ZN1: 6 | ZO1: 7 | ZP1: 8 | ZQ1: 9 | ZR1: 10 | ZS1: 11 | ZT1: 12 | ZU1: 13 | ZV1: 14 | ZW1: 15 | ZX1: 16 | ZY1: 17 | ZZ1: 18 | AAA1: 19 | AAB1: 20 | AAC1: 21 | AAD1: 22 | AAE1: 23 | AAF1: 24 | AAG1: 25 | AAH1: 26 | AAI1: 27 | AAJ1: 28 | AAK1: 29 | AAL1: 30 | AAM1: 31 | AAN1: 32 | AAO1: 33 | AAP1: 34 | AAQ1: 35 | AAR1: 36 | AAS1: 37 | AAT1: 38 | AAU1: 39 | AAV1: 40 | AAW1: 41 | AAX1: 42 | AAY1: 43 | AAZ1: 44 | ABA1: 45 | ABB1: 46 | ABC1: 47 | ABD1: 48 | ABE1: 49 | ABF1: 50 | ABK1: 1 | ABL1: 2 | ABM1: 3 | ABN1: 4 | ABO1: 5 | ABP1: 6 | ABQ1: 7 | ABR1: 8 | ABS1: 9 | ABT1: 10 | ABU1: 11 | ABV1: 12 | ABW1: 13 | ABX1: 14 | ABY1: 15 | ABZ1: 16 | ACA1: 17 | ACB1: 18 | ACC1: 19 | ACD1: 20 | ACE1: 21 | ACF1: 22 | ACG1: 23 | ACH1: 24 | ACI1: 25 | ACJ1: 26 | ACK1: 27 | ACL1: 28 | ACM1: 29 | ACN1: 30 | ACO1: 31 | ACP1: 32 | ACQ1: 33 | ACR1: 34 | ACS1: 35 | ACT1: 36 | ACU1: 37 | ACV1: 38 | ACW1: 39 | ACX1: 40 | ACY1: 41 | ACZ1: 42 | ADA1: 43 | ADB1: 44 | ADC1: 45 | ADD1: 46 | ADE1: 47 | ADF1: 48 | ADG1: 49 | ADH1: 50 | ADL1: 1 | ADM1: 2 | ADN1: 3 | ADO1: 4 | ADP1: 5 | ADQ1: 6 | ADR1: 7 | ADS1: 8 | ADT1: 9 | ADU1: 10 | ADV1: 11 | ADW1: 12 | ADX1: 13 | ADY1: 14 | ADZ1: 15 | AEA1: 16 | AEB1: 17 | AEC1: 18 | AED1: 19 | AEE1: 20 | AEF1: 21 | AEG1: 22 | AEH1: 23 | AEI1: 24 | AEJ1: 25 | AEK1: 26 | AEL1: 27 | AEM1: 28 | AEN1: 29 | AEO1: 30 | AEP1: 31 | AEQ1: 32 | AER1: 33 | AES1: 34 | AET1: 35 | AEU1: 36 | AEV1: 37 | AEW1: 38 | AEX1: 39 | AEY1: 40 | AEZ1: 41 | AFA1: 42 | AFB1: 43 | AFC1: 44 | AFD1: 45 | AFE1: 46 | AFF1: 47 | AFG1: 48 | AFH1: 49 | AFI1: 50 | AFM1: 1 | AFN1: 2 | AFO1: 3 | AFP1: 4 | AFQ1: 5 | AFR1: 6 | AFS1: 7 | AFT1: 8 | AFU1: 9 | AFV1: 10 | AFW1: 11 | AFX1: 12 | AFY1: 13 | AFZ1: 14 | AGA1: 15 | AGB1: 16 | AGC1: 17 | AGD1: 18 | AGE1: 19 | AGF1: 20 | AGG1: 21 | AGH1: 22 | AGI1: 23 | AGJ1: 24 | AGK1: 25 | AGL1: 26 | AGM1: 27 | AGN1: 28 | AGO1: 29 | AGP1: 30 | AGQ1: 31 | AGR1: 32 | AGS1: 33 | AGT1: 34 | AGU1: 35 | AGV1: 36 | AGW1: 37 | AGX1: 38 | AGY1: 39 | AGZ1: 40 | AHA1: 41 | AHB1: 42 | AHC1: 43 | AHD1: 44 | AHE1: 45 | AHF1: 46 | AHG1: 47 | AHH1: 48 | AHI1: 49 | AHJ1: 50
I2: =IF(INDEX(수업명렬!$S:$S,MATCH(I1,수업명렬!$BB:$BB,0),)="","",INDEX(수업명렬!$S:$S,MATCH(I1,수업명렬!$BB:$BB,0),)) -> 1100 | J2: =IF(INDEX(수업명렬!$S:$S,MATCH(J1,수업명렬!$BB:$BB,0),)="","",INDEX(수업명렬!$S:$S,MATCH(J1,수업명렬!$BB:$BB,0),)) -> 1200 | K2: =IF(INDEX(수업명렬!$S:$S,MATCH(K1,수업명렬!$BB:$BB,0),)="","",INDEX(수업명렬!$S:$S,MATCH(K1,수업명렬!$BB:$BB,0),)) -> 2100 | L2: =IF(INDEX(수업명렬!$S:$S,MATCH(L1,수업명렬!$BB:$BB,0),)="","",INDEX(수업명렬!$S:$S,MATCH(L1,수업명렬!$BB:$BB,0),)) -> 2200 | M2: =IF(INDEX(수업명렬!$S:$S,MATCH(M1,수업명렬!$BB:$BB,0),)="","",INDEX(수업명렬!$S:$S,MATCH(M1,수업명렬!$BB:$BB,0),)) -> 2300 | N2: =IF(INDEX(수업명렬!$S:$S,MATCH(N1,수업명렬!$BB:$BB,0),)="","",INDEX(수업명렬!$S:$S,MATCH(N1,수업명렬!$BB:$BB,0),)) -> 3100 | O2: =IF(INDEX(수업명렬!$S:$S,MATCH(O1,수업명렬!$BB:$BB,0),)="","",INDEX(수업명렬!$S:$S,MATCH(O1,수업명렬!$BB:$BB,0),)) -> 3200 | P2: =IF(INDEX(수업명렬!$S:$S,MATCH(P1,수업명렬!$BB:$BB,0),)="","",INDEX(수업명렬!$S:$S,MATCH(P1,수업명렬!$BB:$BB,0),)) -> 3300 | Q2: =IF(INDEX(수업명렬!$S:$S,MATCH(Q1,수업명렬!$BB:$BB,0),)="","",INDEX(수업명렬!$S:$S,MATCH(Q1,수업명렬!$BB:$BB,0),)) ->  | R2: =IF(INDEX(수업명렬!$S:$S,MATCH(R1,수업명렬!$BB:$BB,0),)="","",INDEX(수업명렬!$S:$S,MATCH(R1,수업명렬!$BB:$BB,0),)) ->  | S2: =IF(INDEX(수업명렬!$S:$S,MATCH(S1,수업명렬!$BB:$BB,0),)="","",INDEX(수업명렬!$S:$S,MATCH(S1,수업명렬!$BB:$BB,0),)) ->  | T2: =IF(INDEX(수업명렬!$S:$S,MATCH(T1,수업명렬!$BB:$BB,0),)="","",INDEX(수업명렬!$S:$S,MATCH(T1,수업명렬!$BB:$BB,0),)) ->  | U2: =IF(INDEX(수업명렬!$S:$S,MATCH(U1,수업명렬!$BB:$BB,0),)="","",INDEX(수업명렬!$S:$S,MATCH(U1,수업명렬!$BB:$BB,0),)) ->  | V2: =IF(INDEX(수업명렬!$S:$S,MATCH(V1,수업명렬!$BB:$BB,0),)="","",INDEX(수업명렬!$S:$S,MATCH(V1,수업명렬!$BB:$BB,0),)) ->  | W2: =IF(INDEX(수업명렬!$S:$S,MATCH(W1,수업명렬!$BB:$BB,0),)="","",INDEX(수업명렬!$S:$S,MATCH(W1,수업명렬!$BB:$BB,0),)) ->  | X2: =IF(INDEX(수업명렬!$S:$S,MATCH(X1,수업명렬!$BB:$BB,0),)="","",INDEX(수업명렬!$S:$S,MATCH(X1,수업명렬!$BB:$BB,0),)) ->  | Y2: =IF(INDEX(수업명렬!$S:$S,MATCH(Y1,수업명렬!$BB:$BB,0),)="","",INDEX(수업명렬!$S:$S,MATCH(Y1,수업명렬!$BB:$BB,0),)) ->  | Z2: =IF(INDEX(수업명렬!$S:$S,MATCH(Z1,수업명렬!$BB:$BB,0),)="","",INDEX(수업명렬!$S:$S,MATCH(Z1,수업명렬!$BB:$BB,0),)) ->  | AA2: =IF(INDEX(수업명렬!$S:$S,MATCH(AA1,수업명렬!$BB:$BB,0),)="","",INDEX(수업명렬!$S:$S,MATCH(AA1,수업명렬!$BB:$BB,0),)) ->  | AB2: =IF(INDEX(수업명렬!$S:$S,MATCH(AB1,수업명렬!$BB:$BB,0),)="","",INDEX(수업명렬!$S:$S,MATCH(AB1,수업명렬!$BB:$BB,0),)) ->  | AC2: =IF(INDEX(수업명렬!$S:$S,MATCH(AC1,수업명렬!$BB:$BB,0),)="","",INDEX(수업명렬!$S:$S,MATCH(AC1,수업명렬!$BB:$BB,0),)) ->  | AD2: =IF(INDEX(수업명렬!$S:$S,MATCH(AD1,수업명렬!$BB:$BB,0),)="","",INDEX(수업명렬!$S:$S,MATCH(AD1,수업명렬!$BB:$BB,0),)) ->  | AE2: =IF(INDEX(수업명렬!$S:$S,MATCH(AE1,수업명렬!$BB:$BB,0),)="","",INDEX(수업명렬!$S:$S,MATCH(AE1,수업명렬!$BB:$BB,0),)) ->  | AF2: =IF(INDEX(수업명렬!$S:$S,MATCH(AF1,수업명렬!$BB:$BB,0),)="","",INDEX(수업명렬!$S:$S,MATCH(AF1,수업명렬!$BB:$BB,0),)) ->  | AG2: =IF(INDEX(수업명렬!$S:$S,MATCH(AG1,수업명렬!$BB:$BB,0),)="","",INDEX(수업명렬!$S:$S,MATCH(AG1,수업명렬!$BB:$BB,0),)) ->  | AH2: =IF(INDEX(수업명렬!$S:$S,MATCH(AH1,수업명렬!$BB:$BB,0),)="","",INDEX(수업명렬!$S:$S,MATCH(AH1,수업명렬!$BB:$BB,0),)) ->  | AI2: =IF(INDEX(수업명렬!$S:$S,MATCH(AI1,수업명렬!$BB:$BB,0),)="","",INDEX(수업명렬!$S:$S,MATCH(AI1,수업명렬!$BB:$BB,0),)) ->  | AJ2: =IF(INDEX(수업명렬!$S:$S,MATCH(AJ1,수업명렬!$BB:$BB,0),)="","",INDEX(수업명렬!$S:$S,MATCH(AJ1,수업명렬!$BB:$BB,0),)) ->  | AK2: =IF(INDEX(수업명렬!$S:$S,MATCH(AK1,수업명렬!$BB:$BB,0),)="","",INDEX(수업명렬!$S:$S,MATCH(AK1,수업명렬!$BB:$BB,0),)) ->  | AL2: =IF(INDEX(수업명렬!$S:$S,MATCH(AL1,수업명렬!$BB:$BB,0),)="","",INDEX(수업명렬!$S:$S,MATCH(AL1,수업명렬!$BB:$BB,0),)) ->  | AM2: =IF(INDEX(수업명렬!$S:$S,MATCH(AM1,수업명렬!$BB:$BB,0),)="","",INDEX(수업명렬!$S:$S,MATCH(AM1,수업명렬!$BB:$BB,0),)) ->  | AN2: =IF(INDEX(수업명렬!$S:$S,MATCH(AN1,수업명렬!$BB:$BB,0),)="","",INDEX(수업명렬!$S:$S,MATCH(AN1,수업명렬!$BB:$BB,0),)) ->  | AO2: =IF(INDEX(수업명렬!$S:$S,MATCH(AO1,수업명렬!$BB:$BB,0),)="","",INDEX(수업명렬!$S:$S,MATCH(AO1,수업명렬!$BB:$BB,0),)) ->  | AP2: =IF(INDEX(수업명렬!$S:$S,MATCH(AP1,수업명렬!$BB:$BB,0),)="","",INDEX(수업명렬!$S:$S,MATCH(AP1,수업명렬!$BB:$BB,0),)) ->  | AQ2: =IF(INDEX(수업명렬!$S:$S,MATCH(AQ1,수업명렬!$BB:$BB,0),)="","",INDEX(수업명렬!$S:$S,MATCH(AQ1,수업명렬!$BB:$BB,0),)) ->  | AR2: =IF(INDEX(수업명렬!$S:$S,MATCH(AR1,수업명렬!$BB:$BB,0),)="","",INDEX(수업명렬!$S:$S,MATCH(AR1,수업명렬!$BB:$BB,0),)) ->  | AS2: =IF(INDEX(수업명렬!$S:$S,MATCH(AS1,수업명렬!$BB:$BB,0),)="","",INDEX(수업명렬!$S:$S,MATCH(AS1,수업명렬!$BB:$BB,0),)) ->  | AT2: =IF(INDEX(수업명렬!$S:$S,MATCH(AT1,수업명렬!$BB:$BB,0),)="","",INDEX(수업명렬!$S:$S,MATCH(AT1,수업명렬!$BB:$BB,0),)) ->  | AU2: =IF(INDEX(수업명렬!$S:$S,MATCH(AU1,수업명렬!$BB:$BB,0),)="","",INDEX(수업명렬!$S:$S,MATCH(AU1,수업명렬!$BB:$BB,0),)) ->  | AV2: =IF(INDEX(수업명렬!$S:$S,MATCH(AV1,수업명렬!$BB:$BB,0),)="","",INDEX(수업명렬!$S:$S,MATCH(AV1,수업명렬!$BB:$BB,0),)) ->  | AW2: =IF(INDEX(수업명렬!$S:$S,MATCH(AW1,수업명렬!$BB:$BB,0),)="","",INDEX(수업명렬!$S:$S,MATCH(AW1,수업명렬!$BB:$BB,0),)) ->  | AX2: =IF(INDEX(수업명렬!$S:$S,MATCH(AX1,수업명렬!$BB:$BB,0),)="","",INDEX(수업명렬!$S:$S,MATCH(AX1,수업명렬!$BB:$BB,0),)) ->  | AY2: =IF(INDEX(수업명렬!$S:$S,MATCH(AY1,수업명렬!$BB:$BB,0),)="","",INDEX(수업명렬!$S:$S,MATCH(AY1,수업명렬!$BB:$BB,0),)) ->  | AZ2: =IF(INDEX(수업명렬!$S:$S,MATCH(AZ1,수업명렬!$BB:$BB,0),)="","",INDEX(수업명렬!$S:$S,MATCH(AZ1,수업명렬!$BB:$BB,0),)) ->  | BA2: =IF(INDEX(수업명렬!$S:$S,MATCH(BA1,수업명렬!$BB:$BB,0),)="","",INDEX(수업명렬!$S:$S,MATCH(BA1,수업명렬!$BB:$BB,0),)) ->  | BB2: =IF(INDEX(수업명렬!$S:$S,MATCH(BB1,수업명렬!$BB:$BB,0),)="","",INDEX(수업명렬!$S:$S,MATCH(BB1,수업명렬!$BB:$BB,0),)) ->  | BC2: =IF(INDEX(수업명렬!$S:$S,MATCH(BC1,수업명렬!$BB:$BB,0),)="","",INDEX(수업명렬!$S:$S,MATCH(BC1,수업명렬!$BB:$BB,0),)) ->  | BD2: =IF(INDEX(수업명렬!$S:$S,MATCH(BD1,수업명렬!$BB:$BB,0),)="","",INDEX(수업명렬!$S:$S,MATCH(BD1,수업명렬!$BB:$BB,0),)) ->  | BE2: =IF(INDEX(수업명렬!$S:$S,MATCH(BE1,수업명렬!$BB:$BB,0),)="","",INDEX(수업명렬!$S:$S,MATCH(BE1,수업명렬!$BB:$BB,0),)) ->  | BF2: =IF(INDEX(수업명렬!$S:$S,MATCH(BF1,수업명렬!$BB:$BB,0),)="","",INDEX(수업명렬!$S:$S,MATCH(BF1,수업명렬!$BB:$BB,0),)) ->  | BI2: =IF(I2="","",INT(LEFT(I2,2))) -> 11 | BJ2: =IF(J2="","",INT(LEFT(J2,2))) -> 12 | BK2: 21 | BL2: 22 | BM2: 23 | BN2: 31 | BO2: 32 | BP2: 33 | DL2: =IF(INDEX(수업명렬!$S:$S,MATCH(DL1,수업명렬!$BB:$BB,0),)="","",INDEX(수업명렬!$S:$S,MATCH(DL1,수업명렬!$BB:$BB,0),)) -> 1100 | DM2: =IF(INDEX(수업명렬!$S:$S,MATCH(DM1,수업명렬!$BB:$BB,0),)="","",INDEX(수업명렬!$S:$S,MATCH(DM1,수업명렬!$BB:$BB,0),)) -> 1200 | DN2: =IF(INDEX(수업명렬!$S:$S,MATCH(DN1,수업명렬!$BB:$BB,0),)="","",INDEX(수업명렬!$S:$S,MATCH(DN1,수업명렬!$BB:$BB,0),)) -> 2100 | DO2: =IF(INDEX(수업명렬!$S:$S,MATCH(DO1,수업명렬!$BB:$BB,0),)="","",INDEX(수업명렬!$S:$S,MATCH(DO1,수업명렬!$BB:$BB,0),)) -> 2200 | DP2: =IF(INDEX(수업명렬!$S:$S,MATCH(DP1,수업명렬!$BB:$BB,0),)="","",INDEX(수업명렬!$S:$S,MATCH(DP1,수업명렬!$BB:$BB,0),)) -> 2300 | DQ2: =IF(INDEX(수업명렬!$S:$S,MATCH(DQ1,수업명렬!$BB:$BB,0),)="","",INDEX(수업명렬!$S:$S,MATCH(DQ1,수업명렬!$BB:$BB,0),)) -> 3100 | DR2: =IF(INDEX(수업명렬!$S:$S,MATCH(DR1,수업명렬!$BB:$BB,0),)="","",INDEX(수업명렬!$S:$S,MATCH(DR1,수업명렬!$BB:$BB,0),)) -> 3200 | DS2: =IF(INDEX(수업명렬!$S:$S,MATCH(DS1,수업명렬!$BB:$BB,0),)="","",INDEX(수업명렬!$S:$S,MATCH(DS1,수업명렬!$BB:$BB,0),)) -> 3300 | DT2: =IF(INDEX(수업명렬!$S:$S,MATCH(DT1,수업명렬!$BB:$BB,0),)="","",INDEX(수업명렬!$S:$S,MATCH(DT1,수업명렬!$BB:$BB,0),)) ->  | DU2: =IF(INDEX(수업명렬!$S:$S,MATCH(DU1,수업명렬!$BB:$BB,0),)="","",INDEX(수업명렬!$S:$S,MATCH(DU1,수업명렬!$BB:$BB,0),)) ->  | DV2: =IF(INDEX(수업명렬!$S:$S,MATCH(DV1,수업명렬!$BB:$BB,0),)="","",INDEX(수업명렬!$S:$S,MATCH(DV1,수업명렬!$BB:$BB,0),)) ->  | DW2: =IF(INDEX(수업명렬!$S:$S,MATCH(DW1,수업명렬!$BB:$BB,0),)="","",INDEX(수업명렬!$S:$S,MATCH(DW1,수업명렬!$BB:$BB,0),)) ->  | DX2: =IF(INDEX(수업명렬!$S:$S,MATCH(DX1,수업명렬!$BB:$BB,0),)="","",INDEX(수업명렬!$S:$S,MATCH(DX1,수업명렬!$BB:$BB,0),)) ->  | DY2: =IF(INDEX(수업명렬!$S:$S,MATCH(DY1,수업명렬!$BB:$BB,0),)="","",INDEX(수업명렬!$S:$S,MATCH(DY1,수업명렬!$BB:$BB,0),)) ->  | DZ2: =IF(INDEX(수업명렬!$S:$S,MATCH(DZ1,수업명렬!$BB:$BB,0),)="","",INDEX(수업명렬!$S:$S,MATCH(DZ1,수업명렬!$BB:$BB,0),)) ->  | EA2: =IF(INDEX(수업명렬!$S:$S,MATCH(EA1,수업명렬!$BB:$BB,0),)="","",INDEX(수업명렬!$S:$S,MATCH(EA1,수업명렬!$BB:$BB,0),)) ->  | EB2: =IF(INDEX(수업명렬!$S:$S,MATCH(EB1,수업명렬!$BB:$BB,0),)="","",INDEX(수업명렬!$S:$S,MATCH(EB1,수업명렬!$BB:$BB,0),)) ->  | EC2: =IF(INDEX(수업명렬!$S:$S,MATCH(EC1,수업명렬!$BB:$BB,0),)="","",INDEX(수업명렬!$S:$S,MATCH(EC1,수업명렬!$BB:$BB,0),)) ->  | ED2: =IF(INDEX(수업명렬!$S:$S,MATCH(ED1,수업명렬!$BB:$BB,0),)="","",INDEX(수업명렬!$S:$S,MATCH(ED1,수업명렬!$BB:$BB,0),)) ->  | EE2: =IF(INDEX(수업명렬!$S:$S,MATCH(EE1,수업명렬!$BB:$BB,0),)="","",INDEX(수업명렬!$S:$S,MATCH(EE1,수업명렬!$BB:$BB,0),)) ->  | EF2: =IF(INDEX(수업명렬!$S:$S,MATCH(EF1,수업명렬!$BB:$BB,0),)="","",INDEX(수업명렬!$S:$S,MATCH(EF1,수업명렬!$BB:$BB,0),)) ->  | EG2: =IF(INDEX(수업명렬!$S:$S,MATCH(EG1,수업명렬!$BB:$BB,0),)="","",INDEX(수업명렬!$S:$S,MATCH(EG1,수업명렬!$BB:$BB,0),)) ->  | EH2: =IF(INDEX(수업명렬!$S:$S,MATCH(EH1,수업명렬!$BB:$BB,0),)="","",INDEX(수업명렬!$S:$S,MATCH(EH1,수업명렬!$BB:$BB,0),)) ->  | EI2: =IF(INDEX(수업명렬!$S:$S,MATCH(EI1,수업명렬!$BB:$BB,0),)="","",INDEX(수업명렬!$S:$S,MATCH(EI1,수업명렬!$BB:$BB,0),)) ->  | EJ2: =IF(INDEX(수업명렬!$S:$S,MATCH(EJ1,수업명렬!$BB:$BB,0),)="","",INDEX(수업명렬!$S:$S,MATCH(EJ1,수업명렬!$BB:$BB,0),)) ->  | EK2: =IF(INDEX(수업명렬!$S:$S,MATCH(EK1,수업명렬!$BB:$BB,0),)="","",INDEX(수업명렬!$S:$S,MATCH(EK1,수업명렬!$BB:$BB,0),)) ->  | EL2: =IF(INDEX(수업명렬!$S:$S,MATCH(EL1,수업명렬!$BB:$BB,0),)="","",INDEX(수업명렬!$S:$S,MATCH(EL1,수업명렬!$BB:$BB,0),)) ->  | EM2: =IF(INDEX(수업명렬!$S:$S,MATCH(EM1,수업명렬!$BB:$BB,0),)="","",INDEX(수업명렬!$S:$S,MATCH(EM1,수업명렬!$BB:$BB,0),)) ->  | EN2: =IF(INDEX(수업명렬!$S:$S,MATCH(EN1,수업명렬!$BB:$BB,0),)="","",INDEX(수업명렬!$S:$S,MATCH(EN1,수업명렬!$BB:$BB,0),)) ->  | EO2: =IF(INDEX(수업명렬!$S:$S,MATCH(EO1,수업명렬!$BB:$BB,0),)="","",INDEX(수업명렬!$S:$S,MATCH(EO1,수업명렬!$BB:$BB,0),)) ->  | EP2: =IF(INDEX(수업명렬!$S:$S,MATCH(EP1,수업명렬!$BB:$BB,0),)="","",INDEX(수업명렬!$S:$S,MATCH(EP1,수업명렬!$BB:$BB,0),)) ->  | EQ2: =IF(INDEX(수업명렬!$S:$S,MATCH(EQ1,수업명렬!$BB:$BB,0),)="","",INDEX(수업명렬!$S:$S,MATCH(EQ1,수업명렬!$BB:$BB,0),)) ->  | ER2: =IF(INDEX(수업명렬!$S:$S,MATCH(ER1,수업명렬!$BB:$BB,0),)="","",INDEX(수업명렬!$S:$S,MATCH(ER1,수업명렬!$BB:$BB,0),)) ->  | ES2: =IF(INDEX(수업명렬!$S:$S,MATCH(ES1,수업명렬!$BB:$BB,0),)="","",INDEX(수업명렬!$S:$S,MATCH(ES1,수업명렬!$BB:$BB,0),)) ->  | ET2: =IF(INDEX(수업명렬!$S:$S,MATCH(ET1,수업명렬!$BB:$BB,0),)="","",INDEX(수업명렬!$S:$S,MATCH(ET1,수업명렬!$BB:$BB,0),)) ->  | EU2: =IF(INDEX(수업명렬!$S:$S,MATCH(EU1,수업명렬!$BB:$BB,0),)="","",INDEX(수업명렬!$S:$S,MATCH(EU1,수업명렬!$BB:$BB,0),)) ->  | EV2: =IF(INDEX(수업명렬!$S:$S,MATCH(EV1,수업명렬!$BB:$BB,0),)="","",INDEX(수업명렬!$S:$S,MATCH(EV1,수업명렬!$BB:$BB,0),)) ->  | EW2: =IF(INDEX(수업명렬!$S:$S,MATCH(EW1,수업명렬!$BB:$BB,0),)="","",INDEX(수업명렬!$S:$S,MATCH(EW1,수업명렬!$BB:$BB,0),)) ->  | EX2: =IF(INDEX(수업명렬!$S:$S,MATCH(EX1,수업명렬!$BB:$BB,0),)="","",INDEX(수업명렬!$S:$S,MATCH(EX1,수업명렬!$BB:$BB,0),)) ->  | EY2: =IF(INDEX(수업명렬!$S:$S,MATCH(EY1,수업명렬!$BB:$BB,0),)="","",INDEX(수업명렬!$S:$S,MATCH(EY1,수업명렬!$BB:$BB,0),)) ->  | EZ2: =IF(INDEX(수업명렬!$S:$S,MATCH(EZ1,수업명렬!$BB:$BB,0),)="","",INDEX(수업명렬!$S:$S,MATCH(EZ1,수업명렬!$BB:$BB,0),)) ->  | FA2: =IF(INDEX(수업명렬!$S:$S,MATCH(FA1,수업명렬!$BB:$BB,0),)="","",INDEX(수업명렬!$S:$S,MATCH(FA1,수업명렬!$BB:$BB,0),)) ->  | FB2: =IF(INDEX(수업명렬!$S:$S,MATCH(FB1,수업명렬!$BB:$BB,0),)="","",INDEX(수업명렬!$S:$S,MATCH(FB1,수업명렬!$BB:$BB,0),)) ->  | FC2: =IF(INDEX(수업명렬!$S:$S,MATCH(FC1,수업명렬!$BB:$BB,0),)="","",INDEX(수업명렬!$S:$S,MATCH(FC1,수업명렬!$BB:$BB,0),)) ->  | FD2: =IF(INDEX(수업명렬!$S:$S,MATCH(FD1,수업명렬!$BB:$BB,0),)="","",INDEX(수업명렬!$S:$S,MATCH(FD1,수업명렬!$BB:$BB,0),)) ->  | FE2: =IF(INDEX(수업명렬!$S:$S,MATCH(FE1,수업명렬!$BB:$BB,0),)="","",INDEX(수업명렬!$S:$S,MATCH(FE1,수업명렬!$BB:$BB,0),)) ->  | FF2: =IF(INDEX(수업명렬!$S:$S,MATCH(FF1,수업명렬!$BB:$BB,0),)="","",INDEX(수업명렬!$S:$S,MATCH(FF1,수업명렬!$BB:$BB,0),)) ->  | FG2: =IF(INDEX(수업명렬!$S:$S,MATCH(FG1,수업명렬!$BB:$BB,0),)="","",INDEX(수업명렬!$S:$S,MATCH(FG1,수업명렬!$BB:$BB,0),)) ->  | FH2: =IF(INDEX(수업명렬!$S:$S,MATCH(FH1,수업명렬!$BB:$BB,0),)="","",INDEX(수업명렬!$S:$S,MATCH(FH1,수업명렬!$BB:$BB,0),)) ->  | FI2: =IF(INDEX(수업명렬!$S:$S,MATCH(FI1,수업명렬!$BB:$BB,0),)="","",INDEX(수업명렬!$S:$S,MATCH(FI1,수업명렬!$BB:$BB,0),)) ->  | HM2: 중복확인 | HN2: =SUM(HM7:HT506) -> 21 | HP2: 변경카운트 | HQ2: 85982 | HU2: 시도횟수 | JU2: =IF(INDEX(수업명렬!$S:$S,MATCH(JU1,수업명렬!$BB:$BB,0),)="","",INDEX(수업명렬!$S:$S,MATCH(JU1,수업명렬!$BB:$BB,0),)) -> 1100 | JV2: =IF(INDEX(수업명렬!$S:$S,MATCH(JV1,수업명렬!$BB:$BB,0),)="","",INDEX(수업명렬!$S:$S,MATCH(JV1,수업명렬!$BB:$BB,0),)) -> 1200 | JW2: =IF(INDEX(수업명렬!$S:$S,MATCH(JW1,수업명렬!$BB:$BB,0),)="","",INDEX(수업명렬!$S:$S,MATCH(JW1,수업명렬!$BB:$BB,0),)) -> 2100 | JX2: =IF(INDEX(수업명렬!$S:$S,MATCH(JX1,수업명렬!$BB:$BB,0),)="","",INDEX(수업명렬!$S:$S,MATCH(JX1,수업명렬!$BB:$BB,0),)) -> 2200 | JY2: =IF(INDEX(수업명렬!$S:$S,MATCH(JY1,수업명렬!$BB:$BB,0),)="","",INDEX(수업명렬!$S:$S,MATCH(JY1,수업명렬!$BB:$BB,0),)) -> 2300 | JZ2: =IF(INDEX(수업명렬!$S:$S,MATCH(JZ1,수업명렬!$BB:$BB,0),)="","",INDEX(수업명렬!$S:$S,MATCH(JZ1,수업명렬!$BB:$BB,0),)) -> 3100 | KA2: =IF(INDEX(수업명렬!$S:$S,MATCH(KA1,수업명렬!$BB:$BB,0),)="","",INDEX(수업명렬!$S:$S,MATCH(KA1,수업명렬!$BB:$BB,0),)) -> 3200 | KB2: =IF(INDEX(수업명렬!$S:$S,MATCH(KB1,수업명렬!$BB:$BB,0),)="","",INDEX(수업명렬!$S:$S,MATCH(KB1,수업명렬!$BB:$BB,0),)) -> 3300 | KC2: =IF(INDEX(수업명렬!$S:$S,MATCH(KC1,수업명렬!$BB:$BB,0),)="","",INDEX(수업명렬!$S:$S,MATCH(KC1,수업명렬!$BB:$BB,0),)) ->  | KD2: =IF(INDEX(수업명렬!$S:$S,MATCH(KD1,수업명렬!$BB:$BB,0),)="","",INDEX(수업명렬!$S:$S,MATCH(KD1,수업명렬!$BB:$BB,0),)) ->  | KE2: =IF(INDEX(수업명렬!$S:$S,MATCH(KE1,수업명렬!$BB:$BB,0),)="","",INDEX(수업명렬!$S:$S,MATCH(KE1,수업명렬!$BB:$BB,0),)) ->  | KF2: =IF(INDEX(수업명렬!$S:$S,MATCH(KF1,수업명렬!$BB:$BB,0),)="","",INDEX(수업명렬!$S:$S,MATCH(KF1,수업명렬!$BB:$BB,0),)) ->  | KG2: =IF(INDEX(수업명렬!$S:$S,MATCH(KG1,수업명렬!$BB:$BB,0),)="","",INDEX(수업명렬!$S:$S,MATCH(KG1,수업명렬!$BB:$BB,0),)) ->  | KH2: =IF(INDEX(수업명렬!$S:$S,MATCH(KH1,수업명렬!$BB:$BB,0),)="","",INDEX(수업명렬!$S:$S,MATCH(KH1,수업명렬!$BB:$BB,0),)) ->  | KI2: =IF(INDEX(수업명렬!$S:$S,MATCH(KI1,수업명렬!$BB:$BB,0),)="","",INDEX(수업명렬!$S:$S,MATCH(KI1,수업명렬!$BB:$BB,0),)) ->  | KJ2: =IF(INDEX(수업명렬!$S:$S,MATCH(KJ1,수업명렬!$BB:$BB,0),)="","",INDEX(수업명렬!$S:$S,MATCH(KJ1,수업명렬!$BB:$BB,0),)) ->  | KK2: =IF(INDEX(수업명렬!$S:$S,MATCH(KK1,수업명렬!$BB:$BB,0),)="","",INDEX(수업명렬!$S:$S,MATCH(KK1,수업명렬!$BB:$BB,0),)) ->  | KL2: =IF(INDEX(수업명렬!$S:$S,MATCH(KL1,수업명렬!$BB:$BB,0),)="","",INDEX(수업명렬!$S:$S,MATCH(KL1,수업명렬!$BB:$BB,0),)) ->  | KM2: =IF(INDEX(수업명렬!$S:$S,MATCH(KM1,수업명렬!$BB:$BB,0),)="","",INDEX(수업명렬!$S:$S,MATCH(KM1,수업명렬!$BB:$BB,0),)) ->  | KN2: =IF(INDEX(수업명렬!$S:$S,MATCH(KN1,수업명렬!$BB:$BB,0),)="","",INDEX(수업명렬!$S:$S,MATCH(KN1,수업명렬!$BB:$BB,0),)) ->  | KO2: =IF(INDEX(수업명렬!$S:$S,MATCH(KO1,수업명렬!$BB:$BB,0),)="","",INDEX(수업명렬!$S:$S,MATCH(KO1,수업명렬!$BB:$BB,0),)) ->  | KP2: =IF(INDEX(수업명렬!$S:$S,MATCH(KP1,수업명렬!$BB:$BB,0),)="","",INDEX(수업명렬!$S:$S,MATCH(KP1,수업명렬!$BB:$BB,0),)) ->  | KQ2: =IF(INDEX(수업명렬!$S:$S,MATCH(KQ1,수업명렬!$BB:$BB,0),)="","",INDEX(수업명렬!$S:$S,MATCH(KQ1,수업명렬!$BB:$BB,0),)) ->  | KR2: =IF(INDEX(수업명렬!$S:$S,MATCH(KR1,수업명렬!$BB:$BB,0),)="","",INDEX(수업명렬!$S:$S,MATCH(KR1,수업명렬!$BB:$BB,0),)) ->  | KS2: =IF(INDEX(수업명렬!$S:$S,MATCH(KS1,수업명렬!$BB:$BB,0),)="","",INDEX(수업명렬!$S:$S,MATCH(KS1,수업명렬!$BB:$BB,0),)) ->  | KT2: =IF(INDEX(수업명렬!$S:$S,MATCH(KT1,수업명렬!$BB:$BB,0),)="","",INDEX(수업명렬!$S:$S,MATCH(KT1,수업명렬!$BB:$BB,0),)) ->  | KU2: =IF(INDEX(수업명렬!$S:$S,MATCH(KU1,수업명렬!$BB:$BB,0),)="","",INDEX(수업명렬!$S:$S,MATCH(KU1,수업명렬!$BB:$BB,0),)) ->  | KV2: =IF(INDEX(수업명렬!$S:$S,MATCH(KV1,수업명렬!$BB:$BB,0),)="","",INDEX(수업명렬!$S:$S,MATCH(KV1,수업명렬!$BB:$BB,0),)) ->  | KW2: =IF(INDEX(수업명렬!$S:$S,MATCH(KW1,수업명렬!$BB:$BB,0),)="","",INDEX(수업명렬!$S:$S,MATCH(KW1,수업명렬!$BB:$BB,0),)) ->  | KX2: =IF(INDEX(수업명렬!$S:$S,MATCH(KX1,수업명렬!$BB:$BB,0),)="","",INDEX(수업명렬!$S:$S,MATCH(KX1,수업명렬!$BB:$BB,0),)) ->  | KY2: =IF(INDEX(수업명렬!$S:$S,MATCH(KY1,수업명렬!$BB:$BB,0),)="","",INDEX(수업명렬!$S:$S,MATCH(KY1,수업명렬!$BB:$BB,0),)) ->  | KZ2: =IF(INDEX(수업명렬!$S:$S,MATCH(KZ1,수업명렬!$BB:$BB,0),)="","",INDEX(수업명렬!$S:$S,MATCH(KZ1,수업명렬!$BB:$BB,0),)) ->  | LA2: =IF(INDEX(수업명렬!$S:$S,MATCH(LA1,수업명렬!$BB:$BB,0),)="","",INDEX(수업명렬!$S:$S,MATCH(LA1,수업명렬!$BB:$BB,0),)) ->  | LB2: =IF(INDEX(수업명렬!$S:$S,MATCH(LB1,수업명렬!$BB:$BB,0),)="","",INDEX(수업명렬!$S:$S,MATCH(LB1,수업명렬!$BB:$BB,0),)) ->  | LC2: =IF(INDEX(수업명렬!$S:$S,MATCH(LC1,수업명렬!$BB:$BB,0),)="","",INDEX(수업명렬!$S:$S,MATCH(LC1,수업명렬!$BB:$BB,0),)) ->  | LD2: =IF(INDEX(수업명렬!$S:$S,MATCH(LD1,수업명렬!$BB:$BB,0),)="","",INDEX(수업명렬!$S:$S,MATCH(LD1,수업명렬!$BB:$BB,0),)) ->  | LE2: =IF(INDEX(수업명렬!$S:$S,MATCH(LE1,수업명렬!$BB:$BB,0),)="","",INDEX(수업명렬!$S:$S,MATCH(LE1,수업명렬!$BB:$BB,0),)) ->  | LF2: =IF(INDEX(수업명렬!$S:$S,MATCH(LF1,수업명렬!$BB:$BB,0),)="","",INDEX(수업명렬!$S:$S,MATCH(LF1,수업명렬!$BB:$BB,0),)) ->  | LG2: =IF(INDEX(수업명렬!$S:$S,MATCH(LG1,수업명렬!$BB:$BB,0),)="","",INDEX(수업명렬!$S:$S,MATCH(LG1,수업명렬!$BB:$BB,0),)) ->  | LH2: =IF(INDEX(수업명렬!$S:$S,MATCH(LH1,수업명렬!$BB:$BB,0),)="","",INDEX(수업명렬!$S:$S,MATCH(LH1,수업명렬!$BB:$BB,0),)) ->  | LI2: =IF(INDEX(수업명렬!$S:$S,MATCH(LI1,수업명렬!$BB:$BB,0),)="","",INDEX(수업명렬!$S:$S,MATCH(LI1,수업명렬!$BB:$BB,0),)) ->  | LJ2: =IF(INDEX(수업명렬!$S:$S,MATCH(LJ1,수업명렬!$BB:$BB,0),)="","",INDEX(수업명렬!$S:$S,MATCH(LJ1,수업명렬!$BB:$BB,0),)) ->  | LK2: =IF(INDEX(수업명렬!$S:$S,MATCH(LK1,수업명렬!$BB:$BB,0),)="","",INDEX(수업명렬!$S:$S,MATCH(LK1,수업명렬!$BB:$BB,0),)) ->  | LL2: =IF(INDEX(수업명렬!$S:$S,MATCH(LL1,수업명렬!$BB:$BB,0),)="","",INDEX(수업명렬!$S:$S,MATCH(LL1,수업명렬!$BB:$BB,0),)) ->  | LM2: =IF(INDEX(수업명렬!$S:$S,MATCH(LM1,수업명렬!$BB:$BB,0),)="","",INDEX(수업명렬!$S:$S,MATCH(LM1,수업명렬!$BB:$BB,0),)) ->  | LN2: =IF(INDEX(수업명렬!$S:$S,MATCH(LN1,수업명렬!$BB:$BB,0),)="","",INDEX(수업명렬!$S:$S,MATCH(LN1,수업명렬!$BB:$BB,0),)) ->  | LO2: =IF(INDEX(수업명렬!$S:$S,MATCH(LO1,수업명렬!$BB:$BB,0),)="","",INDEX(수업명렬!$S:$S,MATCH(LO1,수업명렬!$BB:$BB,0),)) ->  | LP2: =IF(INDEX(수업명렬!$S:$S,MATCH(LP1,수업명렬!$BB:$BB,0),)="","",INDEX(수업명렬!$S:$S,MATCH(LP1,수업명렬!$BB:$BB,0),)) ->  | LQ2: =IF(INDEX(수업명렬!$S:$S,MATCH(LQ1,수업명렬!$BB:$BB,0),)="","",INDEX(수업명렬!$S:$S,MATCH(LQ1,수업명렬!$BB:$BB,0),)) ->  | LR2: =IF(INDEX(수업명렬!$S:$S,MATCH(LR1,수업명렬!$BB:$BB,0),)="","",INDEX(수업명렬!$S:$S,MATCH(LR1,수업명렬!$BB:$BB,0),)) ->  | NW2: =SUM(NV7:OC506) -> 21 | OE2: 시도횟수 | OL2: 기준 | OM2: 27750 | QM2: =IF(INDEX(수업명렬!$S:$S,MATCH(QM1,수업명렬!$BB:$BB,0),)="","",INDEX(수업명렬!$S:$S,MATCH(QM1,수업명렬!$BB:$BB,0),)) -> 1100 | QN2: =IF(INDEX(수업명렬!$S:$S,MATCH(QN1,수업명렬!$BB:$BB,0),)="","",INDEX(수업명렬!$S:$S,MATCH(QN1,수업명렬!$BB:$BB,0),)) -> 1200 | QO2: =IF(INDEX(수업명렬!$S:$S,MATCH(QO1,수업명렬!$BB:$BB,0),)="","",INDEX(수업명렬!$S:$S,MATCH(QO1,수업명렬!$BB:$BB,0),)) -> 2100 | QP2: =IF(INDEX(수업명렬!$S:$S,MATCH(QP1,수업명렬!$BB:$BB,0),)="","",INDEX(수업명렬!$S:$S,MATCH(QP1,수업명렬!$BB:$BB,0),)) -> 2200 | QQ2: =IF(INDEX(수업명렬!$S:$S,MATCH(QQ1,수업명렬!$BB:$BB,0),)="","",INDEX(수업명렬!$S:$S,MATCH(QQ1,수업명렬!$BB:$BB,0),)) -> 2300 | QR2: =IF(INDEX(수업명렬!$S:$S,MATCH(QR1,수업명렬!$BB:$BB,0),)="","",INDEX(수업명렬!$S:$S,MATCH(QR1,수업명렬!$BB:$BB,0),)) -> 3100 | QS2: =IF(INDEX(수업명렬!$S:$S,MATCH(QS1,수업명렬!$BB:$BB,0),)="","",INDEX(수업명렬!$S:$S,MATCH(QS1,수업명렬!$BB:$BB,0),)) -> 3200 | QT2: =IF(INDEX(수업명렬!$S:$S,MATCH(QT1,수업명렬!$BB:$BB,0),)="","",INDEX(수업명렬!$S:$S,MATCH(QT1,수업명렬!$BB:$BB,0),)) -> 3300 | QU2: =IF(INDEX(수업명렬!$S:$S,MATCH(QU1,수업명렬!$BB:$BB,0),)="","",INDEX(수업명렬!$S:$S,MATCH(QU1,수업명렬!$BB:$BB,0),)) ->  | QV2: =IF(INDEX(수업명렬!$S:$S,MATCH(QV1,수업명렬!$BB:$BB,0),)="","",INDEX(수업명렬!$S:$S,MATCH(QV1,수업명렬!$BB:$BB,0),)) ->  | QW2: =IF(INDEX(수업명렬!$S:$S,MATCH(QW1,수업명렬!$BB:$BB,0),)="","",INDEX(수업명렬!$S:$S,MATCH(QW1,수업명렬!$BB:$BB,0),)) ->  | QX2: =IF(INDEX(수업명렬!$S:$S,MATCH(QX1,수업명렬!$BB:$BB,0),)="","",INDEX(수업명렬!$S:$S,MATCH(QX1,수업명렬!$BB:$BB,0),)) ->  | QY2: =IF(INDEX(수업명렬!$S:$S,MATCH(QY1,수업명렬!$BB:$BB,0),)="","",INDEX(수업명렬!$S:$S,MATCH(QY1,수업명렬!$BB:$BB,0),)) ->  | QZ2: =IF(INDEX(수업명렬!$S:$S,MATCH(QZ1,수업명렬!$BB:$BB,0),)="","",INDEX(수업명렬!$S:$S,MATCH(QZ1,수업명렬!$BB:$BB,0),)) ->  | RA2: =IF(INDEX(수업명렬!$S:$S,MATCH(RA1,수업명렬!$BB:$BB,0),)="","",INDEX(수업명렬!$S:$S,MATCH(RA1,수업명렬!$BB:$BB,0),)) ->  | RB2: =IF(INDEX(수업명렬!$S:$S,MATCH(RB1,수업명렬!$BB:$BB,0),)="","",INDEX(수업명렬!$S:$S,MATCH(RB1,수업명렬!$BB:$BB,0),)) ->  | RC2: =IF(INDEX(수업명렬!$S:$S,MATCH(RC1,수업명렬!$BB:$BB,0),)="","",INDEX(수업명렬!$S:$S,MATCH(RC1,수업명렬!$BB:$BB,0),)) ->  | RD2: =IF(INDEX(수업명렬!$S:$S,MATCH(RD1,수업명렬!$BB:$BB,0),)="","",INDEX(수업명렬!$S:$S,MATCH(RD1,수업명렬!$BB:$BB,0),)) ->  | RE2: =IF(INDEX(수업명렬!$S:$S,MATCH(RE1,수업명렬!$BB:$BB,0),)="","",INDEX(수업명렬!$S:$S,MATCH(RE1,수업명렬!$BB:$BB,0),)) ->  | RF2: =IF(INDEX(수업명렬!$S:$S,MATCH(RF1,수업명렬!$BB:$BB,0),)="","",INDEX(수업명렬!$S:$S,MATCH(RF1,수업명렬!$BB:$BB,0),)) ->  | RG2: =IF(INDEX(수업명렬!$S:$S,MATCH(RG1,수업명렬!$BB:$BB,0),)="","",INDEX(수업명렬!$S:$S,MATCH(RG1,수업명렬!$BB:$BB,0),)) ->  | RH2: =IF(INDEX(수업명렬!$S:$S,MATCH(RH1,수업명렬!$BB:$BB,0),)="","",INDEX(수업명렬!$S:$S,MATCH(RH1,수업명렬!$BB:$BB,0),)) ->  | RI2: =IF(INDEX(수업명렬!$S:$S,MATCH(RI1,수업명렬!$BB:$BB,0),)="","",INDEX(수업명렬!$S:$S,MATCH(RI1,수업명렬!$BB:$BB,0),)) ->  | RJ2: =IF(INDEX(수업명렬!$S:$S,MATCH(RJ1,수업명렬!$BB:$BB,0),)="","",INDEX(수업명렬!$S:$S,MATCH(RJ1,수업명렬!$BB:$BB,0),)) ->  | RK2: =IF(INDEX(수업명렬!$S:$S,MATCH(RK1,수업명렬!$BB:$BB,0),)="","",INDEX(수업명렬!$S:$S,MATCH(RK1,수업명렬!$BB:$BB,0),)) ->  | RL2: =IF(INDEX(수업명렬!$S:$S,MATCH(RL1,수업명렬!$BB:$BB,0),)="","",INDEX(수업명렬!$S:$S,MATCH(RL1,수업명렬!$BB:$BB,0),)) ->  | RM2: =IF(INDEX(수업명렬!$S:$S,MATCH(RM1,수업명렬!$BB:$BB,0),)="","",INDEX(수업명렬!$S:$S,MATCH(RM1,수업명렬!$BB:$BB,0),)) ->  | RN2: =IF(INDEX(수업명렬!$S:$S,MATCH(RN1,수업명렬!$BB:$BB,0),)="","",INDEX(수업명렬!$S:$S,MATCH(RN1,수업명렬!$BB:$BB,0),)) ->  | RO2: =IF(INDEX(수업명렬!$S:$S,MATCH(RO1,수업명렬!$BB:$BB,0),)="","",INDEX(수업명렬!$S:$S,MATCH(RO1,수업명렬!$BB:$BB,0),)) ->  | RP2: =IF(INDEX(수업명렬!$S:$S,MATCH(RP1,수업명렬!$BB:$BB,0),)="","",INDEX(수업명렬!$S:$S,MATCH(RP1,수업명렬!$BB:$BB,0),)) ->  | RQ2: =IF(INDEX(수업명렬!$S:$S,MATCH(RQ1,수업명렬!$BB:$BB,0),)="","",INDEX(수업명렬!$S:$S,MATCH(RQ1,수업명렬!$BB:$BB,0),)) ->  | RR2: =IF(INDEX(수업명렬!$S:$S,MATCH(RR1,수업명렬!$BB:$BB,0),)="","",INDEX(수업명렬!$S:$S,MATCH(RR1,수업명렬!$BB:$BB,0),)) ->  | RS2: =IF(INDEX(수업명렬!$S:$S,MATCH(RS1,수업명렬!$BB:$BB,0),)="","",INDEX(수업명렬!$S:$S,MATCH(RS1,수업명렬!$BB:$BB,0),)) ->  | RT2: =IF(INDEX(수업명렬!$S:$S,MATCH(RT1,수업명렬!$BB:$BB,0),)="","",INDEX(수업명렬!$S:$S,MATCH(RT1,수업명렬!$BB:$BB,0),)) ->  | RU2: =IF(INDEX(수업명렬!$S:$S,MATCH(RU1,수업명렬!$BB:$BB,0),)="","",INDEX(수업명렬!$S:$S,MATCH(RU1,수업명렬!$BB:$BB,0),)) ->  | RV2: =IF(INDEX(수업명렬!$S:$S,MATCH(RV1,수업명렬!$BB:$BB,0),)="","",INDEX(수업명렬!$S:$S,MATCH(RV1,수업명렬!$BB:$BB,0),)) ->  | RW2: =IF(INDEX(수업명렬!$S:$S,MATCH(RW1,수업명렬!$BB:$BB,0),)="","",INDEX(수업명렬!$S:$S,MATCH(RW1,수업명렬!$BB:$BB,0),)) ->  | RX2: =IF(INDEX(수업명렬!$S:$S,MATCH(RX1,수업명렬!$BB:$BB,0),)="","",INDEX(수업명렬!$S:$S,MATCH(RX1,수업명렬!$BB:$BB,0),)) ->  | RY2: =IF(INDEX(수업명렬!$S:$S,MATCH(RY1,수업명렬!$BB:$BB,0),)="","",INDEX(수업명렬!$S:$S,MATCH(RY1,수업명렬!$BB:$BB,0),)) ->  | RZ2: =IF(INDEX(수업명렬!$S:$S,MATCH(RZ1,수업명렬!$BB:$BB,0),)="","",INDEX(수업명렬!$S:$S,MATCH(RZ1,수업명렬!$BB:$BB,0),)) ->  | SA2: =IF(INDEX(수업명렬!$S:$S,MATCH(SA1,수업명렬!$BB:$BB,0),)="","",INDEX(수업명렬!$S:$S,MATCH(SA1,수업명렬!$BB:$BB,0),)) ->  | SB2: =IF(INDEX(수업명렬!$S:$S,MATCH(SB1,수업명렬!$BB:$BB,0),)="","",INDEX(수업명렬!$S:$S,MATCH(SB1,수업명렬!$BB:$BB,0),)) ->  | SC2: =IF(INDEX(수업명렬!$S:$S,MATCH(SC1,수업명렬!$BB:$BB,0),)="","",INDEX(수업명렬!$S:$S,MATCH(SC1,수업명렬!$BB:$BB,0),)) ->  | SD2: =IF(INDEX(수업명렬!$S:$S,MATCH(SD1,수업명렬!$BB:$BB,0),)="","",INDEX(수업명렬!$S:$S,MATCH(SD1,수업명렬!$BB:$BB,0),)) ->  | SE2: =IF(INDEX(수업명렬!$S:$S,MATCH(SE1,수업명렬!$BB:$BB,0),)="","",INDEX(수업명렬!$S:$S,MATCH(SE1,수업명렬!$BB:$BB,0),)) ->  | SF2: =IF(INDEX(수업명렬!$S:$S,MATCH(SF1,수업명렬!$BB:$BB,0),)="","",INDEX(수업명렬!$S:$S,MATCH(SF1,수업명렬!$BB:$BB,0),)) ->  | SG2: =IF(INDEX(수업명렬!$S:$S,MATCH(SG1,수업명렬!$BB:$BB,0),)="","",INDEX(수업명렬!$S:$S,MATCH(SG1,수업명렬!$BB:$BB,0),)) ->  | SH2: =IF(INDEX(수업명렬!$S:$S,MATCH(SH1,수업명렬!$BB:$BB,0),)="","",INDEX(수업명렬!$S:$S,MATCH(SH1,수업명렬!$BB:$BB,0),)) ->  | SI2: =IF(INDEX(수업명렬!$S:$S,MATCH(SI1,수업명렬!$BB:$BB,0),)="","",INDEX(수업명렬!$S:$S,MATCH(SI1,수업명렬!$BB:$BB,0),)) ->  | SJ2: =IF(INDEX(수업명렬!$S:$S,MATCH(SJ1,수업명렬!$BB:$BB,0),)="","",INDEX(수업명렬!$S:$S,MATCH(SJ1,수업명렬!$BB:$BB,0),)) ->  | SM2: =IF(QM2="","",LEFT(QM2,2)) -> 11 | SN2: =IF(QN2="","",LEFT(QN2,2)) -> 12 | SO2: 21 | SP2: 22 | SQ2: 23 | SR2: 31 | SS2: 32 | ST2: 33 | UM2: 오류 | WQ2: =IF(INDEX(수업명렬!$S:$S,MATCH(WQ1,수업명렬!$BB:$BB,0),)="","",INDEX(수업명렬!$S:$S,MATCH(WQ1,수업명렬!$BB:$BB,0),)) -> 1100 | WR2: =IF(INDEX(수업명렬!$S:$S,MATCH(WR1,수업명렬!$BB:$BB,0),)="","",INDEX(수업명렬!$S:$S,MATCH(WR1,수업명렬!$BB:$BB,0),)) -> 1200 | WS2: =IF(INDEX(수업명렬!$S:$S,MATCH(WS1,수업명렬!$BB:$BB,0),)="","",INDEX(수업명렬!$S:$S,MATCH(WS1,수업명렬!$BB:$BB,0),)) -> 2100 | WT2: =IF(INDEX(수업명렬!$S:$S,MATCH(WT1,수업명렬!$BB:$BB,0),)="","",INDEX(수업명렬!$S:$S,MATCH(WT1,수업명렬!$BB:$BB,0),)) -> 2200 | WU2: =IF(INDEX(수업명렬!$S:$S,MATCH(WU1,수업명렬!$BB:$BB,0),)="","",INDEX(수업명렬!$S:$S,MATCH(WU1,수업명렬!$BB:$BB,0),)) -> 2300 | WV2: =IF(INDEX(수업명렬!$S:$S,MATCH(WV1,수업명렬!$BB:$BB,0),)="","",INDEX(수업명렬!$S:$S,MATCH(WV1,수업명렬!$BB:$BB,0),)) -> 3100 | WW2: =IF(INDEX(수업명렬!$S:$S,MATCH(WW1,수업명렬!$BB:$BB,0),)="","",INDEX(수업명렬!$S:$S,MATCH(WW1,수업명렬!$BB:$BB,0),)) -> 3200 | WX2: =IF(INDEX(수업명렬!$S:$S,MATCH(WX1,수업명렬!$BB:$BB,0),)="","",INDEX(수업명렬!$S:$S,MATCH(WX1,수업명렬!$BB:$BB,0),)) -> 3300 | WY2: =IF(INDEX(수업명렬!$S:$S,MATCH(WY1,수업명렬!$BB:$BB,0),)="","",INDEX(수업명렬!$S:$S,MATCH(WY1,수업명렬!$BB:$BB,0),)) ->  | WZ2: =IF(INDEX(수업명렬!$S:$S,MATCH(WZ1,수업명렬!$BB:$BB,0),)="","",INDEX(수업명렬!$S:$S,MATCH(WZ1,수업명렬!$BB:$BB,0),)) ->  | XA2: =IF(INDEX(수업명렬!$S:$S,MATCH(XA1,수업명렬!$BB:$BB,0),)="","",INDEX(수업명렬!$S:$S,MATCH(XA1,수업명렬!$BB:$BB,0),)) ->  | XB2: =IF(INDEX(수업명렬!$S:$S,MATCH(XB1,수업명렬!$BB:$BB,0),)="","",INDEX(수업명렬!$S:$S,MATCH(XB1,수업명렬!$BB:$BB,0),)) ->  | XC2: =IF(INDEX(수업명렬!$S:$S,MATCH(XC1,수업명렬!$BB:$BB,0),)="","",INDEX(수업명렬!$S:$S,MATCH(XC1,수업명렬!$BB:$BB,0),)) ->  | XD2: =IF(INDEX(수업명렬!$S:$S,MATCH(XD1,수업명렬!$BB:$BB,0),)="","",INDEX(수업명렬!$S:$S,MATCH(XD1,수업명렬!$BB:$BB,0),)) ->  | XE2: =IF(INDEX(수업명렬!$S:$S,MATCH(XE1,수업명렬!$BB:$BB,0),)="","",INDEX(수업명렬!$S:$S,MATCH(XE1,수업명렬!$BB:$BB,0),)) ->  | XF2: =IF(INDEX(수업명렬!$S:$S,MATCH(XF1,수업명렬!$BB:$BB,0),)="","",INDEX(수업명렬!$S:$S,MATCH(XF1,수업명렬!$BB:$BB,0),)) ->  | XG2: =IF(INDEX(수업명렬!$S:$S,MATCH(XG1,수업명렬!$BB:$BB,0),)="","",INDEX(수업명렬!$S:$S,MATCH(XG1,수업명렬!$BB:$BB,0),)) ->  | XH2: =IF(INDEX(수업명렬!$S:$S,MATCH(XH1,수업명렬!$BB:$BB,0),)="","",INDEX(수업명렬!$S:$S,MATCH(XH1,수업명렬!$BB:$BB,0),)) ->  | XI2: =IF(INDEX(수업명렬!$S:$S,MATCH(XI1,수업명렬!$BB:$BB,0),)="","",INDEX(수업명렬!$S:$S,MATCH(XI1,수업명렬!$BB:$BB,0),)) ->  | XJ2: =IF(INDEX(수업명렬!$S:$S,MATCH(XJ1,수업명렬!$BB:$BB,0),)="","",INDEX(수업명렬!$S:$S,MATCH(XJ1,수업명렬!$BB:$BB,0),)) ->  | XK2: =IF(INDEX(수업명렬!$S:$S,MATCH(XK1,수업명렬!$BB:$BB,0),)="","",INDEX(수업명렬!$S:$S,MATCH(XK1,수업명렬!$BB:$BB,0),)) ->  | XL2: =IF(INDEX(수업명렬!$S:$S,MATCH(XL1,수업명렬!$BB:$BB,0),)="","",INDEX(수업명렬!$S:$S,MATCH(XL1,수업명렬!$BB:$BB,0),)) ->  | XM2: =IF(INDEX(수업명렬!$S:$S,MATCH(XM1,수업명렬!$BB:$BB,0),)="","",INDEX(수업명렬!$S:$S,MATCH(XM1,수업명렬!$BB:$BB,0),)) ->  | XN2: =IF(INDEX(수업명렬!$S:$S,MATCH(XN1,수업명렬!$BB:$BB,0),)="","",INDEX(수업명렬!$S:$S,MATCH(XN1,수업명렬!$BB:$BB,0),)) ->  | XO2: =IF(INDEX(수업명렬!$S:$S,MATCH(XO1,수업명렬!$BB:$BB,0),)="","",INDEX(수업명렬!$S:$S,MATCH(XO1,수업명렬!$BB:$BB,0),)) ->  | XP2: =IF(INDEX(수업명렬!$S:$S,MATCH(XP1,수업명렬!$BB:$BB,0),)="","",INDEX(수업명렬!$S:$S,MATCH(XP1,수업명렬!$BB:$BB,0),)) ->  | XQ2: =IF(INDEX(수업명렬!$S:$S,MATCH(XQ1,수업명렬!$BB:$BB,0),)="","",INDEX(수업명렬!$S:$S,MATCH(XQ1,수업명렬!$BB:$BB,0),)) ->  | XR2: =IF(INDEX(수업명렬!$S:$S,MATCH(XR1,수업명렬!$BB:$BB,0),)="","",INDEX(수업명렬!$S:$S,MATCH(XR1,수업명렬!$BB:$BB,0),)) ->  | XS2: =IF(INDEX(수업명렬!$S:$S,MATCH(XS1,수업명렬!$BB:$BB,0),)="","",INDEX(수업명렬!$S:$S,MATCH(XS1,수업명렬!$BB:$BB,0),)) ->  | XT2: =IF(INDEX(수업명렬!$S:$S,MATCH(XT1,수업명렬!$BB:$BB,0),)="","",INDEX(수업명렬!$S:$S,MATCH(XT1,수업명렬!$BB:$BB,0),)) ->  | XU2: =IF(INDEX(수업명렬!$S:$S,MATCH(XU1,수업명렬!$BB:$BB,0),)="","",INDEX(수업명렬!$S:$S,MATCH(XU1,수업명렬!$BB:$BB,0),)) ->  | XV2: =IF(INDEX(수업명렬!$S:$S,MATCH(XV1,수업명렬!$BB:$BB,0),)="","",INDEX(수업명렬!$S:$S,MATCH(XV1,수업명렬!$BB:$BB,0),)) ->  | XW2: =IF(INDEX(수업명렬!$S:$S,MATCH(XW1,수업명렬!$BB:$BB,0),)="","",INDEX(수업명렬!$S:$S,MATCH(XW1,수업명렬!$BB:$BB,0),)) ->  | XX2: =IF(INDEX(수업명렬!$S:$S,MATCH(XX1,수업명렬!$BB:$BB,0),)="","",INDEX(수업명렬!$S:$S,MATCH(XX1,수업명렬!$BB:$BB,0),)) ->  | XY2: =IF(INDEX(수업명렬!$S:$S,MATCH(XY1,수업명렬!$BB:$BB,0),)="","",INDEX(수업명렬!$S:$S,MATCH(XY1,수업명렬!$BB:$BB,0),)) ->  | XZ2: =IF(INDEX(수업명렬!$S:$S,MATCH(XZ1,수업명렬!$BB:$BB,0),)="","",INDEX(수업명렬!$S:$S,MATCH(XZ1,수업명렬!$BB:$BB,0),)) ->  | YA2: =IF(INDEX(수업명렬!$S:$S,MATCH(YA1,수업명렬!$BB:$BB,0),)="","",INDEX(수업명렬!$S:$S,MATCH(YA1,수업명렬!$BB:$BB,0),)) ->  | YB2: =IF(INDEX(수업명렬!$S:$S,MATCH(YB1,수업명렬!$BB:$BB,0),)="","",INDEX(수업명렬!$S:$S,MATCH(YB1,수업명렬!$BB:$BB,0),)) ->  | YC2: =IF(INDEX(수업명렬!$S:$S,MATCH(YC1,수업명렬!$BB:$BB,0),)="","",INDEX(수업명렬!$S:$S,MATCH(YC1,수업명렬!$BB:$BB,0),)) ->  | YD2: =IF(INDEX(수업명렬!$S:$S,MATCH(YD1,수업명렬!$BB:$BB,0),)="","",INDEX(수업명렬!$S:$S,MATCH(YD1,수업명렬!$BB:$BB,0),)) ->  | YE2: =IF(INDEX(수업명렬!$S:$S,MATCH(YE1,수업명렬!$BB:$BB,0),)="","",INDEX(수업명렬!$S:$S,MATCH(YE1,수업명렬!$BB:$BB,0),)) ->  | YF2: =IF(INDEX(수업명렬!$S:$S,MATCH(YF1,수업명렬!$BB:$BB,0),)="","",INDEX(수업명렬!$S:$S,MATCH(YF1,수업명렬!$BB:$BB,0),)) ->  | YG2: =IF(INDEX(수업명렬!$S:$S,MATCH(YG1,수업명렬!$BB:$BB,0),)="","",INDEX(수업명렬!$S:$S,MATCH(YG1,수업명렬!$BB:$BB,0),)) ->  | YH2: =IF(INDEX(수업명렬!$S:$S,MATCH(YH1,수업명렬!$BB:$BB,0),)="","",INDEX(수업명렬!$S:$S,MATCH(YH1,수업명렬!$BB:$BB,0),)) ->  | YI2: =IF(INDEX(수업명렬!$S:$S,MATCH(YI1,수업명렬!$BB:$BB,0),)="","",INDEX(수업명렬!$S:$S,MATCH(YI1,수업명렬!$BB:$BB,0),)) ->  | YJ2: =IF(INDEX(수업명렬!$S:$S,MATCH(YJ1,수업명렬!$BB:$BB,0),)="","",INDEX(수업명렬!$S:$S,MATCH(YJ1,수업명렬!$BB:$BB,0),)) ->  | YK2: =IF(INDEX(수업명렬!$S:$S,MATCH(YK1,수업명렬!$BB:$BB,0),)="","",INDEX(수업명렬!$S:$S,MATCH(YK1,수업명렬!$BB:$BB,0),)) ->  | YL2: =IF(INDEX(수업명렬!$S:$S,MATCH(YL1,수업명렬!$BB:$BB,0),)="","",INDEX(수업명렬!$S:$S,MATCH(YL1,수업명렬!$BB:$BB,0),)) ->  | YM2: =IF(INDEX(수업명렬!$S:$S,MATCH(YM1,수업명렬!$BB:$BB,0),)="","",INDEX(수업명렬!$S:$S,MATCH(YM1,수업명렬!$BB:$BB,0),)) ->  | YN2: =IF(INDEX(수업명렬!$S:$S,MATCH(YN1,수업명렬!$BB:$BB,0),)="","",INDEX(수업명렬!$S:$S,MATCH(YN1,수업명렬!$BB:$BB,0),)) ->  | YT2: 과 | YU2: =수업명렬!BX1 -> 3301 | YX2: =INDEX($YX$7:$YX$506,MATCH(YU2,$YU$7:$YU$506,0),) -> -4 | YY2: =ABS(YX2) -> 4 | ZI2: =IF(INDEX(수업명렬!$S:$S,MATCH(ZI1,수업명렬!$BB:$BB,0),)="","",INDEX(수업명렬!$S:$S,MATCH(ZI1,수업명렬!$BB:$BB,0),)) -> 1100 | ZJ2: =IF(INDEX(수업명렬!$S:$S,MATCH(ZJ1,수업명렬!$BB:$BB,0),)="","",INDEX(수업명렬!$S:$S,MATCH(ZJ1,수업명렬!$BB:$BB,0),)) -> 1200 | ZK2: =IF(INDEX(수업명렬!$S:$S,MATCH(ZK1,수업명렬!$BB:$BB,0),)="","",INDEX(수업명렬!$S:$S,MATCH(ZK1,수업명렬!$BB:$BB,0),)) -> 2100 | ZL2: =IF(INDEX(수업명렬!$S:$S,MATCH(ZL1,수업명렬!$BB:$BB,0),)="","",INDEX(수업명렬!$S:$S,MATCH(ZL1,수업명렬!$BB:$BB,0),)) -> 2200 | ZM2: =IF(INDEX(수업명렬!$S:$S,MATCH(ZM1,수업명렬!$BB:$BB,0),)="","",INDEX(수업명렬!$S:$S,MATCH(ZM1,수업명렬!$BB:$BB,0),)) -> 2300 | ZN2: =IF(INDEX(수업명렬!$S:$S,MATCH(ZN1,수업명렬!$BB:$BB,0),)="","",INDEX(수업명렬!$S:$S,MATCH(ZN1,수업명렬!$BB:$BB,0),)) -> 3100 | ZO2: =IF(INDEX(수업명렬!$S:$S,MATCH(ZO1,수업명렬!$BB:$BB,0),)="","",INDEX(수업명렬!$S:$S,MATCH(ZO1,수업명렬!$BB:$BB,0),)) -> 3200 | ZP2: =IF(INDEX(수업명렬!$S:$S,MATCH(ZP1,수업명렬!$BB:$BB,0),)="","",INDEX(수업명렬!$S:$S,MATCH(ZP1,수업명렬!$BB:$BB,0),)) -> 3300 | ZQ2: =IF(INDEX(수업명렬!$S:$S,MATCH(ZQ1,수업명렬!$BB:$BB,0),)="","",INDEX(수업명렬!$S:$S,MATCH(ZQ1,수업명렬!$BB:$BB,0),)) ->  | ZR2: =IF(INDEX(수업명렬!$S:$S,MATCH(ZR1,수업명렬!$BB:$BB,0),)="","",INDEX(수업명렬!$S:$S,MATCH(ZR1,수업명렬!$BB:$BB,0),)) ->  | ZS2: =IF(INDEX(수업명렬!$S:$S,MATCH(ZS1,수업명렬!$BB:$BB,0),)="","",INDEX(수업명렬!$S:$S,MATCH(ZS1,수업명렬!$BB:$BB,0),)) ->  | ZT2: =IF(INDEX(수업명렬!$S:$S,MATCH(ZT1,수업명렬!$BB:$BB,0),)="","",INDEX(수업명렬!$S:$S,MATCH(ZT1,수업명렬!$BB:$BB,0),)) ->  | ZU2: =IF(INDEX(수업명렬!$S:$S,MATCH(ZU1,수업명렬!$BB:$BB,0),)="","",INDEX(수업명렬!$S:$S,MATCH(ZU1,수업명렬!$BB:$BB,0),)) ->  | ZV2: =IF(INDEX(수업명렬!$S:$S,MATCH(ZV1,수업명렬!$BB:$BB,0),)="","",INDEX(수업명렬!$S:$S,MATCH(ZV1,수업명렬!$BB:$BB,0),)) ->  | ZW2: =IF(INDEX(수업명렬!$S:$S,MATCH(ZW1,수업명렬!$BB:$BB,0),)="","",INDEX(수업명렬!$S:$S,MATCH(ZW1,수업명렬!$BB:$BB,0),)) ->  | ZX2: =IF(INDEX(수업명렬!$S:$S,MATCH(ZX1,수업명렬!$BB:$BB,0),)="","",INDEX(수업명렬!$S:$S,MATCH(ZX1,수업명렬!$BB:$BB,0),)) ->  | ZY2: =IF(INDEX(수업명렬!$S:$S,MATCH(ZY1,수업명렬!$BB:$BB,0),)="","",INDEX(수업명렬!$S:$S,MATCH(ZY1,수업명렬!$BB:$BB,0),)) ->  | ZZ2: =IF(INDEX(수업명렬!$S:$S,MATCH(ZZ1,수업명렬!$BB:$BB,0),)="","",INDEX(수업명렬!$S:$S,MATCH(ZZ1,수업명렬!$BB:$BB,0),)) ->  | AAA2: =IF(INDEX(수업명렬!$S:$S,MATCH(AAA1,수업명렬!$BB:$BB,0),)="","",INDEX(수업명렬!$S:$S,MATCH(AAA1,수업명렬!$BB:$BB,0),)) ->  | AAB2: =IF(INDEX(수업명렬!$S:$S,MATCH(AAB1,수업명렬!$BB:$BB,0),)="","",INDEX(수업명렬!$S:$S,MATCH(AAB1,수업명렬!$BB:$BB,0),)) ->  | AAC2: =IF(INDEX(수업명렬!$S:$S,MATCH(AAC1,수업명렬!$BB:$BB,0),)="","",INDEX(수업명렬!$S:$S,MATCH(AAC1,수업명렬!$BB:$BB,0),)) ->  | AAD2: =IF(INDEX(수업명렬!$S:$S,MATCH(AAD1,수업명렬!$BB:$BB,0),)="","",INDEX(수업명렬!$S:$S,MATCH(AAD1,수업명렬!$BB:$BB,0),)) ->  | AAE2: =IF(INDEX(수업명렬!$S:$S,MATCH(AAE1,수업명렬!$BB:$BB,0),)="","",INDEX(수업명렬!$S:$S,MATCH(AAE1,수업명렬!$BB:$BB,0),)) ->  | AAF2: =IF(INDEX(수업명렬!$S:$S,MATCH(AAF1,수업명렬!$BB:$BB,0),)="","",INDEX(수업명렬!$S:$S,MATCH(AAF1,수업명렬!$BB:$BB,0),)) ->  | AAG2: =IF(INDEX(수업명렬!$S:$S,MATCH(AAG1,수업명렬!$BB:$BB,0),)="","",INDEX(수업명렬!$S:$S,MATCH(AAG1,수업명렬!$BB:$BB,0),)) ->  | AAH2: =IF(INDEX(수업명렬!$S:$S,MATCH(AAH1,수업명렬!$BB:$BB,0),)="","",INDEX(수업명렬!$S:$S,MATCH(AAH1,수업명렬!$BB:$BB,0),)) ->  | AAI2: =IF(INDEX(수업명렬!$S:$S,MATCH(AAI1,수업명렬!$BB:$BB,0),)="","",INDEX(수업명렬!$S:$S,MATCH(AAI1,수업명렬!$BB:$BB,0),)) ->  | AAJ2: =IF(INDEX(수업명렬!$S:$S,MATCH(AAJ1,수업명렬!$BB:$BB,0),)="","",INDEX(수업명렬!$S:$S,MATCH(AAJ1,수업명렬!$BB:$BB,0),)) ->  | AAK2: =IF(INDEX(수업명렬!$S:$S,MATCH(AAK1,수업명렬!$BB:$BB,0),)="","",INDEX(수업명렬!$S:$S,MATCH(AAK1,수업명렬!$BB:$BB,0),)) ->  | AAL2: =IF(INDEX(수업명렬!$S:$S,MATCH(AAL1,수업명렬!$BB:$BB,0),)="","",INDEX(수업명렬!$S:$S,MATCH(AAL1,수업명렬!$BB:$BB,0),)) ->  | AAM2: =IF(INDEX(수업명렬!$S:$S,MATCH(AAM1,수업명렬!$BB:$BB,0),)="","",INDEX(수업명렬!$S:$S,MATCH(AAM1,수업명렬!$BB:$BB,0),)) ->  | AAN2: =IF(INDEX(수업명렬!$S:$S,MATCH(AAN1,수업명렬!$BB:$BB,0),)="","",INDEX(수업명렬!$S:$S,MATCH(AAN1,수업명렬!$BB:$BB,0),)) ->  | AAO2: =IF(INDEX(수업명렬!$S:$S,MATCH(AAO1,수업명렬!$BB:$BB,0),)="","",INDEX(수업명렬!$S:$S,MATCH(AAO1,수업명렬!$BB:$BB,0),)) ->  | AAP2: =IF(INDEX(수업명렬!$S:$S,MATCH(AAP1,수업명렬!$BB:$BB,0),)="","",INDEX(수업명렬!$S:$S,MATCH(AAP1,수업명렬!$BB:$BB,0),)) ->  | AAQ2: =IF(INDEX(수업명렬!$S:$S,MATCH(AAQ1,수업명렬!$BB:$BB,0),)="","",INDEX(수업명렬!$S:$S,MATCH(AAQ1,수업명렬!$BB:$BB,0),)) ->  | AAR2: =IF(INDEX(수업명렬!$S:$S,MATCH(AAR1,수업명렬!$BB:$BB,0),)="","",INDEX(수업명렬!$S:$S,MATCH(AAR1,수업명렬!$BB:$BB,0),)) ->  | AAS2: =IF(INDEX(수업명렬!$S:$S,MATCH(AAS1,수업명렬!$BB:$BB,0),)="","",INDEX(수업명렬!$S:$S,MATCH(AAS1,수업명렬!$BB:$BB,0),)) ->  | AAT2: =IF(INDEX(수업명렬!$S:$S,MATCH(AAT1,수업명렬!$BB:$BB,0),)="","",INDEX(수업명렬!$S:$S,MATCH(AAT1,수업명렬!$BB:$BB,0),)) ->  | AAU2: =IF(INDEX(수업명렬!$S:$S,MATCH(AAU1,수업명렬!$BB:$BB,0),)="","",INDEX(수업명렬!$S:$S,MATCH(AAU1,수업명렬!$BB:$BB,0),)) ->  | AAV2: =IF(INDEX(수업명렬!$S:$S,MATCH(AAV1,수업명렬!$BB:$BB,0),)="","",INDEX(수업명렬!$S:$S,MATCH(AAV1,수업명렬!$BB:$BB,0),)) ->  | AAW2: =IF(INDEX(수업명렬!$S:$S,MATCH(AAW1,수업명렬!$BB:$BB,0),)="","",INDEX(수업명렬!$S:$S,MATCH(AAW1,수업명렬!$BB:$BB,0),)) ->  | AAX2: =IF(INDEX(수업명렬!$S:$S,MATCH(AAX1,수업명렬!$BB:$BB,0),)="","",INDEX(수업명렬!$S:$S,MATCH(AAX1,수업명렬!$BB:$BB,0),)) ->  | AAY2: =IF(INDEX(수업명렬!$S:$S,MATCH(AAY1,수업명렬!$BB:$BB,0),)="","",INDEX(수업명렬!$S:$S,MATCH(AAY1,수업명렬!$BB:$BB,0),)) ->  | AAZ2: =IF(INDEX(수업명렬!$S:$S,MATCH(AAZ1,수업명렬!$BB:$BB,0),)="","",INDEX(수업명렬!$S:$S,MATCH(AAZ1,수업명렬!$BB:$BB,0),)) ->  | ABA2: =IF(INDEX(수업명렬!$S:$S,MATCH(ABA1,수업명렬!$BB:$BB,0),)="","",INDEX(수업명렬!$S:$S,MATCH(ABA1,수업명렬!$BB:$BB,0),)) ->  | ABB2: =IF(INDEX(수업명렬!$S:$S,MATCH(ABB1,수업명렬!$BB:$BB,0),)="","",INDEX(수업명렬!$S:$S,MATCH(ABB1,수업명렬!$BB:$BB,0),)) ->  | ABC2: =IF(INDEX(수업명렬!$S:$S,MATCH(ABC1,수업명렬!$BB:$BB,0),)="","",INDEX(수업명렬!$S:$S,MATCH(ABC1,수업명렬!$BB:$BB,0),)) ->  | ABD2: =IF(INDEX(수업명렬!$S:$S,MATCH(ABD1,수업명렬!$BB:$BB,0),)="","",INDEX(수업명렬!$S:$S,MATCH(ABD1,수업명렬!$BB:$BB,0),)) ->  | ABE2: =IF(INDEX(수업명렬!$S:$S,MATCH(ABE1,수업명렬!$BB:$BB,0),)="","",INDEX(수업명렬!$S:$S,MATCH(ABE1,수업명렬!$BB:$BB,0),)) ->  | ABF2: =IF(INDEX(수업명렬!$S:$S,MATCH(ABF1,수업명렬!$BB:$BB,0),)="","",INDEX(수업명렬!$S:$S,MATCH(ABF1,수업명렬!$BB:$BB,0),)) ->  | ABK2: =IF(INDEX(수업명렬!$S:$S,MATCH(ABK1,수업명렬!$BB:$BB,0),)="","",INDEX(수업명렬!$S:$S,MATCH(ABK1,수업명렬!$BB:$BB,0),)) -> 1100 | ABL2: =IF(INDEX(수업명렬!$S:$S,MATCH(ABL1,수업명렬!$BB:$BB,0),)="","",INDEX(수업명렬!$S:$S,MATCH(ABL1,수업명렬!$BB:$BB,0),)) -> 1200 | ABM2: =IF(INDEX(수업명렬!$S:$S,MATCH(ABM1,수업명렬!$BB:$BB,0),)="","",INDEX(수업명렬!$S:$S,MATCH(ABM1,수업명렬!$BB:$BB,0),)) -> 2100 | ABN2: =IF(INDEX(수업명렬!$S:$S,MATCH(ABN1,수업명렬!$BB:$BB,0),)="","",INDEX(수업명렬!$S:$S,MATCH(ABN1,수업명렬!$BB:$BB,0),)) -> 2200 | ABO2: =IF(INDEX(수업명렬!$S:$S,MATCH(ABO1,수업명렬!$BB:$BB,0),)="","",INDEX(수업명렬!$S:$S,MATCH(ABO1,수업명렬!$BB:$BB,0),)) -> 2300 | ABP2: =IF(INDEX(수업명렬!$S:$S,MATCH(ABP1,수업명렬!$BB:$BB,0),)="","",INDEX(수업명렬!$S:$S,MATCH(ABP1,수업명렬!$BB:$BB,0),)) -> 3100 | ABQ2: =IF(INDEX(수업명렬!$S:$S,MATCH(ABQ1,수업명렬!$BB:$BB,0),)="","",INDEX(수업명렬!$S:$S,MATCH(ABQ1,수업명렬!$BB:$BB,0),)) -> 3200 | ABR2: =IF(INDEX(수업명렬!$S:$S,MATCH(ABR1,수업명렬!$BB:$BB,0),)="","",INDEX(수업명렬!$S:$S,MATCH(ABR1,수업명렬!$BB:$BB,0),)) -> 3300 | ABS2: =IF(INDEX(수업명렬!$S:$S,MATCH(ABS1,수업명렬!$BB:$BB,0),)="","",INDEX(수업명렬!$S:$S,MATCH(ABS1,수업명렬!$BB:$BB,0),)) ->  | ABT2: =IF(INDEX(수업명렬!$S:$S,MATCH(ABT1,수업명렬!$BB:$BB,0),)="","",INDEX(수업명렬!$S:$S,MATCH(ABT1,수업명렬!$BB:$BB,0),)) ->  | ABU2: =IF(INDEX(수업명렬!$S:$S,MATCH(ABU1,수업명렬!$BB:$BB,0),)="","",INDEX(수업명렬!$S:$S,MATCH(ABU1,수업명렬!$BB:$BB,0),)) ->  | ABV2: =IF(INDEX(수업명렬!$S:$S,MATCH(ABV1,수업명렬!$BB:$BB,0),)="","",INDEX(수업명렬!$S:$S,MATCH(ABV1,수업명렬!$BB:$BB,0),)) ->  | ABW2: =IF(INDEX(수업명렬!$S:$S,MATCH(ABW1,수업명렬!$BB:$BB,0),)="","",INDEX(수업명렬!$S:$S,MATCH(ABW1,수업명렬!$BB:$BB,0),)) ->  | ABX2: =IF(INDEX(수업명렬!$S:$S,MATCH(ABX1,수업명렬!$BB:$BB,0),)="","",INDEX(수업명렬!$S:$S,MATCH(ABX1,수업명렬!$BB:$BB,0),)) ->  | ABY2: =IF(INDEX(수업명렬!$S:$S,MATCH(ABY1,수업명렬!$BB:$BB,0),)="","",INDEX(수업명렬!$S:$S,MATCH(ABY1,수업명렬!$BB:$BB,0),)) ->  | ABZ2: =IF(INDEX(수업명렬!$S:$S,MATCH(ABZ1,수업명렬!$BB:$BB,0),)="","",INDEX(수업명렬!$S:$S,MATCH(ABZ1,수업명렬!$BB:$BB,0),)) ->  | ACA2: =IF(INDEX(수업명렬!$S:$S,MATCH(ACA1,수업명렬!$BB:$BB,0),)="","",INDEX(수업명렬!$S:$S,MATCH(ACA1,수업명렬!$BB:$BB,0),)) ->  | ACB2: =IF(INDEX(수업명렬!$S:$S,MATCH(ACB1,수업명렬!$BB:$BB,0),)="","",INDEX(수업명렬!$S:$S,MATCH(ACB1,수업명렬!$BB:$BB,0),)) ->  | ACC2: =IF(INDEX(수업명렬!$S:$S,MATCH(ACC1,수업명렬!$BB:$BB,0),)="","",INDEX(수업명렬!$S:$S,MATCH(ACC1,수업명렬!$BB:$BB,0),)) ->  | ACD2: =IF(INDEX(수업명렬!$S:$S,MATCH(ACD1,수업명렬!$BB:$BB,0),)="","",INDEX(수업명렬!$S:$S,MATCH(ACD1,수업명렬!$BB:$BB,0),)) ->  | ACE2: =IF(INDEX(수업명렬!$S:$S,MATCH(ACE1,수업명렬!$BB:$BB,0),)="","",INDEX(수업명렬!$S:$S,MATCH(ACE1,수업명렬!$BB:$BB,0),)) ->  | ACF2: =IF(INDEX(수업명렬!$S:$S,MATCH(ACF1,수업명렬!$BB:$BB,0),)="","",INDEX(수업명렬!$S:$S,MATCH(ACF1,수업명렬!$BB:$BB,0),)) ->  | ACG2: =IF(INDEX(수업명렬!$S:$S,MATCH(ACG1,수업명렬!$BB:$BB,0),)="","",INDEX(수업명렬!$S:$S,MATCH(ACG1,수업명렬!$BB:$BB,0),)) ->  | ACH2: =IF(INDEX(수업명렬!$S:$S,MATCH(ACH1,수업명렬!$BB:$BB,0),)="","",INDEX(수업명렬!$S:$S,MATCH(ACH1,수업명렬!$BB:$BB,0),)) ->  | ACI2: =IF(INDEX(수업명렬!$S:$S,MATCH(ACI1,수업명렬!$BB:$BB,0),)="","",INDEX(수업명렬!$S:$S,MATCH(ACI1,수업명렬!$BB:$BB,0),)) ->  | ACJ2: =IF(INDEX(수업명렬!$S:$S,MATCH(ACJ1,수업명렬!$BB:$BB,0),)="","",INDEX(수업명렬!$S:$S,MATCH(ACJ1,수업명렬!$BB:$BB,0),)) ->  | ACK2: =IF(INDEX(수업명렬!$S:$S,MATCH(ACK1,수업명렬!$BB:$BB,0),)="","",INDEX(수업명렬!$S:$S,MATCH(ACK1,수업명렬!$BB:$BB,0),)) ->  | ACL2: =IF(INDEX(수업명렬!$S:$S,MATCH(ACL1,수업명렬!$BB:$BB,0),)="","",INDEX(수업명렬!$S:$S,MATCH(ACL1,수업명렬!$BB:$BB,0),)) ->  | ACM2: =IF(INDEX(수업명렬!$S:$S,MATCH(ACM1,수업명렬!$BB:$BB,0),)="","",INDEX(수업명렬!$S:$S,MATCH(ACM1,수업명렬!$BB:$BB,0),)) ->  | ACN2: =IF(INDEX(수업명렬!$S:$S,MATCH(ACN1,수업명렬!$BB:$BB,0),)="","",INDEX(수업명렬!$S:$S,MATCH(ACN1,수업명렬!$BB:$BB,0),)) ->  | ACO2: =IF(INDEX(수업명렬!$S:$S,MATCH(ACO1,수업명렬!$BB:$BB,0),)="","",INDEX(수업명렬!$S:$S,MATCH(ACO1,수업명렬!$BB:$BB,0),)) ->  | ACP2: =IF(INDEX(수업명렬!$S:$S,MATCH(ACP1,수업명렬!$BB:$BB,0),)="","",INDEX(수업명렬!$S:$S,MATCH(ACP1,수업명렬!$BB:$BB,0),)) ->  | ACQ2: =IF(INDEX(수업명렬!$S:$S,MATCH(ACQ1,수업명렬!$BB:$BB,0),)="","",INDEX(수업명렬!$S:$S,MATCH(ACQ1,수업명렬!$BB:$BB,0),)) ->  | ACR2: =IF(INDEX(수업명렬!$S:$S,MATCH(ACR1,수업명렬!$BB:$BB,0),)="","",INDEX(수업명렬!$S:$S,MATCH(ACR1,수업명렬!$BB:$BB,0),)) ->  | ACS2: =IF(INDEX(수업명렬!$S:$S,MATCH(ACS1,수업명렬!$BB:$BB,0),)="","",INDEX(수업명렬!$S:$S,MATCH(ACS1,수업명렬!$BB:$BB,0),)) ->  | ACT2: =IF(INDEX(수업명렬!$S:$S,MATCH(ACT1,수업명렬!$BB:$BB,0),)="","",INDEX(수업명렬!$S:$S,MATCH(ACT1,수업명렬!$BB:$BB,0),)) ->  | ACU2: =IF(INDEX(수업명렬!$S:$S,MATCH(ACU1,수업명렬!$BB:$BB,0),)="","",INDEX(수업명렬!$S:$S,MATCH(ACU1,수업명렬!$BB:$BB,0),)) ->  | ACV2: =IF(INDEX(수업명렬!$S:$S,MATCH(ACV1,수업명렬!$BB:$BB,0),)="","",INDEX(수업명렬!$S:$S,MATCH(ACV1,수업명렬!$BB:$BB,0),)) ->  | ACW2: =IF(INDEX(수업명렬!$S:$S,MATCH(ACW1,수업명렬!$BB:$BB,0),)="","",INDEX(수업명렬!$S:$S,MATCH(ACW1,수업명렬!$BB:$BB,0),)) ->  | ACX2: =IF(INDEX(수업명렬!$S:$S,MATCH(ACX1,수업명렬!$BB:$BB,0),)="","",INDEX(수업명렬!$S:$S,MATCH(ACX1,수업명렬!$BB:$BB,0),)) ->  | ACY2: =IF(INDEX(수업명렬!$S:$S,MATCH(ACY1,수업명렬!$BB:$BB,0),)="","",INDEX(수업명렬!$S:$S,MATCH(ACY1,수업명렬!$BB:$BB,0),)) ->  | ACZ2: =IF(INDEX(수업명렬!$S:$S,MATCH(ACZ1,수업명렬!$BB:$BB,0),)="","",INDEX(수업명렬!$S:$S,MATCH(ACZ1,수업명렬!$BB:$BB,0),)) ->  | ADA2: =IF(INDEX(수업명렬!$S:$S,MATCH(ADA1,수업명렬!$BB:$BB,0),)="","",INDEX(수업명렬!$S:$S,MATCH(ADA1,수업명렬!$BB:$BB,0),)) ->  | ADB2: =IF(INDEX(수업명렬!$S:$S,MATCH(ADB1,수업명렬!$BB:$BB,0),)="","",INDEX(수업명렬!$S:$S,MATCH(ADB1,수업명렬!$BB:$BB,0),)) ->  | ADC2: =IF(INDEX(수업명렬!$S:$S,MATCH(ADC1,수업명렬!$BB:$BB,0),)="","",INDEX(수업명렬!$S:$S,MATCH(ADC1,수업명렬!$BB:$BB,0),)) ->  | ADD2: =IF(INDEX(수업명렬!$S:$S,MATCH(ADD1,수업명렬!$BB:$BB,0),)="","",INDEX(수업명렬!$S:$S,MATCH(ADD1,수업명렬!$BB:$BB,0),)) ->  | ADE2: =IF(INDEX(수업명렬!$S:$S,MATCH(ADE1,수업명렬!$BB:$BB,0),)="","",INDEX(수업명렬!$S:$S,MATCH(ADE1,수업명렬!$BB:$BB,0),)) ->  | ADF2: =IF(INDEX(수업명렬!$S:$S,MATCH(ADF1,수업명렬!$BB:$BB,0),)="","",INDEX(수업명렬!$S:$S,MATCH(ADF1,수업명렬!$BB:$BB,0),)) ->  | ADG2: =IF(INDEX(수업명렬!$S:$S,MATCH(ADG1,수업명렬!$BB:$BB,0),)="","",INDEX(수업명렬!$S:$S,MATCH(ADG1,수업명렬!$BB:$BB,0),)) ->  | ADH2: =IF(INDEX(수업명렬!$S:$S,MATCH(ADH1,수업명렬!$BB:$BB,0),)="","",INDEX(수업명렬!$S:$S,MATCH(ADH1,수업명렬!$BB:$BB,0),)) ->  | ADL2: =IF(INDEX(수업명렬!$S:$S,MATCH(ADL1,수업명렬!$BB:$BB,0),)="","",INDEX(수업명렬!$S:$S,MATCH(ADL1,수업명렬!$BB:$BB,0),)) -> 1100 | ADM2: =IF(INDEX(수업명렬!$S:$S,MATCH(ADM1,수업명렬!$BB:$BB,0),)="","",INDEX(수업명렬!$S:$S,MATCH(ADM1,수업명렬!$BB:$BB,0),)) -> 1200 | ADN2: =IF(INDEX(수업명렬!$S:$S,MATCH(ADN1,수업명렬!$BB:$BB,0),)="","",INDEX(수업명렬!$S:$S,MATCH(ADN1,수업명렬!$BB:$BB,0),)) -> 2100 | ADO2: =IF(INDEX(수업명렬!$S:$S,MATCH(ADO1,수업명렬!$BB:$BB,0),)="","",INDEX(수업명렬!$S:$S,MATCH(ADO1,수업명렬!$BB:$BB,0),)) -> 2200 | ADP2: =IF(INDEX(수업명렬!$S:$S,MATCH(ADP1,수업명렬!$BB:$BB,0),)="","",INDEX(수업명렬!$S:$S,MATCH(ADP1,수업명렬!$BB:$BB,0),)) -> 2300 | ADQ2: =IF(INDEX(수업명렬!$S:$S,MATCH(ADQ1,수업명렬!$BB:$BB,0),)="","",INDEX(수업명렬!$S:$S,MATCH(ADQ1,수업명렬!$BB:$BB,0),)) -> 3100 | ADR2: =IF(INDEX(수업명렬!$S:$S,MATCH(ADR1,수업명렬!$BB:$BB,0),)="","",INDEX(수업명렬!$S:$S,MATCH(ADR1,수업명렬!$BB:$BB,0),)) -> 3200 | ADS2: =IF(INDEX(수업명렬!$S:$S,MATCH(ADS1,수업명렬!$BB:$BB,0),)="","",INDEX(수업명렬!$S:$S,MATCH(ADS1,수업명렬!$BB:$BB,0),)) -> 3300 | ADT2: =IF(INDEX(수업명렬!$S:$S,MATCH(ADT1,수업명렬!$BB:$BB,0),)="","",INDEX(수업명렬!$S:$S,MATCH(ADT1,수업명렬!$BB:$BB,0),)) ->  | ADU2: =IF(INDEX(수업명렬!$S:$S,MATCH(ADU1,수업명렬!$BB:$BB,0),)="","",INDEX(수업명렬!$S:$S,MATCH(ADU1,수업명렬!$BB:$BB,0),)) ->  | ADV2: =IF(INDEX(수업명렬!$S:$S,MATCH(ADV1,수업명렬!$BB:$BB,0),)="","",INDEX(수업명렬!$S:$S,MATCH(ADV1,수업명렬!$BB:$BB,0),)) ->  | ADW2: =IF(INDEX(수업명렬!$S:$S,MATCH(ADW1,수업명렬!$BB:$BB,0),)="","",INDEX(수업명렬!$S:$S,MATCH(ADW1,수업명렬!$BB:$BB,0),)) ->  | ADX2: =IF(INDEX(수업명렬!$S:$S,MATCH(ADX1,수업명렬!$BB:$BB,0),)="","",INDEX(수업명렬!$S:$S,MATCH(ADX1,수업명렬!$BB:$BB,0),)) ->  | ADY2: =IF(INDEX(수업명렬!$S:$S,MATCH(ADY1,수업명렬!$BB:$BB,0),)="","",INDEX(수업명렬!$S:$S,MATCH(ADY1,수업명렬!$BB:$BB,0),)) ->  | ADZ2: =IF(INDEX(수업명렬!$S:$S,MATCH(ADZ1,수업명렬!$BB:$BB,0),)="","",INDEX(수업명렬!$S:$S,MATCH(ADZ1,수업명렬!$BB:$BB,0),)) ->  | AEA2: =IF(INDEX(수업명렬!$S:$S,MATCH(AEA1,수업명렬!$BB:$BB,0),)="","",INDEX(수업명렬!$S:$S,MATCH(AEA1,수업명렬!$BB:$BB,0),)) ->  | AEB2: =IF(INDEX(수업명렬!$S:$S,MATCH(AEB1,수업명렬!$BB:$BB,0),)="","",INDEX(수업명렬!$S:$S,MATCH(AEB1,수업명렬!$BB:$BB,0),)) ->  | AEC2: =IF(INDEX(수업명렬!$S:$S,MATCH(AEC1,수업명렬!$BB:$BB,0),)="","",INDEX(수업명렬!$S:$S,MATCH(AEC1,수업명렬!$BB:$BB,0),)) ->  | AED2: =IF(INDEX(수업명렬!$S:$S,MATCH(AED1,수업명렬!$BB:$BB,0),)="","",INDEX(수업명렬!$S:$S,MATCH(AED1,수업명렬!$BB:$BB,0),)) ->  | AEE2: =IF(INDEX(수업명렬!$S:$S,MATCH(AEE1,수업명렬!$BB:$BB,0),)="","",INDEX(수업명렬!$S:$S,MATCH(AEE1,수업명렬!$BB:$BB,0),)) ->  | AEF2: =IF(INDEX(수업명렬!$S:$S,MATCH(AEF1,수업명렬!$BB:$BB,0),)="","",INDEX(수업명렬!$S:$S,MATCH(AEF1,수업명렬!$BB:$BB,0),)) ->  | AEG2: =IF(INDEX(수업명렬!$S:$S,MATCH(AEG1,수업명렬!$BB:$BB,0),)="","",INDEX(수업명렬!$S:$S,MATCH(AEG1,수업명렬!$BB:$BB,0),)) ->  | AEH2: =IF(INDEX(수업명렬!$S:$S,MATCH(AEH1,수업명렬!$BB:$BB,0),)="","",INDEX(수업명렬!$S:$S,MATCH(AEH1,수업명렬!$BB:$BB,0),)) ->  | AEI2: =IF(INDEX(수업명렬!$S:$S,MATCH(AEI1,수업명렬!$BB:$BB,0),)="","",INDEX(수업명렬!$S:$S,MATCH(AEI1,수업명렬!$BB:$BB,0),)) ->  | AEJ2: =IF(INDEX(수업명렬!$S:$S,MATCH(AEJ1,수업명렬!$BB:$BB,0),)="","",INDEX(수업명렬!$S:$S,MATCH(AEJ1,수업명렬!$BB:$BB,0),)) ->  | AEK2: =IF(INDEX(수업명렬!$S:$S,MATCH(AEK1,수업명렬!$BB:$BB,0),)="","",INDEX(수업명렬!$S:$S,MATCH(AEK1,수업명렬!$BB:$BB,0),)) ->  | AEL2: =IF(INDEX(수업명렬!$S:$S,MATCH(AEL1,수업명렬!$BB:$BB,0),)="","",INDEX(수업명렬!$S:$S,MATCH(AEL1,수업명렬!$BB:$BB,0),)) ->  | AEM2: =IF(INDEX(수업명렬!$S:$S,MATCH(AEM1,수업명렬!$BB:$BB,0),)="","",INDEX(수업명렬!$S:$S,MATCH(AEM1,수업명렬!$BB:$BB,0),)) ->  | AEN2: =IF(INDEX(수업명렬!$S:$S,MATCH(AEN1,수업명렬!$BB:$BB,0),)="","",INDEX(수업명렬!$S:$S,MATCH(AEN1,수업명렬!$BB:$BB,0),)) ->  | AEO2: =IF(INDEX(수업명렬!$S:$S,MATCH(AEO1,수업명렬!$BB:$BB,0),)="","",INDEX(수업명렬!$S:$S,MATCH(AEO1,수업명렬!$BB:$BB,0),)) ->  | AEP2: =IF(INDEX(수업명렬!$S:$S,MATCH(AEP1,수업명렬!$BB:$BB,0),)="","",INDEX(수업명렬!$S:$S,MATCH(AEP1,수업명렬!$BB:$BB,0),)) ->  | AEQ2: =IF(INDEX(수업명렬!$S:$S,MATCH(AEQ1,수업명렬!$BB:$BB,0),)="","",INDEX(수업명렬!$S:$S,MATCH(AEQ1,수업명렬!$BB:$BB,0),)) ->  | AER2: =IF(INDEX(수업명렬!$S:$S,MATCH(AER1,수업명렬!$BB:$BB,0),)="","",INDEX(수업명렬!$S:$S,MATCH(AER1,수업명렬!$BB:$BB,0),)) ->  | AES2: =IF(INDEX(수업명렬!$S:$S,MATCH(AES1,수업명렬!$BB:$BB,0),)="","",INDEX(수업명렬!$S:$S,MATCH(AES1,수업명렬!$BB:$BB,0),)) ->  | AET2: =IF(INDEX(수업명렬!$S:$S,MATCH(AET1,수업명렬!$BB:$BB,0),)="","",INDEX(수업명렬!$S:$S,MATCH(AET1,수업명렬!$BB:$BB,0),)) ->  | AEU2: =IF(INDEX(수업명렬!$S:$S,MATCH(AEU1,수업명렬!$BB:$BB,0),)="","",INDEX(수업명렬!$S:$S,MATCH(AEU1,수업명렬!$BB:$BB,0),)) ->  | AEV2: =IF(INDEX(수업명렬!$S:$S,MATCH(AEV1,수업명렬!$BB:$BB,0),)="","",INDEX(수업명렬!$S:$S,MATCH(AEV1,수업명렬!$BB:$BB,0),)) ->  | AEW2: =IF(INDEX(수업명렬!$S:$S,MATCH(AEW1,수업명렬!$BB:$BB,0),)="","",INDEX(수업명렬!$S:$S,MATCH(AEW1,수업명렬!$BB:$BB,0),)) ->  | AEX2: =IF(INDEX(수업명렬!$S:$S,MATCH(AEX1,수업명렬!$BB:$BB,0),)="","",INDEX(수업명렬!$S:$S,MATCH(AEX1,수업명렬!$BB:$BB,0),)) ->  | AEY2: =IF(INDEX(수업명렬!$S:$S,MATCH(AEY1,수업명렬!$BB:$BB,0),)="","",INDEX(수업명렬!$S:$S,MATCH(AEY1,수업명렬!$BB:$BB,0),)) ->  | AEZ2: =IF(INDEX(수업명렬!$S:$S,MATCH(AEZ1,수업명렬!$BB:$BB,0),)="","",INDEX(수업명렬!$S:$S,MATCH(AEZ1,수업명렬!$BB:$BB,0),)) ->  | AFA2: =IF(INDEX(수업명렬!$S:$S,MATCH(AFA1,수업명렬!$BB:$BB,0),)="","",INDEX(수업명렬!$S:$S,MATCH(AFA1,수업명렬!$BB:$BB,0),)) ->  | AFB2: =IF(INDEX(수업명렬!$S:$S,MATCH(AFB1,수업명렬!$BB:$BB,0),)="","",INDEX(수업명렬!$S:$S,MATCH(AFB1,수업명렬!$BB:$BB,0),)) ->  | AFC2: =IF(INDEX(수업명렬!$S:$S,MATCH(AFC1,수업명렬!$BB:$BB,0),)="","",INDEX(수업명렬!$S:$S,MATCH(AFC1,수업명렬!$BB:$BB,0),)) ->  | AFD2: =IF(INDEX(수업명렬!$S:$S,MATCH(AFD1,수업명렬!$BB:$BB,0),)="","",INDEX(수업명렬!$S:$S,MATCH(AFD1,수업명렬!$BB:$BB,0),)) ->  | AFE2: =IF(INDEX(수업명렬!$S:$S,MATCH(AFE1,수업명렬!$BB:$BB,0),)="","",INDEX(수업명렬!$S:$S,MATCH(AFE1,수업명렬!$BB:$BB,0),)) ->  | AFF2: =IF(INDEX(수업명렬!$S:$S,MATCH(AFF1,수업명렬!$BB:$BB,0),)="","",INDEX(수업명렬!$S:$S,MATCH(AFF1,수업명렬!$BB:$BB,0),)) ->  | AFG2: =IF(INDEX(수업명렬!$S:$S,MATCH(AFG1,수업명렬!$BB:$BB,0),)="","",INDEX(수업명렬!$S:$S,MATCH(AFG1,수업명렬!$BB:$BB,0),)) ->  | AFH2: =IF(INDEX(수업명렬!$S:$S,MATCH(AFH1,수업명렬!$BB:$BB,0),)="","",INDEX(수업명렬!$S:$S,MATCH(AFH1,수업명렬!$BB:$BB,0),)) ->  | AFI2: =IF(INDEX(수업명렬!$S:$S,MATCH(AFI1,수업명렬!$BB:$BB,0),)="","",INDEX(수업명렬!$S:$S,MATCH(AFI1,수업명렬!$BB:$BB,0),)) ->  | AFM2: =IF(INDEX(수업명렬!$S:$S,MATCH(AFM1,수업명렬!$BB:$BB,0),)="","",INDEX(수업명렬!$S:$S,MATCH(AFM1,수업명렬!$BB:$BB,0),)) -> 1100 | AFN2: =IF(INDEX(수업명렬!$S:$S,MATCH(AFN1,수업명렬!$BB:$BB,0),)="","",INDEX(수업명렬!$S:$S,MATCH(AFN1,수업명렬!$BB:$BB,0),)) -> 1200 | AFO2: =IF(INDEX(수업명렬!$S:$S,MATCH(AFO1,수업명렬!$BB:$BB,0),)="","",INDEX(수업명렬!$S:$S,MATCH(AFO1,수업명렬!$BB:$BB,0),)) -> 2100 | AFP2: =IF(INDEX(수업명렬!$S:$S,MATCH(AFP1,수업명렬!$BB:$BB,0),)="","",INDEX(수업명렬!$S:$S,MATCH(AFP1,수업명렬!$BB:$BB,0),)) -> 2200 | AFQ2: =IF(INDEX(수업명렬!$S:$S,MATCH(AFQ1,수업명렬!$BB:$BB,0),)="","",INDEX(수업명렬!$S:$S,MATCH(AFQ1,수업명렬!$BB:$BB,0),)) -> 2300 | AFR2: =IF(INDEX(수업명렬!$S:$S,MATCH(AFR1,수업명렬!$BB:$BB,0),)="","",INDEX(수업명렬!$S:$S,MATCH(AFR1,수업명렬!$BB:$BB,0),)) -> 3100 | AFS2: =IF(INDEX(수업명렬!$S:$S,MATCH(AFS1,수업명렬!$BB:$BB,0),)="","",INDEX(수업명렬!$S:$S,MATCH(AFS1,수업명렬!$BB:$BB,0),)) -> 3200 | AFT2: =IF(INDEX(수업명렬!$S:$S,MATCH(AFT1,수업명렬!$BB:$BB,0),)="","",INDEX(수업명렬!$S:$S,MATCH(AFT1,수업명렬!$BB:$BB,0),)) -> 3300 | AFU2: =IF(INDEX(수업명렬!$S:$S,MATCH(AFU1,수업명렬!$BB:$BB,0),)="","",INDEX(수업명렬!$S:$S,MATCH(AFU1,수업명렬!$BB:$BB,0),)) ->  | AFV2: =IF(INDEX(수업명렬!$S:$S,MATCH(AFV1,수업명렬!$BB:$BB,0),)="","",INDEX(수업명렬!$S:$S,MATCH(AFV1,수업명렬!$BB:$BB,0),)) ->  | AFW2: =IF(INDEX(수업명렬!$S:$S,MATCH(AFW1,수업명렬!$BB:$BB,0),)="","",INDEX(수업명렬!$S:$S,MATCH(AFW1,수업명렬!$BB:$BB,0),)) ->  | AFX2: =IF(INDEX(수업명렬!$S:$S,MATCH(AFX1,수업명렬!$BB:$BB,0),)="","",INDEX(수업명렬!$S:$S,MATCH(AFX1,수업명렬!$BB:$BB,0),)) ->  | AFY2: =IF(INDEX(수업명렬!$S:$S,MATCH(AFY1,수업명렬!$BB:$BB,0),)="","",INDEX(수업명렬!$S:$S,MATCH(AFY1,수업명렬!$BB:$BB,0),)) ->  | AFZ2: =IF(INDEX(수업명렬!$S:$S,MATCH(AFZ1,수업명렬!$BB:$BB,0),)="","",INDEX(수업명렬!$S:$S,MATCH(AFZ1,수업명렬!$BB:$BB,0),)) ->  | AGA2: =IF(INDEX(수업명렬!$S:$S,MATCH(AGA1,수업명렬!$BB:$BB,0),)="","",INDEX(수업명렬!$S:$S,MATCH(AGA1,수업명렬!$BB:$BB,0),)) ->  | AGB2: =IF(INDEX(수업명렬!$S:$S,MATCH(AGB1,수업명렬!$BB:$BB,0),)="","",INDEX(수업명렬!$S:$S,MATCH(AGB1,수업명렬!$BB:$BB,0),)) ->  | AGC2: =IF(INDEX(수업명렬!$S:$S,MATCH(AGC1,수업명렬!$BB:$BB,0),)="","",INDEX(수업명렬!$S:$S,MATCH(AGC1,수업명렬!$BB:$BB,0),)) ->  | AGD2: =IF(INDEX(수업명렬!$S:$S,MATCH(AGD1,수업명렬!$BB:$BB,0),)="","",INDEX(수업명렬!$S:$S,MATCH(AGD1,수업명렬!$BB:$BB,0),)) ->  | AGE2: =IF(INDEX(수업명렬!$S:$S,MATCH(AGE1,수업명렬!$BB:$BB,0),)="","",INDEX(수업명렬!$S:$S,MATCH(AGE1,수업명렬!$BB:$BB,0),)) ->  | AGF2: =IF(INDEX(수업명렬!$S:$S,MATCH(AGF1,수업명렬!$BB:$BB,0),)="","",INDEX(수업명렬!$S:$S,MATCH(AGF1,수업명렬!$BB:$BB,0),)) ->  | AGG2: =IF(INDEX(수업명렬!$S:$S,MATCH(AGG1,수업명렬!$BB:$BB,0),)="","",INDEX(수업명렬!$S:$S,MATCH(AGG1,수업명렬!$BB:$BB,0),)) ->  | AGH2: =IF(INDEX(수업명렬!$S:$S,MATCH(AGH1,수업명렬!$BB:$BB,0),)="","",INDEX(수업명렬!$S:$S,MATCH(AGH1,수업명렬!$BB:$BB,0),)) ->  | AGI2: =IF(INDEX(수업명렬!$S:$S,MATCH(AGI1,수업명렬!$BB:$BB,0),)="","",INDEX(수업명렬!$S:$S,MATCH(AGI1,수업명렬!$BB:$BB,0),)) ->  | AGJ2: =IF(INDEX(수업명렬!$S:$S,MATCH(AGJ1,수업명렬!$BB:$BB,0),)="","",INDEX(수업명렬!$S:$S,MATCH(AGJ1,수업명렬!$BB:$BB,0),)) ->  | AGK2: =IF(INDEX(수업명렬!$S:$S,MATCH(AGK1,수업명렬!$BB:$BB,0),)="","",INDEX(수업명렬!$S:$S,MATCH(AGK1,수업명렬!$BB:$BB,0),)) ->  | AGL2: =IF(INDEX(수업명렬!$S:$S,MATCH(AGL1,수업명렬!$BB:$BB,0),)="","",INDEX(수업명렬!$S:$S,MATCH(AGL1,수업명렬!$BB:$BB,0),)) ->  | AGM2: =IF(INDEX(수업명렬!$S:$S,MATCH(AGM1,수업명렬!$BB:$BB,0),)="","",INDEX(수업명렬!$S:$S,MATCH(AGM1,수업명렬!$BB:$BB,0),)) ->  | AGN2: =IF(INDEX(수업명렬!$S:$S,MATCH(AGN1,수업명렬!$BB:$BB,0),)="","",INDEX(수업명렬!$S:$S,MATCH(AGN1,수업명렬!$BB:$BB,0),)) ->  | AGO2: =IF(INDEX(수업명렬!$S:$S,MATCH(AGO1,수업명렬!$BB:$BB,0),)="","",INDEX(수업명렬!$S:$S,MATCH(AGO1,수업명렬!$BB:$BB,0),)) ->  | AGP2: =IF(INDEX(수업명렬!$S:$S,MATCH(AGP1,수업명렬!$BB:$BB,0),)="","",INDEX(수업명렬!$S:$S,MATCH(AGP1,수업명렬!$BB:$BB,0),)) ->  | AGQ2: =IF(INDEX(수업명렬!$S:$S,MATCH(AGQ1,수업명렬!$BB:$BB,0),)="","",INDEX(수업명렬!$S:$S,MATCH(AGQ1,수업명렬!$BB:$BB,0),)) ->  | AGR2: =IF(INDEX(수업명렬!$S:$S,MATCH(AGR1,수업명렬!$BB:$BB,0),)="","",INDEX(수업명렬!$S:$S,MATCH(AGR1,수업명렬!$BB:$BB,0),)) ->  | AGS2: =IF(INDEX(수업명렬!$S:$S,MATCH(AGS1,수업명렬!$BB:$BB,0),)="","",INDEX(수업명렬!$S:$S,MATCH(AGS1,수업명렬!$BB:$BB,0),)) ->  | AGT2: =IF(INDEX(수업명렬!$S:$S,MATCH(AGT1,수업명렬!$BB:$BB,0),)="","",INDEX(수업명렬!$S:$S,MATCH(AGT1,수업명렬!$BB:$BB,0),)) ->  | AGU2: =IF(INDEX(수업명렬!$S:$S,MATCH(AGU1,수업명렬!$BB:$BB,0),)="","",INDEX(수업명렬!$S:$S,MATCH(AGU1,수업명렬!$BB:$BB,0),)) ->  | AGV2: =IF(INDEX(수업명렬!$S:$S,MATCH(AGV1,수업명렬!$BB:$BB,0),)="","",INDEX(수업명렬!$S:$S,MATCH(AGV1,수업명렬!$BB:$BB,0),)) ->  | AGW2: =IF(INDEX(수업명렬!$S:$S,MATCH(AGW1,수업명렬!$BB:$BB,0),)="","",INDEX(수업명렬!$S:$S,MATCH(AGW1,수업명렬!$BB:$BB,0),)) ->  | AGX2: =IF(INDEX(수업명렬!$S:$S,MATCH(AGX1,수업명렬!$BB:$BB,0),)="","",INDEX(수업명렬!$S:$S,MATCH(AGX1,수업명렬!$BB:$BB,0),)) ->  | AGY2: =IF(INDEX(수업명렬!$S:$S,MATCH(AGY1,수업명렬!$BB:$BB,0),)="","",INDEX(수업명렬!$S:$S,MATCH(AGY1,수업명렬!$BB:$BB,0),)) ->  | AGZ2: =IF(INDEX(수업명렬!$S:$S,MATCH(AGZ1,수업명렬!$BB:$BB,0),)="","",INDEX(수업명렬!$S:$S,MATCH(AGZ1,수업명렬!$BB:$BB,0),)) ->  | AHA2: =IF(INDEX(수업명렬!$S:$S,MATCH(AHA1,수업명렬!$BB:$BB,0),)="","",INDEX(수업명렬!$S:$S,MATCH(AHA1,수업명렬!$BB:$BB,0),)) ->  | AHB2: =IF(INDEX(수업명렬!$S:$S,MATCH(AHB1,수업명렬!$BB:$BB,0),)="","",INDEX(수업명렬!$S:$S,MATCH(AHB1,수업명렬!$BB:$BB,0),)) ->  | AHC2: =IF(INDEX(수업명렬!$S:$S,MATCH(AHC1,수업명렬!$BB:$BB,0),)="","",INDEX(수업명렬!$S:$S,MATCH(AHC1,수업명렬!$BB:$BB,0),)) ->  | AHD2: =IF(INDEX(수업명렬!$S:$S,MATCH(AHD1,수업명렬!$BB:$BB,0),)="","",INDEX(수업명렬!$S:$S,MATCH(AHD1,수업명렬!$BB:$BB,0),)) ->  | AHE2: =IF(INDEX(수업명렬!$S:$S,MATCH(AHE1,수업명렬!$BB:$BB,0),)="","",INDEX(수업명렬!$S:$S,MATCH(AHE1,수업명렬!$BB:$BB,0),)) ->  | AHF2: =IF(INDEX(수업명렬!$S:$S,MATCH(AHF1,수업명렬!$BB:$BB,0),)="","",INDEX(수업명렬!$S:$S,MATCH(AHF1,수업명렬!$BB:$BB,0),)) ->  | AHG2: =IF(INDEX(수업명렬!$S:$S,MATCH(AHG1,수업명렬!$BB:$BB,0),)="","",INDEX(수업명렬!$S:$S,MATCH(AHG1,수업명렬!$BB:$BB,0),)) ->  | AHH2: =IF(INDEX(수업명렬!$S:$S,MATCH(AHH1,수업명렬!$BB:$BB,0),)="","",INDEX(수업명렬!$S:$S,MATCH(AHH1,수업명렬!$BB:$BB,0),)) ->  | AHI2: =IF(INDEX(수업명렬!$S:$S,MATCH(AHI1,수업명렬!$BB:$BB,0),)="","",INDEX(수업명렬!$S:$S,MATCH(AHI1,수업명렬!$BB:$BB,0),)) ->  | AHJ2: =IF(INDEX(수업명렬!$S:$S,MATCH(AHJ1,수업명렬!$BB:$BB,0),)="","",INDEX(수업명렬!$S:$S,MATCH(AHJ1,수업명렬!$BB:$BB,0),)) -> 
I3: =IF(INDEX(수업명렬!$T:$T,MATCH(I1,수업명렬!$BB:$BB,0),)="","",INDEX(수업명렬!$T:$T,MATCH(I1,수업명렬!$BB:$BB,0),)) -> 국어 | J3: =IF(INDEX(수업명렬!$T:$T,MATCH(J1,수업명렬!$BB:$BB,0),)="","",INDEX(수업명렬!$T:$T,MATCH(J1,수업명렬!$BB:$BB,0),)) -> 국어 | K3: =IF(INDEX(수업명렬!$T:$T,MATCH(K1,수업명렬!$BB:$BB,0),)="","",INDEX(수업명렬!$T:$T,MATCH(K1,수업명렬!$BB:$BB,0),)) -> 수학 | L3: =IF(INDEX(수업명렬!$T:$T,MATCH(L1,수업명렬!$BB:$BB,0),)="","",INDEX(수업명렬!$T:$T,MATCH(L1,수업명렬!$BB:$BB,0),)) -> 수학 | M3: =IF(INDEX(수업명렬!$T:$T,MATCH(M1,수업명렬!$BB:$BB,0),)="","",INDEX(수업명렬!$T:$T,MATCH(M1,수업명렬!$BB:$BB,0),)) -> 수학 | N3: =IF(INDEX(수업명렬!$T:$T,MATCH(N1,수업명렬!$BB:$BB,0),)="","",INDEX(수업명렬!$T:$T,MATCH(N1,수업명렬!$BB:$BB,0),)) -> 영어 | O3: =IF(INDEX(수업명렬!$T:$T,MATCH(O1,수업명렬!$BB:$BB,0),)="","",INDEX(수업명렬!$T:$T,MATCH(O1,수업명렬!$BB:$BB,0),)) -> 영어 | P3: =IF(INDEX(수업명렬!$T:$T,MATCH(P1,수업명렬!$BB:$BB,0),)="","",INDEX(수업명렬!$T:$T,MATCH(P1,수업명렬!$BB:$BB,0),)) -> 영어 | Q3: =IF(INDEX(수업명렬!$T:$T,MATCH(Q1,수업명렬!$BB:$BB,0),)="","",INDEX(수업명렬!$T:$T,MATCH(Q1,수업명렬!$BB:$BB,0),)) ->  | R3: =IF(INDEX(수업명렬!$T:$T,MATCH(R1,수업명렬!$BB:$BB,0),)="","",INDEX(수업명렬!$T:$T,MATCH(R1,수업명렬!$BB:$BB,0),)) ->  | S3: =IF(INDEX(수업명렬!$T:$T,MATCH(S1,수업명렬!$BB:$BB,0),)="","",INDEX(수업명렬!$T:$T,MATCH(S1,수업명렬!$BB:$BB,0),)) ->  | T3: =IF(INDEX(수업명렬!$T:$T,MATCH(T1,수업명렬!$BB:$BB,0),)="","",INDEX(수업명렬!$T:$T,MATCH(T1,수업명렬!$BB:$BB,0),)) ->  | U3: =IF(INDEX(수업명렬!$T:$T,MATCH(U1,수업명렬!$BB:$BB,0),)="","",INDEX(수업명렬!$T:$T,MATCH(U1,수업명렬!$BB:$BB,0),)) ->  | V3: =IF(INDEX(수업명렬!$T:$T,MATCH(V1,수업명렬!$BB:$BB,0),)="","",INDEX(수업명렬!$T:$T,MATCH(V1,수업명렬!$BB:$BB,0),)) ->  | W3: =IF(INDEX(수업명렬!$T:$T,MATCH(W1,수업명렬!$BB:$BB,0),)="","",INDEX(수업명렬!$T:$T,MATCH(W1,수업명렬!$BB:$BB,0),)) ->  | X3: =IF(INDEX(수업명렬!$T:$T,MATCH(X1,수업명렬!$BB:$BB,0),)="","",INDEX(수업명렬!$T:$T,MATCH(X1,수업명렬!$BB:$BB,0),)) ->  | Y3: =IF(INDEX(수업명렬!$T:$T,MATCH(Y1,수업명렬!$BB:$BB,0),)="","",INDEX(수업명렬!$T:$T,MATCH(Y1,수업명렬!$BB:$BB,0),)) ->  | Z3: =IF(INDEX(수업명렬!$T:$T,MATCH(Z1,수업명렬!$BB:$BB,0),)="","",INDEX(수업명렬!$T:$T,MATCH(Z1,수업명렬!$BB:$BB,0),)) ->  | AA3: =IF(INDEX(수업명렬!$T:$T,MATCH(AA1,수업명렬!$BB:$BB,0),)="","",INDEX(수업명렬!$T:$T,MATCH(AA1,수업명렬!$BB:$BB,0),)) ->  | AB3: =IF(INDEX(수업명렬!$T:$T,MATCH(AB1,수업명렬!$BB:$BB,0),)="","",INDEX(수업명렬!$T:$T,MATCH(AB1,수업명렬!$BB:$BB,0),)) ->  | AC3: =IF(INDEX(수업명렬!$T:$T,MATCH(AC1,수업명렬!$BB:$BB,0),)="","",INDEX(수업명렬!$T:$T,MATCH(AC1,수업명렬!$BB:$BB,0),)) ->  | AD3: =IF(INDEX(수업명렬!$T:$T,MATCH(AD1,수업명렬!$BB:$BB,0),)="","",INDEX(수업명렬!$T:$T,MATCH(AD1,수업명렬!$BB:$BB,0),)) ->  | AE3: =IF(INDEX(수업명렬!$T:$T,MATCH(AE1,수업명렬!$BB:$BB,0),)="","",INDEX(수업명렬!$T:$T,MATCH(AE1,수업명렬!$BB:$BB,0),)) ->  | AF3: =IF(INDEX(수업명렬!$T:$T,MATCH(AF1,수업명렬!$BB:$BB,0),)="","",INDEX(수업명렬!$T:$T,MATCH(AF1,수업명렬!$BB:$BB,0),)) ->  | AG3: =IF(INDEX(수업명렬!$T:$T,MATCH(AG1,수업명렬!$BB:$BB,0),)="","",INDEX(수업명렬!$T:$T,MATCH(AG1,수업명렬!$BB:$BB,0),)) ->  | AH3: =IF(INDEX(수업명렬!$T:$T,MATCH(AH1,수업명렬!$BB:$BB,0),)="","",INDEX(수업명렬!$T:$T,MATCH(AH1,수업명렬!$BB:$BB,0),)) ->  | AI3: =IF(INDEX(수업명렬!$T:$T,MATCH(AI1,수업명렬!$BB:$BB,0),)="","",INDEX(수업명렬!$T:$T,MATCH(AI1,수업명렬!$BB:$BB,0),)) ->  | AJ3: =IF(INDEX(수업명렬!$T:$T,MATCH(AJ1,수업명렬!$BB:$BB,0),)="","",INDEX(수업명렬!$T:$T,MATCH(AJ1,수업명렬!$BB:$BB,0),)) ->  | AK3: =IF(INDEX(수업명렬!$T:$T,MATCH(AK1,수업명렬!$BB:$BB,0),)="","",INDEX(수업명렬!$T:$T,MATCH(AK1,수업명렬!$BB:$BB,0),)) ->  | AL3: =IF(INDEX(수업명렬!$T:$T,MATCH(AL1,수업명렬!$BB:$BB,0),)="","",INDEX(수업명렬!$T:$T,MATCH(AL1,수업명렬!$BB:$BB,0),)) ->  | AM3: =IF(INDEX(수업명렬!$T:$T,MATCH(AM1,수업명렬!$BB:$BB,0),)="","",INDEX(수업명렬!$T:$T,MATCH(AM1,수업명렬!$BB:$BB,0),)) ->  | AN3: =IF(INDEX(수업명렬!$T:$T,MATCH(AN1,수업명렬!$BB:$BB,0),)="","",INDEX(수업명렬!$T:$T,MATCH(AN1,수업명렬!$BB:$BB,0),)) ->  | AO3: =IF(INDEX(수업명렬!$T:$T,MATCH(AO1,수업명렬!$BB:$BB,0),)="","",INDEX(수업명렬!$T:$T,MATCH(AO1,수업명렬!$BB:$BB,0),)) ->  | AP3: =IF(INDEX(수업명렬!$T:$T,MATCH(AP1,수업명렬!$BB:$BB,0),)="","",INDEX(수업명렬!$T:$T,MATCH(AP1,수업명렬!$BB:$BB,0),)) ->  | AQ3: =IF(INDEX(수업명렬!$T:$T,MATCH(AQ1,수업명렬!$BB:$BB,0),)="","",INDEX(수업명렬!$T:$T,MATCH(AQ1,수업명렬!$BB:$BB,0),)) ->  | AR3: =IF(INDEX(수업명렬!$T:$T,MATCH(AR1,수업명렬!$BB:$BB,0),)="","",INDEX(수업명렬!$T:$T,MATCH(AR1,수업명렬!$BB:$BB,0),)) ->  | AS3: =IF(INDEX(수업명렬!$T:$T,MATCH(AS1,수업명렬!$BB:$BB,0),)="","",INDEX(수업명렬!$T:$T,MATCH(AS1,수업명렬!$BB:$BB,0),)) ->  | AT3: =IF(INDEX(수업명렬!$T:$T,MATCH(AT1,수업명렬!$BB:$BB,0),)="","",INDEX(수업명렬!$T:$T,MATCH(AT1,수업명렬!$BB:$BB,0),)) ->  | AU3: =IF(INDEX(수업명렬!$T:$T,MATCH(AU1,수업명렬!$BB:$BB,0),)="","",INDEX(수업명렬!$T:$T,MATCH(AU1,수업명렬!$BB:$BB,0),)) ->  | AV3: =IF(INDEX(수업명렬!$T:$T,MATCH(AV1,수업명렬!$BB:$BB,0),)="","",INDEX(수업명렬!$T:$T,MATCH(AV1,수업명렬!$BB:$BB,0),)) ->  | AW3: =IF(INDEX(수업명렬!$T:$T,MATCH(AW1,수업명렬!$BB:$BB,0),)="","",INDEX(수업명렬!$T:$T,MATCH(AW1,수업명렬!$BB:$BB,0),)) ->  | AX3: =IF(INDEX(수업명렬!$T:$T,MATCH(AX1,수업명렬!$BB:$BB,0),)="","",INDEX(수업명렬!$T:$T,MATCH(AX1,수업명렬!$BB:$BB,0),)) ->  | AY3: =IF(INDEX(수업명렬!$T:$T,MATCH(AY1,수업명렬!$BB:$BB,0),)="","",INDEX(수업명렬!$T:$T,MATCH(AY1,수업명렬!$BB:$BB,0),)) ->  | AZ3: =IF(INDEX(수업명렬!$T:$T,MATCH(AZ1,수업명렬!$BB:$BB,0),)="","",INDEX(수업명렬!$T:$T,MATCH(AZ1,수업명렬!$BB:$BB,0),)) ->  | BA3: =IF(INDEX(수업명렬!$T:$T,MATCH(BA1,수업명렬!$BB:$BB,0),)="","",INDEX(수업명렬!$T:$T,MATCH(BA1,수업명렬!$BB:$BB,0),)) ->  | BB3: =IF(INDEX(수업명렬!$T:$T,MATCH(BB1,수업명렬!$BB:$BB,0),)="","",INDEX(수업명렬!$T:$T,MATCH(BB1,수업명렬!$BB:$BB,0),)) ->  | BC3: =IF(INDEX(수업명렬!$T:$T,MATCH(BC1,수업명렬!$BB:$BB,0),)="","",INDEX(수업명렬!$T:$T,MATCH(BC1,수업명렬!$BB:$BB,0),)) ->  | BD3: =IF(INDEX(수업명렬!$T:$T,MATCH(BD1,수업명렬!$BB:$BB,0),)="","",INDEX(수업명렬!$T:$T,MATCH(BD1,수업명렬!$BB:$BB,0),)) ->  | BE3: =IF(INDEX(수업명렬!$T:$T,MATCH(BE1,수업명렬!$BB:$BB,0),)="","",INDEX(수업명렬!$T:$T,MATCH(BE1,수업명렬!$BB:$BB,0),)) ->  | BF3: =IF(INDEX(수업명렬!$T:$T,MATCH(BF1,수업명렬!$BB:$BB,0),)="","",INDEX(수업명렬!$T:$T,MATCH(BF1,수업명렬!$BB:$BB,0),)) ->  | BH3: 1 | BI3: =IFERROR(INDEX(수업명렬!$BN:$BN,MATCH(BI9,수업명렬!$BA:$BA,0),),"") -> 1102 | BJ3: =IFERROR(INDEX(수업명렬!$BN:$BN,MATCH(BJ9,수업명렬!$BA:$BA,0),),"") -> 1201 | BK3: =IFERROR(INDEX(수업명렬!$BN:$BN,MATCH(BK9,수업명렬!$BA:$BA,0),),"") -> 2101 | BL3: =IFERROR(INDEX(수업명렬!$BN:$BN,MATCH(BL9,수업명렬!$BA:$BA,0),),"") -> 2204 | BM3: =IFERROR(INDEX(수업명렬!$BN:$BN,MATCH(BM9,수업명렬!$BA:$BA,0),),"") -> 2303 | BN3: =IFERROR(INDEX(수업명렬!$BN:$BN,MATCH(BN9,수업명렬!$BA:$BA,0),),"") -> 3101 | BO3: =IFERROR(INDEX(수업명렬!$BN:$BN,MATCH(BO9,수업명렬!$BA:$BA,0),),"") -> 3201 | BP3: =IFERROR(INDEX(수업명렬!$BN:$BN,MATCH(BP9,수업명렬!$BA:$BA,0),),"") -> 3301 | BQ3: =IFERROR(INDEX(수업명렬!$BN:$BN,MATCH(BQ9,수업명렬!$BA:$BA,0),),"") ->  | BR3: =IFERROR(INDEX(수업명렬!$BN:$BN,MATCH(BR9,수업명렬!$BA:$BA,0),),"") ->  | BS3: =IFERROR(INDEX(수업명렬!$BN:$BN,MATCH(BS9,수업명렬!$BA:$BA,0),),"") ->  | BT3: =IFERROR(INDEX(수업명렬!$BN:$BN,MATCH(BT9,수업명렬!$BA:$BA,0),),"") ->  | BU3: =IFERROR(INDEX(수업명렬!$BN:$BN,MATCH(BU9,수업명렬!$BA:$BA,0),),"") ->  | BV3: =IFERROR(INDEX(수업명렬!$BN:$BN,MATCH(BV9,수업명렬!$BA:$BA,0),),"") ->  | BW3: =IFERROR(INDEX(수업명렬!$BN:$BN,MATCH(BW9,수업명렬!$BA:$BA,0),),"") ->  | BX3: =IFERROR(INDEX(수업명렬!$BN:$BN,MATCH(BX9,수업명렬!$BA:$BA,0),),"") ->  | BY3: =IFERROR(INDEX(수업명렬!$BN:$BN,MATCH(BY9,수업명렬!$BA:$BA,0),),"") ->  | BZ3: =IFERROR(INDEX(수업명렬!$BN:$BN,MATCH(BZ9,수업명렬!$BA:$BA,0),),"") ->  | CA3: =IFERROR(INDEX(수업명렬!$BN:$BN,MATCH(CA9,수업명렬!$BA:$BA,0),),"") ->  | CB3: =IFERROR(INDEX(수업명렬!$BN:$BN,MATCH(CB9,수업명렬!$BA:$BA,0),),"") ->  | CC3: =IFERROR(INDEX(수업명렬!$BN:$BN,MATCH(CC9,수업명렬!$BA:$BA,0),),"") ->  | CD3: =IFERROR(INDEX(수업명렬!$BN:$BN,MATCH(CD9,수업명렬!$BA:$BA,0),),"") ->  | CE3: =IFERROR(INDEX(수업명렬!$BN:$BN,MATCH(CE9,수업명렬!$BA:$BA,0),),"") ->  | CF3: =IFERROR(INDEX(수업명렬!$BN:$BN,MATCH(CF9,수업명렬!$BA:$BA,0),),"") ->  | CG3: =IFERROR(INDEX(수업명렬!$BN:$BN,MATCH(CG9,수업명렬!$BA:$BA,0),),"") ->  | CH3: =IFERROR(INDEX(수업명렬!$BN:$BN,MATCH(CH9,수업명렬!$BA:$BA,0),),"") ->  | CI3: =IFERROR(INDEX(수업명렬!$BN:$BN,MATCH(CI9,수업명렬!$BA:$BA,0),),"") ->  | CJ3: =IFERROR(INDEX(수업명렬!$BN:$BN,MATCH(CJ9,수업명렬!$BA:$BA,0),),"") ->  | CK3: =IFERROR(INDEX(수업명렬!$BN:$BN,MATCH(CK9,수업명렬!$BA:$BA,0),),"") ->  | CL3: =IFERROR(INDEX(수업명렬!$BN:$BN,MATCH(CL9,수업명렬!$BA:$BA,0),),"") ->  | CM3: =IFERROR(INDEX(수업명렬!$BN:$BN,MATCH(CM9,수업명렬!$BA:$BA,0),),"") ->  | CN3: =IFERROR(INDEX(수업명렬!$BN:$BN,MATCH(CN9,수업명렬!$BA:$BA,0),),"") ->  | CO3: =IFERROR(INDEX(수업명렬!$BN:$BN,MATCH(CO9,수업명렬!$BA:$BA,0),),"") ->  | CP3: =IFERROR(INDEX(수업명렬!$BN:$BN,MATCH(CP9,수업명렬!$BA:$BA,0),),"") ->  | CQ3: =IFERROR(INDEX(수업명렬!$BN:$BN,MATCH(CQ9,수업명렬!$BA:$BA,0),),"") ->  | CR3: =IFERROR(INDEX(수업명렬!$BN:$BN,MATCH(CR9,수업명렬!$BA:$BA,0),),"") ->  | CS3: =IFERROR(INDEX(수업명렬!$BN:$BN,MATCH(CS9,수업명렬!$BA:$BA,0),),"") ->  | CT3: =IFERROR(INDEX(수업명렬!$BN:$BN,MATCH(CT9,수업명렬!$BA:$BA,0),),"") ->  | CU3: =IFERROR(INDEX(수업명렬!$BN:$BN,MATCH(CU9,수업명렬!$BA:$BA,0),),"") ->  | CV3: =IFERROR(INDEX(수업명렬!$BN:$BN,MATCH(CV9,수업명렬!$BA:$BA,0),),"") ->  | CW3: =IFERROR(INDEX(수업명렬!$BN:$BN,MATCH(CW9,수업명렬!$BA:$BA,0),),"") ->  | CX3: =IFERROR(INDEX(수업명렬!$BN:$BN,MATCH(CX9,수업명렬!$BA:$BA,0),),"") ->  | CY3: =IFERROR(INDEX(수업명렬!$BN:$BN,MATCH(CY9,수업명렬!$BA:$BA,0),),"") ->  | CZ3: =IFERROR(INDEX(수업명렬!$BN:$BN,MATCH(CZ9,수업명렬!$BA:$BA,0),),"") ->  | DA3: =IFERROR(INDEX(수업명렬!$BN:$BN,MATCH(DA9,수업명렬!$BA:$BA,0),),"") ->  | DB3: =IFERROR(INDEX(수업명렬!$BN:$BN,MATCH(DB9,수업명렬!$BA:$BA,0),),"") ->  | DC3: =IFERROR(INDEX(수업명렬!$BN:$BN,MATCH(DC9,수업명렬!$BA:$BA,0),),"") ->  | DD3: =IFERROR(INDEX(수업명렬!$BN:$BN,MATCH(DD9,수업명렬!$BA:$BA,0),),"") ->  | DE3: =IFERROR(INDEX(수업명렬!$BN:$BN,MATCH(DE9,수업명렬!$BA:$BA,0),),"") ->  | DF3: =IFERROR(INDEX(수업명렬!$BN:$BN,MATCH(DF9,수업명렬!$BA:$BA,0),),"") ->  | DL3: =IF(INDEX(수업명렬!$T:$T,MATCH(DL1,수업명렬!$BB:$BB,0),)="","",INDEX(수업명렬!$T:$T,MATCH(DL1,수업명렬!$BB:$BB,0),)) -> 국어 | DM3: =IF(INDEX(수업명렬!$T:$T,MATCH(DM1,수업명렬!$BB:$BB,0),)="","",INDEX(수업명렬!$T:$T,MATCH(DM1,수업명렬!$BB:$BB,0),)) -> 국어 | DN3: =IF(INDEX(수업명렬!$T:$T,MATCH(DN1,수업명렬!$BB:$BB,0),)="","",INDEX(수업명렬!$T:$T,MATCH(DN1,수업명렬!$BB:$BB,0),)) -> 수학 | DO3: =IF(INDEX(수업명렬!$T:$T,MATCH(DO1,수업명렬!$BB:$BB,0),)="","",INDEX(수업명렬!$T:$T,MATCH(DO1,수업명렬!$BB:$BB,0),)) -> 수학 | DP3: =IF(INDEX(수업명렬!$T:$T,MATCH(DP1,수업명렬!$BB:$BB,0),)="","",INDEX(수업명렬!$T:$T,MATCH(DP1,수업명렬!$BB:$BB,0),)) -> 수학 | DQ3: =IF(INDEX(수업명렬!$T:$T,MATCH(DQ1,수업명렬!$BB:$BB,0),)="","",INDEX(수업명렬!$T:$T,MATCH(DQ1,수업명렬!$BB:$BB,0),)) -> 영어 | DR3: =IF(INDEX(수업명렬!$T:$T,MATCH(DR1,수업명렬!$BB:$BB,0),)="","",INDEX(수업명렬!$T:$T,MATCH(DR1,수업명렬!$BB:$BB,0),)) -> 영어 | DS3: =IF(INDEX(수업명렬!$T:$T,MATCH(DS1,수업명렬!$BB:$BB,0),)="","",INDEX(수업명렬!$T:$T,MATCH(DS1,수업명렬!$BB:$BB,0),)) -> 영어 | DT3: =IF(INDEX(수업명렬!$T:$T,MATCH(DT1,수업명렬!$BB:$BB,0),)="","",INDEX(수업명렬!$T:$T,MATCH(DT1,수업명렬!$BB:$BB,0),)) ->  | DU3: =IF(INDEX(수업명렬!$T:$T,MATCH(DU1,수업명렬!$BB:$BB,0),)="","",INDEX(수업명렬!$T:$T,MATCH(DU1,수업명렬!$BB:$BB,0),)) ->  | DV3: =IF(INDEX(수업명렬!$T:$T,MATCH(DV1,수업명렬!$BB:$BB,0),)="","",INDEX(수업명렬!$T:$T,MATCH(DV1,수업명렬!$BB:$BB,0),)) ->  | DW3: =IF(INDEX(수업명렬!$T:$T,MATCH(DW1,수업명렬!$BB:$BB,0),)="","",INDEX(수업명렬!$T:$T,MATCH(DW1,수업명렬!$BB:$BB,0),)) ->  | DX3: =IF(INDEX(수업명렬!$T:$T,MATCH(DX1,수업명렬!$BB:$BB,0),)="","",INDEX(수업명렬!$T:$T,MATCH(DX1,수업명렬!$BB:$BB,0),)) ->  | DY3: =IF(INDEX(수업명렬!$T:$T,MATCH(DY1,수업명렬!$BB:$BB,0),)="","",INDEX(수업명렬!$T:$T,MATCH(DY1,수업명렬!$BB:$BB,0),)) ->  | DZ3: =IF(INDEX(수업명렬!$T:$T,MATCH(DZ1,수업명렬!$BB:$BB,0),)="","",INDEX(수업명렬!$T:$T,MATCH(DZ1,수업명렬!$BB:$BB,0),)) ->  | EA3: =IF(INDEX(수업명렬!$T:$T,MATCH(EA1,수업명렬!$BB:$BB,0),)="","",INDEX(수업명렬!$T:$T,MATCH(EA1,수업명렬!$BB:$BB,0),)) ->  | EB3: =IF(INDEX(수업명렬!$T:$T,MATCH(EB1,수업명렬!$BB:$BB,0),)="","",INDEX(수업명렬!$T:$T,MATCH(EB1,수업명렬!$BB:$BB,0),)) ->  | EC3: =IF(INDEX(수업명렬!$T:$T,MATCH(EC1,수업명렬!$BB:$BB,0),)="","",INDEX(수업명렬!$T:$T,MATCH(EC1,수업명렬!$BB:$BB,0),)) ->  | ED3: =IF(INDEX(수업명렬!$T:$T,MATCH(ED1,수업명렬!$BB:$BB,0),)="","",INDEX(수업명렬!$T:$T,MATCH(ED1,수업명렬!$BB:$BB,0),)) ->  | EE3: =IF(INDEX(수업명렬!$T:$T,MATCH(EE1,수업명렬!$BB:$BB,0),)="","",INDEX(수업명렬!$T:$T,MATCH(EE1,수업명렬!$BB:$BB,0),)) ->  | EF3: =IF(INDEX(수업명렬!$T:$T,MATCH(EF1,수업명렬!$BB:$BB,0),)="","",INDEX(수업명렬!$T:$T,MATCH(EF1,수업명렬!$BB:$BB,0),)) ->  | EG3: =IF(INDEX(수업명렬!$T:$T,MATCH(EG1,수업명렬!$BB:$BB,0),)="","",INDEX(수업명렬!$T:$T,MATCH(EG1,수업명렬!$BB:$BB,0),)) ->  | EH3: =IF(INDEX(수업명렬!$T:$T,MATCH(EH1,수업명렬!$BB:$BB,0),)="","",INDEX(수업명렬!$T:$T,MATCH(EH1,수업명렬!$BB:$BB,0),)) ->  | EI3: =IF(INDEX(수업명렬!$T:$T,MATCH(EI1,수업명렬!$BB:$BB,0),)="","",INDEX(수업명렬!$T:$T,MATCH(EI1,수업명렬!$BB:$BB,0),)) ->  | EJ3: =IF(INDEX(수업명렬!$T:$T,MATCH(EJ1,수업명렬!$BB:$BB,0),)="","",INDEX(수업명렬!$T:$T,MATCH(EJ1,수업명렬!$BB:$BB,0),)) ->  | EK3: =IF(INDEX(수업명렬!$T:$T,MATCH(EK1,수업명렬!$BB:$BB,0),)="","",INDEX(수업명렬!$T:$T,MATCH(EK1,수업명렬!$BB:$BB,0),)) ->  | EL3: =IF(INDEX(수업명렬!$T:$T,MATCH(EL1,수업명렬!$BB:$BB,0),)="","",INDEX(수업명렬!$T:$T,MATCH(EL1,수업명렬!$BB:$BB,0),)) ->  | EM3: =IF(INDEX(수업명렬!$T:$T,MATCH(EM1,수업명렬!$BB:$BB,0),)="","",INDEX(수업명렬!$T:$T,MATCH(EM1,수업명렬!$BB:$BB,0),)) ->  | EN3: =IF(INDEX(수업명렬!$T:$T,MATCH(EN1,수업명렬!$BB:$BB,0),)="","",INDEX(수업명렬!$T:$T,MATCH(EN1,수업명렬!$BB:$BB,0),)) ->  | EO3: =IF(INDEX(수업명렬!$T:$T,MATCH(EO1,수업명렬!$BB:$BB,0),)="","",INDEX(수업명렬!$T:$T,MATCH(EO1,수업명렬!$BB:$BB,0),)) ->  | EP3: =IF(INDEX(수업명렬!$T:$T,MATCH(EP1,수업명렬!$BB:$BB,0),)="","",INDEX(수업명렬!$T:$T,MATCH(EP1,수업명렬!$BB:$BB,0),)) ->  | EQ3: =IF(INDEX(수업명렬!$T:$T,MATCH(EQ1,수업명렬!$BB:$BB,0),)="","",INDEX(수업명렬!$T:$T,MATCH(EQ1,수업명렬!$BB:$BB,0),)) ->  | ER3: =IF(INDEX(수업명렬!$T:$T,MATCH(ER1,수업명렬!$BB:$BB,0),)="","",INDEX(수업명렬!$T:$T,MATCH(ER1,수업명렬!$BB:$BB,0),)) ->  | ES3: =IF(INDEX(수업명렬!$T:$T,MATCH(ES1,수업명렬!$BB:$BB,0),)="","",INDEX(수업명렬!$T:$T,MATCH(ES1,수업명렬!$BB:$BB,0),)) ->  | ET3: =IF(INDEX(수업명렬!$T:$T,MATCH(ET1,수업명렬!$BB:$BB,0),)="","",INDEX(수업명렬!$T:$T,MATCH(ET1,수업명렬!$BB:$BB,0),)) ->  | EU3: =IF(INDEX(수업명렬!$T:$T,MATCH(EU1,수업명렬!$BB:$BB,0),)="","",INDEX(수업명렬!$T:$T,MATCH(EU1,수업명렬!$BB:$BB,0),)) ->  | EV3: =IF(INDEX(수업명렬!$T:$T,MATCH(EV1,수업명렬!$BB:$BB,0),)="","",INDEX(수업명렬!$T:$T,MATCH(EV1,수업명렬!$BB:$BB,0),)) ->  | EW3: =IF(INDEX(수업명렬!$T:$T,MATCH(EW1,수업명렬!$BB:$BB,0),)="","",INDEX(수업명렬!$T:$T,MATCH(EW1,수업명렬!$BB:$BB,0),)) ->  | EX3: =IF(INDEX(수업명렬!$T:$T,MATCH(EX1,수업명렬!$BB:$BB,0),)="","",INDEX(수업명렬!$T:$T,MATCH(EX1,수업명렬!$BB:$BB,0),)) ->  | EY3: =IF(INDEX(수업명렬!$T:$T,MATCH(EY1,수업명렬!$BB:$BB,0),)="","",INDEX(수업명렬!$T:$T,MATCH(EY1,수업명렬!$BB:$BB,0),)) ->  | EZ3: =IF(INDEX(수업명렬!$T:$T,MATCH(EZ1,수업명렬!$BB:$BB,0),)="","",INDEX(수업명렬!$T:$T,MATCH(EZ1,수업명렬!$BB:$BB,0),)) ->  | FA3: =IF(INDEX(수업명렬!$T:$T,MATCH(FA1,수업명렬!$BB:$BB,0),)="","",INDEX(수업명렬!$T:$T,MATCH(FA1,수업명렬!$BB:$BB,0),)) ->  | FB3: =IF(INDEX(수업명렬!$T:$T,MATCH(FB1,수업명렬!$BB:$BB,0),)="","",INDEX(수업명렬!$T:$T,MATCH(FB1,수업명렬!$BB:$BB,0),)) ->  | FC3: =IF(INDEX(수업명렬!$T:$T,MATCH(FC1,수업명렬!$BB:$BB,0),)="","",INDEX(수업명렬!$T:$T,MATCH(FC1,수업명렬!$BB:$BB,0),)) ->  | FD3: =IF(INDEX(수업명렬!$T:$T,MATCH(FD1,수업명렬!$BB:$BB,0),)="","",INDEX(수업명렬!$T:$T,MATCH(FD1,수업명렬!$BB:$BB,0),)) ->  | FE3: =IF(INDEX(수업명렬!$T:$T,MATCH(FE1,수업명렬!$BB:$BB,0),)="","",INDEX(수업명렬!$T:$T,MATCH(FE1,수업명렬!$BB:$BB,0),)) ->  | FF3: =IF(INDEX(수업명렬!$T:$T,MATCH(FF1,수업명렬!$BB:$BB,0),)="","",INDEX(수업명렬!$T:$T,MATCH(FF1,수업명렬!$BB:$BB,0),)) ->  | FG3: =IF(INDEX(수업명렬!$T:$T,MATCH(FG1,수업명렬!$BB:$BB,0),)="","",INDEX(수업명렬!$T:$T,MATCH(FG1,수업명렬!$BB:$BB,0),)) ->  | FH3: =IF(INDEX(수업명렬!$T:$T,MATCH(FH1,수업명렬!$BB:$BB,0),)="","",INDEX(수업명렬!$T:$T,MATCH(FH1,수업명렬!$BB:$BB,0),)) ->  | FI3: =IF(INDEX(수업명렬!$T:$T,MATCH(FI1,수업명렬!$BB:$BB,0),)="","",INDEX(수업명렬!$T:$T,MATCH(FI1,수업명렬!$BB:$BB,0),)) ->  | HU3: =HQ2 -> 85982 | JU3: =IF(INDEX(수업명렬!$T:$T,MATCH(JU1,수업명렬!$BB:$BB,0),)="","",INDEX(수업명렬!$T:$T,MATCH(JU1,수업명렬!$BB:$BB,0),)) -> 국어 | JV3: =IF(INDEX(수업명렬!$T:$T,MATCH(JV1,수업명렬!$BB:$BB,0),)="","",INDEX(수업명렬!$T:$T,MATCH(JV1,수업명렬!$BB:$BB,0),)) -> 국어 | JW3: =IF(INDEX(수업명렬!$T:$T,MATCH(JW1,수업명렬!$BB:$BB,0),)="","",INDEX(수업명렬!$T:$T,MATCH(JW1,수업명렬!$BB:$BB,0),)) -> 수학 | JX3: =IF(INDEX(수업명렬!$T:$T,MATCH(JX1,수업명렬!$BB:$BB,0),)="","",INDEX(수업명렬!$T:$T,MATCH(JX1,수업명렬!$BB:$BB,0),)) -> 수학 | JY3: =IF(INDEX(수업명렬!$T:$T,MATCH(JY1,수업명렬!$BB:$BB,0),)="","",INDEX(수업명렬!$T:$T,MATCH(JY1,수업명렬!$BB:$BB,0),)) -> 수학 | JZ3: =IF(INDEX(수업명렬!$T:$T,MATCH(JZ1,수업명렬!$BB:$BB,0),)="","",INDEX(수업명렬!$T:$T,MATCH(JZ1,수업명렬!$BB:$BB,0),)) -> 영어 | KA3: =IF(INDEX(수업명렬!$T:$T,MATCH(KA1,수업명렬!$BB:$BB,0),)="","",INDEX(수업명렬!$T:$T,MATCH(KA1,수업명렬!$BB:$BB,0),)) -> 영어 | KB3: =IF(INDEX(수업명렬!$T:$T,MATCH(KB1,수업명렬!$BB:$BB,0),)="","",INDEX(수업명렬!$T:$T,MATCH(KB1,수업명렬!$BB:$BB,0),)) -> 영어 | KC3: =IF(INDEX(수업명렬!$T:$T,MATCH(KC1,수업명렬!$BB:$BB,0),)="","",INDEX(수업명렬!$T:$T,MATCH(KC1,수업명렬!$BB:$BB,0),)) ->  | KD3: =IF(INDEX(수업명렬!$T:$T,MATCH(KD1,수업명렬!$BB:$BB,0),)="","",INDEX(수업명렬!$T:$T,MATCH(KD1,수업명렬!$BB:$BB,0),)) ->  | KE3: =IF(INDEX(수업명렬!$T:$T,MATCH(KE1,수업명렬!$BB:$BB,0),)="","",INDEX(수업명렬!$T:$T,MATCH(KE1,수업명렬!$BB:$BB,0),)) ->  | KF3: =IF(INDEX(수업명렬!$T:$T,MATCH(KF1,수업명렬!$BB:$BB,0),)="","",INDEX(수업명렬!$T:$T,MATCH(KF1,수업명렬!$BB:$BB,0),)) ->  | KG3: =IF(INDEX(수업명렬!$T:$T,MATCH(KG1,수업명렬!$BB:$BB,0),)="","",INDEX(수업명렬!$T:$T,MATCH(KG1,수업명렬!$BB:$BB,0),)) ->  | KH3: =IF(INDEX(수업명렬!$T:$T,MATCH(KH1,수업명렬!$BB:$BB,0),)="","",INDEX(수업명렬!$T:$T,MATCH(KH1,수업명렬!$BB:$BB,0),)) ->  | KI3: =IF(INDEX(수업명렬!$T:$T,MATCH(KI1,수업명렬!$BB:$BB,0),)="","",INDEX(수업명렬!$T:$T,MATCH(KI1,수업명렬!$BB:$BB,0),)) ->  | KJ3: =IF(INDEX(수업명렬!$T:$T,MATCH(KJ1,수업명렬!$BB:$BB,0),)="","",INDEX(수업명렬!$T:$T,MATCH(KJ1,수업명렬!$BB:$BB,0),)) ->  | KK3: =IF(INDEX(수업명렬!$T:$T,MATCH(KK1,수업명렬!$BB:$BB,0),)="","",INDEX(수업명렬!$T:$T,MATCH(KK1,수업명렬!$BB:$BB,0),)) ->  | KL3: =IF(INDEX(수업명렬!$T:$T,MATCH(KL1,수업명렬!$BB:$BB,0),)="","",INDEX(수업명렬!$T:$T,MATCH(KL1,수업명렬!$BB:$BB,0),)) ->  | KM3: =IF(INDEX(수업명렬!$T:$T,MATCH(KM1,수업명렬!$BB:$BB,0),)="","",INDEX(수업명렬!$T:$T,MATCH(KM1,수업명렬!$BB:$BB,0),)) ->  | KN3: =IF(INDEX(수업명렬!$T:$T,MATCH(KN1,수업명렬!$BB:$BB,0),)="","",INDEX(수업명렬!$T:$T,MATCH(KN1,수업명렬!$BB:$BB,0),)) ->  | KO3: =IF(INDEX(수업명렬!$T:$T,MATCH(KO1,수업명렬!$BB:$BB,0),)="","",INDEX(수업명렬!$T:$T,MATCH(KO1,수업명렬!$BB:$BB,0),)) ->  | KP3: =IF(INDEX(수업명렬!$T:$T,MATCH(KP1,수업명렬!$BB:$BB,0),)="","",INDEX(수업명렬!$T:$T,MATCH(KP1,수업명렬!$BB:$BB,0),)) ->  | KQ3: =IF(INDEX(수업명렬!$T:$T,MATCH(KQ1,수업명렬!$BB:$BB,0),)="","",INDEX(수업명렬!$T:$T,MATCH(KQ1,수업명렬!$BB:$BB,0),)) ->  | KR3: =IF(INDEX(수업명렬!$T:$T,MATCH(KR1,수업명렬!$BB:$BB,0),)="","",INDEX(수업명렬!$T:$T,MATCH(KR1,수업명렬!$BB:$BB,0),)) ->  | KS3: =IF(INDEX(수업명렬!$T:$T,MATCH(KS1,수업명렬!$BB:$BB,0),)="","",INDEX(수업명렬!$T:$T,MATCH(KS1,수업명렬!$BB:$BB,0),)) ->  | KT3: =IF(INDEX(수업명렬!$T:$T,MATCH(KT1,수업명렬!$BB:$BB,0),)="","",INDEX(수업명렬!$T:$T,MATCH(KT1,수업명렬!$BB:$BB,0),)) ->  | KU3: =IF(INDEX(수업명렬!$T:$T,MATCH(KU1,수업명렬!$BB:$BB,0),)="","",INDEX(수업명렬!$T:$T,MATCH(KU1,수업명렬!$BB:$BB,0),)) ->  | KV3: =IF(INDEX(수업명렬!$T:$T,MATCH(KV1,수업명렬!$BB:$BB,0),)="","",INDEX(수업명렬!$T:$T,MATCH(KV1,수업명렬!$BB:$BB,0),)) ->  | KW3: =IF(INDEX(수업명렬!$T:$T,MATCH(KW1,수업명렬!$BB:$BB,0),)="","",INDEX(수업명렬!$T:$T,MATCH(KW1,수업명렬!$BB:$BB,0),)) ->  | KX3: =IF(INDEX(수업명렬!$T:$T,MATCH(KX1,수업명렬!$BB:$BB,0),)="","",INDEX(수업명렬!$T:$T,MATCH(KX1,수업명렬!$BB:$BB,0),)) ->  | KY3: =IF(INDEX(수업명렬!$T:$T,MATCH(KY1,수업명렬!$BB:$BB,0),)="","",INDEX(수업명렬!$T:$T,MATCH(KY1,수업명렬!$BB:$BB,0),)) ->  | KZ3: =IF(INDEX(수업명렬!$T:$T,MATCH(KZ1,수업명렬!$BB:$BB,0),)="","",INDEX(수업명렬!$T:$T,MATCH(KZ1,수업명렬!$BB:$BB,0),)) ->  | LA3: =IF(INDEX(수업명렬!$T:$T,MATCH(LA1,수업명렬!$BB:$BB,0),)="","",INDEX(수업명렬!$T:$T,MATCH(LA1,수업명렬!$BB:$BB,0),)) ->  | LB3: =IF(INDEX(수업명렬!$T:$T,MATCH(LB1,수업명렬!$BB:$BB,0),)="","",INDEX(수업명렬!$T:$T,MATCH(LB1,수업명렬!$BB:$BB,0),)) ->  | LC3: =IF(INDEX(수업명렬!$T:$T,MATCH(LC1,수업명렬!$BB:$BB,0),)="","",INDEX(수업명렬!$T:$T,MATCH(LC1,수업명렬!$BB:$BB,0),)) ->  | LD3: =IF(INDEX(수업명렬!$T:$T,MATCH(LD1,수업명렬!$BB:$BB,0),)="","",INDEX(수업명렬!$T:$T,MATCH(LD1,수업명렬!$BB:$BB,0),)) ->  | LE3: =IF(INDEX(수업명렬!$T:$T,MATCH(LE1,수업명렬!$BB:$BB,0),)="","",INDEX(수업명렬!$T:$T,MATCH(LE1,수업명렬!$BB:$BB,0),)) ->  | LF3: =IF(INDEX(수업명렬!$T:$T,MATCH(LF1,수업명렬!$BB:$BB,0),)="","",INDEX(수업명렬!$T:$T,MATCH(LF1,수업명렬!$BB:$BB,0),)) ->  | LG3: =IF(INDEX(수업명렬!$T:$T,MATCH(LG1,수업명렬!$BB:$BB,0),)="","",INDEX(수업명렬!$T:$T,MATCH(LG1,수업명렬!$BB:$BB,0),)) ->  | LH3: =IF(INDEX(수업명렬!$T:$T,MATCH(LH1,수업명렬!$BB:$BB,0),)="","",INDEX(수업명렬!$T:$T,MATCH(LH1,수업명렬!$BB:$BB,0),)) ->  | LI3: =IF(INDEX(수업명렬!$T:$T,MATCH(LI1,수업명렬!$BB:$BB,0),)="","",INDEX(수업명렬!$T:$T,MATCH(LI1,수업명렬!$BB:$BB,0),)) ->  | LJ3: =IF(INDEX(수업명렬!$T:$T,MATCH(LJ1,수업명렬!$BB:$BB,0),)="","",INDEX(수업명렬!$T:$T,MATCH(LJ1,수업명렬!$BB:$BB,0),)) ->  | LK3: =IF(INDEX(수업명렬!$T:$T,MATCH(LK1,수업명렬!$BB:$BB,0),)="","",INDEX(수업명렬!$T:$T,MATCH(LK1,수업명렬!$BB:$BB,0),)) ->  | LL3: =IF(INDEX(수업명렬!$T:$T,MATCH(LL1,수업명렬!$BB:$BB,0),)="","",INDEX(수업명렬!$T:$T,MATCH(LL1,수업명렬!$BB:$BB,0),)) ->  | LM3: =IF(INDEX(수업명렬!$T:$T,MATCH(LM1,수업명렬!$BB:$BB,0),)="","",INDEX(수업명렬!$T:$T,MATCH(LM1,수업명렬!$BB:$BB,0),)) ->  | LN3: =IF(INDEX(수업명렬!$T:$T,MATCH(LN1,수업명렬!$BB:$BB,0),)="","",INDEX(수업명렬!$T:$T,MATCH(LN1,수업명렬!$BB:$BB,0),)) ->  | LO3: =IF(INDEX(수업명렬!$T:$T,MATCH(LO1,수업명렬!$BB:$BB,0),)="","",INDEX(수업명렬!$T:$T,MATCH(LO1,수업명렬!$BB:$BB,0),)) ->  | LP3: =IF(INDEX(수업명렬!$T:$T,MATCH(LP1,수업명렬!$BB:$BB,0),)="","",INDEX(수업명렬!$T:$T,MATCH(LP1,수업명렬!$BB:$BB,0),)) ->  | LQ3: =IF(INDEX(수업명렬!$T:$T,MATCH(LQ1,수업명렬!$BB:$BB,0),)="","",INDEX(수업명렬!$T:$T,MATCH(LQ1,수업명렬!$BB:$BB,0),)) ->  | LR3: =IF(INDEX(수업명렬!$T:$T,MATCH(LR1,수업명렬!$BB:$BB,0),)="","",INDEX(수업명렬!$T:$T,MATCH(LR1,수업명렬!$BB:$BB,0),)) ->  | OE3: 74988 | OF3: 21 | OM3: =MAX(OM7:QJ506) -> 27750 | QM3: =IF(INDEX(수업명렬!$T:$T,MATCH(QM1,수업명렬!$BB:$BB,0),)="","",INDEX(수업명렬!$T:$T,MATCH(QM1,수업명렬!$BB:$BB,0),)) -> 국어 | QN3: =IF(INDEX(수업명렬!$T:$T,MATCH(QN1,수업명렬!$BB:$BB,0),)="","",INDEX(수업명렬!$T:$T,MATCH(QN1,수업명렬!$BB:$BB,0),)) -> 국어 | QO3: =IF(INDEX(수업명렬!$T:$T,MATCH(QO1,수업명렬!$BB:$BB,0),)="","",INDEX(수업명렬!$T:$T,MATCH(QO1,수업명렬!$BB:$BB,0),)) -> 수학 | QP3: =IF(INDEX(수업명렬!$T:$T,MATCH(QP1,수업명렬!$BB:$BB,0),)="","",INDEX(수업명렬!$T:$T,MATCH(QP1,수업명렬!$BB:$BB,0),)) -> 수학 | QQ3: =IF(INDEX(수업명렬!$T:$T,MATCH(QQ1,수업명렬!$BB:$BB,0),)="","",INDEX(수업명렬!$T:$T,MATCH(QQ1,수업명렬!$BB:$BB,0),)) -> 수학 | QR3: =IF(INDEX(수업명렬!$T:$T,MATCH(QR1,수업명렬!$BB:$BB,0),)="","",INDEX(수업명렬!$T:$T,MATCH(QR1,수업명렬!$BB:$BB,0),)) -> 영어 | QS3: =IF(INDEX(수업명렬!$T:$T,MATCH(QS1,수업명렬!$BB:$BB,0),)="","",INDEX(수업명렬!$T:$T,MATCH(QS1,수업명렬!$BB:$BB,0),)) -> 영어 | QT3: =IF(INDEX(수업명렬!$T:$T,MATCH(QT1,수업명렬!$BB:$BB,0),)="","",INDEX(수업명렬!$T:$T,MATCH(QT1,수업명렬!$BB:$BB,0),)) -> 영어 | QU3: =IF(INDEX(수업명렬!$T:$T,MATCH(QU1,수업명렬!$BB:$BB,0),)="","",INDEX(수업명렬!$T:$T,MATCH(QU1,수업명렬!$BB:$BB,0),)) ->  | QV3: =IF(INDEX(수업명렬!$T:$T,MATCH(QV1,수업명렬!$BB:$BB,0),)="","",INDEX(수업명렬!$T:$T,MATCH(QV1,수업명렬!$BB:$BB,0),)) ->  | QW3: =IF(INDEX(수업명렬!$T:$T,MATCH(QW1,수업명렬!$BB:$BB,0),)="","",INDEX(수업명렬!$T:$T,MATCH(QW1,수업명렬!$BB:$BB,0),)) ->  | QX3: =IF(INDEX(수업명렬!$T:$T,MATCH(QX1,수업명렬!$BB:$BB,0),)="","",INDEX(수업명렬!$T:$T,MATCH(QX1,수업명렬!$BB:$BB,0),)) ->  | QY3: =IF(INDEX(수업명렬!$T:$T,MATCH(QY1,수업명렬!$BB:$BB,0),)="","",INDEX(수업명렬!$T:$T,MATCH(QY1,수업명렬!$BB:$BB,0),)) ->  | QZ3: =IF(INDEX(수업명렬!$T:$T,MATCH(QZ1,수업명렬!$BB:$BB,0),)="","",INDEX(수업명렬!$T:$T,MATCH(QZ1,수업명렬!$BB:$BB,0),)) ->  | RA3: =IF(INDEX(수업명렬!$T:$T,MATCH(RA1,수업명렬!$BB:$BB,0),)="","",INDEX(수업명렬!$T:$T,MATCH(RA1,수업명렬!$BB:$BB,0),)) ->  | RB3: =IF(INDEX(수업명렬!$T:$T,MATCH(RB1,수업명렬!$BB:$BB,0),)="","",INDEX(수업명렬!$T:$T,MATCH(RB1,수업명렬!$BB:$BB,0),)) ->  | RC3: =IF(INDEX(수업명렬!$T:$T,MATCH(RC1,수업명렬!$BB:$BB,0),)="","",INDEX(수업명렬!$T:$T,MATCH(RC1,수업명렬!$BB:$BB,0),)) ->  | RD3: =IF(INDEX(수업명렬!$T:$T,MATCH(RD1,수업명렬!$BB:$BB,0),)="","",INDEX(수업명렬!$T:$T,MATCH(RD1,수업명렬!$BB:$BB,0),)) ->  | RE3: =IF(INDEX(수업명렬!$T:$T,MATCH(RE1,수업명렬!$BB:$BB,0),)="","",INDEX(수업명렬!$T:$T,MATCH(RE1,수업명렬!$BB:$BB,0),)) ->  | RF3: =IF(INDEX(수업명렬!$T:$T,MATCH(RF1,수업명렬!$BB:$BB,0),)="","",INDEX(수업명렬!$T:$T,MATCH(RF1,수업명렬!$BB:$BB,0),)) ->  | RG3: =IF(INDEX(수업명렬!$T:$T,MATCH(RG1,수업명렬!$BB:$BB,0),)="","",INDEX(수업명렬!$T:$T,MATCH(RG1,수업명렬!$BB:$BB,0),)) ->  | RH3: =IF(INDEX(수업명렬!$T:$T,MATCH(RH1,수업명렬!$BB:$BB,0),)="","",INDEX(수업명렬!$T:$T,MATCH(RH1,수업명렬!$BB:$BB,0),)) ->  | RI3: =IF(INDEX(수업명렬!$T:$T,MATCH(RI1,수업명렬!$BB:$BB,0),)="","",INDEX(수업명렬!$T:$T,MATCH(RI1,수업명렬!$BB:$BB,0),)) ->  | RJ3: =IF(INDEX(수업명렬!$T:$T,MATCH(RJ1,수업명렬!$BB:$BB,0),)="","",INDEX(수업명렬!$T:$T,MATCH(RJ1,수업명렬!$BB:$BB,0),)) ->  | RK3: =IF(INDEX(수업명렬!$T:$T,MATCH(RK1,수업명렬!$BB:$BB,0),)="","",INDEX(수업명렬!$T:$T,MATCH(RK1,수업명렬!$BB:$BB,0),)) ->  | RL3: =IF(INDEX(수업명렬!$T:$T,MATCH(RL1,수업명렬!$BB:$BB,0),)="","",INDEX(수업명렬!$T:$T,MATCH(RL1,수업명렬!$BB:$BB,0),)) ->  | RM3: =IF(INDEX(수업명렬!$T:$T,MATCH(RM1,수업명렬!$BB:$BB,0),)="","",INDEX(수업명렬!$T:$T,MATCH(RM1,수업명렬!$BB:$BB,0),)) ->  | RN3: =IF(INDEX(수업명렬!$T:$T,MATCH(RN1,수업명렬!$BB:$BB,0),)="","",INDEX(수업명렬!$T:$T,MATCH(RN1,수업명렬!$BB:$BB,0),)) ->  | RO3: =IF(INDEX(수업명렬!$T:$T,MATCH(RO1,수업명렬!$BB:$BB,0),)="","",INDEX(수업명렬!$T:$T,MATCH(RO1,수업명렬!$BB:$BB,0),)) ->  | RP3: =IF(INDEX(수업명렬!$T:$T,MATCH(RP1,수업명렬!$BB:$BB,0),)="","",INDEX(수업명렬!$T:$T,MATCH(RP1,수업명렬!$BB:$BB,0),)) ->  | RQ3: =IF(INDEX(수업명렬!$T:$T,MATCH(RQ1,수업명렬!$BB:$BB,0),)="","",INDEX(수업명렬!$T:$T,MATCH(RQ1,수업명렬!$BB:$BB,0),)) ->  | RR3: =IF(INDEX(수업명렬!$T:$T,MATCH(RR1,수업명렬!$BB:$BB,0),)="","",INDEX(수업명렬!$T:$T,MATCH(RR1,수업명렬!$BB:$BB,0),)) ->  | RS3: =IF(INDEX(수업명렬!$T:$T,MATCH(RS1,수업명렬!$BB:$BB,0),)="","",INDEX(수업명렬!$T:$T,MATCH(RS1,수업명렬!$BB:$BB,0),)) ->  | RT3: =IF(INDEX(수업명렬!$T:$T,MATCH(RT1,수업명렬!$BB:$BB,0),)="","",INDEX(수업명렬!$T:$T,MATCH(RT1,수업명렬!$BB:$BB,0),)) ->  | RU3: =IF(INDEX(수업명렬!$T:$T,MATCH(RU1,수업명렬!$BB:$BB,0),)="","",INDEX(수업명렬!$T:$T,MATCH(RU1,수업명렬!$BB:$BB,0),)) ->  | RV3: =IF(INDEX(수업명렬!$T:$T,MATCH(RV1,수업명렬!$BB:$BB,0),)="","",INDEX(수업명렬!$T:$T,MATCH(RV1,수업명렬!$BB:$BB,0),)) ->  | RW3: =IF(INDEX(수업명렬!$T:$T,MATCH(RW1,수업명렬!$BB:$BB,0),)="","",INDEX(수업명렬!$T:$T,MATCH(RW1,수업명렬!$BB:$BB,0),)) ->  | RX3: =IF(INDEX(수업명렬!$T:$T,MATCH(RX1,수업명렬!$BB:$BB,0),)="","",INDEX(수업명렬!$T:$T,MATCH(RX1,수업명렬!$BB:$BB,0),)) ->  | RY3: =IF(INDEX(수업명렬!$T:$T,MATCH(RY1,수업명렬!$BB:$BB,0),)="","",INDEX(수업명렬!$T:$T,MATCH(RY1,수업명렬!$BB:$BB,0),)) ->  | RZ3: =IF(INDEX(수업명렬!$T:$T,MATCH(RZ1,수업명렬!$BB:$BB,0),)="","",INDEX(수업명렬!$T:$T,MATCH(RZ1,수업명렬!$BB:$BB,0),)) ->  | SA3: =IF(INDEX(수업명렬!$T:$T,MATCH(SA1,수업명렬!$BB:$BB,0),)="","",INDEX(수업명렬!$T:$T,MATCH(SA1,수업명렬!$BB:$BB,0),)) ->  | SB3: =IF(INDEX(수업명렬!$T:$T,MATCH(SB1,수업명렬!$BB:$BB,0),)="","",INDEX(수업명렬!$T:$T,MATCH(SB1,수업명렬!$BB:$BB,0),)) ->  | SC3: =IF(INDEX(수업명렬!$T:$T,MATCH(SC1,수업명렬!$BB:$BB,0),)="","",INDEX(수업명렬!$T:$T,MATCH(SC1,수업명렬!$BB:$BB,0),)) ->  | SD3: =IF(INDEX(수업명렬!$T:$T,MATCH(SD1,수업명렬!$BB:$BB,0),)="","",INDEX(수업명렬!$T:$T,MATCH(SD1,수업명렬!$BB:$BB,0),)) ->  | SE3: =IF(INDEX(수업명렬!$T:$T,MATCH(SE1,수업명렬!$BB:$BB,0),)="","",INDEX(수업명렬!$T:$T,MATCH(SE1,수업명렬!$BB:$BB,0),)) ->  | SF3: =IF(INDEX(수업명렬!$T:$T,MATCH(SF1,수업명렬!$BB:$BB,0),)="","",INDEX(수업명렬!$T:$T,MATCH(SF1,수업명렬!$BB:$BB,0),)) ->  | SG3: =IF(INDEX(수업명렬!$T:$T,MATCH(SG1,수업명렬!$BB:$BB,0),)="","",INDEX(수업명렬!$T:$T,MATCH(SG1,수업명렬!$BB:$BB,0),)) ->  | SH3: =IF(INDEX(수업명렬!$T:$T,MATCH(SH1,수업명렬!$BB:$BB,0),)="","",INDEX(수업명렬!$T:$T,MATCH(SH1,수업명렬!$BB:$BB,0),)) ->  | SI3: =IF(INDEX(수업명렬!$T:$T,MATCH(SI1,수업명렬!$BB:$BB,0),)="","",INDEX(수업명렬!$T:$T,MATCH(SI1,수업명렬!$BB:$BB,0),)) ->  | SJ3: =IF(INDEX(수업명렬!$T:$T,MATCH(SJ1,수업명렬!$BB:$BB,0),)="","",INDEX(수업명렬!$T:$T,MATCH(SJ1,수업명렬!$BB:$BB,0),)) ->  | SM3: =IF(INDEX(수업명렬!$T:$T,MATCH(SM1,수업명렬!$BB:$BB,0),)="","",INDEX(수업명렬!$T:$T,MATCH(SM1,수업명렬!$BB:$BB,0),)) -> 국어 | SN3: =IF(INDEX(수업명렬!$T:$T,MATCH(SN1,수업명렬!$BB:$BB,0),)="","",INDEX(수업명렬!$T:$T,MATCH(SN1,수업명렬!$BB:$BB,0),)) -> 국어 | SO3: =IF(INDEX(수업명렬!$T:$T,MATCH(SO1,수업명렬!$BB:$BB,0),)="","",INDEX(수업명렬!$T:$T,MATCH(SO1,수업명렬!$BB:$BB,0),)) -> 수학 | SP3: =IF(INDEX(수업명렬!$T:$T,MATCH(SP1,수업명렬!$BB:$BB,0),)="","",INDEX(수업명렬!$T:$T,MATCH(SP1,수업명렬!$BB:$BB,0),)) -> 수학 | SQ3: =IF(INDEX(수업명렬!$T:$T,MATCH(SQ1,수업명렬!$BB:$BB,0),)="","",INDEX(수업명렬!$T:$T,MATCH(SQ1,수업명렬!$BB:$BB,0),)) -> 수학 | SR3: =IF(INDEX(수업명렬!$T:$T,MATCH(SR1,수업명렬!$BB:$BB,0),)="","",INDEX(수업명렬!$T:$T,MATCH(SR1,수업명렬!$BB:$BB,0),)) -> 영어 | SS3: =IF(INDEX(수업명렬!$T:$T,MATCH(SS1,수업명렬!$BB:$BB,0),)="","",INDEX(수업명렬!$T:$T,MATCH(SS1,수업명렬!$BB:$BB,0),)) -> 영어 | ST3: =IF(INDEX(수업명렬!$T:$T,MATCH(ST1,수업명렬!$BB:$BB,0),)="","",INDEX(수업명렬!$T:$T,MATCH(ST1,수업명렬!$BB:$BB,0),)) -> 영어 | SU3: =IF(INDEX(수업명렬!$T:$T,MATCH(SU1,수업명렬!$BB:$BB,0),)="","",INDEX(수업명렬!$T:$T,MATCH(SU1,수업명렬!$BB:$BB,0),)) ->  | SV3: =IF(INDEX(수업명렬!$T:$T,MATCH(SV1,수업명렬!$BB:$BB,0),)="","",INDEX(수업명렬!$T:$T,MATCH(SV1,수업명렬!$BB:$BB,0),)) ->  | SW3: =IF(INDEX(수업명렬!$T:$T,MATCH(SW1,수업명렬!$BB:$BB,0),)="","",INDEX(수업명렬!$T:$T,MATCH(SW1,수업명렬!$BB:$BB,0),)) ->  | SX3: =IF(INDEX(수업명렬!$T:$T,MATCH(SX1,수업명렬!$BB:$BB,0),)="","",INDEX(수업명렬!$T:$T,MATCH(SX1,수업명렬!$BB:$BB,0),)) ->  | SY3: =IF(INDEX(수업명렬!$T:$T,MATCH(SY1,수업명렬!$BB:$BB,0),)="","",INDEX(수업명렬!$T:$T,MATCH(SY1,수업명렬!$BB:$BB,0),)) ->  | SZ3: =IF(INDEX(수업명렬!$T:$T,MATCH(SZ1,수업명렬!$BB:$BB,0),)="","",INDEX(수업명렬!$T:$T,MATCH(SZ1,수업명렬!$BB:$BB,0),)) ->  | TA3: =IF(INDEX(수업명렬!$T:$T,MATCH(TA1,수업명렬!$BB:$BB,0),)="","",INDEX(수업명렬!$T:$T,MATCH(TA1,수업명렬!$BB:$BB,0),)) ->  | TB3: =IF(INDEX(수업명렬!$T:$T,MATCH(TB1,수업명렬!$BB:$BB,0),)="","",INDEX(수업명렬!$T:$T,MATCH(TB1,수업명렬!$BB:$BB,0),)) ->  | TC3: =IF(INDEX(수업명렬!$T:$T,MATCH(TC1,수업명렬!$BB:$BB,0),)="","",INDEX(수업명렬!$T:$T,MATCH(TC1,수업명렬!$BB:$BB,0),)) ->  | TD3: =IF(INDEX(수업명렬!$T:$T,MATCH(TD1,수업명렬!$BB:$BB,0),)="","",INDEX(수업명렬!$T:$T,MATCH(TD1,수업명렬!$BB:$BB,0),)) ->  | TE3: =IF(INDEX(수업명렬!$T:$T,MATCH(TE1,수업명렬!$BB:$BB,0),)="","",INDEX(수업명렬!$T:$T,MATCH(TE1,수업명렬!$BB:$BB,0),)) ->  | TF3: =IF(INDEX(수업명렬!$T:$T,MATCH(TF1,수업명렬!$BB:$BB,0),)="","",INDEX(수업명렬!$T:$T,MATCH(TF1,수업명렬!$BB:$BB,0),)) ->  | TG3: =IF(INDEX(수업명렬!$T:$T,MATCH(TG1,수업명렬!$BB:$BB,0),)="","",INDEX(수업명렬!$T:$T,MATCH(TG1,수업명렬!$BB:$BB,0),)) ->  | TH3: =IF(INDEX(수업명렬!$T:$T,MATCH(TH1,수업명렬!$BB:$BB,0),)="","",INDEX(수업명렬!$T:$T,MATCH(TH1,수업명렬!$BB:$BB,0),)) ->  | TI3: =IF(INDEX(수업명렬!$T:$T,MATCH(TI1,수업명렬!$BB:$BB,0),)="","",INDEX(수업명렬!$T:$T,MATCH(TI1,수업명렬!$BB:$BB,0),)) ->  | TJ3: =IF(INDEX(수업명렬!$T:$T,MATCH(TJ1,수업명렬!$BB:$BB,0),)="","",INDEX(수업명렬!$T:$T,MATCH(TJ1,수업명렬!$BB:$BB,0),)) ->  | TK3: =IF(INDEX(수업명렬!$T:$T,MATCH(TK1,수업명렬!$BB:$BB,0),)="","",INDEX(수업명렬!$T:$T,MATCH(TK1,수업명렬!$BB:$BB,0),)) ->  | TL3: =IF(INDEX(수업명렬!$T:$T,MATCH(TL1,수업명렬!$BB:$BB,0),)="","",INDEX(수업명렬!$T:$T,MATCH(TL1,수업명렬!$BB:$BB,0),)) ->  | TM3: =IF(INDEX(수업명렬!$T:$T,MATCH(TM1,수업명렬!$BB:$BB,0),)="","",INDEX(수업명렬!$T:$T,MATCH(TM1,수업명렬!$BB:$BB,0),)) ->  | TN3: =IF(INDEX(수업명렬!$T:$T,MATCH(TN1,수업명렬!$BB:$BB,0),)="","",INDEX(수업명렬!$T:$T,MATCH(TN1,수업명렬!$BB:$BB,0),)) ->  | TO3: =IF(INDEX(수업명렬!$T:$T,MATCH(TO1,수업명렬!$BB:$BB,0),)="","",INDEX(수업명렬!$T:$T,MATCH(TO1,수업명렬!$BB:$BB,0),)) ->  | TP3: =IF(INDEX(수업명렬!$T:$T,MATCH(TP1,수업명렬!$BB:$BB,0),)="","",INDEX(수업명렬!$T:$T,MATCH(TP1,수업명렬!$BB:$BB,0),)) ->  | TQ3: =IF(INDEX(수업명렬!$T:$T,MATCH(TQ1,수업명렬!$BB:$BB,0),)="","",INDEX(수업명렬!$T:$T,MATCH(TQ1,수업명렬!$BB:$BB,0),)) ->  | TR3: =IF(INDEX(수업명렬!$T:$T,MATCH(TR1,수업명렬!$BB:$BB,0),)="","",INDEX(수업명렬!$T:$T,MATCH(TR1,수업명렬!$BB:$BB,0),)) ->  | TS3: =IF(INDEX(수업명렬!$T:$T,MATCH(TS1,수업명렬!$BB:$BB,0),)="","",INDEX(수업명렬!$T:$T,MATCH(TS1,수업명렬!$BB:$BB,0),)) ->  | TT3: =IF(INDEX(수업명렬!$T:$T,MATCH(TT1,수업명렬!$BB:$BB,0),)="","",INDEX(수업명렬!$T:$T,MATCH(TT1,수업명렬!$BB:$BB,0),)) ->  | TU3: =IF(INDEX(수업명렬!$T:$T,MATCH(TU1,수업명렬!$BB:$BB,0),)="","",INDEX(수업명렬!$T:$T,MATCH(TU1,수업명렬!$BB:$BB,0),)) ->  | TV3: =IF(INDEX(수업명렬!$T:$T,MATCH(TV1,수업명렬!$BB:$BB,0),)="","",INDEX(수업명렬!$T:$T,MATCH(TV1,수업명렬!$BB:$BB,0),)) ->  | TW3: =IF(INDEX(수업명렬!$T:$T,MATCH(TW1,수업명렬!$BB:$BB,0),)="","",INDEX(수업명렬!$T:$T,MATCH(TW1,수업명렬!$BB:$BB,0),)) ->  | TX3: =IF(INDEX(수업명렬!$T:$T,MATCH(TX1,수업명렬!$BB:$BB,0),)="","",INDEX(수업명렬!$T:$T,MATCH(TX1,수업명렬!$BB:$BB,0),)) ->  | TY3: =IF(INDEX(수업명렬!$T:$T,MATCH(TY1,수업명렬!$BB:$BB,0),)="","",INDEX(수업명렬!$T:$T,MATCH(TY1,수업명렬!$BB:$BB,0),)) ->  | TZ3: =IF(INDEX(수업명렬!$T:$T,MATCH(TZ1,수업명렬!$BB:$BB,0),)="","",INDEX(수업명렬!$T:$T,MATCH(TZ1,수업명렬!$BB:$BB,0),)) ->  | UA3: =IF(INDEX(수업명렬!$T:$T,MATCH(UA1,수업명렬!$BB:$BB,0),)="","",INDEX(수업명렬!$T:$T,MATCH(UA1,수업명렬!$BB:$BB,0),)) ->  | UB3: =IF(INDEX(수업명렬!$T:$T,MATCH(UB1,수업명렬!$BB:$BB,0),)="","",INDEX(수업명렬!$T:$T,MATCH(UB1,수업명렬!$BB:$BB,0),)) ->  | UC3: =IF(INDEX(수업명렬!$T:$T,MATCH(UC1,수업명렬!$BB:$BB,0),)="","",INDEX(수업명렬!$T:$T,MATCH(UC1,수업명렬!$BB:$BB,0),)) ->  | UD3: =IF(INDEX(수업명렬!$T:$T,MATCH(UD1,수업명렬!$BB:$BB,0),)="","",INDEX(수업명렬!$T:$T,MATCH(UD1,수업명렬!$BB:$BB,0),)) ->  | UE3: =IF(INDEX(수업명렬!$T:$T,MATCH(UE1,수업명렬!$BB:$BB,0),)="","",INDEX(수업명렬!$T:$T,MATCH(UE1,수업명렬!$BB:$BB,0),)) ->  | UF3: =IF(INDEX(수업명렬!$T:$T,MATCH(UF1,수업명렬!$BB:$BB,0),)="","",INDEX(수업명렬!$T:$T,MATCH(UF1,수업명렬!$BB:$BB,0),)) ->  | UG3: =IF(INDEX(수업명렬!$T:$T,MATCH(UG1,수업명렬!$BB:$BB,0),)="","",INDEX(수업명렬!$T:$T,MATCH(UG1,수업명렬!$BB:$BB,0),)) ->  | UH3: =IF(INDEX(수업명렬!$T:$T,MATCH(UH1,수업명렬!$BB:$BB,0),)="","",INDEX(수업명렬!$T:$T,MATCH(UH1,수업명렬!$BB:$BB,0),)) ->  | UI3: =IF(INDEX(수업명렬!$T:$T,MATCH(UI1,수업명렬!$BB:$BB,0),)="","",INDEX(수업명렬!$T:$T,MATCH(UI1,수업명렬!$BB:$BB,0),)) ->  | UJ3: =IF(INDEX(수업명렬!$T:$T,MATCH(UJ1,수업명렬!$BB:$BB,0),)="","",INDEX(수업명렬!$T:$T,MATCH(UJ1,수업명렬!$BB:$BB,0),)) ->  | UM3: 검정 | WQ3: =IF(INDEX(수업명렬!$T:$T,MATCH(WQ1,수업명렬!$BB:$BB,0),)="","",INDEX(수업명렬!$T:$T,MATCH(WQ1,수업명렬!$BB:$BB,0),)) -> 국어 | WR3: =IF(INDEX(수업명렬!$T:$T,MATCH(WR1,수업명렬!$BB:$BB,0),)="","",INDEX(수업명렬!$T:$T,MATCH(WR1,수업명렬!$BB:$BB,0),)) -> 국어 | WS3: =IF(INDEX(수업명렬!$T:$T,MATCH(WS1,수업명렬!$BB:$BB,0),)="","",INDEX(수업명렬!$T:$T,MATCH(WS1,수업명렬!$BB:$BB,0),)) -> 수학 | WT3: =IF(INDEX(수업명렬!$T:$T,MATCH(WT1,수업명렬!$BB:$BB,0),)="","",INDEX(수업명렬!$T:$T,MATCH(WT1,수업명렬!$BB:$BB,0),)) -> 수학 | WU3: =IF(INDEX(수업명렬!$T:$T,MATCH(WU1,수업명렬!$BB:$BB,0),)="","",INDEX(수업명렬!$T:$T,MATCH(WU1,수업명렬!$BB:$BB,0),)) -> 수학 | WV3: =IF(INDEX(수업명렬!$T:$T,MATCH(WV1,수업명렬!$BB:$BB,0),)="","",INDEX(수업명렬!$T:$T,MATCH(WV1,수업명렬!$BB:$BB,0),)) -> 영어 | WW3: =IF(INDEX(수업명렬!$T:$T,MATCH(WW1,수업명렬!$BB:$BB,0),)="","",INDEX(수업명렬!$T:$T,MATCH(WW1,수업명렬!$BB:$BB,0),)) -> 영어 | WX3: =IF(INDEX(수업명렬!$T:$T,MATCH(WX1,수업명렬!$BB:$BB,0),)="","",INDEX(수업명렬!$T:$T,MATCH(WX1,수업명렬!$BB:$BB,0),)) -> 영어 | WY3: =IF(INDEX(수업명렬!$T:$T,MATCH(WY1,수업명렬!$BB:$BB,0),)="","",INDEX(수업명렬!$T:$T,MATCH(WY1,수업명렬!$BB:$BB,0),)) ->  | WZ3: =IF(INDEX(수업명렬!$T:$T,MATCH(WZ1,수업명렬!$BB:$BB,0),)="","",INDEX(수업명렬!$T:$T,MATCH(WZ1,수업명렬!$BB:$BB,0),)) ->  | XA3: =IF(INDEX(수업명렬!$T:$T,MATCH(XA1,수업명렬!$BB:$BB,0),)="","",INDEX(수업명렬!$T:$T,MATCH(XA1,수업명렬!$BB:$BB,0),)) ->  | XB3: =IF(INDEX(수업명렬!$T:$T,MATCH(XB1,수업명렬!$BB:$BB,0),)="","",INDEX(수업명렬!$T:$T,MATCH(XB1,수업명렬!$BB:$BB,0),)) ->  | XC3: =IF(INDEX(수업명렬!$T:$T,MATCH(XC1,수업명렬!$BB:$BB,0),)="","",INDEX(수업명렬!$T:$T,MATCH(XC1,수업명렬!$BB:$BB,0),)) ->  | XD3: =IF(INDEX(수업명렬!$T:$T,MATCH(XD1,수업명렬!$BB:$BB,0),)="","",INDEX(수업명렬!$T:$T,MATCH(XD1,수업명렬!$BB:$BB,0),)) ->  | XE3: =IF(INDEX(수업명렬!$T:$T,MATCH(XE1,수업명렬!$BB:$BB,0),)="","",INDEX(수업명렬!$T:$T,MATCH(XE1,수업명렬!$BB:$BB,0),)) ->  | XF3: =IF(INDEX(수업명렬!$T:$T,MATCH(XF1,수업명렬!$BB:$BB,0),)="","",INDEX(수업명렬!$T:$T,MATCH(XF1,수업명렬!$BB:$BB,0),)) ->  | XG3: =IF(INDEX(수업명렬!$T:$T,MATCH(XG1,수업명렬!$BB:$BB,0),)="","",INDEX(수업명렬!$T:$T,MATCH(XG1,수업명렬!$BB:$BB,0),)) ->  | XH3: =IF(INDEX(수업명렬!$T:$T,MATCH(XH1,수업명렬!$BB:$BB,0),)="","",INDEX(수업명렬!$T:$T,MATCH(XH1,수업명렬!$BB:$BB,0),)) ->  | XI3: =IF(INDEX(수업명렬!$T:$T,MATCH(XI1,수업명렬!$BB:$BB,0),)="","",INDEX(수업명렬!$T:$T,MATCH(XI1,수업명렬!$BB:$BB,0),)) ->  | XJ3: =IF(INDEX(수업명렬!$T:$T,MATCH(XJ1,수업명렬!$BB:$BB,0),)="","",INDEX(수업명렬!$T:$T,MATCH(XJ1,수업명렬!$BB:$BB,0),)) ->  | XK3: =IF(INDEX(수업명렬!$T:$T,MATCH(XK1,수업명렬!$BB:$BB,0),)="","",INDEX(수업명렬!$T:$T,MATCH(XK1,수업명렬!$BB:$BB,0),)) ->  | XL3: =IF(INDEX(수업명렬!$T:$T,MATCH(XL1,수업명렬!$BB:$BB,0),)="","",INDEX(수업명렬!$T:$T,MATCH(XL1,수업명렬!$BB:$BB,0),)) ->  | XM3: =IF(INDEX(수업명렬!$T:$T,MATCH(XM1,수업명렬!$BB:$BB,0),)="","",INDEX(수업명렬!$T:$T,MATCH(XM1,수업명렬!$BB:$BB,0),)) ->  | XN3: =IF(INDEX(수업명렬!$T:$T,MATCH(XN1,수업명렬!$BB:$BB,0),)="","",INDEX(수업명렬!$T:$T,MATCH(XN1,수업명렬!$BB:$BB,0),)) ->  | XO3: =IF(INDEX(수업명렬!$T:$T,MATCH(XO1,수업명렬!$BB:$BB,0),)="","",INDEX(수업명렬!$T:$T,MATCH(XO1,수업명렬!$BB:$BB,0),)) ->  | XP3: =IF(INDEX(수업명렬!$T:$T,MATCH(XP1,수업명렬!$BB:$BB,0),)="","",INDEX(수업명렬!$T:$T,MATCH(XP1,수업명렬!$BB:$BB,0),)) ->  | XQ3: =IF(INDEX(수업명렬!$T:$T,MATCH(XQ1,수업명렬!$BB:$BB,0),)="","",INDEX(수업명렬!$T:$T,MATCH(XQ1,수업명렬!$BB:$BB,0),)) ->  | XR3: =IF(INDEX(수업명렬!$T:$T,MATCH(XR1,수업명렬!$BB:$BB,0),)="","",INDEX(수업명렬!$T:$T,MATCH(XR1,수업명렬!$BB:$BB,0),)) ->  | XS3: =IF(INDEX(수업명렬!$T:$T,MATCH(XS1,수업명렬!$BB:$BB,0),)="","",INDEX(수업명렬!$T:$T,MATCH(XS1,수업명렬!$BB:$BB,0),)) ->  | XT3: =IF(INDEX(수업명렬!$T:$T,MATCH(XT1,수업명렬!$BB:$BB,0),)="","",INDEX(수업명렬!$T:$T,MATCH(XT1,수업명렬!$BB:$BB,0),)) ->  | XU3: =IF(INDEX(수업명렬!$T:$T,MATCH(XU1,수업명렬!$BB:$BB,0),)="","",INDEX(수업명렬!$T:$T,MATCH(XU1,수업명렬!$BB:$BB,0),)) ->  | XV3: =IF(INDEX(수업명렬!$T:$T,MATCH(XV1,수업명렬!$BB:$BB,0),)="","",INDEX(수업명렬!$T:$T,MATCH(XV1,수업명렬!$BB:$BB,0),)) ->  | XW3: =IF(INDEX(수업명렬!$T:$T,MATCH(XW1,수업명렬!$BB:$BB,0),)="","",INDEX(수업명렬!$T:$T,MATCH(XW1,수업명렬!$BB:$BB,0),)) ->  | XX3: =IF(INDEX(수업명렬!$T:$T,MATCH(XX1,수업명렬!$BB:$BB,0),)="","",INDEX(수업명렬!$T:$T,MATCH(XX1,수업명렬!$BB:$BB,0),)) ->  | XY3: =IF(INDEX(수업명렬!$T:$T,MATCH(XY1,수업명렬!$BB:$BB,0),)="","",INDEX(수업명렬!$T:$T,MATCH(XY1,수업명렬!$BB:$BB,0),)) ->  | XZ3: =IF(INDEX(수업명렬!$T:$T,MATCH(XZ1,수업명렬!$BB:$BB,0),)="","",INDEX(수업명렬!$T:$T,MATCH(XZ1,수업명렬!$BB:$BB,0),)) ->  | YA3: =IF(INDEX(수업명렬!$T:$T,MATCH(YA1,수업명렬!$BB:$BB,0),)="","",INDEX(수업명렬!$T:$T,MATCH(YA1,수업명렬!$BB:$BB,0),)) ->  | YB3: =IF(INDEX(수업명렬!$T:$T,MATCH(YB1,수업명렬!$BB:$BB,0),)="","",INDEX(수업명렬!$T:$T,MATCH(YB1,수업명렬!$BB:$BB,0),)) ->  | YC3: =IF(INDEX(수업명렬!$T:$T,MATCH(YC1,수업명렬!$BB:$BB,0),)="","",INDEX(수업명렬!$T:$T,MATCH(YC1,수업명렬!$BB:$BB,0),)) ->  | YD3: =IF(INDEX(수업명렬!$T:$T,MATCH(YD1,수업명렬!$BB:$BB,0),)="","",INDEX(수업명렬!$T:$T,MATCH(YD1,수업명렬!$BB:$BB,0),)) ->  | YE3: =IF(INDEX(수업명렬!$T:$T,MATCH(YE1,수업명렬!$BB:$BB,0),)="","",INDEX(수업명렬!$T:$T,MATCH(YE1,수업명렬!$BB:$BB,0),)) ->  | YF3: =IF(INDEX(수업명렬!$T:$T,MATCH(YF1,수업명렬!$BB:$BB,0),)="","",INDEX(수업명렬!$T:$T,MATCH(YF1,수업명렬!$BB:$BB,0),)) ->  | YG3: =IF(INDEX(수업명렬!$T:$T,MATCH(YG1,수업명렬!$BB:$BB,0),)="","",INDEX(수업명렬!$T:$T,MATCH(YG1,수업명렬!$BB:$BB,0),)) ->  | YH3: =IF(INDEX(수업명렬!$T:$T,MATCH(YH1,수업명렬!$BB:$BB,0),)="","",INDEX(수업명렬!$T:$T,MATCH(YH1,수업명렬!$BB:$BB,0),)) ->  | YI3: =IF(INDEX(수업명렬!$T:$T,MATCH(YI1,수업명렬!$BB:$BB,0),)="","",INDEX(수업명렬!$T:$T,MATCH(YI1,수업명렬!$BB:$BB,0),)) ->  | YJ3: =IF(INDEX(수업명렬!$T:$T,MATCH(YJ1,수업명렬!$BB:$BB,0),)="","",INDEX(수업명렬!$T:$T,MATCH(YJ1,수업명렬!$BB:$BB,0),)) ->  | YK3: =IF(INDEX(수업명렬!$T:$T,MATCH(YK1,수업명렬!$BB:$BB,0),)="","",INDEX(수업명렬!$T:$T,MATCH(YK1,수업명렬!$BB:$BB,0),)) ->  | YL3: =IF(INDEX(수업명렬!$T:$T,MATCH(YL1,수업명렬!$BB:$BB,0),)="","",INDEX(수업명렬!$T:$T,MATCH(YL1,수업명렬!$BB:$BB,0),)) ->  | YM3: =IF(INDEX(수업명렬!$T:$T,MATCH(YM1,수업명렬!$BB:$BB,0),)="","",INDEX(수업명렬!$T:$T,MATCH(YM1,수업명렬!$BB:$BB,0),)) ->  | YN3: =IF(INDEX(수업명렬!$T:$T,MATCH(YN1,수업명렬!$BB:$BB,0),)="","",INDEX(수업명렬!$T:$T,MATCH(YN1,수업명렬!$BB:$BB,0),)) ->  | YT3: 부족 | YU3: =수업명렬!BX2 -> 3304 | YW3: 인원 | YX3: =INDEX($YX$7:$YX$506,MATCH(YU3,$YU$7:$YU$506,0),) -> 4 | YY3: =ABS(YX3) -> 4 | ZI3: =IF(INDEX(수업명렬!$T:$T,MATCH(ZI1,수업명렬!$BB:$BB,0),)="","",INDEX(수업명렬!$T:$T,MATCH(ZI1,수업명렬!$BB:$BB,0),)) -> 국어 | ZJ3: =IF(INDEX(수업명렬!$T:$T,MATCH(ZJ1,수업명렬!$BB:$BB,0),)="","",INDEX(수업명렬!$T:$T,MATCH(ZJ1,수업명렬!$BB:$BB,0),)) -> 국어 | ZK3: =IF(INDEX(수업명렬!$T:$T,MATCH(ZK1,수업명렬!$BB:$BB,0),)="","",INDEX(수업명렬!$T:$T,MATCH(ZK1,수업명렬!$BB:$BB,0),)) -> 수학 | ZL3: =IF(INDEX(수업명렬!$T:$T,MATCH(ZL1,수업명렬!$BB:$BB,0),)="","",INDEX(수업명렬!$T:$T,MATCH(ZL1,수업명렬!$BB:$BB,0),)) -> 수학 | ZM3: =IF(INDEX(수업명렬!$T:$T,MATCH(ZM1,수업명렬!$BB:$BB,0),)="","",INDEX(수업명렬!$T:$T,MATCH(ZM1,수업명렬!$BB:$BB,0),)) -> 수학 | ZN3: =IF(INDEX(수업명렬!$T:$T,MATCH(ZN1,수업명렬!$BB:$BB,0),)="","",INDEX(수업명렬!$T:$T,MATCH(ZN1,수업명렬!$BB:$BB,0),)) -> 영어 | ZO3: =IF(INDEX(수업명렬!$T:$T,MATCH(ZO1,수업명렬!$BB:$BB,0),)="","",INDEX(수업명렬!$T:$T,MATCH(ZO1,수업명렬!$BB:$BB,0),)) -> 영어 | ZP3: =IF(INDEX(수업명렬!$T:$T,MATCH(ZP1,수업명렬!$BB:$BB,0),)="","",INDEX(수업명렬!$T:$T,MATCH(ZP1,수업명렬!$BB:$BB,0),)) -> 영어 | ZQ3: =IF(INDEX(수업명렬!$T:$T,MATCH(ZQ1,수업명렬!$BB:$BB,0),)="","",INDEX(수업명렬!$T:$T,MATCH(ZQ1,수업명렬!$BB:$BB,0),)) ->  | ZR3: =IF(INDEX(수업명렬!$T:$T,MATCH(ZR1,수업명렬!$BB:$BB,0),)="","",INDEX(수업명렬!$T:$T,MATCH(ZR1,수업명렬!$BB:$BB,0),)) ->  | ZS3: =IF(INDEX(수업명렬!$T:$T,MATCH(ZS1,수업명렬!$BB:$BB,0),)="","",INDEX(수업명렬!$T:$T,MATCH(ZS1,수업명렬!$BB:$BB,0),)) ->  | ZT3: =IF(INDEX(수업명렬!$T:$T,MATCH(ZT1,수업명렬!$BB:$BB,0),)="","",INDEX(수업명렬!$T:$T,MATCH(ZT1,수업명렬!$BB:$BB,0),)) ->  | ZU3: =IF(INDEX(수업명렬!$T:$T,MATCH(ZU1,수업명렬!$BB:$BB,0),)="","",INDEX(수업명렬!$T:$T,MATCH(ZU1,수업명렬!$BB:$BB,0),)) ->  | ZV3: =IF(INDEX(수업명렬!$T:$T,MATCH(ZV1,수업명렬!$BB:$BB,0),)="","",INDEX(수업명렬!$T:$T,MATCH(ZV1,수업명렬!$BB:$BB,0),)) ->  | ZW3: =IF(INDEX(수업명렬!$T:$T,MATCH(ZW1,수업명렬!$BB:$BB,0),)="","",INDEX(수업명렬!$T:$T,MATCH(ZW1,수업명렬!$BB:$BB,0),)) ->  | ZX3: =IF(INDEX(수업명렬!$T:$T,MATCH(ZX1,수업명렬!$BB:$BB,0),)="","",INDEX(수업명렬!$T:$T,MATCH(ZX1,수업명렬!$BB:$BB,0),)) ->  | ZY3: =IF(INDEX(수업명렬!$T:$T,MATCH(ZY1,수업명렬!$BB:$BB,0),)="","",INDEX(수업명렬!$T:$T,MATCH(ZY1,수업명렬!$BB:$BB,0),)) ->  | ZZ3: =IF(INDEX(수업명렬!$T:$T,MATCH(ZZ1,수업명렬!$BB:$BB,0),)="","",INDEX(수업명렬!$T:$T,MATCH(ZZ1,수업명렬!$BB:$BB,0),)) ->  | AAA3: =IF(INDEX(수업명렬!$T:$T,MATCH(AAA1,수업명렬!$BB:$BB,0),)="","",INDEX(수업명렬!$T:$T,MATCH(AAA1,수업명렬!$BB:$BB,0),)) ->  | AAB3: =IF(INDEX(수업명렬!$T:$T,MATCH(AAB1,수업명렬!$BB:$BB,0),)="","",INDEX(수업명렬!$T:$T,MATCH(AAB1,수업명렬!$BB:$BB,0),)) ->  | AAC3: =IF(INDEX(수업명렬!$T:$T,MATCH(AAC1,수업명렬!$BB:$BB,0),)="","",INDEX(수업명렬!$T:$T,MATCH(AAC1,수업명렬!$BB:$BB,0),)) ->  | AAD3: =IF(INDEX(수업명렬!$T:$T,MATCH(AAD1,수업명렬!$BB:$BB,0),)="","",INDEX(수업명렬!$T:$T,MATCH(AAD1,수업명렬!$BB:$BB,0),)) ->  | AAE3: =IF(INDEX(수업명렬!$T:$T,MATCH(AAE1,수업명렬!$BB:$BB,0),)="","",INDEX(수업명렬!$T:$T,MATCH(AAE1,수업명렬!$BB:$BB,0),)) ->  | AAF3: =IF(INDEX(수업명렬!$T:$T,MATCH(AAF1,수업명렬!$BB:$BB,0),)="","",INDEX(수업명렬!$T:$T,MATCH(AAF1,수업명렬!$BB:$BB,0),)) ->  | AAG3: =IF(INDEX(수업명렬!$T:$T,MATCH(AAG1,수업명렬!$BB:$BB,0),)="","",INDEX(수업명렬!$T:$T,MATCH(AAG1,수업명렬!$BB:$BB,0),)) ->  | AAH3: =IF(INDEX(수업명렬!$T:$T,MATCH(AAH1,수업명렬!$BB:$BB,0),)="","",INDEX(수업명렬!$T:$T,MATCH(AAH1,수업명렬!$BB:$BB,0),)) ->  | AAI3: =IF(INDEX(수업명렬!$T:$T,MATCH(AAI1,수업명렬!$BB:$BB,0),)="","",INDEX(수업명렬!$T:$T,MATCH(AAI1,수업명렬!$BB:$BB,0),)) ->  | AAJ3: =IF(INDEX(수업명렬!$T:$T,MATCH(AAJ1,수업명렬!$BB:$BB,0),)="","",INDEX(수업명렬!$T:$T,MATCH(AAJ1,수업명렬!$BB:$BB,0),)) ->  | AAK3: =IF(INDEX(수업명렬!$T:$T,MATCH(AAK1,수업명렬!$BB:$BB,0),)="","",INDEX(수업명렬!$T:$T,MATCH(AAK1,수업명렬!$BB:$BB,0),)) ->  | AAL3: =IF(INDEX(수업명렬!$T:$T,MATCH(AAL1,수업명렬!$BB:$BB,0),)="","",INDEX(수업명렬!$T:$T,MATCH(AAL1,수업명렬!$BB:$BB,0),)) ->  | AAM3: =IF(INDEX(수업명렬!$T:$T,MATCH(AAM1,수업명렬!$BB:$BB,0),)="","",INDEX(수업명렬!$T:$T,MATCH(AAM1,수업명렬!$BB:$BB,0),)) ->  | AAN3: =IF(INDEX(수업명렬!$T:$T,MATCH(AAN1,수업명렬!$BB:$BB,0),)="","",INDEX(수업명렬!$T:$T,MATCH(AAN1,수업명렬!$BB:$BB,0),)) ->  | AAO3: =IF(INDEX(수업명렬!$T:$T,MATCH(AAO1,수업명렬!$BB:$BB,0),)="","",INDEX(수업명렬!$T:$T,MATCH(AAO1,수업명렬!$BB:$BB,0),)) ->  | AAP3: =IF(INDEX(수업명렬!$T:$T,MATCH(AAP1,수업명렬!$BB:$BB,0),)="","",INDEX(수업명렬!$T:$T,MATCH(AAP1,수업명렬!$BB:$BB,0),)) ->  | AAQ3: =IF(INDEX(수업명렬!$T:$T,MATCH(AAQ1,수업명렬!$BB:$BB,0),)="","",INDEX(수업명렬!$T:$T,MATCH(AAQ1,수업명렬!$BB:$BB,0),)) ->  | AAR3: =IF(INDEX(수업명렬!$T:$T,MATCH(AAR1,수업명렬!$BB:$BB,0),)="","",INDEX(수업명렬!$T:$T,MATCH(AAR1,수업명렬!$BB:$BB,0),)) ->  | AAS3: =IF(INDEX(수업명렬!$T:$T,MATCH(AAS1,수업명렬!$BB:$BB,0),)="","",INDEX(수업명렬!$T:$T,MATCH(AAS1,수업명렬!$BB:$BB,0),)) ->  | AAT3: =IF(INDEX(수업명렬!$T:$T,MATCH(AAT1,수업명렬!$BB:$BB,0),)="","",INDEX(수업명렬!$T:$T,MATCH(AAT1,수업명렬!$BB:$BB,0),)) ->  | AAU3: =IF(INDEX(수업명렬!$T:$T,MATCH(AAU1,수업명렬!$BB:$BB,0),)="","",INDEX(수업명렬!$T:$T,MATCH(AAU1,수업명렬!$BB:$BB,0),)) ->  | AAV3: =IF(INDEX(수업명렬!$T:$T,MATCH(AAV1,수업명렬!$BB:$BB,0),)="","",INDEX(수업명렬!$T:$T,MATCH(AAV1,수업명렬!$BB:$BB,0),)) ->  | AAW3: =IF(INDEX(수업명렬!$T:$T,MATCH(AAW1,수업명렬!$BB:$BB,0),)="","",INDEX(수업명렬!$T:$T,MATCH(AAW1,수업명렬!$BB:$BB,0),)) ->  | AAX3: =IF(INDEX(수업명렬!$T:$T,MATCH(AAX1,수업명렬!$BB:$BB,0),)="","",INDEX(수업명렬!$T:$T,MATCH(AAX1,수업명렬!$BB:$BB,0),)) ->  | AAY3: =IF(INDEX(수업명렬!$T:$T,MATCH(AAY1,수업명렬!$BB:$BB,0),)="","",INDEX(수업명렬!$T:$T,MATCH(AAY1,수업명렬!$BB:$BB,0),)) ->  | AAZ3: =IF(INDEX(수업명렬!$T:$T,MATCH(AAZ1,수업명렬!$BB:$BB,0),)="","",INDEX(수업명렬!$T:$T,MATCH(AAZ1,수업명렬!$BB:$BB,0),)) ->  | ABA3: =IF(INDEX(수업명렬!$T:$T,MATCH(ABA1,수업명렬!$BB:$BB,0),)="","",INDEX(수업명렬!$T:$T,MATCH(ABA1,수업명렬!$BB:$BB,0),)) ->  | ABB3: =IF(INDEX(수업명렬!$T:$T,MATCH(ABB1,수업명렬!$BB:$BB,0),)="","",INDEX(수업명렬!$T:$T,MATCH(ABB1,수업명렬!$BB:$BB,0),)) ->  | ABC3: =IF(INDEX(수업명렬!$T:$T,MATCH(ABC1,수업명렬!$BB:$BB,0),)="","",INDEX(수업명렬!$T:$T,MATCH(ABC1,수업명렬!$BB:$BB,0),)) ->  | ABD3: =IF(INDEX(수업명렬!$T:$T,MATCH(ABD1,수업명렬!$BB:$BB,0),)="","",INDEX(수업명렬!$T:$T,MATCH(ABD1,수업명렬!$BB:$BB,0),)) ->  | ABE3: =IF(INDEX(수업명렬!$T:$T,MATCH(ABE1,수업명렬!$BB:$BB,0),)="","",INDEX(수업명렬!$T:$T,MATCH(ABE1,수업명렬!$BB:$BB,0),)) ->  | ABF3: =IF(INDEX(수업명렬!$T:$T,MATCH(ABF1,수업명렬!$BB:$BB,0),)="","",INDEX(수업명렬!$T:$T,MATCH(ABF1,수업명렬!$BB:$BB,0),)) ->  | ABK3: =IF(INDEX(수업명렬!$T:$T,MATCH(ABK1,수업명렬!$BB:$BB,0),)="","",INDEX(수업명렬!$T:$T,MATCH(ABK1,수업명렬!$BB:$BB,0),)) -> 국어 | ABL3: =IF(INDEX(수업명렬!$T:$T,MATCH(ABL1,수업명렬!$BB:$BB,0),)="","",INDEX(수업명렬!$T:$T,MATCH(ABL1,수업명렬!$BB:$BB,0),)) -> 국어 | ABM3: =IF(INDEX(수업명렬!$T:$T,MATCH(ABM1,수업명렬!$BB:$BB,0),)="","",INDEX(수업명렬!$T:$T,MATCH(ABM1,수업명렬!$BB:$BB,0),)) -> 수학 | ABN3: =IF(INDEX(수업명렬!$T:$T,MATCH(ABN1,수업명렬!$BB:$BB,0),)="","",INDEX(수업명렬!$T:$T,MATCH(ABN1,수업명렬!$BB:$BB,0),)) -> 수학 | ABO3: =IF(INDEX(수업명렬!$T:$T,MATCH(ABO1,수업명렬!$BB:$BB,0),)="","",INDEX(수업명렬!$T:$T,MATCH(ABO1,수업명렬!$BB:$BB,0),)) -> 수학 | ABP3: =IF(INDEX(수업명렬!$T:$T,MATCH(ABP1,수업명렬!$BB:$BB,0),)="","",INDEX(수업명렬!$T:$T,MATCH(ABP1,수업명렬!$BB:$BB,0),)) -> 영어 | ABQ3: =IF(INDEX(수업명렬!$T:$T,MATCH(ABQ1,수업명렬!$BB:$BB,0),)="","",INDEX(수업명렬!$T:$T,MATCH(ABQ1,수업명렬!$BB:$BB,0),)) -> 영어 | ABR3: =IF(INDEX(수업명렬!$T:$T,MATCH(ABR1,수업명렬!$BB:$BB,0),)="","",INDEX(수업명렬!$T:$T,MATCH(ABR1,수업명렬!$BB:$BB,0),)) -> 영어 | ABS3: =IF(INDEX(수업명렬!$T:$T,MATCH(ABS1,수업명렬!$BB:$BB,0),)="","",INDEX(수업명렬!$T:$T,MATCH(ABS1,수업명렬!$BB:$BB,0),)) ->  | ABT3: =IF(INDEX(수업명렬!$T:$T,MATCH(ABT1,수업명렬!$BB:$BB,0),)="","",INDEX(수업명렬!$T:$T,MATCH(ABT1,수업명렬!$BB:$BB,0),)) ->  | ABU3: =IF(INDEX(수업명렬!$T:$T,MATCH(ABU1,수업명렬!$BB:$BB,0),)="","",INDEX(수업명렬!$T:$T,MATCH(ABU1,수업명렬!$BB:$BB,0),)) ->  | ABV3: =IF(INDEX(수업명렬!$T:$T,MATCH(ABV1,수업명렬!$BB:$BB,0),)="","",INDEX(수업명렬!$T:$T,MATCH(ABV1,수업명렬!$BB:$BB,0),)) ->  | ABW3: =IF(INDEX(수업명렬!$T:$T,MATCH(ABW1,수업명렬!$BB:$BB,0),)="","",INDEX(수업명렬!$T:$T,MATCH(ABW1,수업명렬!$BB:$BB,0),)) ->  | ABX3: =IF(INDEX(수업명렬!$T:$T,MATCH(ABX1,수업명렬!$BB:$BB,0),)="","",INDEX(수업명렬!$T:$T,MATCH(ABX1,수업명렬!$BB:$BB,0),)) ->  | ABY3: =IF(INDEX(수업명렬!$T:$T,MATCH(ABY1,수업명렬!$BB:$BB,0),)="","",INDEX(수업명렬!$T:$T,MATCH(ABY1,수업명렬!$BB:$BB,0),)) ->  | ABZ3: =IF(INDEX(수업명렬!$T:$T,MATCH(ABZ1,수업명렬!$BB:$BB,0),)="","",INDEX(수업명렬!$T:$T,MATCH(ABZ1,수업명렬!$BB:$BB,0),)) ->  | ACA3: =IF(INDEX(수업명렬!$T:$T,MATCH(ACA1,수업명렬!$BB:$BB,0),)="","",INDEX(수업명렬!$T:$T,MATCH(ACA1,수업명렬!$BB:$BB,0),)) ->  | ACB3: =IF(INDEX(수업명렬!$T:$T,MATCH(ACB1,수업명렬!$BB:$BB,0),)="","",INDEX(수업명렬!$T:$T,MATCH(ACB1,수업명렬!$BB:$BB,0),)) ->  | ACC3: =IF(INDEX(수업명렬!$T:$T,MATCH(ACC1,수업명렬!$BB:$BB,0),)="","",INDEX(수업명렬!$T:$T,MATCH(ACC1,수업명렬!$BB:$BB,0),)) ->  | ACD3: =IF(INDEX(수업명렬!$T:$T,MATCH(ACD1,수업명렬!$BB:$BB,0),)="","",INDEX(수업명렬!$T:$T,MATCH(ACD1,수업명렬!$BB:$BB,0),)) ->  | ACE3: =IF(INDEX(수업명렬!$T:$T,MATCH(ACE1,수업명렬!$BB:$BB,0),)="","",INDEX(수업명렬!$T:$T,MATCH(ACE1,수업명렬!$BB:$BB,0),)) ->  | ACF3: =IF(INDEX(수업명렬!$T:$T,MATCH(ACF1,수업명렬!$BB:$BB,0),)="","",INDEX(수업명렬!$T:$T,MATCH(ACF1,수업명렬!$BB:$BB,0),)) ->  | ACG3: =IF(INDEX(수업명렬!$T:$T,MATCH(ACG1,수업명렬!$BB:$BB,0),)="","",INDEX(수업명렬!$T:$T,MATCH(ACG1,수업명렬!$BB:$BB,0),)) ->  | ACH3: =IF(INDEX(수업명렬!$T:$T,MATCH(ACH1,수업명렬!$BB:$BB,0),)="","",INDEX(수업명렬!$T:$T,MATCH(ACH1,수업명렬!$BB:$BB,0),)) ->  | ACI3: =IF(INDEX(수업명렬!$T:$T,MATCH(ACI1,수업명렬!$BB:$BB,0),)="","",INDEX(수업명렬!$T:$T,MATCH(ACI1,수업명렬!$BB:$BB,0),)) ->  | ACJ3: =IF(INDEX(수업명렬!$T:$T,MATCH(ACJ1,수업명렬!$BB:$BB,0),)="","",INDEX(수업명렬!$T:$T,MATCH(ACJ1,수업명렬!$BB:$BB,0),)) ->  | ACK3: =IF(INDEX(수업명렬!$T:$T,MATCH(ACK1,수업명렬!$BB:$BB,0),)="","",INDEX(수업명렬!$T:$T,MATCH(ACK1,수업명렬!$BB:$BB,0),)) ->  | ACL3: =IF(INDEX(수업명렬!$T:$T,MATCH(ACL1,수업명렬!$BB:$BB,0),)="","",INDEX(수업명렬!$T:$T,MATCH(ACL1,수업명렬!$BB:$BB,0),)) ->  | ACM3: =IF(INDEX(수업명렬!$T:$T,MATCH(ACM1,수업명렬!$BB:$BB,0),)="","",INDEX(수업명렬!$T:$T,MATCH(ACM1,수업명렬!$BB:$BB,0),)) ->  | ACN3: =IF(INDEX(수업명렬!$T:$T,MATCH(ACN1,수업명렬!$BB:$BB,0),)="","",INDEX(수업명렬!$T:$T,MATCH(ACN1,수업명렬!$BB:$BB,0),)) ->  | ACO3: =IF(INDEX(수업명렬!$T:$T,MATCH(ACO1,수업명렬!$BB:$BB,0),)="","",INDEX(수업명렬!$T:$T,MATCH(ACO1,수업명렬!$BB:$BB,0),)) ->  | ACP3: =IF(INDEX(수업명렬!$T:$T,MATCH(ACP1,수업명렬!$BB:$BB,0),)="","",INDEX(수업명렬!$T:$T,MATCH(ACP1,수업명렬!$BB:$BB,0),)) ->  | ACQ3: =IF(INDEX(수업명렬!$T:$T,MATCH(ACQ1,수업명렬!$BB:$BB,0),)="","",INDEX(수업명렬!$T:$T,MATCH(ACQ1,수업명렬!$BB:$BB,0),)) ->  | ACR3: =IF(INDEX(수업명렬!$T:$T,MATCH(ACR1,수업명렬!$BB:$BB,0),)="","",INDEX(수업명렬!$T:$T,MATCH(ACR1,수업명렬!$BB:$BB,0),)) ->  | ACS3: =IF(INDEX(수업명렬!$T:$T,MATCH(ACS1,수업명렬!$BB:$BB,0),)="","",INDEX(수업명렬!$T:$T,MATCH(ACS1,수업명렬!$BB:$BB,0),)) ->  | ACT3: =IF(INDEX(수업명렬!$T:$T,MATCH(ACT1,수업명렬!$BB:$BB,0),)="","",INDEX(수업명렬!$T:$T,MATCH(ACT1,수업명렬!$BB:$BB,0),)) ->  | ACU3: =IF(INDEX(수업명렬!$T:$T,MATCH(ACU1,수업명렬!$BB:$BB,0),)="","",INDEX(수업명렬!$T:$T,MATCH(ACU1,수업명렬!$BB:$BB,0),)) ->  | ACV3: =IF(INDEX(수업명렬!$T:$T,MATCH(ACV1,수업명렬!$BB:$BB,0),)="","",INDEX(수업명렬!$T:$T,MATCH(ACV1,수업명렬!$BB:$BB,0),)) ->  | ACW3: =IF(INDEX(수업명렬!$T:$T,MATCH(ACW1,수업명렬!$BB:$BB,0),)="","",INDEX(수업명렬!$T:$T,MATCH(ACW1,수업명렬!$BB:$BB,0),)) ->  | ACX3: =IF(INDEX(수업명렬!$T:$T,MATCH(ACX1,수업명렬!$BB:$BB,0),)="","",INDEX(수업명렬!$T:$T,MATCH(ACX1,수업명렬!$BB:$BB,0),)) ->  | ACY3: =IF(INDEX(수업명렬!$T:$T,MATCH(ACY1,수업명렬!$BB:$BB,0),)="","",INDEX(수업명렬!$T:$T,MATCH(ACY1,수업명렬!$BB:$BB,0),)) ->  | ACZ3: =IF(INDEX(수업명렬!$T:$T,MATCH(ACZ1,수업명렬!$BB:$BB,0),)="","",INDEX(수업명렬!$T:$T,MATCH(ACZ1,수업명렬!$BB:$BB,0),)) ->  | ADA3: =IF(INDEX(수업명렬!$T:$T,MATCH(ADA1,수업명렬!$BB:$BB,0),)="","",INDEX(수업명렬!$T:$T,MATCH(ADA1,수업명렬!$BB:$BB,0),)) ->  | ADB3: =IF(INDEX(수업명렬!$T:$T,MATCH(ADB1,수업명렬!$BB:$BB,0),)="","",INDEX(수업명렬!$T:$T,MATCH(ADB1,수업명렬!$BB:$BB,0),)) ->  | ADC3: =IF(INDEX(수업명렬!$T:$T,MATCH(ADC1,수업명렬!$BB:$BB,0),)="","",INDEX(수업명렬!$T:$T,MATCH(ADC1,수업명렬!$BB:$BB,0),)) ->  | ADD3: =IF(INDEX(수업명렬!$T:$T,MATCH(ADD1,수업명렬!$BB:$BB,0),)="","",INDEX(수업명렬!$T:$T,MATCH(ADD1,수업명렬!$BB:$BB,0),)) ->  | ADE3: =IF(INDEX(수업명렬!$T:$T,MATCH(ADE1,수업명렬!$BB:$BB,0),)="","",INDEX(수업명렬!$T:$T,MATCH(ADE1,수업명렬!$BB:$BB,0),)) ->  | ADF3: =IF(INDEX(수업명렬!$T:$T,MATCH(ADF1,수업명렬!$BB:$BB,0),)="","",INDEX(수업명렬!$T:$T,MATCH(ADF1,수업명렬!$BB:$BB,0),)) ->  | ADG3: =IF(INDEX(수업명렬!$T:$T,MATCH(ADG1,수업명렬!$BB:$BB,0),)="","",INDEX(수업명렬!$T:$T,MATCH(ADG1,수업명렬!$BB:$BB,0),)) ->  | ADH3: =IF(INDEX(수업명렬!$T:$T,MATCH(ADH1,수업명렬!$BB:$BB,0),)="","",INDEX(수업명렬!$T:$T,MATCH(ADH1,수업명렬!$BB:$BB,0),)) ->  | ADI3: =AFL5 -> 1 | ADJ3: =INDEX(ADK7:ADK506,MATCH(OF15,ADJ7:ADJ506,0)) -> 6 | ADK3: =MIN(ADL7:AFI506) -> 8 | ADL3: =IF(INDEX(수업명렬!$T:$T,MATCH(ADL1,수업명렬!$BB:$BB,0),)="","",INDEX(수업명렬!$T:$T,MATCH(ADL1,수업명렬!$BB:$BB,0),)) -> 국어 | ADM3: =IF(INDEX(수업명렬!$T:$T,MATCH(ADM1,수업명렬!$BB:$BB,0),)="","",INDEX(수업명렬!$T:$T,MATCH(ADM1,수업명렬!$BB:$BB,0),)) -> 국어 | ADN3: =IF(INDEX(수업명렬!$T:$T,MATCH(ADN1,수업명렬!$BB:$BB,0),)="","",INDEX(수업명렬!$T:$T,MATCH(ADN1,수업명렬!$BB:$BB,0),)) -> 수학 | ADO3: =IF(INDEX(수업명렬!$T:$T,MATCH(ADO1,수업명렬!$BB:$BB,0),)="","",INDEX(수업명렬!$T:$T,MATCH(ADO1,수업명렬!$BB:$BB,0),)) -> 수학 | ADP3: =IF(INDEX(수업명렬!$T:$T,MATCH(ADP1,수업명렬!$BB:$BB,0),)="","",INDEX(수업명렬!$T:$T,MATCH(ADP1,수업명렬!$BB:$BB,0),)) -> 수학 | ADQ3: =IF(INDEX(수업명렬!$T:$T,MATCH(ADQ1,수업명렬!$BB:$BB,0),)="","",INDEX(수업명렬!$T:$T,MATCH(ADQ1,수업명렬!$BB:$BB,0),)) -> 영어 | ADR3: =IF(INDEX(수업명렬!$T:$T,MATCH(ADR1,수업명렬!$BB:$BB,0),)="","",INDEX(수업명렬!$T:$T,MATCH(ADR1,수업명렬!$BB:$BB,0),)) -> 영어 | ADS3: =IF(INDEX(수업명렬!$T:$T,MATCH(ADS1,수업명렬!$BB:$BB,0),)="","",INDEX(수업명렬!$T:$T,MATCH(ADS1,수업명렬!$BB:$BB,0),)) -> 영어 | ADT3: =IF(INDEX(수업명렬!$T:$T,MATCH(ADT1,수업명렬!$BB:$BB,0),)="","",INDEX(수업명렬!$T:$T,MATCH(ADT1,수업명렬!$BB:$BB,0),)) ->  | ADU3: =IF(INDEX(수업명렬!$T:$T,MATCH(ADU1,수업명렬!$BB:$BB,0),)="","",INDEX(수업명렬!$T:$T,MATCH(ADU1,수업명렬!$BB:$BB,0),)) ->  | ADV3: =IF(INDEX(수업명렬!$T:$T,MATCH(ADV1,수업명렬!$BB:$BB,0),)="","",INDEX(수업명렬!$T:$T,MATCH(ADV1,수업명렬!$BB:$BB,0),)) ->  | ADW3: =IF(INDEX(수업명렬!$T:$T,MATCH(ADW1,수업명렬!$BB:$BB,0),)="","",INDEX(수업명렬!$T:$T,MATCH(ADW1,수업명렬!$BB:$BB,0),)) ->  | ADX3: =IF(INDEX(수업명렬!$T:$T,MATCH(ADX1,수업명렬!$BB:$BB,0),)="","",INDEX(수업명렬!$T:$T,MATCH(ADX1,수업명렬!$BB:$BB,0),)) ->  | ADY3: =IF(INDEX(수업명렬!$T:$T,MATCH(ADY1,수업명렬!$BB:$BB,0),)="","",INDEX(수업명렬!$T:$T,MATCH(ADY1,수업명렬!$BB:$BB,0),)) ->  | ADZ3: =IF(INDEX(수업명렬!$T:$T,MATCH(ADZ1,수업명렬!$BB:$BB,0),)="","",INDEX(수업명렬!$T:$T,MATCH(ADZ1,수업명렬!$BB:$BB,0),)) ->  | AEA3: =IF(INDEX(수업명렬!$T:$T,MATCH(AEA1,수업명렬!$BB:$BB,0),)="","",INDEX(수업명렬!$T:$T,MATCH(AEA1,수업명렬!$BB:$BB,0),)) ->  | AEB3: =IF(INDEX(수업명렬!$T:$T,MATCH(AEB1,수업명렬!$BB:$BB,0),)="","",INDEX(수업명렬!$T:$T,MATCH(AEB1,수업명렬!$BB:$BB,0),)) ->  | AEC3: =IF(INDEX(수업명렬!$T:$T,MATCH(AEC1,수업명렬!$BB:$BB,0),)="","",INDEX(수업명렬!$T:$T,MATCH(AEC1,수업명렬!$BB:$BB,0),)) ->  | AED3: =IF(INDEX(수업명렬!$T:$T,MATCH(AED1,수업명렬!$BB:$BB,0),)="","",INDEX(수업명렬!$T:$T,MATCH(AED1,수업명렬!$BB:$BB,0),)) ->  | AEE3: =IF(INDEX(수업명렬!$T:$T,MATCH(AEE1,수업명렬!$BB:$BB,0),)="","",INDEX(수업명렬!$T:$T,MATCH(AEE1,수업명렬!$BB:$BB,0),)) ->  | AEF3: =IF(INDEX(수업명렬!$T:$T,MATCH(AEF1,수업명렬!$BB:$BB,0),)="","",INDEX(수업명렬!$T:$T,MATCH(AEF1,수업명렬!$BB:$BB,0),)) ->  | AEG3: =IF(INDEX(수업명렬!$T:$T,MATCH(AEG1,수업명렬!$BB:$BB,0),)="","",INDEX(수업명렬!$T:$T,MATCH(AEG1,수업명렬!$BB:$BB,0),)) ->  | AEH3: =IF(INDEX(수업명렬!$T:$T,MATCH(AEH1,수업명렬!$BB:$BB,0),)="","",INDEX(수업명렬!$T:$T,MATCH(AEH1,수업명렬!$BB:$BB,0),)) ->  | AEI3: =IF(INDEX(수업명렬!$T:$T,MATCH(AEI1,수업명렬!$BB:$BB,0),)="","",INDEX(수업명렬!$T:$T,MATCH(AEI1,수업명렬!$BB:$BB,0),)) ->  | AEJ3: =IF(INDEX(수업명렬!$T:$T,MATCH(AEJ1,수업명렬!$BB:$BB,0),)="","",INDEX(수업명렬!$T:$T,MATCH(AEJ1,수업명렬!$BB:$BB,0),)) ->  | AEK3: =IF(INDEX(수업명렬!$T:$T,MATCH(AEK1,수업명렬!$BB:$BB,0),)="","",INDEX(수업명렬!$T:$T,MATCH(AEK1,수업명렬!$BB:$BB,0),)) ->  | AEL3: =IF(INDEX(수업명렬!$T:$T,MATCH(AEL1,수업명렬!$BB:$BB,0),)="","",INDEX(수업명렬!$T:$T,MATCH(AEL1,수업명렬!$BB:$BB,0),)) ->  | AEM3: =IF(INDEX(수업명렬!$T:$T,MATCH(AEM1,수업명렬!$BB:$BB,0),)="","",INDEX(수업명렬!$T:$T,MATCH(AEM1,수업명렬!$BB:$BB,0),)) ->  | AEN3: =IF(INDEX(수업명렬!$T:$T,MATCH(AEN1,수업명렬!$BB:$BB,0),)="","",INDEX(수업명렬!$T:$T,MATCH(AEN1,수업명렬!$BB:$BB,0),)) ->  | AEO3: =IF(INDEX(수업명렬!$T:$T,MATCH(AEO1,수업명렬!$BB:$BB,0),)="","",INDEX(수업명렬!$T:$T,MATCH(AEO1,수업명렬!$BB:$BB,0),)) ->  | AEP3: =IF(INDEX(수업명렬!$T:$T,MATCH(AEP1,수업명렬!$BB:$BB,0),)="","",INDEX(수업명렬!$T:$T,MATCH(AEP1,수업명렬!$BB:$BB,0),)) ->  | AEQ3: =IF(INDEX(수업명렬!$T:$T,MATCH(AEQ1,수업명렬!$BB:$BB,0),)="","",INDEX(수업명렬!$T:$T,MATCH(AEQ1,수업명렬!$BB:$BB,0),)) ->  | AER3: =IF(INDEX(수업명렬!$T:$T,MATCH(AER1,수업명렬!$BB:$BB,0),)="","",INDEX(수업명렬!$T:$T,MATCH(AER1,수업명렬!$BB:$BB,0),)) ->  | AES3: =IF(INDEX(수업명렬!$T:$T,MATCH(AES1,수업명렬!$BB:$BB,0),)="","",INDEX(수업명렬!$T:$T,MATCH(AES1,수업명렬!$BB:$BB,0),)) ->  | AET3: =IF(INDEX(수업명렬!$T:$T,MATCH(AET1,수업명렬!$BB:$BB,0),)="","",INDEX(수업명렬!$T:$T,MATCH(AET1,수업명렬!$BB:$BB,0),)) ->  | AEU3: =IF(INDEX(수업명렬!$T:$T,MATCH(AEU1,수업명렬!$BB:$BB,0),)="","",INDEX(수업명렬!$T:$T,MATCH(AEU1,수업명렬!$BB:$BB,0),)) ->  | AEV3: =IF(INDEX(수업명렬!$T:$T,MATCH(AEV1,수업명렬!$BB:$BB,0),)="","",INDEX(수업명렬!$T:$T,MATCH(AEV1,수업명렬!$BB:$BB,0),)) ->  | AEW3: =IF(INDEX(수업명렬!$T:$T,MATCH(AEW1,수업명렬!$BB:$BB,0),)="","",INDEX(수업명렬!$T:$T,MATCH(AEW1,수업명렬!$BB:$BB,0),)) ->  | AEX3: =IF(INDEX(수업명렬!$T:$T,MATCH(AEX1,수업명렬!$BB:$BB,0),)="","",INDEX(수업명렬!$T:$T,MATCH(AEX1,수업명렬!$BB:$BB,0),)) ->  | AEY3: =IF(INDEX(수업명렬!$T:$T,MATCH(AEY1,수업명렬!$BB:$BB,0),)="","",INDEX(수업명렬!$T:$T,MATCH(AEY1,수업명렬!$BB:$BB,0),)) ->  | AEZ3: =IF(INDEX(수업명렬!$T:$T,MATCH(AEZ1,수업명렬!$BB:$BB,0),)="","",INDEX(수업명렬!$T:$T,MATCH(AEZ1,수업명렬!$BB:$BB,0),)) ->  | AFA3: =IF(INDEX(수업명렬!$T:$T,MATCH(AFA1,수업명렬!$BB:$BB,0),)="","",INDEX(수업명렬!$T:$T,MATCH(AFA1,수업명렬!$BB:$BB,0),)) ->  | AFB3: =IF(INDEX(수업명렬!$T:$T,MATCH(AFB1,수업명렬!$BB:$BB,0),)="","",INDEX(수업명렬!$T:$T,MATCH(AFB1,수업명렬!$BB:$BB,0),)) ->  | AFC3: =IF(INDEX(수업명렬!$T:$T,MATCH(AFC1,수업명렬!$BB:$BB,0),)="","",INDEX(수업명렬!$T:$T,MATCH(AFC1,수업명렬!$BB:$BB,0),)) ->  | AFD3: =IF(INDEX(수업명렬!$T:$T,MATCH(AFD1,수업명렬!$BB:$BB,0),)="","",INDEX(수업명렬!$T:$T,MATCH(AFD1,수업명렬!$BB:$BB,0),)) ->  | AFE3: =IF(INDEX(수업명렬!$T:$T,MATCH(AFE1,수업명렬!$BB:$BB,0),)="","",INDEX(수업명렬!$T:$T,MATCH(AFE1,수업명렬!$BB:$BB,0),)) ->  | AFF3: =IF(INDEX(수업명렬!$T:$T,MATCH(AFF1,수업명렬!$BB:$BB,0),)="","",INDEX(수업명렬!$T:$T,MATCH(AFF1,수업명렬!$BB:$BB,0),)) ->  | AFG3: =IF(INDEX(수업명렬!$T:$T,MATCH(AFG1,수업명렬!$BB:$BB,0),)="","",INDEX(수업명렬!$T:$T,MATCH(AFG1,수업명렬!$BB:$BB,0),)) ->  | AFH3: =IF(INDEX(수업명렬!$T:$T,MATCH(AFH1,수업명렬!$BB:$BB,0),)="","",INDEX(수업명렬!$T:$T,MATCH(AFH1,수업명렬!$BB:$BB,0),)) ->  | AFI3: =IF(INDEX(수업명렬!$T:$T,MATCH(AFI1,수업명렬!$BB:$BB,0),)="","",INDEX(수업명렬!$T:$T,MATCH(AFI1,수업명렬!$BB:$BB,0),)) ->  | AFM3: =IF(INDEX(수업명렬!$T:$T,MATCH(AFM1,수업명렬!$BB:$BB,0),)="","",INDEX(수업명렬!$T:$T,MATCH(AFM1,수업명렬!$BB:$BB,0),)) -> 국어 | AFN3: =IF(INDEX(수업명렬!$T:$T,MATCH(AFN1,수업명렬!$BB:$BB,0),)="","",INDEX(수업명렬!$T:$T,MATCH(AFN1,수업명렬!$BB:$BB,0),)) -> 국어 | AFO3: =IF(INDEX(수업명렬!$T:$T,MATCH(AFO1,수업명렬!$BB:$BB,0),)="","",INDEX(수업명렬!$T:$T,MATCH(AFO1,수업명렬!$BB:$BB,0),)) -> 수학 | AFP3: =IF(INDEX(수업명렬!$T:$T,MATCH(AFP1,수업명렬!$BB:$BB,0),)="","",INDEX(수업명렬!$T:$T,MATCH(AFP1,수업명렬!$BB:$BB,0),)) -> 수학 | AFQ3: =IF(INDEX(수업명렬!$T:$T,MATCH(AFQ1,수업명렬!$BB:$BB,0),)="","",INDEX(수업명렬!$T:$T,MATCH(AFQ1,수업명렬!$BB:$BB,0),)) -> 수학 | AFR3: =IF(INDEX(수업명렬!$T:$T,MATCH(AFR1,수업명렬!$BB:$BB,0),)="","",INDEX(수업명렬!$T:$T,MATCH(AFR1,수업명렬!$BB:$BB,0),)) -> 영어 | AFS3: =IF(INDEX(수업명렬!$T:$T,MATCH(AFS1,수업명렬!$BB:$BB,0),)="","",INDEX(수업명렬!$T:$T,MATCH(AFS1,수업명렬!$BB:$BB,0),)) -> 영어 | AFT3: =IF(INDEX(수업명렬!$T:$T,MATCH(AFT1,수업명렬!$BB:$BB,0),)="","",INDEX(수업명렬!$T:$T,MATCH(AFT1,수업명렬!$BB:$BB,0),)) -> 영어 | AFU3: =IF(INDEX(수업명렬!$T:$T,MATCH(AFU1,수업명렬!$BB:$BB,0),)="","",INDEX(수업명렬!$T:$T,MATCH(AFU1,수업명렬!$BB:$BB,0),)) ->  | AFV3: =IF(INDEX(수업명렬!$T:$T,MATCH(AFV1,수업명렬!$BB:$BB,0),)="","",INDEX(수업명렬!$T:$T,MATCH(AFV1,수업명렬!$BB:$BB,0),)) ->  | AFW3: =IF(INDEX(수업명렬!$T:$T,MATCH(AFW1,수업명렬!$BB:$BB,0),)="","",INDEX(수업명렬!$T:$T,MATCH(AFW1,수업명렬!$BB:$BB,0),)) ->  | AFX3: =IF(INDEX(수업명렬!$T:$T,MATCH(AFX1,수업명렬!$BB:$BB,0),)="","",INDEX(수업명렬!$T:$T,MATCH(AFX1,수업명렬!$BB:$BB,0),)) ->  | AFY3: =IF(INDEX(수업명렬!$T:$T,MATCH(AFY1,수업명렬!$BB:$BB,0),)="","",INDEX(수업명렬!$T:$T,MATCH(AFY1,수업명렬!$BB:$BB,0),)) ->  | AFZ3: =IF(INDEX(수업명렬!$T:$T,MATCH(AFZ1,수업명렬!$BB:$BB,0),)="","",INDEX(수업명렬!$T:$T,MATCH(AFZ1,수업명렬!$BB:$BB,0),)) ->  | AGA3: =IF(INDEX(수업명렬!$T:$T,MATCH(AGA1,수업명렬!$BB:$BB,0),)="","",INDEX(수업명렬!$T:$T,MATCH(AGA1,수업명렬!$BB:$BB,0),)) ->  | AGB3: =IF(INDEX(수업명렬!$T:$T,MATCH(AGB1,수업명렬!$BB:$BB,0),)="","",INDEX(수업명렬!$T:$T,MATCH(AGB1,수업명렬!$BB:$BB,0),)) ->  | AGC3: =IF(INDEX(수업명렬!$T:$T,MATCH(AGC1,수업명렬!$BB:$BB,0),)="","",INDEX(수업명렬!$T:$T,MATCH(AGC1,수업명렬!$BB:$BB,0),)) ->  | AGD3: =IF(INDEX(수업명렬!$T:$T,MATCH(AGD1,수업명렬!$BB:$BB,0),)="","",INDEX(수업명렬!$T:$T,MATCH(AGD1,수업명렬!$BB:$BB,0),)) ->  | AGE3: =IF(INDEX(수업명렬!$T:$T,MATCH(AGE1,수업명렬!$BB:$BB,0),)="","",INDEX(수업명렬!$T:$T,MATCH(AGE1,수업명렬!$BB:$BB,0),)) ->  | AGF3: =IF(INDEX(수업명렬!$T:$T,MATCH(AGF1,수업명렬!$BB:$BB,0),)="","",INDEX(수업명렬!$T:$T,MATCH(AGF1,수업명렬!$BB:$BB,0),)) ->  | AGG3: =IF(INDEX(수업명렬!$T:$T,MATCH(AGG1,수업명렬!$BB:$BB,0),)="","",INDEX(수업명렬!$T:$T,MATCH(AGG1,수업명렬!$BB:$BB,0),)) ->  | AGH3: =IF(INDEX(수업명렬!$T:$T,MATCH(AGH1,수업명렬!$BB:$BB,0),)="","",INDEX(수업명렬!$T:$T,MATCH(AGH1,수업명렬!$BB:$BB,0),)) ->  | AGI3: =IF(INDEX(수업명렬!$T:$T,MATCH(AGI1,수업명렬!$BB:$BB,0),)="","",INDEX(수업명렬!$T:$T,MATCH(AGI1,수업명렬!$BB:$BB,0),)) ->  | AGJ3: =IF(INDEX(수업명렬!$T:$T,MATCH(AGJ1,수업명렬!$BB:$BB,0),)="","",INDEX(수업명렬!$T:$T,MATCH(AGJ1,수업명렬!$BB:$BB,0),)) ->  | AGK3: =IF(INDEX(수업명렬!$T:$T,MATCH(AGK1,수업명렬!$BB:$BB,0),)="","",INDEX(수업명렬!$T:$T,MATCH(AGK1,수업명렬!$BB:$BB,0),)) ->  | AGL3: =IF(INDEX(수업명렬!$T:$T,MATCH(AGL1,수업명렬!$BB:$BB,0),)="","",INDEX(수업명렬!$T:$T,MATCH(AGL1,수업명렬!$BB:$BB,0),)) ->  | AGM3: =IF(INDEX(수업명렬!$T:$T,MATCH(AGM1,수업명렬!$BB:$BB,0),)="","",INDEX(수업명렬!$T:$T,MATCH(AGM1,수업명렬!$BB:$BB,0),)) ->  | AGN3: =IF(INDEX(수업명렬!$T:$T,MATCH(AGN1,수업명렬!$BB:$BB,0),)="","",INDEX(수업명렬!$T:$T,MATCH(AGN1,수업명렬!$BB:$BB,0),)) ->  | AGO3: =IF(INDEX(수업명렬!$T:$T,MATCH(AGO1,수업명렬!$BB:$BB,0),)="","",INDEX(수업명렬!$T:$T,MATCH(AGO1,수업명렬!$BB:$BB,0),)) ->  | AGP3: =IF(INDEX(수업명렬!$T:$T,MATCH(AGP1,수업명렬!$BB:$BB,0),)="","",INDEX(수업명렬!$T:$T,MATCH(AGP1,수업명렬!$BB:$BB,0),)) ->  | AGQ3: =IF(INDEX(수업명렬!$T:$T,MATCH(AGQ1,수업명렬!$BB:$BB,0),)="","",INDEX(수업명렬!$T:$T,MATCH(AGQ1,수업명렬!$BB:$BB,0),)) ->  | AGR3: =IF(INDEX(수업명렬!$T:$T,MATCH(AGR1,수업명렬!$BB:$BB,0),)="","",INDEX(수업명렬!$T:$T,MATCH(AGR1,수업명렬!$BB:$BB,0),)) ->  | AGS3: =IF(INDEX(수업명렬!$T:$T,MATCH(AGS1,수업명렬!$BB:$BB,0),)="","",INDEX(수업명렬!$T:$T,MATCH(AGS1,수업명렬!$BB:$BB,0),)) ->  | AGT3: =IF(INDEX(수업명렬!$T:$T,MATCH(AGT1,수업명렬!$BB:$BB,0),)="","",INDEX(수업명렬!$T:$T,MATCH(AGT1,수업명렬!$BB:$BB,0),)) ->  | AGU3: =IF(INDEX(수업명렬!$T:$T,MATCH(AGU1,수업명렬!$BB:$BB,0),)="","",INDEX(수업명렬!$T:$T,MATCH(AGU1,수업명렬!$BB:$BB,0),)) ->  | AGV3: =IF(INDEX(수업명렬!$T:$T,MATCH(AGV1,수업명렬!$BB:$BB,0),)="","",INDEX(수업명렬!$T:$T,MATCH(AGV1,수업명렬!$BB:$BB,0),)) ->  | AGW3: =IF(INDEX(수업명렬!$T:$T,MATCH(AGW1,수업명렬!$BB:$BB,0),)="","",INDEX(수업명렬!$T:$T,MATCH(AGW1,수업명렬!$BB:$BB,0),)) ->  | AGX3: =IF(INDEX(수업명렬!$T:$T,MATCH(AGX1,수업명렬!$BB:$BB,0),)="","",INDEX(수업명렬!$T:$T,MATCH(AGX1,수업명렬!$BB:$BB,0),)) ->  | AGY3: =IF(INDEX(수업명렬!$T:$T,MATCH(AGY1,수업명렬!$BB:$BB,0),)="","",INDEX(수업명렬!$T:$T,MATCH(AGY1,수업명렬!$BB:$BB,0),)) ->  | AGZ3: =IF(INDEX(수업명렬!$T:$T,MATCH(AGZ1,수업명렬!$BB:$BB,0),)="","",INDEX(수업명렬!$T:$T,MATCH(AGZ1,수업명렬!$BB:$BB,0),)) ->  | AHA3: =IF(INDEX(수업명렬!$T:$T,MATCH(AHA1,수업명렬!$BB:$BB,0),)="","",INDEX(수업명렬!$T:$T,MATCH(AHA1,수업명렬!$BB:$BB,0),)) ->  | AHB3: =IF(INDEX(수업명렬!$T:$T,MATCH(AHB1,수업명렬!$BB:$BB,0),)="","",INDEX(수업명렬!$T:$T,MATCH(AHB1,수업명렬!$BB:$BB,0),)) ->  | AHC3: =IF(INDEX(수업명렬!$T:$T,MATCH(AHC1,수업명렬!$BB:$BB,0),)="","",INDEX(수업명렬!$T:$T,MATCH(AHC1,수업명렬!$BB:$BB,0),)) ->  | AHD3: =IF(INDEX(수업명렬!$T:$T,MATCH(AHD1,수업명렬!$BB:$BB,0),)="","",INDEX(수업명렬!$T:$T,MATCH(AHD1,수업명렬!$BB:$BB,0),)) ->  | AHE3: =IF(INDEX(수업명렬!$T:$T,MATCH(AHE1,수업명렬!$BB:$BB,0),)="","",INDEX(수업명렬!$T:$T,MATCH(AHE1,수업명렬!$BB:$BB,0),)) ->  | AHF3: =IF(INDEX(수업명렬!$T:$T,MATCH(AHF1,수업명렬!$BB:$BB,0),)="","",INDEX(수업명렬!$T:$T,MATCH(AHF1,수업명렬!$BB:$BB,0),)) ->  | AHG3: =IF(INDEX(수업명렬!$T:$T,MATCH(AHG1,수업명렬!$BB:$BB,0),)="","",INDEX(수업명렬!$T:$T,MATCH(AHG1,수업명렬!$BB:$BB,0),)) ->  | AHH3: =IF(INDEX(수업명렬!$T:$T,MATCH(AHH1,수업명렬!$BB:$BB,0),)="","",INDEX(수업명렬!$T:$T,MATCH(AHH1,수업명렬!$BB:$BB,0),)) ->  | AHI3: =IF(INDEX(수업명렬!$T:$T,MATCH(AHI1,수업명렬!$BB:$BB,0),)="","",INDEX(수업명렬!$T:$T,MATCH(AHI1,수업명렬!$BB:$BB,0),)) ->  | AHJ3: =IF(INDEX(수업명렬!$T:$T,MATCH(AHJ1,수업명렬!$BB:$BB,0),)="","",INDEX(수업명렬!$T:$T,MATCH(AHJ1,수업명렬!$BB:$BB,0),)) ->  | AHM3: =OM3-RIGHT(OM3,2) -> 27700
